Workbook

Sheet Úvod
G2: Úvod
G4: Vzdálenosti
G6: Výchozí stav
G8: Simulace bez podmínek
G10: Simulace s podmínkami
G12: Výstup ze simulace
G14: Hladina 80 %
G16: Hladina 60 %
G18: Hladina 40 %
G20: Podklady pro výpočet nákladů
G22: Vypočtení nákladů

Sheet Vzdálenosti
I2: Jednotlivé vzdálenosti
J3: 1 | K3: 2 | L3: 3 | M3: 4 | N3: 5 | O3: 6 | P3: 7 | Q3: 8 | R3: 9 | S3: 10 | T3: 11 | U3: 12 | V3: 13 | W3: 14 | X3: 15 | Y3: 16 | Z3: 17 | AA3: 18
I4: Vzdálenost [km] | J4: Trhové sviny | K4: Březí | L4: Nežetice | M4: Todně | N4: Něchov | O4: Ločenice | P4: Nesměň | Q4: Besednice | R4: Keblany | S4: Lniště | T4: Mohuřice | U4: Slavče | V4: Dobrkovská Lhotka | W4: Dolní Lhotka | X4: Záluží | Y4: Chvalkov | Z4: Čížkrajice | AA4: Boršíkov
H5: 1 | I5: Trhové Sviny | J5: 0 | K5: 3 | L5: 4 | M5: 6 | N5: 5 | O5: 9 | P5: 12 | Q5: 10 | R5: 6 | S5: 3 | T5: 4 | U5: 6 | V5: 8 | W5: 8 | X5: 7 | Y5: 6 | Z5: 4 | AA5: 3
H6: 2 | I6: Březí | J6: 3 | K6: 0 | L6: 1 | M6: 4 | N6: 4 | O6: 7 | P6: 11 | Q6: 13 | R6: 9 | S6: 2 | T6: 7 | U6: 9 | V6: 11 | W6: 11 | X6: 10 | Y6: 9 | Z6: 7 | AA6: 6
H7: 3 | I7: Nežetice | J7: 4 | K7: 1 | L7: 0 | M7: 2 | N7: 4 | O7: 6 | P7: 10 | Q7: 12 | R7: 10 | S7: 4 | T7: 9 | U7: 11 | V7: 12 | W7: 13 | X7: 11 | Y7: 10 | Z7: 9 | AA7: 8
H8: 4 | I8: Todně | J8: 6 | K8: 4 | L8: 2 | M8: 0 | N8: 1 | O8: 4 | P8: 7 | Q8: 9 | R8: 12 | S8: 5 | T8: 10 | U8: 12 | V8: 14 | W8: 15 | X8: 13 | Y8: 12 | Z8: 11 | AA8: 9
H9: 5 | I9: Něchov | J9: 5 | K9: 4 | L9: 4 | M9: 1 | N9: 0 | O9: 3 | P9: 7 | Q9: 9 | R9: 11 | S9: 4 | T9: 9 | U9: 11 | V9: 13 | W9: 13 | X9: 12 | Y9: 11 | Z9: 10 | AA9: 8
H10: 6 | I10: Ločenice | J10: 9 | K10: 7 | L10: 6 | M10: 4 | N10: 3 | O10: 0 | P10: 3 | Q10: 5 | R10: 10 | S10: 8 | T10: 11 | U10: 12 | V10: 9 | W10: 9 | X10: 10 | Y10: 14 | Z10: 13 | AA10: 12
H11: 7 | I11: Nesměň | J11: 12 | K11: 11 | L11: 10 | M11: 7 | N11: 7 | O11: 3 | P11: 0 | Q11: 3 | R11: 8 | S11: 11 | T11: 9 | U11: 10 | V11: 7 | W11: 6 | X11: 8 | Y11: 12 | Z11: 13 | AA11: 15
H12: 8 | I12: Besednice | J12: 10 | K12: 13 | L12: 12 | M12: 9 | N12: 9 | O12: 5 | P12: 3 | Q12: 0 | R12: 5 | S12: 8 | T12: 6 | U12: 7 | V12: 4 | W12: 3 | X12: 5 | Y12: 9 | Z12: 10 | AA12: 12
H13: 9 | I13: Keblany | J13: 6 | K13: 9 | L13: 10 | M13: 12 | N13: 11 | O13: 10 | P13: 8 | Q13: 5 | R13: 0 | S13: 4 | T13: 2 | U13: 3 | V13: 4 | W13: 5 | X13: 3 | Y13: 4 | Z13: 5 | AA13: 7
H14: 10 | I14: Lniště | J14: 3 | K14: 2 | L14: 4 | M14: 5 | N14: 4 | O14: 8 | P14: 11 | Q14: 8 | R14: 4 | S14: 0 | T14: 2 | U14: 4 | V14: 6 | W14: 7 | X14: 5 | Y14: 6 | Z14: 7 | AA14: 5
H15: 11 | I15: Mohuřice | J15: 4 | K15: 7 | L15: 9 | M15: 10 | N15: 9 | O15: 11 | P15: 9 | Q15: 6 | R15: 2 | S15: 2 | T15: 0 | U15: 2 | V15: 4 | W15: 4 | X15: 3 | Y15: 4 | Z15: 5 | AA15: 6
H16: 12 | I16: Slavče | J16: 6 | K16: 9 | L16: 11 | M16: 12 | N16: 11 | O16: 12 | P16: 10 | Q16: 7 | R16: 3 | S16: 4 | T16: 2 | U16: 0 | V16: 2 | W16: 2 | X16: 1 | Y16: 2 | Z16: 3 | AA16: 4
H17: 13 | I17: Dobrkovská Lhotka | J17: 8 | K17: 11 | L17: 12 | M17: 14 | N17: 13 | O17: 9 | P17: 7 | Q17: 4 | R17: 4 | S17: 6 | T17: 4 | U17: 2 | V17: 0 | W17: 1 | X17: 2 | Y17: 3 | Z17: 4 | AA17: 6
H18: 14 | I18: Dolní Lhotka | J18: 8 | K18: 11 | L18: 13 | M18: 15 | N18: 13 | O18: 9 | P18: 6 | Q18: 3 | R18: 5 | S18: 7 | T18: 4 | U18: 2 | V18: 1 | W18: 0 | X18: 1 | Y18: 4 | Z18: 5 | AA18: 6
H19: 15 | I19: Záluží | J19: 7 | K19: 10 | L19: 11 | M19: 13 | N19: 12 | O19: 10 | P19: 8 | Q19: 5 | R19: 3 | S19: 5 | T19: 3 | U19: 1 | V19: 2 | W19: 1 | X19: 0 | Y19: 2 | Z19: 3 | AA19: 5
H20: 16 | I20: Chvalkov | J20: 6 | K20: 9 | L20: 10 | M20: 12 | N20: 11 | O20: 14 | P20: 12 | Q20: 9 | R20: 4 | S20: 6 | T20: 4 | U20: 2 | V20: 3 | W20: 4 | X20: 2 | Y20: 0 | Z20: 1 | AA20: 2
H21: 17 | I21: Čížkrajice | J21: 4 | K21: 7 | L21: 9 | M21: 11 | N21: 10 | O21: 13 | P21: 13 | Q21: 10 | R21: 5 | S21: 7 | T21: 5 | U21: 3 | V21: 4 | W21: 5 | X21: 3 | Y21: 1 | Z21: 0 | AA21: 1
H22: 18 | I22: Boršíkov | J22: 3 | K22: 6 | L22: 8 | M22: 9 | N22: 8 | O22: 12 | P22: 15 | Q22: 12 | R22: 7 | S22: 5 | T22: 6 | U22: 4 | V22: 6 | W22: 6 | X22: 5 | Y22: 2 | Z22: 1 | AA22: 0

Sheet Výchozí stav
L1: Název | M1: Přiřazené číslo | N1: Vzdálenost [km] | O1: Zastávka č.
L2: =VLOOKUP(M2,Vzdálenosti!$H$5:$I$22,2,FALSE) -> Trhové Sviny | M2: 1 | N2: =INDEX(Vzdálenosti!$J$5:$AA$22,'Výchozí stav'!M2,'Výchozí stav'!M3) -> 12 | O2: 1
L3: =VLOOKUP(M3,Vzdálenosti!$H$5:$I$22,2,FALSE) -> Nesměň | M3: 7 | N3: =INDEX(Vzdálenosti!$J$5:$AA$22,'Výchozí stav'!M3,'Výchozí stav'!M4) -> 3 | O3: 2
L4: =VLOOKUP(M4,Vzdálenosti!$H$5:$I$22,2,FALSE) -> Ločenice | M4: 6 | N4: =INDEX(Vzdálenosti!$J$5:$AA$22,'Výchozí stav'!M4,'Výchozí stav'!M5) -> 4 | O4: 3
L5: =VLOOKUP(M5,Vzdálenosti!$H$5:$I$22,2,FALSE) -> Todně | M5: 4 | N5: =INDEX(Vzdálenosti!$J$5:$AA$22,'Výchozí stav'!M5,'Výchozí stav'!M6) -> 2 | O5: 4
L6: =VLOOKUP(M6,Vzdálenosti!$H$5:$I$22,2,FALSE) -> Nežetice | M6: 3 | N6: =INDEX(Vzdálenosti!$J$5:$AA$22,'Výchozí stav'!M6,'Výchozí stav'!M7) -> 1 | O6: 5
L7: =VLOOKUP(M7,Vzdálenosti!$H$5:$I$22,2,FALSE) -> Březí | M7: 2 | N7: =INDEX(Vzdálenosti!$J$5:$AA$22,'Výchozí stav'!M7,'Výchozí stav'!M8) -> 4 | O7: 6
L8: =VLOOKUP(M8,Vzdálenosti!$H$5:$I$22,2,FALSE) -> Něchov | M8: 5 | N8: =INDEX(Vzdálenosti!$J$5:$AA$22,'Výchozí stav'!M8,'Výchozí stav'!M9) -> 9 | O8: 7
L9: =VLOOKUP(M9,Vzdálenosti!$H$5:$I$22,2,FALSE) -> Besednice | M9: 8 | N9: =INDEX(Vzdálenosti!$J$5:$AA$22,'Výchozí stav'!M9,'Výchozí stav'!M10) -> 5 | O9: 8
L10: =VLOOKUP(M10,Vzdálenosti!$H$5:$I$22,2,FALSE) -> Keblany | M10: 9 | N10: =INDEX(Vzdálenosti!$J$5:$AA$22,'Výchozí stav'!M10,'Výchozí stav'!M11) -> 2 | O10: 9
L11: =VLOOKUP(M11,Vzdálenosti!$H$5:$I$22,2,FALSE) -> Mohuřice | M11: 11 | N11: =INDEX(Vzdálenosti!$J$5:$AA$22,'Výchozí stav'!M11,'Výchozí stav'!M12) -> 4 | O11: 10
L12: =VLOOKUP(M12,Vzdálenosti!$H$5:$I$22,2,FALSE) -> Dobrkovská Lhotka | M12: 13 | N12: =INDEX(Vzdálenosti!$J$5:$AA$22,'Výchozí stav'!M12,'Výchozí stav'!M13) -> 1 | O12: 11
L13: =VLOOKUP(M13,Vzdálenosti!$H$5:$I$22,2,FALSE) -> Dolní Lhotka | M13: 14 | N13: =INDEX(Vzdálenosti!$J$5:$AA$22,'Výchozí stav'!M13,'Výchozí stav'!M14) -> 1 | O13: 12
L14: =VLOOKUP(M14,Vzdálenosti!$H$5:$I$22,2,FALSE) -> Záluží | M14: 15 | N14: =INDEX(Vzdálenosti!$J$5:$AA$22,'Výchozí stav'!M14,'Výchozí stav'!M15) -> 1 | O14: 13
L15: =VLOOKUP(M15,Vzdálenosti!$H$5:$I$22,2,FALSE) -> Slavče | M15: 12 | N15: =INDEX(Vzdálenosti!$J$5:$AA$22,'Výchozí stav'!M15,'Výchozí stav'!M16) -> 4 | O15: 14
L16: =VLOOKUP(M16,Vzdálenosti!$H$5:$I$22,2,FALSE) -> Lniště | M16: 10 | N16: =INDEX(Vzdálenosti!$J$5:$AA$22,'Výchozí stav'!M16,'Výchozí stav'!M17) -> 6 | O16: 15
L17: =VLOOKUP(M17,Vzdálenosti!$H$5:$I$22,2,FALSE) -> Chvalkov | M17: 16 | N17: =INDEX(Vzdálenosti!$J$5:$AA$22,'Výchozí stav'!M17,'Výchozí stav'!M18) -> 1 | O17: 16
L18: =VLOOKUP(M18,Vzdálenosti!$H$5:$I$22,2,FALSE) -> Čížkrajice | M18: 17 | N18: =INDEX(Vzdálenosti!$J$5:$AA$22,'Výchozí stav'!M18,'Výchozí stav'!M19) -> 1 | O18: 17
L19: =VLOOKUP(M19,Vzdálenosti!$H$5:$I$22,2,FALSE) -> Boršíkov | M19: 18 | N19: =INDEX(Vzdálenosti!$J$5:$AA$22,'Výchozí stav'!M19,'Výchozí stav'!M20) -> 3 | O19: 18
L20: =VLOOKUP(M20,Vzdálenosti!$H$5:$I$22,2,FALSE) -> Trhové Sviny | M20: 1
L22: Celková trasa [km] | M22: =SUM(N2:N19) -> 64

Sheet Simulace bez podmínek
B1: Simulace bez podmínek
C3: Název | D3: Přiřazené číslo | E3: Vzdálenost [km] | F3: Zastávka | H3: Základní podmínka začátek a konec
C4: =VLOOKUP(D4,Vzdálenosti!$H$5:$I$22,2,FALSE) -> Trhové Sviny | D4: 1 | E4: =INDEX(Vzdálenosti!$J$5:$AA$22,'Simulace bez podmínek'!D4,'Simulace bez podmínek'!D5) -> 3 | F4: 1 | H4: Trhové. Sviny
C5: =VLOOKUP(D5,Vzdálenosti!$H$5:$I$22,2,FALSE) -> Březí | D5: 2 | E5: =INDEX(Vzdálenosti!$J$5:$AA$22,'Simulace bez podmínek'!D5,'Simulace bez podmínek'!D6) -> 1 | F5: 3 | H5: 1 | I5: =IF(H5=D4,1,0) -> 1
C6: =VLOOKUP(D6,Vzdálenosti!$H$5:$I$22,2,FALSE) -> Nežetice | D6: 3 | E6: =INDEX(Vzdálenosti!$J$5:$AA$22,'Simulace bez podmínek'!D6,'Simulace bez podmínek'!D7) -> 2 | F6: 2
C7: =VLOOKUP(D7,Vzdálenosti!$H$5:$I$22,2,FALSE) -> Todně | D7: 4 | E7: =INDEX(Vzdálenosti!$J$5:$AA$22,'Simulace bez podmínek'!D7,'Simulace bez podmínek'!D8) -> 1 | F7: 1
C8: =VLOOKUP(D8,Vzdálenosti!$H$5:$I$22,2,FALSE) -> Něchov | D8: 5 | E8: =INDEX(Vzdálenosti!$J$5:$AA$22,'Simulace bez podmínek'!D8,'Simulace bez podmínek'!D9) -> 3 | F8: 3
C9: =VLOOKUP(D9,Vzdálenosti!$H$5:$I$22,2,FALSE) -> Ločenice | D9: 6 | E9: =INDEX(Vzdálenosti!$J$5:$AA$22,'Simulace bez podmínek'!D9,'Simulace bez podmínek'!D10) -> 3 | F9: 3
C10: =VLOOKUP(D10,Vzdálenosti!$H$5:$I$22,2,FALSE) -> Nesměň | D10: 7 | E10: =INDEX(Vzdálenosti!$J$5:$AA$22,'Simulace bez podmínek'!D10,'Simulace bez podmínek'!D11) -> 3 | F10: 8
C11: =VLOOKUP(D11,Vzdálenosti!$H$5:$I$22,2,FALSE) -> Besednice | D11: 8 | E11: =INDEX(Vzdálenosti!$J$5:$AA$22,'Simulace bez podmínek'!D11,'Simulace bez podmínek'!D12) -> 4 | F11: 6
C12: =VLOOKUP(D12,Vzdálenosti!$H$5:$I$22,2,FALSE) -> Dobrkovská Lhotka | D12: 13 | E12: =INDEX(Vzdálenosti!$J$5:$AA$22,'Simulace bez podmínek'!D12,'Simulace bez podmínek'!D13) -> 1 | F12: 9
C13: =VLOOKUP(D13,Vzdálenosti!$H$5:$I$22,2,FALSE) -> Dolní Lhotka | D13: 14 | E13: =INDEX(Vzdálenosti!$J$5:$AA$22,'Simulace bez podmínek'!D13,'Simulace bez podmínek'!D14) -> 1 | F13: 10
C14: =VLOOKUP(D14,Vzdálenosti!$H$5:$I$22,2,FALSE) -> Záluží | D14: 15 | E14: =INDEX(Vzdálenosti!$J$5:$AA$22,'Simulace bez podmínek'!D14,'Simulace bez podmínek'!D15) -> 1 | F14: 11
C15: =VLOOKUP(D15,Vzdálenosti!$H$5:$I$22,2,FALSE) -> Slavče | D15: 12 | E15: =INDEX(Vzdálenosti!$J$5:$AA$22,'Simulace bez podmínek'!D15,'Simulace bez podmínek'!D16) -> 2 | F15: 12
C16: =VLOOKUP(D16,Vzdálenosti!$H$5:$I$22,2,FALSE) -> Mohuřice | D16: 11 | E16: =INDEX(Vzdálenosti!$J$5:$AA$22,'Simulace bez podmínek'!D16,'Simulace bez podmínek'!D17) -> 2 | F16: 13
C17: =VLOOKUP(D17,Vzdálenosti!$H$5:$I$22,2,FALSE) -> Lniště | D17: 10 | E17: =INDEX(Vzdálenosti!$J$5:$AA$22,'Simulace bez podmínek'!D17,'Simulace bez podmínek'!D18) -> 4 | F17: 14
C18: =VLOOKUP(D18,Vzdálenosti!$H$5:$I$22,2,FALSE) -> Keblany | D18: 9 | E18: =INDEX(Vzdálenosti!$J$5:$AA$22,'Simulace bez podmínek'!D18,'Simulace bez podmínek'!D19) -> 4 | F18: 15
C19: =VLOOKUP(D19,Vzdálenosti!$H$5:$I$22,2,FALSE) -> Chvalkov | D19: 16 | E19: =INDEX(Vzdálenosti!$J$5:$AA$22,'Simulace bez podmínek'!D19,'Simulace bez podmínek'!D20) -> 1 | F19: 16
C20: =VLOOKUP(D20,Vzdálenosti!$H$5:$I$22,2,FALSE) -> Čížkrajice | D20: 17 | E20: =INDEX(Vzdálenosti!$J$5:$AA$22,'Simulace bez podmínek'!D20,'Simulace bez podmínek'!D21) -> 1 | F20: 17
C21: =VLOOKUP(D21,Vzdálenosti!$H$5:$I$22,2,FALSE) -> Boršíkov | D21: 18 | E21: =INDEX(Vzdálenosti!$J$5:$AA$22,'Simulace bez podmínek'!D21,'Simulace bez podmínek'!D22) -> 3 | F21: 18
C22: =VLOOKUP(D22,Vzdálenosti!$H$5:$I$22,2,FALSE) -> Trhové Sviny | D22: 1
C24: Celková trasa [km] | D24: =SUM(E4:E21) -> 40

Sheet Simulace s podmínkami
B1: Simulace s podmínkami
C3: Název | D3: Přiřazené číslo | E3: Vzdálenost | F3: Zastávka | I3: Základní podmínka začátek a konec
C4: =IFERROR(VLOOKUP(D4,Vzdálenosti!$H$5:$I$22,2,FALSE),"") -> Trhové Sviny | D4: =VLOOKUP(F4,$N$6:$O$23,2,0) -> 1 | E4: =INDEX(Vzdálenosti!$J$5:$AA$22,'Simulace s podmínkami'!D4,'Simulace s podmínkami'!D5) -> 4 | F4: 1 | I4: Trhové. Sviny
C5: =IFERROR(VLOOKUP(D5,Vzdálenosti!$H$5:$I$22,2,FALSE),"") -> Nežetice | D5: 3 | E5: =INDEX(Vzdálenosti!$J$5:$AA$22,'Simulace s podmínkami'!D5,'Simulace s podmínkami'!D6) -> 2 | F5: 2 | I5: 1 | J5: =IF(I5=D4,1,0) -> 1
C6: =IFERROR(VLOOKUP(D6,Vzdálenosti!$H$5:$I$22,2,FALSE),"") -> Todně | D6: 4 | E6: =INDEX(Vzdálenosti!$J$5:$AA$22,'Simulace s podmínkami'!D6,'Simulace s podmínkami'!D7) -> 1 | F6: 3 | N6: 1 | O6: 1
C7: =IFERROR(VLOOKUP(D7,Vzdálenosti!$H$5:$I$22,2,FALSE),"") -> Něchov | D7: 5 | E7: =INDEX(Vzdálenosti!$J$5:$AA$22,'Simulace s podmínkami'!D7,'Simulace s podmínkami'!D8) -> 4 | F7: 4 | H7: č. | I7: Název | J7: Stav zaplněnosti | K7: Vyvézt | N7: 2 | O7: 3
C8: =IFERROR(VLOOKUP(D8,Vzdálenosti!$H$5:$I$22,2,FALSE),"") -> Lniště | D8: 10 | E8: =INDEX(Vzdálenosti!$J$5:$AA$22,'Simulace s podmínkami'!D8,'Simulace s podmínkami'!D9) -> 4 | F8: 7 | H8: 2 | I8: Březí | J8: 20 | K8: =IF(J8>=40,"ANO","NE") -> NE | N8: 3 | O8: 4
C9: =IFERROR(VLOOKUP(D9,Vzdálenosti!$H$5:$I$22,2,FALSE),"") -> Slavče | D9: 12 | E9: =INDEX(Vzdálenosti!$J$5:$AA$22,'Simulace s podmínkami'!D9,'Simulace s podmínkami'!D10) -> 2 | F9: 9 | H9: 3 | I9: Nežetice | J9: 60 | K9: =IF(J9>=40,"ANO","NE") -> ANO | N9: 4 | O9: 5
C10: =IFERROR(VLOOKUP(D10,Vzdálenosti!$H$5:$I$22,2,FALSE),"") -> Chvalkov | D10: 16 | E10: =INDEX(Vzdálenosti!$J$5:$AA$22,'Simulace s podmínkami'!D10,'Simulace s podmínkami'!D11) -> 2 | F10: 13 | H10: 4 | I10: Todně | J10: 80 | K10: ANO | N10: 5 | O10: 8
C11: =IFERROR(VLOOKUP(D11,Vzdálenosti!$H$5:$I$22,2,FALSE),"") -> Záluží | D11: 15 | E11: =INDEX(Vzdálenosti!$J$5:$AA$22,'Simulace s podmínkami'!D11,'Simulace s podmínkami'!D12) -> 2 | F11: 12 | H11: 5 | I11: Něchov | J11: 60 | K11: ANO | N11: 6 | O11: 9
C12: =IFERROR(VLOOKUP(D12,Vzdálenosti!$H$5:$I$22,2,FALSE),"") -> Dobrkovská Lhotka | D12: 13 | E12: =INDEX(Vzdálenosti!$J$5:$AA$22,'Simulace s podmínkami'!D12,'Simulace s podmínkami'!D13) -> 1 | F12: 10 | H12: 6 | I12: Ločenice | J12: 10 | K12: NE | N12: 7 | O12: 10
C13: =IFERROR(VLOOKUP(D13,Vzdálenosti!$H$5:$I$22,2,FALSE),"") -> Dolní Lhotka | D13: 14 | E13: =INDEX(Vzdálenosti!$J$5:$AA$22,'Simulace s podmínkami'!D13,'Simulace s podmínkami'!D14) -> 3 | F13: 11 | H13: 7 | I13: Nesměň | J13: 0 | K13: NE | N13: 8 | O13: 11
C14: =IFERROR(VLOOKUP(D14,Vzdálenosti!$H$5:$I$22,2,FALSE),"") -> Besednice | D14: 8 | E14: =INDEX(Vzdálenosti!$J$5:$AA$22,'Simulace s podmínkami'!D14,'Simulace s podmínkami'!D15) -> 5 | F14: 5 | H14: 8 | I14: Besednice | J14: 70 | K14: ANO | N14: 9 | O14: 12
C15: =IFERROR(VLOOKUP(D15,Vzdálenosti!$H$5:$I$22,2,FALSE),"") -> Keblany | D15: 9 | E15: =INDEX(Vzdálenosti!$J$5:$AA$22,'Simulace s podmínkami'!D15,'Simulace s podmínkami'!D16) -> 2 | F15: 6 | H15: 9 | I15: Keblany | J15: 40 | K15: ANO | N15: 10 | O15: 13
C16: =IFERROR(VLOOKUP(D16,Vzdálenosti!$H$5:$I$22,2,FALSE),"") -> Mohuřice | D16: 11 | E16: =INDEX(Vzdálenosti!$J$5:$AA$22,'Simulace s podmínkami'!D16,'Simulace s podmínkami'!D17) -> 4 | F16: 8 | H16: 10 | I16: Lniště | J16: 40 | K16: ANO | N16: 11 | O16: 14
C17: =IFERROR(VLOOKUP(D17,Vzdálenosti!$H$5:$I$22,2,FALSE),"") -> Trhové Sviny | D17: 1 | E17: =INDEX(Vzdálenosti!$J$5:$AA$22,'Simulace s podmínkami'!D17,'Simulace s podmínkami'!D18) -> 0 | F17: 14 | H17: 11 | I17: Mohuřice | J17: 50 | K17: ANO | N17: 12 | O17: 15
C18: =IFERROR(VLOOKUP(D18,Vzdálenosti!$H$5:$I$22,2,FALSE),"") ->  | D18: 0 | E18: =INDEX(Vzdálenosti!$J$5:$AA$22,'Simulace s podmínkami'!D18,'Simulace s podmínkami'!D19) -> 0 | F18: 15 | H18: 12 | I18: Slavče | J18: 90 | K18: ANO | N18: 13 | O18: 16
C19: =IFERROR(VLOOKUP(D19,Vzdálenosti!$H$5:$I$22,2,FALSE),"") ->  | D19: 0 | E19: =INDEX(Vzdálenosti!$J$5:$AA$22,'Simulace s podmínkami'!D19,'Simulace s podmínkami'!D20) -> 0 | F19: 16 | H19: 13 | I19: Dobrkovská Lhotka | J19: 50 | K19: ANO | N19: 14 | O19: 1
C20: =IFERROR(VLOOKUP(D20,Vzdálenosti!$H$5:$I$22,2,FALSE),"") ->  | D20: =VLOOKUP(F20,$N$6:$O$23,2,0) -> 0 | E20: =INDEX(Vzdálenosti!$J$5:$AA$22,'Simulace s podmínkami'!D20,'Simulace s podmínkami'!D21) -> 0 | F20: 17 | H20: 14 | I20: Dolní Lhotka | J20: 60 | K20: ANO | N20: 15
C21: =IFERROR(VLOOKUP(D21,Vzdálenosti!$H$5:$I$22,2,FALSE),"") ->  | D21: =VLOOKUP(F21,$N$6:$O$23,2,0) -> 0 | E21: =INDEX(Vzdálenosti!$J$5:$AA$22,'Simulace s podmínkami'!D21,'Simulace s podmínkami'!D22) -> 0 | F21: 18 | H21: 15 | I21: Záluží | J21: 50 | K21: ANO | N21: 16
C22: =IFERROR(VLOOKUP(D22,Vzdálenosti!$H$5:$I$22,2,FALSE),"") ->  | H22: 16 | I22: Chvalkov | J22: 60 | K22: ANO | N22: 17
H23: 17 | I23: Čížkrajice | J23: 0 | K23: NE | N23: 18
C24: Celková trasa | D24: =SUM(E4:E21) -> 36 | H24: 18 | I24: Boršíkov | J24: 30 | K24: NE | N24: 19
D510: 10
D511: 11
D512: 14
D513: 16
D514: 17

Sheet Výstup ze simulace
A1: Výstup ze simulace
B3: Název
B4: Trhové Sviny
B5: Nesměň
B6: Ločenice
B7: Todně
B8: Nežetice
B9: Březí
B10: Něchov
B11: Besednice
B12: Keblany
B13: Mohuřice
B14: Dobrkovská Lhotka
B15: Dolní Lhotka
B16: Záluží
B17: Slavče
B18: Lniště
B19: Chvalkov
B20: Čížkrajice
B21: Boršíkov
B23: Vzdálenost [km]

Sheet Hladina 80 %
A1: Výstup ze simulace
B3: Název | C3: 1 | D3: 2 | E3: 3 | F3: 4 | G3: 5 | H3: 6 | I3: 7 | J3: 8 | K3: 9 | L3: 10 | M3: 11 | N3: 12 | O3: 13 | P3: 14 | Q3: 15 | R3: 16 | S3: 17 | T3: 18 | U3: 19 | V3: 20 | W3: 21 | X3: 22 | Y3: 23 | Z3: 24 | AA3: 25 | AB3: 26 | AC3: 27 | AD3: 28 | AE3: 29 | AF3: 30 | AG3: 31 | AH3: 32 | AI3: 33 | AJ3: 34 | AK3: 35 | AL3: 36 | AM3: 37 | AN3: 38 | AO3: 39 | AP3: 40 | AQ3: 41 | AR3: 42 | AS3: 43 | AT3: 44 | AU3: 45 | AV3: 46 | AW3: 47 | AX3: 48 | AY3: 49 | AZ3: 50 | BA3: 51 | BB3: 52 | BC3: 53 | BD3: 54 | BE3: 55 | BF3: 56 | BG3: 57 | BH3: 58 | BI3: 59 | BJ3: 60 | BK3: 61 | BL3: 62 | BM3: 63 | BN3: 64 | BO3: 65 | BP3: 66 | BQ3: 67 | BR3: 68 | BS3: 69 | BT3: 70 | BU3: 71 | BV3: 72 | BW3: 73 | BX3: 74 | BY3: 75 | BZ3: 76 | CA3: 77 | CB3: 78 | CC3: 79 | CD3: 80 | CE3: 81 | CF3: 82 | CG3: 83 | CH3: 84 | CI3: 85 | CJ3: 86 | CK3: 87 | CL3: 88 | CM3: 89 | CN3: 90 | CO3: 91 | CP3: 92 | CQ3: 93 | CR3: 94 | CS3: 95 | CT3: 96 | CU3: 97 | CV3: 98 | CW3: 99 | CX3: 100 | CY3: 101 | CZ3: 102 | DA3: 103 | DB3: 104 | DC3: 105 | DD3: 106 | DE3: 107 | DF3: 108 | DG3: 109 | DH3: 110 | DI3: 111 | DJ3: 112 | DK3: 113 | DL3: 114 | DM3: 115 | DN3: 116 | DO3: 117 | DP3: 118 | DQ3: 119 | DR3: 120 | DS3: 121 | DT3: 122 | DU3: 123 | DV3: 124 | DW3: 125 | DX3: 126 | DY3: 127 | DZ3: 128 | EA3: 129 | EB3: 130 | EC3: 131 | ED3: 132 | EE3: 133 | EF3: 134 | EG3: 135 | EH3: 136 | EI3: 137 | EJ3: 138 | EK3: 139 | EL3: 140 | EM3: 141 | EN3: 142 | EO3: 143 | EP3: 144 | EQ3: 145 | ER3: 146 | ES3: 147 | ET3: 148 | EU3: 149 | EV3: 150 | EW3: 151 | EX3: 152 | EY3: 153 | EZ3: 154 | FA3: 155 | FB3: 156 | FC3: 157 | FD3: 158 | FE3: 159 | FF3: 160 | FG3: 161 | FH3: 162 | FI3: 163 | FJ3: 164 | FK3: 165 | FL3: 166 | FM3: 167 | FN3: 168 | FO3: 169 | FP3: 170 | FQ3: 171 | FR3: 172 | FS3: 173 | FT3: 174 | FU3: 175 | FV3: 176 | FW3: 177 | FX3: 178 | FY3: 179 | FZ3: 180 | GA3: 181 | GB3: 182 | GC3: 183 | GD3: 184 | GE3: 185 | GF3: 186 | GG3: 187 | GH3: 188 | GI3: 189 | GJ3: 190 | GK3: 191 | GL3: 192 | GM3: 193 | GN3: 194 | GO3: 195 | GP3: 196 | GQ3: 197 | GR3: 198 | GS3: 199 | GT3: 200 | GU3: 201 | GV3: 202 | GW3: 203 | GX3: 204 | GY3: 205 | GZ3: 206 | HA3: 207 | HB3: 208 | HC3: 209 | HD3: 210 | HE3: 211 | HF3: 212 | HG3: 213 | HH3: 214 | HI3: 215 | HJ3: 216 | HK3: 217 | HL3: 218 | HM3: 219 | HN3: 220 | HO3: 221 | HP3: 222 | HQ3: 223 | HR3: 224 | HS3: 225 | HT3: 226 | HU3: 227 | HV3: 228 | HW3: 229 | HX3: 230 | HY3: 231 | HZ3: 232 | IA3: 233 | IB3: 234 | IC3: 235 | ID3: 236 | IE3: 237 | IF3: 238 | IG3: 239 | IH3: 240 | II3: 241 | IJ3: 242 | IK3: 243 | IL3: 244 | IM3: 245 | IN3: 246 | IO3: 247 | IP3: 248 | IQ3: 249 | IR3: 250 | IS3: 251 | IT3: 252 | IU3: 253 | IV3: 254 | IW3: 255 | IX3: 256 | IY3: 257 | IZ3: 258 | JA3: 259 | JB3: 260 | JC3: 261 | JD3: 262 | JE3: 263 | JF3: 264 | JG3: 265 | JH3: 266 | JI3: 267 | JJ3: 268 | JK3: 269 | JL3: 270 | JM3: 271 | JN3: 272 | JO3: 273 | JP3: 274 | JQ3: 275 | JR3: 276 | JS3: 277 | JT3: 278 | JU3: 279 | JV3: 280 | JW3: 281 | JX3: 282 | JY3: 283 | JZ3: 284 | KA3: 285 | KB3: 286 | KC3: 287 | KD3: 288 | KE3: 289 | KF3: 290 | KG3: 291 | KH3: 292 | KI3: 293 | KJ3: 294 | KK3: 295 | KL3: 296 | KM3: 297 | KN3: 298 | KO3: 299 | KP3: 300 | KQ3: 301 | KR3: 302 | KS3: 303 | KT3: 304 | KU3: 305 | KV3: 306 | KW3: 307 | KX3: 308 | KY3: 309 | KZ3: 310 | LA3: 311 | LB3: 312 | LC3: 313 | LD3: 314 | LE3: 315 | LF3: 316 | LG3: 317 | LH3: 318 | LI3: 319 | LJ3: 320 | LK3: 321 | LL3: 322 | LM3: 323 | LN3: 324 | LO3: 325 | LP3: 326 | LQ3: 327 | LR3: 328 | LS3: 329 | LT3: 330 | LU3: 331 | LV3: 332 | LW3: 333 | LX3: 334 | LY3: 335 | LZ3: 336 | MA3: 337 | MB3: 338 | MC3: 339 | MD3: 340 | ME3: 341 | MF3: 342 | MG3: 343 | MH3: 344 | MI3: 345 | MJ3: 346 | MK3: 347 | ML3: 348 | MM3: 349 | MN3: 350 | MO3: 351 | MP3: 352 | MQ3: 353 | MR3: 354 | MS3: 355 | MT3: 356 | MU3: 357 | MV3: 358 | MW3: 359 | MX3: 360 | MY3: 361 | MZ3: 362 | NA3: 363 | NB3: 364 | NC3: 365 | ND3: 366 | NE3: 367 | NF3: 368 | NG3: 369 | NH3: 370 | NI3: 371 | NJ3: 372 | NK3: 373 | NL3: 374 | NM3: 375 | NN3: 376 | NO3: 377 | NP3: 378 | NQ3: 379 | NR3: 380 | NS3: 381 | NT3: 382 | NU3: 383 | NV3: 384 | NW3: 385 | NX3: 386 | NY3: 387 | NZ3: 388 | OA3: 389 | OB3: 390 | OC3: 391 | OD3: 392 | OE3: 393 | OF3: 394 | OG3: 395 | OH3: 396 | OI3: 397 | OJ3: 398 | OK3: 399 | OL3: 400 | OM3: 401 | ON3: 402 | OO3: 403 | OP3: 404 | OQ3: 405 | OR3: 406 | OS3: 407 | OT3: 408 | OU3: 409 | OV3: 410 | OW3: 411 | OX3: 412 | OY3: 413 | OZ3: 414 | PA3: 415 | PB3: 416 | PC3: 417 | PD3: 418 | PE3: 419 | PF3: 420 | PG3: 421 | PH3: 422 | PI3: 423 | PJ3: 424 | PK3: 425 | PL3: 426 | PM3: 427 | PN3: 428 | PO3: 429 | PP3: 430 | PQ3: 431 | PR3: 432 | PS3: 433 | PT3: 434 | PU3: 435 | PV3: 436 | PW3: 437 | PX3: 438 | PY3: 439 | PZ3: 440 | QA3: 441 | QB3: 442 | QC3: 443 | QD3: 444 | QE3: 445 | QF3: 446 | QG3: 447 | QH3: 448 | QI3: 449 | QJ3: 450 | QK3: 451 | QL3: 452 | QM3: 453 | QN3: 454 | QO3: 455 | QP3: 456 | QQ3: 457 | QR3: 458 | QS3: 459 | QT3: 460 | QU3: 461 | QV3: 462 | QW3: 463 | QX3: 464 | QY3: 465 | QZ3: 466 | RA3: 467 | RB3: 468 | RC3: 469 | RD3: 470 | RE3: 471 | RF3: 472 | RG3: 473 | RH3: 474 | RI3: 475 | RJ3: 476 | RK3: 477 | RL3: 478 | RM3: 479 | RN3: 480 | RO3: 481 | RP3: 482 | RQ3: 483 | RR3: 484 | RS3: 485 | RT3: 486 | RU3: 487 | RV3: 488 | RW3: 489 | RX3: 490 | RY3: 491 | RZ3: 492 | SA3: 493 | SB3: 494 | SC3: 495 | SD3: 496 | SE3: 497 | SF3: 498 | SG3: 499 | SH3: 500 | SI3: 501 | SJ3: 502 | SK3: 503 | SL3: 504 | SM3: 505 | SN3: 506 | SO3: 507 | SP3: 508 | SQ3: 509 | SR3: 510 | SS3: 511 | ST3: 512 | SU3: 513 | SV3: 514 | SW3: 515 | SX3: 516 | SY3: 517 | SZ3: 518 | TA3: 519 | TB3: 520 | TC3: 521 | TD3: 522 | TE3: 523 | TF3: 524 | TG3: 525 | TH3: 526 | TI3: 527 | TJ3: 528 | TK3: 529 | TL3: 530 | TM3: 531 | TN3: 532 | TO3: 533 | TP3: 534 | TQ3: 535 | TR3: 536 | TS3: 537 | TT3: 538 | TU3: 539 | TV3: 540 | TW3: 541 | TX3: 542 | TY3: 543 | TZ3: 544 | UA3: 545 | UB3: 546 | UC3: 547 | UD3: 548 | UE3: 549 | UF3: 550 | UG3: 551 | UH3: 552 | UI3: 553 | UJ3: 554 | UK3: 555 | UL3: 556 | UM3: 557 | UN3: 558 | UO3: 559 | UP3: 560 | UQ3: 561 | UR3: 562 | US3: 563 | UT3: 564 | UU3: 565 | UV3: 566 | UW3: 567 | UX3: 568 | UY3: 569 | UZ3: 570 | VA3: 571 | VB3: 572 | VC3: 573 | VD3: 574 | VE3: 575 | VF3: 576 | VG3: 577 | VH3: 578 | VI3: 579 | VJ3: 580 | VK3: 581 | VL3: 582 | VM3: 583 | VN3: 584 | VO3: 585 | VP3: 586 | VQ3: 587 | VR3: 588 | VS3: 589 | VT3: 590 | VU3: 591 | VV3: 592 | VW3: 593 | VX3: 594 | VY3: 595 | VZ3: 596 | WA3: 597 | WB3: 598 | WC3: 599 | WD3: 600 | WE3: 601 | WF3: 602 | WG3: 603 | WH3: 604 | WI3: 605 | WJ3: 606 | WK3: 607 | WL3: 608 | WM3: 609 | WN3: 610 | WO3: 611 | WP3: 612 | WQ3: 613 | WR3: 614 | WS3: 615 | WT3: 616 | WU3: 617 | WV3: 618 | WW3: 619 | WX3: 620 | WY3: 621 | WZ3: 622 | XA3: 623 | XB3: 624 | XC3: 625 | XD3: 626 | XE3: 627 | XF3: 628 | XG3: 629 | XH3: 630 | XI3: 631 | XJ3: 632 | XK3: 633 | XL3: 634 | XM3: 635 | XN3: 636 | XO3: 637 | XP3: 638 | XQ3: 639 | XR3: 640 | XS3: 641 | XT3: 642 | XU3: 643 | XV3: 644 | XW3: 645 | XX3: 646 | XY3: 647 | XZ3: 648 | YA3: 649 | YB3: 650 | YC3: 651 | YD3: 652 | YE3: 653 | YF3: 654 | YG3: 655 | YH3: 656 | YI3: 657 | YJ3: 658 | YK3: 659 | YL3: 660 | YM3: 661 | YN3: 662 | YO3: 663 | YP3: 664 | YQ3: 665 | YR3: 666 | YS3: 667 | YT3: 668 | YU3: 669 | YV3: 670 | YW3: 671 | YX3: 672 | YY3: 673 | YZ3: 674 | ZA3: 675 | ZB3: 676 | ZC3: 677 | ZD3: 678 | ZE3: 679 | ZF3: 680 | ZG3: 681 | ZH3: 682 | ZI3: 683 | ZJ3: 684 | ZK3: 685 | ZL3: 686 | ZM3: 687 | ZN3: 688 | ZO3: 689 | ZP3: 690 | ZQ3: 691 | ZR3: 692 | ZS3: 693 | ZT3: 694 | ZU3: 695 | ZV3: 696 | ZW3: 697 | ZX3: 698 | ZY3: 699 | ZZ3: 700 | AAA3: 701 | AAB3: 702 | AAC3: 703 | AAD3: 704 | AAE3: 705 | AAF3: 706 | AAG3: 707 | AAH3: 708 | AAI3: 709 | AAJ3: 710 | AAK3: 711 | AAL3: 712 | AAM3: 713 | AAN3: 714 | AAO3: 715 | AAP3: 716 | AAQ3: 717 | AAR3: 718 | AAS3: 719 | AAT3: 720 | AAU3: 721 | AAV3: 722 | AAW3: 723 | AAX3: 724 | AAY3: 725 | AAZ3: 726 | ABA3: 727 | ABB3: 728 | ABC3: 729 | ABD3: 730 | ABE3: 731 | ABF3: 732 | ABG3: 733 | ABH3: 734 | ABI3: 735 | ABJ3: 736 | ABK3: 737 | ABL3: 738 | ABM3: 739 | ABN3: 740 | ABO3: 741 | ABP3: 742 | ABQ3: 743 | ABR3: 744 | ABS3: 745 | ABT3: 746 | ABU3: 747 | ABV3: 748 | ABW3: 749 | ABX3: 750 | ABY3: 751 | ABZ3: 752 | ACA3: 753 | ACB3: 754 | ACC3: 755 | ACD3: 756 | ACE3: 757 | ACF3: 758 | ACG3: 759 | ACH3: 760 | ACI3: 761 | ACJ3: 762 | ACK3: 763 | ACL3: 764 | ACM3: 765 | ACN3: 766 | ACO3: 767 | ACP3: 768 | ACQ3: 769 | ACR3: 770 | ACS3: 771 | ACT3: 772 | ACU3: 773 | ACV3: 774 | ACW3: 775 | ACX3: 776 | ACY3: 777 | ACZ3: 778 | ADA3: 779 | ADB3: 780 | ADC3: 781 | ADD3: 782 | ADE3: 783 | ADF3: 784 | ADG3: 785 | ADH3: 786 | ADI3: 787 | ADJ3: 788 | ADK3: 789 | ADL3: 790 | ADM3: 791 | ADN3: 792 | ADO3: 793 | ADP3: 794 | ADQ3: 795 | ADR3: 796 | ADS3: 797 | ADT3: 798 | ADU3: 799 | ADV3: 800 | ADW3: 801 | ADX3: 802 | ADY3: 803 | ADZ3: 804 | AEA3: 805 | AEB3: 806 | AEC3: 807 | AED3: 808 | AEE3: 809 | AEF3: 810 | AEG3: 811 | AEH3: 812 | AEI3: 813 | AEJ3: 814 | AEK3: 815 | AEL3: 816 | AEM3: 817 | AEN3: 818 | AEO3: 819 | AEP3: 820 | AEQ3: 821 | AER3: 822 | AES3: 823 | AET3: 824 | AEU3: 825 | AEV3: 826 | AEW3: 827 | AEX3: 828 | AEY3: 829 | AEZ3: 830 | AFA3: 831 | AFB3: 832 | AFC3: 833 | AFD3: 834 | AFE3: 835 | AFF3: 836 | AFG3: 837 | AFH3: 838 | AFI3: 839 | AFJ3: 840 | AFK3: 841 | AFL3: 842 | AFM3: 843 | AFN3: 844 | AFO3: 845 | AFP3: 846 | AFQ3: 847 | AFR3: 848 | AFS3: 849 | AFT3: 850 | AFU3: 851 | AFV3: 852 | AFW3: 853 | AFX3: 854 | AFY3: 855 | AFZ3: 856 | AGA3: 857 | AGB3: 858 | AGC3: 859 | AGD3: 860 | AGE3: 861 | AGF3: 862 | AGG3: 863 | AGH3: 864 | AGI3: 865 | AGJ3: 866 | AGK3: 867 | AGL3: 868 | AGM3: 869 | AGN3: 870 | AGO3: 871 | AGP3: 872 | AGQ3: 873 | AGR3: 874 | AGS3: 875 | AGT3: 876 | AGU3: 877 | AGV3: 878 | AGW3: 879 | AGX3: 880 | AGY3: 881 | AGZ3: 882 | AHA3: 883 | AHB3: 884 | AHC3: 885 | AHD3: 886 | AHE3: 887 | AHF3: 888 | AHG3: 889 | AHH3: 890 | AHI3: 891 | AHJ3: 892 | AHK3: 893 | AHL3: 894 | AHM3: 895 | AHN3: 896 | AHO3: 897 | AHP3: 898 | AHQ3: 899 | AHR3: 900 | AHS3: 901 | AHT3: 902 | AHU3: 903 | AHV3: 904 | AHW3: 905 | AHX3: 906 | AHY3: 907 | AHZ3: 908 | AIA3: 909 | AIB3: 910 | AIC3: 911 | AID3: 912 | AIE3: 913 | AIF3: 914 | AIG3: 915 | AIH3: 916 | AII3: 917 | AIJ3: 918 | AIK3: 919 | AIL3: 920 | AIM3: 921 | AIN3: 922 | AIO3: 923 | AIP3: 924 | AIQ3: 925 | AIR3: 926 | AIS3: 927 | AIT3: 928 | AIU3: 929 | AIV3: 930 | AIW3: 931 | AIX3: 932 | AIY3: 933 | AIZ3: 934 | AJA3: 935 | AJB3: 936 | AJC3: 937 | AJD3: 938 | AJE3: 939 | AJF3: 940 | AJG3: 941 | AJH3: 942 | AJI3: 943 | AJJ3: 944 | AJK3: 945 | AJL3: 946 | AJM3: 947 | AJN3: 948 | AJO3: 949 | AJP3: 950 | AJQ3: 951 | AJR3: 952 | AJS3: 953 | AJT3: 954 | AJU3: 955 | AJV3: 956 | AJW3: 957 | AJX3: 958 | AJY3: 959 | AJZ3: 960 | AKA3: 961 | AKB3: 962 | AKC3: 963 | AKD3: 964 | AKE3: 965 | AKF3: 966 | AKG3: 967 | AKH3: 968 | AKI3: 969 | AKJ3: 970 | AKK3: 971 | AKL3: 972 | AKM3: 973 | AKN3: 974 | AKO3: 975 | AKP3: 976 | AKQ3: 977 | AKR3: 978 | AKS3: 979 | AKT3: 980 | AKU3: 981 | AKV3: 982 | AKW3: 983 | AKX3: 984 | AKY3: 985 | AKZ3: 986 | ALA3: 987 | ALB3: 988 | ALC3: 989 | ALD3: 990 | ALE3: 991 | ALF3: 992 | ALG3: 993 | ALH3: 994 | ALI3: 995 | ALJ3: 996 | ALK3: 997 | ALL3: 998 | ALM3: 999 | ALN3: 1000
B4: Trhové Sviny | C4: 1 | D4: 1 | E4: 1 | F4: 1 | G4: 1 | H4: 1 | I4: 1 | J4: 1 | K4: 1 | L4: 1 | M4: 1 | N4: 1 | O4: 1 | P4: 1 | Q4: 1 | R4: 1 | S4: 1 | T4: 1 | U4: 1 | V4: 1 | W4: 1 | X4: 1 | Y4: 1 | Z4: 1 | AA4: 1 | AB4: 1 | AC4: 1 | AD4: 1 | AE4: 1 | AF4: 1 | AG4: 1 | AH4: 1 | AI4: 1 | AJ4: 1 | AK4: 1 | AL4: 1 | AM4: 1 | AN4: 1 | AO4: 1 | AP4: 1 | AQ4: 1 | AR4: 1 | AS4: 1 | AT4: 1 | AU4: 1 | AV4: 1 | AW4: 1 | AX4: 1 | AY4: 1 | AZ4: 1 | BA4: 1 | BB4: 1 | BC4: 1 | BD4: 1 | BE4: 1 | BF4: 1 | BG4: 1 | BH4: 1 | BI4: 1 | BJ4: 1 | BK4: 1 | BL4: 1 | BM4: 1 | BN4: 1 | BO4: 1 | BP4: 1 | BQ4: 1 | BR4: 1 | BS4: 1 | BT4: 1 | BU4: 1 | BV4: 1 | BW4: 1 | BX4: 1 | BY4: 1 | BZ4: 1 | CA4: 1 | CB4: 1 | CC4: 1 | CD4: 1 | CE4: 1 | CF4: 1 | CG4: 1 | CH4: 1 | CI4: 1 | CJ4: 1 | CK4: 1 | CL4: 1 | CM4: 1 | CN4: 1 | CO4: 1 | CP4: 1 | CQ4: 1 | CR4: 1 | CS4: 1 | CT4: 1 | CU4: 1 | CV4: 1 | CW4: 1 | CX4: 1 | CY4: 1 | CZ4: 1 | DA4: 1 | DB4: 1 | DC4: 1 | DD4: 1 | DE4: 1 | DF4: 1 | DG4: 1 | DH4: 1 | DI4: 1 | DJ4: 1 | DK4: 1 | DL4: 1 | DM4: 1 | DN4: 1 | DO4: 1 | DP4: 1 | DQ4: 1 | DR4: 1 | DS4: 1 | DT4: 1 | DU4: 1 | DV4: 1 | DW4: 1 | DX4: 1 | DY4: 1 | DZ4: 1 | EA4: 1 | EB4: 1 | EC4: 1 | ED4: 1 | EE4: 1 | EF4: 1 | EG4: 1 | EH4: 1 | EI4: 1 | EJ4: 1 | EK4: 1 | EL4: 1 | EM4: 1 | EN4: 1 | EO4: 1 | EP4: 1 | EQ4: 1 | ER4: 1 | ES4: 1 | ET4: 1 | EU4: 1 | EV4: 1 | EW4: 1 | EX4: 1 | EY4: 1 | EZ4: 1 | FA4: 1 | FB4: 1 | FC4: 1 | FD4: 1 | FE4: 1 | FF4: 1 | FG4: 1 | FH4: 1 | FI4: 1 | FJ4: 1 | FK4: 1 | FL4: 1 | FM4: 1 | FN4: 1 | FO4: 1 | FP4: 1 | FQ4: 1 | FR4: 1 | FS4: 1 | FT4: 1 | FU4: 1 | FV4: 1 | FW4: 1 | FX4: 1 | FY4: 1 | FZ4: 1 | GA4: 1 | GB4: 1 | GC4: 1 | GD4: 1 | GE4: 1 | GF4: 1 | GG4: 1 | GH4: 1 | GI4: 1 | GJ4: 1 | GK4: 1 | GL4: 1 | GM4: 1 | GN4: 1 | GO4: 1 | GP4: 1 | GQ4: 1 | GR4: 1 | GS4: 1 | GT4: 1 | GU4: 1 | GV4: 1 | GW4: 1 | GX4: 1 | GY4: 1 | GZ4: 1 | HA4: 1 | HB4: 1 | HC4: 1 | HD4: 1 | HE4: 1 | HF4: 1 | HG4: 1 | HH4: 1 | HI4: 1 | HJ4: 1 | HK4: 1 | HL4: 1 | HM4: 1 | HN4: 1 | HO4: 1 | HP4: 1 | HQ4: 1 | HR4: 1 | HS4: 1 | HT4: 1 | HU4: 1 | HV4: 1 | HW4: 1 | HX4: 1 | HY4: 1 | HZ4: 1 | IA4: 1 | IB4: 1 | IC4: 1 | ID4: 1 | IE4: 1 | IF4: 1 | IG4: 1 | IH4: 1 | II4: 1 | IJ4: 1 | IK4: 1 | IL4: 1 | IM4: 1 | IN4: 1 | IO4: 1 | IP4: 1 | IQ4: 1 | IR4: 1 | IS4: 1 | IT4: 1 | IU4: 1 | IV4: 1 | IW4: 1 | IX4: 1 | IY4: 1 | IZ4: 1 | JA4: 1 | JB4: 1 | JC4: 1 | JD4: 1 | JE4: 1 | JF4: 1 | JG4: 1 | JH4: 1 | JI4: 1 | JJ4: 1 | JK4: 1 | JL4: 1 | JM4: 1 | JN4: 1 | JO4: 1 | JP4: 1 | JQ4: 1 | JR4: 1 | JS4: 1 | JT4: 1 | JU4: 1 | JV4: 1 | JW4: 1 | JX4: 1 | JY4: 1 | JZ4: 1 | KA4: 1 | KB4: 1 | KC4: 1 | KD4: 1 | KE4: 1 | KF4: 1 | KG4: 1 | KH4: 1 | KI4: 1 | KJ4: 1 | KK4: 1 | KL4: 1 | KM4: 1 | KN4: 1 | KO4: 1 | KP4: 1 | KQ4: 1 | KR4: 1 | KS4: 1 | KT4: 1 | KU4: 1 | KV4: 1 | KW4: 1 | KX4: 1 | KY4: 1 | KZ4: 1 | LA4: 1 | LB4: 1 | LC4: 1 | LD4: 1 | LE4: 1 | LF4: 1 | LG4: 1 | LH4: 1 | LI4: 1 | LJ4: 1 | LK4: 1 | LL4: 1 | LM4: 1 | LN4: 1 | LO4: 1 | LP4: 1 | LQ4: 1 | LR4: 1 | LS4: 1 | LT4: 1 | LU4: 1 | LV4: 1 | LW4: 1 | LX4: 1 | LY4: 1 | LZ4: 1 | MA4: 1 | MB4: 1 | MC4: 1 | MD4: 1 | ME4: 1 | MF4: 1 | MG4: 1 | MH4: 1 | MI4: 1 | MJ4: 1 | MK4: 1 | ML4: 1 | MM4: 1 | MN4: 1 | MO4: 1 | MP4: 1 | MQ4: 1 | MR4: 1 | MS4: 1 | MT4: 1 | MU4: 1 | MV4: 1 | MW4: 1 | MX4: 1 | MY4: 1 | MZ4: 1 | NA4: 1 | NB4: 1 | NC4: 1 | ND4: 1 | NE4: 1 | NF4: 1 | NG4: 1 | NH4: 1 | NI4: 1 | NJ4: 1 | NK4: 1 | NL4: 1 | NM4: 1 | NN4: 1 | NO4: 1 | NP4: 1 | NQ4: 1 | NR4: 1 | NS4: 1 | NT4: 1 | NU4: 1 | NV4: 1 | NW4: 1 | NX4: 1 | NY4: 1 | NZ4: 1 | OA4: 1 | OB4: 1 | OC4: 1 | OD4: 1 | OE4: 1 | OF4: 1 | OG4: 1 | OH4: 1 | OI4: 1 | OJ4: 1 | OK4: 1 | OL4: 1 | OM4: 1 | ON4: 1 | OO4: 1 | OP4: 1 | OQ4: 1 | OR4: 1 | OS4: 1 | OT4: 1 | OU4: 1 | OV4: 1 | OW4: 1 | OX4: 1 | OY4: 1 | OZ4: 1 | PA4: 1 | PB4: 1 | PC4: 1 | PD4: 1 | PE4: 1 | PF4: 1 | PG4: 1 | PH4: 1 | PI4: 1 | PJ4: 1 | PK4: 1 | PL4: 1 | PM4: 1 | PN4: 1 | PO4: 1 | PP4: 1 | PQ4: 1 | PR4: 1 | PS4: 1 | PT4: 1 | PU4: 1 | PV4: 1 | PW4: 1 | PX4: 1 | PY4: 1 | PZ4: 1 | QA4: 1 | QB4: 1 | QC4: 1 | QD4: 1 | QE4: 1 | QF4: 1 | QG4: 1 | QH4: 1 | QI4: 1 | QJ4: 1 | QK4: 1 | QL4: 1 | QM4: 1 | QN4: 1 | QO4: 1 | QP4: 1 | QQ4: 1 | QR4: 1 | QS4: 1 | QT4: 1 | QU4: 1 | QV4: 1 | QW4: 1 | QX4: 1 | QY4: 1 | QZ4: 1 | RA4: 1 | RB4: 1 | RC4: 1 | RD4: 1 | RE4: 1 | RF4: 1 | RG4: 1 | RH4: 1 | RI4: 1 | RJ4: 1 | RK4: 1 | RL4: 1 | RM4: 1 | RN4: 1 | RO4: 1 | RP4: 1 | RQ4: 1 | RR4: 1 | RS4: 1 | RT4: 1 | RU4: 1 | RV4: 1 | RW4: 1 | RX4: 1 | RY4: 1 | RZ4: 1 | SA4: 1 | SB4: 1 | SC4: 1 | SD4: 1 | SE4: 1 | SF4: 1 | SG4: 1 | SH4: 1 | SI4: 1 | SJ4: 1 | SK4: 1 | SL4: 1 | SM4: 1 | SN4: 1 | SO4: 1 | SP4: 1 | SQ4: 1 | SR4: 1 | SS4: 1 | ST4: 1 | SU4: 1 | SV4: 1 | SW4: 1 | SX4: 1 | SY4: 1 | SZ4: 1 | TA4: 1 | TB4: 1 | TC4: 1 | TD4: 1 | TE4: 1 | TF4: 1 | TG4: 1 | TH4: 1 | TI4: 1 | TJ4: 1 | TK4: 1 | TL4: 1 | TM4: 1 | TN4: 1 | TO4: 1 | TP4: 1 | TQ4: 1 | TR4: 1 | TS4: 1 | TT4: 1 | TU4: 1 | TV4: 1 | TW4: 1 | TX4: 1 | TY4: 1 | TZ4: 1 | UA4: 1 | UB4: 1 | UC4: 1 | UD4: 1 | UE4: 1 | UF4: 1 | UG4: 1 | UH4: 1 | UI4: 1 | UJ4: 1 | UK4: 1 | UL4: 1 | UM4: 1 | UN4: 1 | UO4: 1 | UP4: 1 | UQ4: 1 | UR4: 1 | US4: 1 | UT4: 1 | UU4: 1 | UV4: 1 | UW4: 1 | UX4: 1 | UY4: 1 | UZ4: 1 | VA4: 1 | VB4: 1 | VC4: 1 | VD4: 1 | VE4: 1 | VF4: 1 | VG4: 1 | VH4: 1 | VI4: 1 | VJ4: 1 | VK4: 1 | VL4: 1 | VM4: 1 | VN4: 1 | VO4: 1 | VP4: 1 | VQ4: 1 | VR4: 1 | VS4: 1 | VT4: 1 | VU4: 1 | VV4: 1 | VW4: 1 | VX4: 1 | VY4: 1 | VZ4: 1 | WA4: 1 | WB4: 1 | WC4: 1 | WD4: 1 | WE4: 1 | WF4: 1 | WG4: 1 | WH4: 1 | WI4: 1 | WJ4: 1 | WK4: 1 | WL4: 1 | WM4: 1 | WN4: 1 | WO4: 1 | WP4: 1 | WQ4: 1 | WR4: 1 | WS4: 1 | WT4: 1 | WU4: 1 | WV4: 1 | WW4: 1 | WX4: 1 | WY4: 1 | WZ4: 1 | XA4: 1 | XB4: 1 | XC4: 1 | XD4: 1 | XE4: 1 | XF4: 1 | XG4: 1 | XH4: 1 | XI4: 1 | XJ4: 1 | XK4: 1 | XL4: 1 | XM4: 1 | XN4: 1 | XO4: 1 | XP4: 1 | XQ4: 1 | XR4: 1 | XS4: 1 | XT4: 1 | XU4: 1 | XV4: 1 | XW4: 1 | XX4: 1 | XY4: 1 | XZ4: 1 | YA4: 1 | YB4: 1 | YC4: 1 | YD4: 1 | YE4: 1 | YF4: 1 | YG4: 1 | YH4: 1 | YI4: 1 | YJ4: 1 | YK4: 1 | YL4: 1 | YM4: 1 | YN4: 1 | YO4: 1 | YP4: 1 | YQ4: 1 | YR4: 1 | YS4: 1 | YT4: 1 | YU4: 1 | YV4: 1 | YW4: 1 | YX4: 1 | YY4: 1 | YZ4: 1 | ZA4: 1 | ZB4: 1 | ZC4: 1 | ZD4: 1 | ZE4: 1 | ZF4: 1 | ZG4: 1 | ZH4: 1 | ZI4: 1 | ZJ4: 1 | ZK4: 1 | ZL4: 1 | ZM4: 1 | ZN4: 1 | ZO4: 1 | ZP4: 1 | ZQ4: 1 | ZR4: 1 | ZS4: 1 | ZT4: 1 | ZU4: 1 | ZV4: 1 | ZW4: 1 | ZX4: 1 | ZY4: 1 | ZZ4: 1 | AAA4: 1 | AAB4: 1 | AAC4: 1 | AAD4: 1 | AAE4: 1 | AAF4: 1 | AAG4: 1 | AAH4: 1 | AAI4: 1 | AAJ4: 1 | AAK4: 1 | AAL4: 1 | AAM4: 1 | AAN4: 1 | AAO4: 1 | AAP4: 1 | AAQ4: 1 | AAR4: 1 | AAS4: 1 | AAT4: 1 | AAU4: 1 | AAV4: 1 | AAW4: 1 | AAX4: 1 | AAY4: 1 | AAZ4: 1 | ABA4: 1 | ABB4: 1 | ABC4: 1 | ABD4: 1 | ABE4: 1 | ABF4: 1 | ABG4: 1 | ABH4: 1 | ABI4: 1 | ABJ4: 1 | ABK4: 1 | ABL4: 1 | ABM4: 1 | ABN4: 1 | ABO4: 1 | ABP4: 1 | ABQ4: 1 | ABR4: 1 | ABS4: 1 | ABT4: 1 | ABU4: 1 | ABV4: 1 | ABW4: 1 | ABX4: 1 | ABY4: 1 | ABZ4: 1 | ACA4: 1 | ACB4: 1 | ACC4: 1 | ACD4: 1 | ACE4: 1 | ACF4: 1 | ACG4: 1 | ACH4: 1 | ACI4: 1 | ACJ4: 1 | ACK4: 1 | ACL4: 1 | ACM4: 1 | ACN4: 1 | ACO4: 1 | ACP4: 1 | ACQ4: 1 | ACR4: 1 | ACS4: 1 | ACT4: 1 | ACU4: 1 | ACV4: 1 | ACW4: 1 | ACX4: 1 | ACY4: 1 | ACZ4: 1 | ADA4: 1 | ADB4: 1 | ADC4: 1 | ADD4: 1 | ADE4: 1 | ADF4: 1 | ADG4: 1 | ADH4: 1 | ADI4: 1 | ADJ4: 1 | ADK4: 1 | ADL4: 1 | ADM4: 1 | ADN4: 1 | ADO4: 1 | ADP4: 1 | ADQ4: 1 | ADR4: 1 | ADS4: 1 | ADT4: 1 | ADU4: 1 | ADV4: 1 | ADW4: 1 | ADX4: 1 | ADY4: 1 | ADZ4: 1 | AEA4: 1 | AEB4: 1 | AEC4: 1 | AED4: 1 | AEE4: 1 | AEF4: 1 | AEG4: 1 | AEH4: 1 | AEI4: 1 | AEJ4: 1 | AEK4: 1 | AEL4: 1 | AEM4: 1 | AEN4: 1 | AEO4: 1 | AEP4: 1 | AEQ4: 1 | AER4: 1 | AES4: 1 | AET4: 1 | AEU4: 1 | AEV4: 1 | AEW4: 1 | AEX4: 1 | AEY4: 1 | AEZ4: 1 | AFA4: 1 | AFB4: 1 | AFC4: 1 | AFD4: 1 | AFE4: 1 | AFF4: 1 | AFG4: 1 | AFH4: 1 | AFI4: 1 | AFJ4: 1 | AFK4: 1 | AFL4: 1 | AFM4: 1 | AFN4: 1 | AFO4: 1 | AFP4: 1 | AFQ4: 1 | AFR4: 1 | AFS4: 1 | AFT4: 1 | AFU4: 1 | AFV4: 1 | AFW4: 1 | AFX4: 1 | AFY4: 1 | AFZ4: 1 | AGA4: 1 | AGB4: 1 | AGC4: 1 | AGD4: 1 | AGE4: 1 | AGF4: 1 | AGG4: 1 | AGH4: 1 | AGI4: 1 | AGJ4: 1 | AGK4: 1 | AGL4: 1 | AGM4: 1 | AGN4: 1 | AGO4: 1 | AGP4: 1 | AGQ4: 1 | AGR4: 1 | AGS4: 1 | AGT4: 1 | AGU4: 1 | AGV4: 1 | AGW4: 1 | AGX4: 1 | AGY4: 1 | AGZ4: 1 | AHA4: 1 | AHB4: 1 | AHC4: 1 | AHD4: 1 | AHE4: 1 | AHF4: 1 | AHG4: 1 | AHH4: 1 | AHI4: 1 | AHJ4: 1 | AHK4: 1 | AHL4: 1 | AHM4: 1 | AHN4: 1 | AHO4: 1 | AHP4: 1 | AHQ4: 1 | AHR4: 1 | AHS4: 1 | AHT4: 1 | AHU4: 1 | AHV4: 1 | AHW4: 1 | AHX4: 1 | AHY4: 1 | AHZ4: 1 | AIA4: 1 | AIB4: 1 | AIC4: 1 | AID4: 1 | AIE4: 1 | AIF4: 1 | AIG4: 1 | AIH4: 1 | AII4: 1 | AIJ4: 1 | AIK4: 1 | AIL4: 1 | AIM4: 1 | AIN4: 1 | AIO4: 1 | AIP4: 1 | AIQ4: 1 | AIR4: 1 | AIS4: 1 | AIT4: 1 | AIU4: 1 | AIV4: 1 | AIW4: 1 | AIX4: 1 | AIY4: 1 | AIZ4: 1 | AJA4: 1 | AJB4: 1 | AJC4: 1 | AJD4: 1 | AJE4: 1 | AJF4: 1 | AJG4: 1 | AJH4: 1 | AJI4: 1 | AJJ4: 1 | AJK4: 1 | AJL4: 1 | AJM4: 1 | AJN4: 1 | AJO4: 1 | AJP4: 1 | AJQ4: 1 | AJR4: 1 | AJS4: 1 | AJT4: 1 | AJU4: 1 | AJV4: 1 | AJW4: 1 | AJX4: 1 | AJY4: 1 | AJZ4: 1 | AKA4: 1 | AKB4: 1 | AKC4: 1 | AKD4: 1 | AKE4: 1 | AKF4: 1 | AKG4: 1 | AKH4: 1 | AKI4: 1 | AKJ4: 1 | AKK4: 1 | AKL4: 1 | AKM4: 1 | AKN4: 1 | AKO4: 1 | AKP4: 1 | AKQ4: 1 | AKR4: 1 | AKS4: 1 | AKT4: 1 | AKU4: 1 | AKV4: 1 | AKW4: 1 | AKX4: 1 | AKY4: 1 | AKZ4: 1 | ALA4: 1 | ALB4: 1 | ALC4: 1 | ALD4: 1 | ALE4: 1 | ALF4: 1 | ALG4: 1 | ALH4: 1 | ALI4: 1 | ALJ4: 1 | ALK4: 1 | ALL4: 1 | ALM4: 1 | ALN4: 1
B5: Nesměň | C5: 3 | D5: 3 | J5: 4 | K5: 4 | N5: 2 | T5: 3 | U5: 3 | V5: 3 | W5: 3 | Y5: 2 | Z5: 2 | AA5: 3 | AH5: 6 | AL5: 2 | AM5: 4 | AP5: 3 | AQ5: 2 | AR5: 2 | AU5: 4 | BC5: 4 | BD5: 3 | BF5: 4 | BG5: 3 | BH5: 2 | BM5: 2 | BO5: 4 | BR5: 4 | BT5: 3 | BW5: 3 | BX5: 3 | BZ5: 3 | CA5: 5 | CG5: 5 | CH5: 3 | CI5: 4 | CM5: 3 | CN5: 2 | CP5: 2 | CR5: 3 | CV5: 4 | DA5: 2 | DD5: 2 | DI5: 4 | DK5: 4 | DU5: 5 | DX5: 3 | EF5: 3 | EQ5: 3 | EU5: 4 | EY5: 4 | FB5: 3 | FF5: 3 | FI5: 3 | FK5: 4 | FS5: 3 | FU5: 4 | GG5: 5 | GH5: 2 | GL5: 3 | GM5: 4 | GU5: 5 | HG5: 4 | HI5: 4 | HJ5: 6 | HL5: 3 | HO5: 4 | HQ5: 4 | HX5: 4 | HY5: 4 | IB5: 3 | ID5: 3 | IG5: 3 | IJ5: 4 | IM5: 3 | IN5: 3 | IQ5: 4 | IS5: 4 | IU5: 3 | IY5: 2 | IZ5: 4 | JJ5: 2 | JL5: 3 | JO5: 3 | JP5: 4 | JW5: 5 | JZ5: 3 | KD5: 4 | KF5: 4 | KH5: 3 | KK5: 3 | KM5: 5 | KR5: 2 | KY5: 3 | LE5: 5 | LG5: 3 | LL5: 4 | LM5: 3 | LV5: 3 | LW5: 5 | MA5: 4 | MC5: 5 | ME5: 3 | MF5: 3 | MH5: 3 | MI5: 2 | ML5: 3 | MZ5: 3 | ND5: 3 | NI5: 3 | NJ5: 3 | NP5: 2 | NV5: 4 | OF5: 4 | OG5: 3 | OH5: 5 | OJ5: 2 | OL5: 3 | ON5: 4 | OP5: 4 | OQ5: 3 | OT5: 5 | OU5: 2 | OW5: 2 | OX5: 3 | PB5: 3 | PD5: 3 | PF5: 2 | PG5: 3 | PI5: 3 | PJ5: 2 | PO5: 6 | PQ5: 3 | PR5: 2 | PS5: 4 | PU5: 4 | PV5: 5 | QB5: 3 | QH5: 3 | QJ5: 2 | QV5: 3 | QW5: 5 | QY5: 2 | QZ5: 2 | RB5: 5 | RC5: 3 | RF5: 4 | RH5: 4 | RJ5: 4 | RO5: 3 | RT5: 4 | SD5: 7 | SF5: 4 | SI5: 4 | SK5: 2 | SL5: 5 | SN5: 3 | SP5: 3 | SS5: 4 | SZ5: 3 | TD5: 3 | TE5: 5 | TI5: 3 | TK5: 4 | TL5: 4 | TM5: 5 | TN5: 3 | TQ5: 4 | TV5: 3 | TY5: 4 | UF5: 2 | UI5: 4 | UN5: 3 | UO5: 2 | UQ5: 2 | UR5: 5 | US5: 3 | UT5: 3 | UW5: 4 | VF5: 3 | VJ5: 4 | VK5: 5 | VM5: 3 | VN5: 5 | VQ5: 3 | VS5: 5 | WD5: 3 | WG5: 3 | WO5: 3 | WQ5: 5 | WS5: 4 | WT5: 3 | WV5: 4 | WX5: 2 | WZ5: 3 | XC5: 6 | XI5: 6 | XJ5: 3 | XS5: 3 | XU5: 4 | YD5: 5 | YE5: 4 | YH5: 2 | YX5: 4 | YY5: 2 | ZK5: 3 | ZL5: 4 | ZM5: 3 | ZR5: 5 | ZT5: 3 | ZU5: 3 | ZZ5: 5 | AAB5: 3 | AAD5: 4 | AAF5: 4 | AAK5: 4 | AAP5: 4 | AAV5: 4 | AAW5: 4 | ABE5: 3 | ABH5: 4 | ABM5: 3 | ABP5: 3 | ABR5: 3 | ABY5: 2 | ABZ5: 5 | ACD5: 4 | ACI5: 3 | ACK5: 3 | ACQ5: 2 | ACT5: 3 | ADB5: 4 | ADD5: 4 | ADF5: 3 | ADG5: 4 | ADH5: 2 | ADI5: 2 | ADL5: 3 | ADQ5: 2 | ADY5: 3 | ADZ5: 2 | AEA5: 4 | AEC5: 4 | AED5: 5 | AEI5: 4 | AET5: 4 | AEU5: 2 | AEX5: 4 | AEY5: 3 | AFD5: 3 | AFM5: 3 | AFN5: 2 | AFW5: 3 | AFX5: 2 | AFY5: 2 | AGN5: 4 | AGO5: 4 | AHE5: 3 | AHH5: 2 | AHO5: 4 | AHP5: 3 | AHT5: 3 | AHU5: 3 | AHW5: 3 | AIA5: 4 | AIB5: 3 | AID5: 2 | AIF5: 2 | AIG5: 5 | AIP5: 3 | AIR5: 3 | AIS5: 2 | AIX5: 3 | AIY5: 2 | AJA5: 4 | AJB5: 4 | AJF5: 3 | AJI5: 4 | AJM5: 4 | AJO5: 3 | AJW5: 2 | AJX5: 3 | AJZ5: 4 | AKD5: 3 | AKH5: 2 | AKI5: 2 | AKJ5: 5 | AKN5: 5 | AKT5: 3 | AKW5: 3 | ALF5: 2 | ALG5: 3 | ALH5: 2 | ALL5: 3 | ALM5: 4 | ALN5: 3
B6: Ločenice | F6: 4 | J6: 3 | K6: 3 | AA6: 2 | AH6: 5 | AK6: 3 | AM6: 3 | AO6: 2 | AS6: 3 | AU6: 3 | BA6: 3 | BF6: 3 | BI6: 3 | BO6: 3 | BR6: 3 | BV6: 3 | CB6: 2 | CG6: 4 | CM6: 2 | CO6: 4 | CS6: 5 | CU6: 4 | DN6: 2 | DO6: 5 | DP6: 3 | DS6: 3 | DT6: 3 | DV6: 3 | DW6: 4 | DZ6: 3 | ED6: 3 | EE6: 4 | EK6: 4 | EL6: 2 | EM6: 3 | EN6: 3 | EQ6: 2 | ES6: 3 | EU6: 3 | EW6: 3 | EY6: 3 | EZ6: 2 | FE6: 3 | FG6: 2 | FH6: 4 | FW6: 3 | FZ6: 3 | GC6: 3 | GJ6: 5 | GK6: 2 | GL6: 2 | GM6: 3 | GN6: 3 | GP6: 2 | GR6: 4 | GT6: 5 | GU6: 4 | GW6: 2 | GX6: 2 | HA6: 3 | HB6: 4 | HE6: 3 | HF6: 3 | HH6: 4 | HI6: 3 | HJ6: 5 | HK6: 2 | HL6: 2 | HM6: 3 | HT6: 3 | HW6: 2 | HY6: 3 | HZ6: 2 | IC6: 3 | IE6: 4 | IH6: 2 | IO6: 4 | IQ6: 3 | IV6: 2 | IW6: 2 | IZ6: 3 | JB6: 4 | JF6: 3 | JG6: 5 | JH6: 4 | JN6: 3 | JS6: 3 | JT6: 3 | JZ6: 2 | KA6: 2 | KE6: 2 | KJ6: 2 | KM6: 4 | KZ6: 3 | LA6: 3 | LB6: 2 | LF6: 5 | LH6: 4 | LL6: 3 | LN6: 4 | LS6: 3 | LW6: 4 | MC6: 4 | MD6: 3 | MM6: 3 | MN6: 3 | MS6: 3 | MT6: 3 | MX6: 3 | MY6: 2 | NC6: 3 | NF6: 3 | NH6: 2 | NI6: 2 | NJ6: 2 | NV6: 3 | NZ6: 6 | OB6: 3 | OF6: 3 | OG6: 2 | OH6: 4 | OM6: 3 | OQ6: 2 | OR6: 3 | OS6: 3 | OT6: 4 | OX6: 2 | PB6: 2 | PC6: 3 | PD6: 2 | PM6: 2 | PO6: 5 | PV6: 4 | QF6: 2 | QH6: 2 | QI6: 2 | QN6: 2 | QO6: 3 | QW6: 4 | QX6: 3 | RB6: 4 | RD6: 3 | RG6: 3 | RL6: 3 | RM6: 3 | RP6: 2 | RQ6: 6 | RR6: 3 | RU6: 5 | RZ6: 2 | SD6: 6 | SG6: 4 | SH6: 4 | SL6: 4 | SP6: 2 | SQ6: 3 | SR6: 4 | SU6: 3 | SV6: 2 | TE6: 4 | TF6: 2 | TH6: 3 | TK6: 3 | TN6: 2 | TO6: 4 | TQ6: 3 | UC6: 3 | UK6: 2 | UR6: 4 | UU6: 2 | UZ6: 3 | VA6: 4 | VE6: 2 | VH6: 3 | VS6: 4 | VW6: 2 | VY6: 2 | VZ6: 4 | WA6: 3 | WB6: 4 | WE6: 3 | WK6: 5 | WL6: 3 | WQ6: 4 | XB6: 4 | XC6: 5 | XG6: 3 | XI6: 5 | XM6: 3 | XN6: 2 | XP6: 5 | XR6: 3 | XX6: 2 | YB6: 4 | YD6: 4 | YF6: 3 | YM6: 3 | YS6: 2 | YT6: 4 | YU6: 2 | ZC6: 2 | ZE6: 4 | ZH6: 2 | ZJ6: 3 | ZL6: 3 | ZM6: 2 | ZN6: 3 | ZO6: 2 | ZQ6: 3 | ZR6: 4 | ZV6: 3 | ZZ6: 4 | AAA6: 2 | AAC6: 3 | AAD6: 3 | AAF6: 3 | AAH6: 3 | AAJ6: 4 | AAK6: 3 | AAN6: 2 | AAQ6: 3 | AAR6: 2 | AAT6: 3 | ABB6: 2 | ABD6: 3 | ABJ6: 2 | ABP6: 2 | ABQ6: 4 | ABR6: 2 | ABU6: 2 | ABW6: 3 | ABZ6: 4 | ACF6: 2 | ACN6: 3 | ACO6: 3 | ACS6: 3 | ACU6: 2 | ACV6: 3 | ACX6: 3 | ACZ6: 2 | ADJ6: 4 | ADK6: 2 | ADR6: 3 | ADS6: 2 | ADT6: 3 | ADU6: 3 | ADW6: 4 | ADX6: 3 | AEB6: 3 | AEF6: 2 | AEG6: 5 | AEH6: 3 | AEJ6: 2 | AFH6: 5 | AFK6: 3 | AFR6: 2 | AFT6: 2 | AFV6: 2 | AFZ6: 3 | AGB6: 3 | AGI6: 4 | AGK6: 4 | AGO6: 3 | AGP6: 3 | AGU6: 2 | AGV6: 3 | AGX6: 4 | AHA6: 4 | AHE6: 2 | AHM6: 3 | AHN6: 3 | AHO6: 3 | AHV6: 3 | AHW6: 2 | AHZ6: 3 | AIC6: 4 | AIG6: 4 | AIJ6: 2 | AIL6: 2 | AIQ6: 3 | AIU6: 5 | AIV6: 2 | AIZ6: 2 | AJA6: 3 | AJB6: 3 | AJG6: 3 | AJQ6: 3 | AJS6: 3 | AJT6: 2 | AJU6: 3 | AJV6: 3 | AJZ6: 3 | AKE6: 3 | AKF6: 4 | AKN6: 4 | AKP6: 3 | AKQ6: 3 | AKW6: 2 | AKX6: 2 | AKY6: 3 | ALA6: 2 | ALB6: 4 | ALI6: 3
B7: Todně | F7: 2 | G7: 2 | J7: 2 | R7: 2 | S7: 3 | W7: 2 | X7: 2 | AB7: 3 | AC7: 2 | AH7: 3 | AM7: 2 | AU7: 2 | BE7: 2 | BP7: 3 | BY7: 2 | CA7: 4 | CE7: 2 | CF7: 2 | CG7: 3 | CI7: 2 | CL7: 2 | CR7: 2 | CS7: 3 | CT7: 4 | CU7: 2 | DI7: 3 | DK7: 2 | DL7: 2 | DM7: 3 | DO7: 3 | DP7: 2 | DT7: 2 | DV7: 2 | DW7: 3 | DZ7: 2 | EB7: 2 | EF7: 2 | EM7: 2 | ES7: 2 | ET7: 2 | EU7: 2 | FD7: 3 | FH7: 3 | FK7: 2 | FL7: 2 | FP7: 2 | FQ7: 2 | FS7: 2 | FZ7: 2 | GD7: 3 | GE7: 3 | GF7: 2 | GJ7: 3 | GQ7: 3 | GS7: 2 | GT7: 3 | GV7: 2 | HB7: 3 | HC7: 4 | HF7: 2 | HG7: 3 | HH7: 2 | HN7: 3 | HP7: 2 | HQ7: 3 | HS7: 2 | II7: 2 | IJ7: 3 | IO7: 3 | IS7: 3 | JB7: 2 | JC7: 3 | JE7: 2 | JI7: 3 | JQ7: 2 | JT7: 2 | KD7: 3 | KG7: 2 | KL7: 3 | KM7: 2 | KN7: 2 | KO7: 2 | KP7: 2 | KT7: 3 | KV7: 3 | KX7: 2 | KY7: 2 | LD7: 2 | LF7: 4 | LH7: 2 | LK7: 3 | LR7: 2 | LY7: 2 | LZ7: 3 | MC7: 2 | ME7: 2 | MH7: 2 | MK7: 3 | ML7: 2 | MR7: 2 | MZ7: 2 | NB7: 2 | NC7: 2 | ND7: 2 | NE7: 3 | NL7: 3 | NM7: 4 | NQ7: 2 | NS7: 3 | NT7: 3 | NY7: 2 | NZ7: 4 | OB7: 2 | OC7: 3 | OH7: 3 | OI7: 2 | OM7: 2 | OP7: 3 | OS7: 2 | OV7: 3 | OY7: 3 | PE7: 2 | PN7: 2 | PO7: 4 | PP7: 3 | PQ7: 2 | PU7: 3 | PV7: 2 | QA7: 3 | QG7: 3 | QK7: 2 | QL7: 2 | QV7: 2 | QW7: 2 | QX7: 2 | RB7: 3 | RF7: 3 | RH7: 3 | RI7: 2 | RK7: 3 | RL7: 2 | RM7: 2 | RQ7: 4 | RT7: 3 | RV7: 2 | RW7: 2 | RX7: 4 | SA7: 2 | SD7: 4 | SF7: 2 | SI7: 3 | SJ7: 2 | SM7: 3 | SQ7: 2 | SS7: 2 | ST7: 2 | SZ7: 2 | TC7: 4 | TD7: 2 | TG7: 3 | TP7: 2 | TW7: 2 | TX7: 2 | TY7: 3 | UG7: 2 | UH7: 3 | UI7: 3 | UM7: 2 | UT7: 2 | UV7: 2 | UW7: 3 | UX7: 2 | UZ7: 2 | VA7: 3 | VB7: 3 | VC7: 4 | VF7: 2 | VI7: 3 | VK7: 4 | VM7: 2 | VO7: 2 | VU7: 3 | VV7: 3 | VZ7: 2 | WC7: 3 | WE7: 2 | WG7: 2 | WH7: 3 | WI7: 2 | WJ7: 2 | WK7: 4 | WM7: 2 | WP7: 3 | WS7: 2 | WV7: 2 | XD7: 4 | XG7: 2 | XI7: 3 | XL7: 3 | XP7: 3 | XU7: 3 | YB7: 3 | YD7: 3 | YF7: 2 | YJ7: 2 | YN7: 3 | YP7: 2 | YQ7: 3 | YT7: 3 | YW7: 3 | YX7: 3 | YZ7: 2 | ZE7: 3 | ZI7: 3 | ZJ7: 2 | ZN7: 2 | ZR7: 3 | ZV7: 2 | ZY7: 3 | ZZ7: 2 | AAE7: 2 | AAG7: 2 | AAH7: 2 | AAL7: 2 | AAM7: 3 | AAO7: 2 | AAP7: 3 | AAU7: 2 | AAX7: 3 | ABA7: 3 | ABD7: 2 | ABG7: 2 | ABM7: 2 | ABN7: 2 | ABQ7: 3 | ABS7: 2 | ABW7: 2 | ACH7: 3 | ACI7: 2 | ACM7: 3 | ACP7: 3 | ACS7: 2 | ACV7: 2 | ADB7: 2 | ADC7: 2 | ADG7: 3 | ADR7: 2 | ADT7: 2 | ADU7: 2 | ADV7: 2 | ADY7: 2 | AEA7: 3 | AEC7: 3 | AEI7: 3 | AEP7: 2 | AEZ7: 2 | AFC7: 3 | AFK7: 2 | AFL7: 3 | AFZ7: 2 | AGB7: 2 | AGF7: 3 | AGJ7: 2 | AGM7: 2 | AGO7: 2 | AGS7: 3 | AGT7: 2 | AGW7: 3 | AGY7: 2 | AHB7: 2 | AHC7: 3 | AHK7: 2 | AHL7: 4 | AHM7: 2 | AIA7: 3 | AIB7: 2 | AIC7: 3 | AIE7: 2 | AIM7: 2 | AIN7: 2 | AIT7: 2 | AIU7: 4 | AIW7: 3 | AJI7: 3 | AJN7: 3 | AJR7: 3 | AJV7: 2 | AJX7: 2 | AKC7: 3 | AKF7: 2 | AKL7: 2 | AKM7: 3 | AKN7: 2 | AKQ7: 2 | AKR7: 2 | AKS7: 2 | ALD7: 4 | ALM7: 3
B8: Nežetice | H8: 3 | S8: 2 | U8: 2 | V8: 2 | AH8: 2 | AI8: 3 | AT8: 2 | AW8: 3 | AX8: 2 | AZ8: 2 | BF8: 2 | BK8: 2 | BN8: 2 | BP8: 2 | BV8: 2 | BW8: 2 | CA8: 3 | CC8: 2 | CD8: 2 | CG8: 2 | CO8: 3 | CQ8: 3 | CT8: 3 | DB8: 2 | DF8: 2 | DG8: 3 | DM8: 2 | DU8: 3 | DW8: 2 | DX8: 2 | EC8: 2 | EE8: 2 | EH8: 3 | EI8: 2 | EK8: 2 | EV8: 2 | EY8: 2 | FA8: 2 | FD8: 2 | FH8: 2 | FN8: 2 | FT8: 2 | FU8: 3 | FW8: 2 | FY8: 2 | GC8: 2 | GD8: 2 | GE8: 2 | GG8: 3 | GN8: 2 | GR8: 2 | GU8: 3 | GZ8: 2 | HC8: 3 | HI8: 2 | HJ8: 3 | HM8: 2 | HN8: 2 | HO8: 3 | HQ8: 2 | HR8: 2 | HU8: 2 | IA8: 2 | IB8: 2 | IC8: 2 | ID8: 2 | IK8: 3 | IM8: 2 | IS8: 2 | JA8: 3 | JC8: 2 | JG8: 3 | JI8: 2 | JP8: 2 | JR8: 2 | JV8: 3 | JW8: 3 | JX8: 2 | JY8: 2 | KB8: 2 | KF8: 3 | KH8: 2 | KK8: 2 | KQ8: 2 | KV8: 2 | LA8: 2 | LE8: 3 | LF8: 3 | LJ8: 2 | LK8: 2 | LN8: 2 | LW8: 2 | LX8: 2 | LZ8: 2 | MA8: 3 | MB8: 2 | MM8: 2 | MN8: 2 | MO8: 2 | MQ8: 2 | MS8: 2 | MV8: 2 | MX8: 2 | NK8: 3 | NM8: 3 | NT8: 2 | NU8: 3 | NW8: 2 | NZ8: 3 | OA8: 3 | OC8: 2 | OD8: 2 | OH8: 2 | OO8: 2 | OP8: 2 | OR8: 2 | OT8: 3 | OV8: 2 | OZ8: 2 | PC8: 2 | PH8: 2 | PO8: 3 | PP8: 2 | PS8: 2 | PT8: 2 | PU8: 2 | QC8: 2 | QE8: 3 | QG8: 2 | QM8: 2 | QO8: 2 | QP8: 2 | QR8: 2 | QT8: 2 | RB8: 2 | RH8: 2 | RJ8: 2 | RK8: 2 | RN8: 2 | RQ8: 3 | RR8: 2 | RT8: 2 | RU8: 3 | RX8: 3 | RY8: 2 | SB8: 2 | SD8: 3 | SE8: 3 | SG8: 2 | SL8: 3 | SM8: 2 | SR8: 3 | SW8: 3 | TC8: 3 | TG8: 2 | TL8: 3 | TM8: 3 | TO8: 3 | TS8: 2 | TT8: 2 | TY8: 2 | UA8: 2 | UB8: 2 | UR8: 2 | VA8: 2 | VB8: 2 | VC8: 3 | VG8: 2 | VJ8: 2 | VK8: 3 | VN8: 3 | VP8: 2 | VR8: 2 | VS8: 2 | VV8: 2 | WH8: 2 | WK8: 3 | WN8: 3 | WO8: 2 | WP8: 2 | WQ8: 2 | WT8: 2 | XA8: 3 | XC8: 3 | XD8: 3 | XE8: 2 | XF8: 2 | XL8: 2 | XO8: 3 | XR8: 2 | XS8: 2 | XW8: 2 | YA8: 2 | YD8: 2 | YQ8: 2 | YT8: 2 | YX8: 2 | ZE8: 2 | ZF8: 2 | ZG8: 3 | ZL8: 2 | ZR8: 2 | ZS8: 2 | ZU8: 2 | ZX8: 2 | ZY8: 2 | AAD8: 2 | AAJ8: 2 | AAM8: 2 | AAP8: 2 | AAV8: 2 | AAX8: 2 | AAY8: 2 | ABA8: 2 | ABE8: 2 | ABF8: 2 | ABK8: 2 | ABX8: 3 | ABZ8: 3 | ACD8: 3 | ACJ8: 3 | ACK8: 2 | ACM8: 2 | ACO8: 2 | ACR8: 2 | ADD8: 3 | ADG8: 2 | ADJ8: 2 | ADM8: 2 | ADX8: 2 | AEC8: 2 | AED8: 3 | AEG8: 3 | AEI8: 2 | AEM8: 2 | AEN8: 3 | AET8: 3 | AEV8: 2 | AEX8: 2 | AEY8: 2 | AFG8: 2 | AFH8: 3 | AFI8: 2 | AFJ8: 3 | AFS8: 3 | AGA8: 2 | AGC8: 2 | AGI8: 2 | AGK8: 2 | AGN8: 3 | AGQ8: 2 | AGX8: 3 | AHI8: 2 | AHL8: 3 | AHP8: 2 | AHT8: 2 | AHZ8: 2 | AIG8: 2 | AIH8: 2 | AII8: 2 | AIO8: 2 | AIU8: 3 | AIW8: 2 | AIX8: 2 | AJB8: 2 | AJC8: 3 | AJD8: 3 | AJG8: 2 | AJI8: 2 | AJK8: 2 | AJU8: 2 | AKB8: 3 | AKC8: 2 | AKE8: 2 | AKG8: 2 | AKJ8: 3 | AKK8: 2 | AKM8: 2 | ALB8: 3 | ALC8: 2 | ALD8: 3 | ALI8: 2 | ALJ8: 2 | ALK8: 2 | ALL8: 2
B9: Březí | D9: 2 | H9: 2 | K9: 2 | P9: 2 | AB9: 2 | AD9: 2 | AF9: 2 | AG9: 2 | AI9: 2 | AK9: 2 | AP9: 2 | AS9: 2 | AW9: 2 | BA9: 2 | BC9: 2 | BD9: 2 | BI9: 2 | BQ9: 2 | BT9: 2 | BU9: 2 | BX9: 2 | BZ9: 2 | CA9: 2 | CH9: 2 | CO9: 2 | CQ9: 2 | CS9: 2 | CT9: 2 | CV9: 2 | CZ9: 2 | DC9: 2 | DG9: 2 | DI9: 2 | DJ9: 2 | DO9: 2 | DS9: 2 | DU9: 2 | DY9: 2 | EH9: 2 | EJ9: 2 | EO9: 2 | EW9: 2 | FF9: 2 | FI9: 2 | FU9: 2 | FV9: 2 | FX9: 2 | GA9: 2 | GG9: 2 | GJ9: 2 | GO9: 2 | GQ9: 2 | GT9: 2 | GU9: 2 | GY9: 2 | HB9: 2 | HC9: 2 | HG9: 2 | HJ9: 2 | HO9: 2 | HV9: 2 | HX9: 2 | IE9: 2 | IJ9: 2 | IK9: 2 | IO9: 2 | IQ9: 2 | IR9: 2 | IT9: 2 | IU9: 2 | JA9: 2 | JD9: 2 | JG9: 2 | JH9: 2 | JN9: 2 | JO9: 2 | JS9: 2 | JU9: 2 | JV9: 2 | JW9: 2 | KD9: 2 | KF9: 2 | KL9: 2 | KS9: 2 | KT9: 2 | KU9: 2 | LE9: 2 | LF9: 2 | LG9: 2 | LM9: 2 | LS9: 2 | LU9: 2 | LV9: 2 | MA9: 2 | MD9: 2 | MF9: 2 | MK9: 2 | NE9: 2 | NF9: 2 | NK9: 2 | NL9: 2 | NM9: 2 | NS9: 2 | NU9: 2 | NZ9: 2 | OA9: 2 | OF9: 2 | OK9: 2 | ON9: 2 | OT9: 2 | OY9: 2 | PA9: 2 | PG9: 2 | PL9: 2 | PO9: 2 | PY9: 2 | QA9: 2 | QB9: 2 | QE9: 2 | QU9: 2 | RF9: 2 | RQ9: 2 | RU9: 2 | RX9: 2 | SD9: 2 | SE9: 2 | SH9: 2 | SI9: 2 | SL9: 2 | SN9: 2 | SR9: 2 | SU9: 2 | SW9: 2 | SY9: 2 | TA9: 2 | TC9: 2 | TE9: 2 | TI9: 2 | TJ9: 2 | TK9: 2 | TL9: 2 | TM9: 2 | TO9: 2 | TV9: 2 | TZ9: 2 | UH9: 2 | UI9: 2 | UN9: 2 | UW9: 2 | VC9: 2 | VI9: 2 | VK9: 2 | VL9: 2 | VN9: 2 | VU9: 2 | VX9: 2 | WB9: 2 | WC9: 2 | WK9: 2 | WN9: 2 | WY9: 2 | WZ9: 2 | XA9: 2 | XB9: 2 | XC9: 2 | XD9: 2 | XI9: 2 | XO9: 2 | XP9: 2 | XU9: 2 | YB9: 2 | YC9: 2 | YE9: 2 | YI9: 2 | YN9: 2 | YW9: 2 | ZA9: 2 | ZB9: 2 | ZD9: 2 | ZG9: 2 | ZI9: 2 | ZK9: 2 | ZQ9: 2 | AAB9: 2 | AAC9: 2 | AAF9: 2 | AAQ9: 2 | AAW9: 2 | ABH9: 2 | ABI9: 2 | ABQ9: 2 | ABX9: 2 | ABZ9: 2 | ACD9: 2 | ACG9: 2 | ACH9: 2 | ACJ9: 2 | ACN9: 2 | ACP9: 2 | ACW9: 2 | ACY9: 2 | ADD9: 2 | ADO9: 2 | ADW9: 2 | AEA9: 2 | AED9: 2 | AEE9: 2 | AEG9: 2 | AEH9: 2 | AEK9: 2 | AEN9: 2 | AET9: 2 | AFC9: 2 | AFD9: 2 | AFF9: 2 | AFH9: 2 | AFJ9: 2 | AFL9: 2 | AFM9: 2 | AFS9: 2 | AFW9: 2 | AGE9: 2 | AGF9: 2 | AGG9: 2 | AGN9: 2 | AGS9: 2 | AGV9: 2 | AGW9: 2 | AGX9: 2 | AGZ9: 2 | AHA9: 2 | AHC9: 2 | AHL9: 2 | AHN9: 2 | AHO9: 2 | AHR9: 2 | AHU9: 2 | AHV9: 2 | AIA9: 2 | AIC9: 2 | AIQ9: 2 | AIU9: 2 | AJA9: 2 | AJC9: 2 | AJD9: 2 | AJJ9: 2 | AJM9: 2 | AJN9: 2 | AJP9: 2 | AJQ9: 2 | AJR9: 2 | AJS9: 2 | AJY9: 2 | AJZ9: 2 | AKA9: 2 | AKB9: 2 | AKJ9: 2 | AKO9: 2 | AKT9: 2 | ALB9: 2 | ALD9: 2 | ALG9: 2 | ALM9: 2 | ALN9: 2
B10: Něchov | C10: 2 | F10: 3 | H10: 4 | I10: 2 | P10: 3 | R10: 3 | S10: 4 | T10: 2 | AH10: 4 | AI10: 4 | AV10: 2 | BC10: 3 | BG10: 2 | BK10: 3 | BN10: 3 | BO10: 2 | BR10: 2 | BS10: 2 | BU10: 3 | BY10: 3 | CD10: 3 | CE10: 3 | CI10: 3 | CQ10: 4 | CS10: 4 | CU10: 3 | CV10: 3 | CY10: 2 | CZ10: 3 | DC10: 3 | DE10: 2 | DK10: 3 | DL10: 3 | DM10: 4 | DO10: 4 | DU10: 4 | EA10: 2 | ED10: 2 | EE10: 3 | EG10: 2 | EK10: 3 | EN10: 2 | EV10: 3 | FB10: 2 | FD10: 4 | FE10: 2 | FK10: 3 | FM10: 2 | FP10: 3 | FT10: 3 | GA10: 3 | GE10: 4 | GG10: 4 | GJ10: 4 | GM10: 2 | GQ10: 4 | GR10: 3 | GS10: 3 | GT10: 4 | GV10: 3 | HA10: 2 | HE10: 2 | HH10: 3 | HJ10: 4 | HN10: 4 | HR10: 3 | HT10: 2 | HX10: 3 | HY10: 2 | IE10: 3 | IG10: 2 | II10: 3 | IN10: 2 | IT10: 3 | IZ10: 2 | JB10: 3 | JF10: 2 | JG10: 4 | JH10: 3 | JL10: 2 | JM10: 2 | JP10: 3 | JW10: 4 | KC10: 2 | KI10: 2 | KM10: 3 | KN10: 3 | KO10: 3 | KZ10: 2 | LC10: 2 | LE10: 4 | LH10: 3 | LL10: 2 | LN10: 3 | LW10: 3 | LY10: 3 | MC10: 3 | MJ10: 2 | MT10: 2 | MU10: 2 | NA10: 2 | NG10: 2 | NO10: 2 | NS10: 4 | NV10: 2 | NW10: 3 | NY10: 3 | NZ10: 5 | OA10: 4 | OK10: 3 | OL10: 2 | ON10: 3 | PA10: 3 | PE10: 3 | PH10: 3 | PI10: 2 | PK10: 2 | PP10: 4 | PS10: 3 | PT10: 3 | PV10: 3 | PW10: 2 | PZ10: 2 | QD10: 2 | QL10: 3 | QQ10: 2 | QU10: 3 | QW10: 3 | RA10: 2 | RC10: 2 | RD10: 2 | RE10: 2 | RG10: 2 | RJ10: 3 | RO10: 2 | RQ10: 5 | RS10: 2 | RU10: 4 | RV10: 3 | RW10: 3 | SA10: 3 | SD10: 5 | SF10: 3 | SG10: 3 | SH10: 3 | SM10: 4 | SS10: 3 | TB10: 2 | TE10: 3 | TH10: 2 | TM10: 4 | TQ10: 2 | TZ10: 3 | UC10: 2 | UJ10: 2 | UL10: 2 | UR10: 3 | US10: 2 | VB10: 4 | VG10: 3 | VH10: 2 | VJ10: 3 | VN10: 4 | VP10: 3 | VQ10: 2 | VS10: 3 | VT10: 2 | VV10: 4 | VZ10: 3 | WA10: 2 | WB10: 3 | WD10: 2 | WI10: 3 | WL10: 2 | WM10: 3 | WQ10: 3 | WR10: 2 | WS10: 3 | WV10: 3 | WW10: 2 | WY10: 3 | XB10: 3 | XC10: 4 | XI10: 4 | XJ10: 2 | XM10: 2 | XO10: 4 | XP10: 4 | XV10: 2 | XZ10: 2 | YC10: 3 | YE10: 3 | YG10: 2 | YL10: 2 | YM10: 2 | YP10: 3 | ZB10: 3 | ZD10: 3 | ZG10: 4 | ZT10: 2 | ZW10: 2 | ZY10: 4 | ZZ10: 3 | AAI10: 2 | AAJ10: 3 | AAK10: 2 | AAT10: 2 | AAV10: 3 | AAW10: 3 | ABH10: 3 | ABL10: 2 | ABX10: 4 | ACA10: 2 | ACC10: 2 | ACG10: 3 | ACJ10: 4 | ACL10: 2 | ACT10: 2 | ACX10: 2 | ADA10: 2 | ADB10: 3 | ADF10: 2 | ADJ10: 3 | ADL10: 2 | ADM10: 3 | ADV10: 3 | ADW10: 3 | AEB10: 2 | AED10: 4 | AEE10: 3 | AEG10: 4 | AEK10: 3 | AEL10: 2 | AEN10: 4 | AEP10: 3 | AEQ10: 2 | AEX10: 3 | AFE10: 2 | AFH10: 4 | AFL10: 4 | AFS10: 4 | AGI10: 3 | AGK10: 3 | AGP10: 2 | AGZ10: 3 | AHA10: 3 | AHC10: 4 | AHD10: 2 | AHQ10: 2 | AHX10: 2 | AIG10: 3 | AIN10: 3 | AIO10: 3 | AIP10: 2 | AIR10: 2 | AJC10: 4 | AJF10: 2 | AJK10: 3 | AJM10: 3 | AJO10: 2 | AJR10: 4 | AKA10: 3 | AKB10: 4 | AKD10: 2 | AKF10: 3 | AKJ10: 4 | AKK10: 3 | AKL10: 3 | AKN10: 3 | AKO10: 3 | AKP10: 2 | AKY10: 2
B11: Besednice | H11: 5 | O11: 2 | U11: 4 | W11: 4 | AC11: 3 | AP11: 4 | AS11: 4 | AU11: 5 | BR11: 5 | BY11: 4 | CC11: 3 | CH11: 4 | CK11: 2 | CR11: 4 | CS11: 6 | CZ11: 4 | DD11: 3 | DF11: 3 | DI11: 5 | DR11: 2 | DT11: 4 | DX11: 4 | DY11: 3 | EB11: 3 | EL11: 3 | ES11: 4 | EW11: 4 | FL11: 3 | FO11: 2 | FQ11: 3 | FR11: 2 | FS11: 4 | FW11: 4 | FX11: 3 | GG11: 6 | GN11: 4 | GP11: 3 | GT11: 6 | GV11: 4 | GW11: 3 | GX11: 3 | HF11: 4 | HK11: 3 | HN11: 5 | HQ11: 5 | HS11: 3 | HV11: 3 | IA11: 3 | ID11: 4 | IG11: 4 | IL11: 2 | IM11: 4 | IR11: 3 | IS11: 5 | IX11: 2 | IZ11: 5 | JB11: 5 | JF11: 4 | JL11: 4 | JN11: 4 | JU11: 3 | JY11: 3 | JZ11: 4 | KA11: 3 | KB11: 3 | KC11: 3 | KE11: 3 | KK11: 4 | KM11: 6 | KP11: 3 | KR11: 3 | KX11: 3 | KZ11: 4 | LB11: 3 | LD11: 3 | LE11: 6 | LF11: 6 | LP11: 2 | LS11: 4 | LT11: 2 | LZ11: 4 | MB11: 3 | MG11: 2 | MH11: 4 | MK11: 4 | MP11: 2 | MZ11: 4 | NB11: 3 | NL11: 4 | NN11: 2 | NP11: 3 | NU11: 4 | NZ11: 7 | OB11: 4 | OD11: 3 | OF11: 5 | OH11: 6 | OJ11: 3 | OM11: 4 | OU11: 3 | OV11: 4 | OY11: 4 | PC11: 4 | PP11: 5 | PT11: 4 | PZ11: 3 | QE11: 4 | QF11: 3 | QK11: 3 | QT11: 3 | QV11: 4 | QY11: 3 | QZ11: 3 | RB11: 6 | RC11: 4 | RM11: 4 | RN11: 3 | RU11: 6 | RV11: 4 | RW11: 4 | RX11: 5 | RY11: 3 | SJ11: 3 | SK11: 3 | SM11: 5 | SR11: 5 | SS11: 5 | SX11: 2 | TD11: 4 | TF11: 3 | TI11: 4 | TT11: 3 | TZ11: 4 | UB11: 3 | UD11: 2 | UF11: 3 | UH11: 4 | UL11: 3 | UN11: 4 | UP11: 2 | US11: 4 | UT11: 4 | VA11: 5 | VE11: 3 | VI11: 4 | VJ11: 5 | VK11: 6 | VM11: 4 | VQ11: 4 | VR11: 3 | VT11: 3 | VU11: 4 | VZ11: 5 | WJ11: 3 | WK11: 6 | WN11: 4 | WQ11: 6 | WT11: 4 | WY11: 4 | XN11: 3 | XO11: 5 | XP11: 6 | XS11: 4 | YC11: 4 | YR11: 2 | YU11: 3 | YV11: 2 | YZ11: 3 | ZA11: 3 | ZD11: 4 | ZL11: 5 | ZN11: 4 | ZO11: 3 | ZQ11: 4 | ZU11: 4 | ZV11: 4 | AAB11: 4 | AAH11: 4 | AAL11: 3 | AAN11: 3 | AAQ11: 4 | AAT11: 4 | AAU11: 3 | AAV11: 5 | AAY11: 3 | ABD11: 4 | ABF11: 3 | ABL11: 3 | ABN11: 3 | ABP11: 4 | ABV11: 2 | ACB11: 2 | ACC11: 3 | ACD11: 5 | ACF11: 3 | ACG11: 4 | ACS11: 4 | ACT11: 4 | ADA11: 3 | ADE11: 2 | ADO11: 3 | AEC11: 5 | AED11: 6 | AEG11: 6 | AEI11: 5 | AEN11: 5 | AET11: 5 | AEY11: 4 | AFK11: 4 | AFS11: 5 | AFT11: 3 | AFY11: 3 | AGB11: 4 | AGN11: 5 | AGP11: 4 | AGQ11: 3 | AGV11: 4 | AGW11: 4 | AGY11: 3 | AGZ11: 4 | AHM11: 4 | AHO11: 5 | AHR11: 3 | AHZ11: 4 | AIA11: 5 | AIC11: 5 | AIM11: 3 | AIR11: 4 | AIU11: 6 | AJD11: 4 | AJE11: 2 | AJL11: 2 | AJQ11: 4 | AJR11: 5 | AJT11: 3 | AKJ11: 6 | AKN11: 6 | AKO11: 4 | AKS11: 3 | ALF11: 3 | ALI11: 4 | ALJ11: 3 | ALM11: 5
B12: Keblany | L12: 2 | M12: 2 | Q12: 2 | S12: 5 | Z12: 3 | AE12: 2 | AL12: 3 | AO12: 3 | AQ12: 3 | AR12: 3 | AX12: 3 | BB12: 2 | BD12: 4 | BE12: 3 | BK12: 4 | BQ12: 3 | BY12: 5 | CL12: 3 | CS12: 7 | DA12: 3 | DC12: 4 | DG12: 4 | DO12: 6 | DQ12: 2 | DV12: 4 | DY12: 4 | EM12: 4 | EO12: 3 | EW12: 5 | EX12: 2 | EZ12: 3 | FA12: 3 | FB12: 4 | FF12: 4 | FG12: 3 | FI12: 4 | FJ12: 2 | FL12: 4 | FO12: 3 | FV12: 3 | FY12: 3 | GB12: 2 | GI12: 2 | GK12: 3 | GM12: 5 | GN12: 5 | GS12: 4 | GV12: 5 | HD12: 2 | HE12: 4 | HJ12: 7 | HS12: 4 | HU12: 3 | HV12: 4 | HX12: 5 | IK12: 4 | IM12: 5 | IN12: 4 | IO12: 5 | IP12: 2 | IS12: 6 | IT12: 4 | IY12: 3 | IZ12: 6 | JG12: 6 | JJ12: 3 | JL12: 5 | JM12: 3 | JN12: 5 | JW12: 6 | JY12: 4 | KB12: 4 | KK12: 5 | KN12: 4 | KQ12: 3 | KW12: 2 | LD12: 4 | LI12: 2 | LO12: 2 | LQ12: 2 | LT12: 3 | LX12: 3 | MD12: 4 | ME12: 4 | MF12: 4 | MG12: 3 | MH12: 5 | MK12: 5 | ML12: 4 | MN12: 4 | MS12: 4 | MW12: 2 | MX12: 4 | MY12: 3 | NF12: 4 | NG12: 3 | NI12: 4 | NK12: 4 | NN12: 3 | OK12: 4 | OQ12: 4 | OT12: 6 | OU12: 4 | OV12: 5 | OY12: 5 | PA12: 4 | PF12: 3 | PI12: 4 | PM12: 3 | PQ12: 4 | PX12: 2 | QD12: 3 | QH12: 4 | QK12: 4 | QM12: 3 | QQ12: 3 | QU12: 4 | QX12: 4 | RB12: 7 | RG12: 4 | RI12: 3 | RJ12: 5 | RS12: 3 | RY12: 4 | SB12: 3 | SC12: 2 | SD12: 8 | SE12: 4 | SM12: 6 | SN12: 4 | SR12: 6 | ST12: 3 | SY12: 3 | TA12: 3 | TD12: 5 | TE12: 6 | TG12: 4 | TI12: 5 | TO12: 5 | TU12: 2 | TZ12: 5 | UP12: 3 | UX12: 3 | VE12: 4 | VG12: 4 | VH12: 4 | VK12: 7 | VO12: 3 | VR12: 4 | VS12: 6 | VW12: 3 | VX12: 3 | VY12: 3 | WC12: 4 | WD12: 4 | WJ12: 4 | WK12: 7 | WV12: 5 | WW12: 3 | WX12: 3 | XA12: 4 | XC12: 7 | XD12: 5 | XE12: 3 | XQ12: 2 | XR12: 4 | XT12: 2 | XX12: 3 | YG12: 3 | YJ12: 3 | YN12: 4 | YO12: 2 | YS12: 3 | YU12: 4 | ZA12: 4 | ZB12: 4 | ZC12: 3 | ZL12: 6 | ZO12: 4 | ZR12: 6 | AAB12: 5 | AAE12: 3 | AAF12: 5 | AAM12: 4 | AAN12: 4 | AAQ12: 5 | AAS12: 2 | ABB12: 3 | ABK12: 3 | ABN12: 4 | ABR12: 4 | ABX12: 5 | ACC12: 4 | ACD12: 6 | ACE12: 2 | ACG12: 5 | ACI12: 4 | ACQ12: 3 | ACU12: 3 | ACV12: 4 | ACX12: 4 | ACY12: 3 | ADF12: 4 | ADG12: 5 | ADI12: 3 | ADM12: 4 | ADN12: 2 | ADT12: 4 | ADX12: 4 | AEA12: 5 | AEG12: 7 | AEI12: 6 | AEJ12: 3 | AEL12: 3 | AEP12: 4 | AER12: 2 | AET12: 6 | AEU12: 3 | AFG12: 3 | AFI12: 3 | AFJ12: 4 | AFK12: 5 | AFO12: 2 | AFQ12: 2 | AFS12: 6 | AFW12: 4 | AFX12: 3 | AFZ12: 4 | AGH12: 2 | AGI12: 5 | AGM12: 3 | AGS12: 4 | AGY12: 4 | AHE12: 4 | AHK12: 3 | AHN12: 4 | AHQ12: 3 | AHS12: 2 | AHW12: 4 | AHX12: 3 | AIU12: 7 | AIY12: 3 | AJA12: 5 | AJC12: 5 | AJE12: 3 | AJG12: 4 | AJH12: 2 | AJL12: 3 | AJP12: 3 | AJU12: 4 | AJZ12: 5 | AKA12: 4 | AKE12: 4 | AKG12: 3 | AKH12: 3 | AKL12: 4 | AKN12: 7 | AKP12: 4 | AKR12: 3 | AKS12: 4 | AKY12: 4 | AKZ12: 2 | ALH12: 3 | ALI12: 5 | ALK12: 3 | ALL12: 4 | ALN12: 4
B13: Mohuřice | E13: 2 | H13: 7 | K13: 5 | N13: 3 | Z13: 5 | AB13: 4 | AC13: 4 | AE13: 3 | AS13: 5 | AX13: 4 | BB13: 3 | BG13: 4 | BK13: 5 | BL13: 3 | BM13: 4 | BO13: 5 | BR13: 6 | BS13: 3 | BV13: 4 | CB13: 3 | CC13: 4 | CI13: 5 | CJ13: 2 | CP13: 3 | CU13: 5 | CW13: 2 | CY13: 3 | DA13: 4 | DF13: 4 | DI13: 6 | DK13: 5 | DN13: 3 | DQ13: 3 | DS13: 4 | DU13: 6 | EC13: 3 | EH13: 5 | EK13: 5 | EM13: 5 | ER13: 2 | EW13: 6 | EX13: 3 | FA13: 5 | FI13: 5 | FP13: 4 | FQ13: 4 | FR13: 3 | FY13: 4 | FZ13: 4 | GA13: 4 | GK13: 4 | GM13: 7 | GO13: 4 | GP13: 5 | GQ13: 5 | GR13: 5 | GT13: 7 | HE13: 5 | HL13: 4 | HP13: 4 | HY13: 6 | IE13: 6 | IF13: 2 | IW13: 3 | IZ13: 7 | JF13: 5 | JV13: 5 | KA13: 4 | KD13: 5 | KH13: 4 | KI13: 3 | KK13: 6 | KR13: 4 | KS13: 4 | KT13: 4 | LA13: 4 | LF13: 7 | LI13: 4 | LJ13: 3 | LP13: 3 | LR13: 3 | LS13: 5 | LY13: 5 | LZ13: 6 | MF13: 5 | MH13: 6 | MI13: 4 | MO13: 4 | MQ13: 4 | MR13: 3 | MY13: 4 | NC13: 4 | NM13: 5 | NN13: 4 | NU13: 5 | NW13: 5 | OB13: 5 | OD13: 4 | OE13: 2 | OF13: 7 | ON13: 5 | OT13: 8 | OU13: 6 | OV13: 7 | OW13: 3 | PD13: 4 | PK13: 4 | PM13: 4 | PQ13: 6 | PR13: 3 | PV13: 6 | PW13: 3 | PX13: 4 | PZ13: 4 | QA13: 4 | QC13: 4 | QG13: 4 | QJ13: 4 | QK13: 6 | QM13: 4 | QN13: 3 | QO13: 4 | QR13: 3 | QS13: 3 | QV13: 6 | RB13: 9 | RC13: 5 | RG13: 5 | RK13: 4 | RL13: 4 | RQ13: 8 | SB13: 4 | SE13: 5 | SO13: 3 | ST13: 4 | SU13: 4 | SV13: 3 | SW13: 4 | SY13: 5 | SZ13: 5 | TA13: 4 | TE13: 7 | TI13: 6 | TO13: 7 | TP13: 3 | TW13: 3 | UG13: 3 | UI13: 5 | UJ13: 3 | UQ13: 4 | US13: 5 | VD13: 2 | VE13: 5 | VK13: 8 | VM13: 5 | VN13: 6 | VP13: 4 | VR13: 5 | VS13: 8 | WC13: 6 | WE13: 4 | WP13: 5 | WR13: 3 | WW13: 5 | XG13: 5 | XL13: 4 | XN13: 4 | XO13: 6 | XQ13: 4 | XW13: 3 | XX13: 5 | XY13: 2 | YB13: 5 | YH13: 3 | YJ13: 4 | YQ13: 4 | YY13: 4 | ZB13: 5 | ZE13: 6 | ZH13: 3 | ZJ13: 4 | ZK13: 4 | ZQ13: 5 | ZR13: 8 | ZX13: 4 | ZZ13: 7 | AAD13: 6 | AAE13: 5 | AAI13: 3 | AAK13: 5 | AAW13: 5 | AAX13: 4 | AAZ13: 2 | ABB13: 4 | ABD13: 5 | ABF13: 4 | ABG13: 3 | ABI13: 3 | ABL13: 4 | ABM13: 4 | ABP13: 5 | ABQ13: 5 | ABR13: 6 | ABV13: 3 | ABY13: 3 | ACB13: 3 | ACE13: 3 | ACF13: 4 | ACG13: 6 | ACI13: 5 | ACQ13: 4 | ACR13: 3 | ACW13: 4 | ADE13: 3 | ADH13: 4 | ADK13: 3 | ADP13: 2 | ADQ13: 3 | ADS13: 3 | ADW13: 5 | ADX13: 6 | AEA13: 6 | AEC13: 6 | AEE13: 4 | AEF13: 3 | AEM13: 3 | AES13: 2 | AEW13: 2 | AFB13: 3 | AFC13: 4 | AFD13: 4 | AFI13: 4 | AFK13: 6 | AFL13: 5 | AFN13: 3 | AFP13: 2 | AFT13: 4 | AFU13: 2 | AFY13: 4 | AGD13: 2 | AGI13: 6 | AGJ13: 3 | AGT13: 3 | AGU13: 4 | AHD13: 4 | AHE13: 5 | AHF13: 3 | AHI13: 3 | AHQ13: 4 | AHZ13: 5 | AIE13: 3 | AII13: 3 | AIM13: 4 | AIS13: 3 | AIW13: 5 | AIY13: 5 | AIZ13: 3 | AJC13: 7 | AJT13: 4 | AKA13: 5 | AKD13: 4 | AKH13: 5 | AKI13: 3 | AKK13: 4 | AKN13: 8 | AKV13: 2 | AKW13: 4 | AKZ13: 3 | ALA13: 4 | ALD13: 5 | ALE13: 2 | ALF13: 4 | ALI13: 6 | ALJ13: 4
B14: Dobrkovská Lhotka | D14: 4 | F14: 5 | G14: 5 | I14: 3 | J14: 6 | M14: 4 | P14: 4 | U14: 5 | X14: 3 | AO14: 5 | AP14: 6 | AR14: 4 | AS14: 7 | AU14: 7 | BB14: 4 | BC14: 6 | BD14: 7 | BE14: 4 | BG14: 5 | BH14: 4 | BL14: 4 | BP14: 4 | BQ14: 4 | BR14: 8 | BU14: 4 | BZ14: 4 | CF14: 4 | CI14: 6 | CO14: 5 | CR14: 5 | CT14: 5 | CU14: 6 | CV14: 7 | CX14: 3 | CZ14: 6 | DI14: 7 | DN14: 4 | DP14: 4 | DQ14: 5 | DV14: 5 | DY14: 6 | EG14: 4 | EK14: 7 | EN14: 4 | ER14: 3 | EX14: 4 | FF14: 6 | FI14: 6 | FN14: 4 | FT14: 5 | FV14: 5 | GA14: 5 | GC14: 4 | GF14: 3 | GJ14: 8 | GL14: 4 | GO14: 6 | GS14: 5 | GW14: 4 | HF14: 6 | HJ14: 8 | HP14: 5 | HU14: 4 | HY14: 8 | IF14: 3 | II14: 4 | IK14: 6 | IM14: 6 | IP14: 4 | IR14: 4 | IW14: 4 | IX14: 3 | IY14: 5 | JD14: 4 | JG14: 7 | JI14: 5 | JM14: 4 | JR14: 3 | JV14: 6 | KG14: 3 | KM14: 7 | KP14: 6 | KQ14: 4 | KZ14: 5 | LM14: 4 | LO14: 3 | LP14: 4 | LS14: 6 | LZ14: 7 | ML14: 5 | MO14: 6 | MR14: 4 | MU14: 3 | MW14: 4 | MX14: 5 | NC14: 5 | NE14: 5 | NF14: 6 | NM14: 6 | NP14: 5 | NQ14: 3 | NS14: 6 | NW14: 7 | NX14: 3 | OC14: 4 | OD14: 5 | OH14: 7 | OI14: 3 | OJ14: 5 | OQ14: 6 | OR14: 5 | OV14: 9 | PA14: 5 | PB14: 4 | PH14: 5 | PK14: 5 | PL14: 4 | PM14: 5 | PN14: 4 | PO14: 8 | PQ14: 8 | PZ14: 6 | QB14: 4 | QD14: 5 | QE14: 6 | QP14: 4 | QQ14: 5 | QW14: 6 | QY14: 5 | RE14: 4 | RI14: 4 | RK14: 5 | SD14: 10 | SF14: 6 | SH14: 6 | SI14: 5 | SN14: 7 | SP14: 4 | SQ14: 4 | ST14: 5 | SW14: 5 | SX14: 4 | TB14: 4 | TC14: 5 | TG14: 7 | TI14: 7 | TP14: 4 | TR14: 3 | UA14: 4 | UB14: 4 | UK14: 3 | UM14: 4 | UN14: 6 | UP14: 5 | UR14: 6 | UU14: 3 | UY14: 3 | VA14: 6 | VB14: 6 | VD14: 3 | VI14: 5 | VL14: 4 | VR14: 6 | WA14: 4 | WE14: 5 | WF14: 2 | WJ14: 6 | WL14: 6 | WO14: 5 | WR14: 5 | XC14: 9 | XD14: 6 | XE14: 4 | XF14: 4 | XH14: 4 | XJ14: 5 | XK14: 2 | XP14: 8 | XQ14: 5 | XX14: 6 | YA14: 3 | YH14: 5 | YL14: 3 | YP14: 5 | YT14: 6 | YW14: 4 | ZB14: 6 | ZG14: 5 | ZK14: 5 | ZM14: 4 | ZV14: 6 | AAA14: 3 | AAH14: 6 | AAO14: 3 | AAT14: 5 | AAU14: 5 | AAZ14: 4 | ABA14: 4 | ABF14: 5 | ABI14: 4 | ABJ14: 3 | ABK14: 4 | ABO14: 3 | ABQ14: 7 | ABS14: 4 | ABT14: 4 | ABY14: 5 | ACD14: 7 | ACE14: 4 | ACF14: 5 | ACH14: 5 | ACI14: 6 | ACQ14: 6 | ADB14: 5 | ADK14: 4 | ADN14: 4 | ADP14: 4 | ADU14: 4 | ADV14: 5 | ADZ14: 3 | AEB14: 5 | AEC14: 8 | AEJ14: 5 | AEK14: 5 | AEL14: 4 | AEN14: 7 | AEO14: 3 | AFB14: 4 | AFF14: 4 | AFG14: 5 | AFR14: 4 | AFV14: 5 | AGG14: 3 | AGN14: 7 | AGW14: 6 | AHF14: 4 | AHL14: 5 | AHP14: 5 | AHR14: 4 | AHV14: 5 | AHW14: 5 | AIB14: 4 | AIF14: 3 | AIH14: 4 | AIK14: 2 | AIO14: 4 | AIV14: 4 | AIX14: 4 | AIY14: 6 | AJH14: 4 | AJK14: 5 | AJO14: 5 | AJP14: 4 | AJT14: 5 | AJU14: 5 | AJV14: 5 | AJX14: 5 | AJY14: 3 | AJZ14: 7 | AKA14: 6 | AKN14: 9 | AKT14: 6 | AKV14: 3 | AKZ14: 4 | ALE14: 3 | ALF14: 5 | ALJ14: 6 | ALL14: 6
B15: Dolní Lhotka | D15: 5 | I15: 4 | J15: 7 | N15: 4 | O15: 3 | Q15: 4 | Z15: 6 | AH15: 7 | AJ15: 2 | AN15: 3 | AO15: 6 | AZ15: 3 | BG15: 6 | BK15: 6 | BM15: 5 | BR15: 9 | BS15: 4 | BT15: 4 | BY15: 7 | CA15: 6 | CF15: 5 | CH15: 5 | CQ15: 6 | CT15: 6 | CU15: 7 | CY15: 4 | DB15: 4 | DG15: 7 | DJ15: 4 | DN15: 5 | DR15: 4 | DW15: 5 | EA15: 3 | EG15: 5 | EI15: 3 | EL15: 4 | EM15: 6 | EP15: 2 | ES15: 5 | ET15: 4 | EV15: 4 | EY15: 5 | FA15: 6 | FC15: 3 | FD15: 5 | FH15: 5 | FK15: 6 | FN15: 5 | FO15: 4 | FQ15: 5 | FR15: 4 | FS15: 5 | FY15: 5 | GA15: 6 | GB15: 4 | GC15: 5 | GH15: 4 | GJ15: 9 | GM15: 8 | GO15: 7 | GQ15: 7 | GR15: 6 | GS15: 6 | GT15: 8 | GW15: 5 | GX15: 4 | GY15: 4 | GZ15: 3 | HE15: 7 | HH15: 5 | HR15: 4 | HT15: 4 | HU15: 5 | HX15: 7 | IA15: 4 | IB15: 6 | ID15: 5 | IF15: 4 | IG15: 5 | IK15: 7 | IM15: 7 | IP15: 5 | IR15: 5 | IS15: 7 | JF15: 6 | JO15: 4 | JQ15: 3 | JR15: 4 | KE15: 4 | KF15: 7 | KG15: 4 | KL15: 5 | LB15: 4 | LJ15: 4 | LK15: 4 | LN15: 6 | LU15: 3 | LX15: 5 | MA15: 5 | MC15: 7 | ME15: 5 | MI15: 5 | MJ15: 3 | MN15: 5 | MR15: 5 | MS15: 6 | MW15: 5 | MY15: 5 | NE15: 6 | NK15: 6 | NL15: 7 | NT15: 4 | NU15: 6 | NW15: 8 | NX15: 4 | OF15: 8 | OK15: 5 | OM15: 5 | OP15: 6 | OS15: 4 | PC15: 6 | PF15: 4 | PI15: 5 | PN15: 5 | PO15: 9 | PT15: 5 | PU15: 5 | PW15: 4 | PX15: 5 | QA15: 6 | QF15: 5 | QI15: 3 | QL15: 4 | QT15: 4 | QV15: 7 | QX15: 6 | RC15: 7 | RI15: 5 | RK15: 6 | RN15: 4 | RP15: 4 | RQ15: 9 | RX15: 7 | RY15: 5 | SA15: 5 | SK15: 4 | SN15: 8 | SQ15: 5 | SS15: 6 | SX15: 5 | TB15: 5 | TE15: 8 | TF15: 5 | TJ15: 3 | TO15: 9 | TQ15: 5 | TU15: 3 | TV15: 5 | TY15: 6 | UA15: 5 | UB15: 5 | UC15: 4 | UE15: 3 | UI15: 6 | UR15: 7 | UT15: 5 | VF15: 4 | VI15: 6 | VJ15: 7 | VP15: 5 | VU15: 6 | VX15: 4 | WH15: 4 | WL15: 7 | WQ15: 7 | WU15: 2 | WV15: 6 | WW15: 6 | WZ15: 4 | XA15: 5 | XH15: 5 | XX15: 7 | YA15: 4 | YK15: 3 | YN15: 6 | YQ15: 5 | YT15: 7 | YX15: 5 | YZ15: 4 | ZC15: 4 | ZJ15: 5 | ZS15: 3 | ZX15: 5 | AAE15: 6 | AAL15: 4 | AAO15: 4 | AAR15: 4 | AAT15: 6 | AAU15: 6 | AAY15: 5 | ABA15: 5 | ABC15: 3 | ABG15: 5 | ABH15: 6 | ABJ15: 4 | ABU15: 3 | ABV15: 4 | ABW15: 4 | ACF15: 6 | ACO15: 4 | ACP15: 4 | ACR15: 4 | ACW15: 5 | ACZ15: 3 | ADA15: 4 | ADB15: 6 | ADE15: 5 | ADK15: 5 | ADL15: 4 | ADQ15: 4 | ADR15: 4 | ADV15: 6 | ADY15: 4 | AEC15: 9 | AED15: 7 | AEE15: 5 | AEI15: 7 | AEK15: 6 | AEQ15: 3 | AEW15: 4 | AEY15: 5 | AEZ15: 3 | AFA15: 3 | AFE15: 5 | AFG15: 6 | AFK15: 7 | AFO15: 4 | AFP15: 3 | AFQ15: 3 | AFS15: 7 | AFX15: 4 | AGA15: 3 | AGD15: 4 | AGF15: 4 | AGK15: 7 | AGM15: 5 | AGQ15: 5 | AGR15: 2 | AGT15: 4 | AHC15: 5 | AHJ15: 3 | AHL15: 6 | AHN15: 5 | AHQ15: 6 | AHS15: 3 | AHT15: 5 | AHU15: 5 | AIA15: 6 | AIB15: 5 | AID15: 4 | AIG15: 6 | AIM15: 5 | AIR15: 5 | AIS15: 4 | AIU15: 9 | AIZ15: 4 | AJA15: 7 | AJE15: 4 | AJI15: 6 | AJT15: 6 | AJW15: 4 | AKD15: 5 | AKI15: 4 | AKK15: 5 | AKN15: 10 | AKT15: 7 | ALC15: 4 | ALD15: 7 | ALI15: 7
B16: Záluží | D16: 6 | E16: 3 | N16: 5 | U16: 6 | X16: 4 | Y16: 4 | AA16: 5 | AE16: 5 | AL16: 5 | AM16: 5 | AR16: 5 | AX16: 6 | AY16: 3 | BB16: 5 | BD16: 8 | BJ16: 4 | BL16: 5 | BM16: 6 | BS16: 5 | BT16: 5 | BU16: 5 | BW16: 5 | BX16: 4 | CB16: 4 | CC16: 6 | CG16: 7 | CK16: 3 | CN16: 3 | CO16: 6 | CS16: 8 | CX16: 4 | CZ16: 7 | DH16: 3 | DK16: 6 | DM16: 5 | DP16: 5 | DW16: 6 | EC16: 5 | EK16: 8 | EP16: 3 | EQ16: 6 | ER16: 4 | EV16: 5 | EW16: 7 | EZ16: 4 | FC16: 4 | FJ16: 4 | FO16: 5 | FP16: 5 | FV16: 6 | GB16: 5 | GD16: 4 | GF16: 4 | GH16: 5 | GI16: 4 | GQ16: 8 | HN16: 7 | HR16: 5 | HV16: 5 | HZ16: 3 | IB16: 7 | IG16: 6 | IH16: 3 | IL16: 3 | IM16: 8 | IR16: 6 | IU16: 4 | IV16: 3 | IX16: 4 | JA16: 5 | JC16: 5 | JD16: 5 | JI16: 6 | JJ16: 5 | JK16: 3 | JL16: 7 | JS16: 4 | JU16: 5 | JV16: 7 | JZ16: 6 | KE16: 5 | KJ16: 4 | KK16: 7 | KO16: 5 | KT16: 5 | LE16: 8 | LF16: 8 | LI16: 6 | LM16: 5 | LO16: 4 | LP16: 5 | LQ16: 4 | LT16: 5 | LU16: 4 | LW16: 7 | MA16: 6 | ME16: 6 | MG16: 4 | ML16: 6 | MM16: 6 | MR16: 6 | MU16: 4 | NB16: 4 | NC16: 6 | NH16: 3 | NI16: 6 | NK16: 7 | NL16: 8 | NN16: 5 | NO16: 4 | NY16: 5 | OD16: 6 | OF16: 9 | OH16: 8 | OM16: 6 | OR16: 6 | OW16: 4 | PB16: 5 | PF16: 5 | PJ16: 3 | PR16: 4 | PS16: 6 | PV16: 7 | PY16: 4 | QI16: 4 | QN16: 4 | QP16: 5 | QQ16: 6 | QR16: 4 | QS16: 4 | RC16: 8 | RE16: 5 | RH16: 5 | RR16: 4 | RS16: 5 | RT16: 5 | RU16: 7 | RY16: 6 | RZ16: 4 | SC16: 3 | SF16: 7 | SH16: 7 | SO16: 4 | SQ16: 6 | SX16: 6 | TJ16: 4 | TK16: 5 | TL16: 6 | TO16: 10 | TQ16: 6 | TS16: 3 | TU16: 4 | TW16: 4 | UA16: 6 | UC16: 5 | UE16: 4 | UK16: 4 | UN16: 7 | UP16: 6 | UQ16: 6 | UR16: 8 | UV16: 4 | UW16: 6 | VD16: 4 | VN16: 7 | VO16: 5 | VY16: 4 | WA16: 5 | WF16: 3 | WJ16: 7 | WO16: 6 | WT16: 6 | WU16: 3 | XB16: 6 | XH16: 6 | XL16: 6 | XS16: 5 | XV16: 4 | XW16: 4 | XY16: 4 | YC16: 6 | YH16: 6 | YI16: 3 | YM16: 5 | YS16: 5 | YV16: 4 | YX16: 6 | ZB16: 7 | ZD16: 6 | ZE16: 7 | ZF16: 3 | ZH16: 5 | ZP16: 3 | ZR16: 9 | ZU16: 5 | ZW16: 3 | ZY16: 5 | AAA16: 4 | AAD16: 7 | AAH16: 7 | AAJ16: 6 | AAN16: 5 | AAP16: 5 | AAT16: 7 | AAU16: 7 | AAZ16: 5 | ABA16: 6 | ABJ16: 5 | ABR16: 7 | ABS16: 5 | ABT16: 5 | ABY16: 6 | ACA16: 3 | ACC16: 7 | ACD16: 8 | ACM16: 4 | ACR16: 5 | ACU16: 4 | ACX16: 5 | ADA16: 5 | ADC16: 4 | ADD16: 5 | ADI16: 5 | ADM16: 5 | ADT16: 5 | ADV16: 7 | ADX16: 7 | AED16: 8 | AEE16: 6 | AEF16: 5 | AEH16: 4 | AEL16: 5 | AEN16: 8 | AEO16: 4 | AEQ16: 4 | AER16: 5 | AEW16: 5 | AEX16: 5 | AEZ16: 4 | AFB16: 5 | AFE16: 6 | AFI16: 5 | AFM16: 4 | AFN16: 4 | AFQ16: 4 | AFS16: 8 | AFV16: 6 | AFX16: 5 | AFY16: 5 | AGI16: 7 | AGJ16: 4 | AGK16: 8 | AGR16: 3 | AGV16: 5 | AGX16: 5 | AGY16: 5 | AHA16: 6 | AHB16: 3 | AHC16: 6 | AHD16: 5 | AHF16: 5 | AHG16: 3 | AHH16: 3 | AHI16: 4 | AHJ16: 4 | AHK16: 4 | AHM16: 5 | AHO16: 8 | AHQ16: 7 | AHR16: 5 | AHX16: 4 | AHY16: 3 | AID16: 5 | AIE16: 4 | AIH16: 5 | AIN16: 4 | AIP16: 5 | AIR16: 6 | AIX16: 5 | AJF16: 4 | AJG16: 6 | AJJ16: 5 | AJN16: 6 | AJP16: 5 | AJW16: 5 | AJY16: 4 | AKH16: 6 | AKJ16: 7 | AKS16: 5 | AKV16: 4 | ALA16: 5 | ALD16: 8 | ALL16: 7
B17: Slavče | G17: 4 | H17: 8 | J17: 5 | V17: 4 | Y17: 3 | AD17: 4 | AE17: 4 | AG17: 4 | AL17: 4 | AQ17: 5 | AS17: 6 | AT17: 3 | AU17: 6 | AX17: 5 | AY17: 2 | BC17: 5 | BD17: 6 | BJ17: 3 | BR17: 7 | BW17: 4 | CC17: 5 | CF17: 3 | CG17: 6 | CL17: 4 | CM17: 4 | CP17: 4 | CQ17: 5 | CV17: 6 | CW17: 3 | CX17: 2 | CZ17: 5 | DB17: 3 | DC17: 5 | DE17: 4 | DG17: 6 | DH17: 2 | DQ17: 4 | DX17: 5 | DY17: 5 | EB17: 4 | EC17: 4 | ED17: 4 | EF17: 4 | EG17: 3 | EJ17: 3 | EK17: 6 | EQ17: 5 | FC17: 2 | FF17: 5 | FK17: 5 | FU17: 5 | FV17: 4 | GH17: 3 | GJ17: 7 | GO17: 5 | GQ17: 6 | GV17: 6 | HA17: 4 | HB17: 6 | HE17: 6 | HI17: 5 | HK17: 4 | HM17: 4 | HN17: 6 | HO17: 6 | HS17: 5 | HW17: 3 | HX17: 6 | HY17: 7 | IB17: 5 | IC17: 4 | IQ17: 5 | JC17: 4 | JI17: 4 | JJ17: 4 | JK17: 2 | JL17: 6 | JU17: 4 | JX17: 3 | JY17: 5 | KA17: 5 | KC17: 4 | KD17: 6 | KF17: 6 | KH17: 5 | KP17: 5 | KW17: 3 | KY17: 4 | LC17: 3 | LE17: 7 | LG17: 4 | LI17: 5 | LL17: 5 | LQ17: 3 | LX17: 4 | MD17: 5 | MM17: 5 | MO17: 5 | MP17: 3 | MS17: 5 | MT17: 5 | NA17: 3 | ND17: 4 | NE17: 4 | NF17: 5 | NI17: 5 | NJ17: 5 | NL17: 6 | NO17: 3 | NP17: 4 | NS17: 5 | NW17: 6 | OA17: 5 | OB17: 6 | OE17: 3 | OJ17: 4 | OL17: 5 | OQ17: 5 | OR17: 4 | OV17: 8 | OX17: 4 | PC17: 5 | PD17: 5 | PH17: 4 | PL17: 3 | PO17: 7 | PP17: 6 | PQ17: 7 | PS17: 5 | PZ17: 5 | QA17: 5 | QG17: 5 | QU17: 5 | QY17: 4 | QZ17: 4 | RB17: 10 | RC17: 6 | RD17: 4 | RE17: 3 | RM17: 5 | RO17: 5 | RS17: 4 | RX17: 6 | RZ17: 3 | SG17: 5 | SL17: 6 | SN17: 6 | SY17: 6 | TA17: 5 | TB17: 3 | TG17: 6 | TM17: 6 | TO17: 8 | UA17: 3 | UD17: 3 | UL17: 5 | UM17: 3 | UN17: 5 | UP17: 4 | UQ17: 5 | UV17: 3 | UW17: 5 | UY17: 2 | VE17: 6 | VG17: 5 | VH17: 5 | VO17: 4 | VQ17: 5 | VU17: 5 | WI17: 4 | WL17: 5 | WM17: 4 | WN17: 5 | WR17: 4 | WT17: 5 | XB17: 5 | XC17: 8 | XH17: 3 | XJ17: 4 | XL17: 5 | XP17: 7 | XR17: 5 | XY17: 3 | YH17: 4 | YK17: 2 | YN17: 5 | YO17: 3 | YR17: 3 | YV17: 3 | ZA17: 5 | ZH17: 4 | ZL17: 7 | ZP17: 2 | ZQ17: 6 | AAC17: 4 | AAM17: 5 | AAQ17: 6 | AAR17: 3 | AAU17: 4 | AAZ17: 3 | ABD17: 6 | ABG17: 4 | ABN17: 5 | ABO17: 2 | ABQ17: 6 | ABS17: 3 | ABT17: 3 | ABY17: 4 | ACB17: 4 | ACC17: 6 | ACH17: 4 | ACQ17: 5 | ACS17: 5 | ADC17: 3 | ADE17: 4 | ADF17: 5 | ADN17: 3 | ADP17: 3 | ADS17: 4 | AEC17: 7 | AEF17: 4 | AER17: 4 | AEU17: 4 | AEW17: 3 | AFE17: 4 | AFF17: 3 | AFG17: 4 | AFO17: 3 | AFT17: 5 | AFV17: 4 | AFZ17: 5 | AGD17: 3 | AGH17: 4 | AGK17: 6 | AGM17: 4 | AGN17: 6 | AGW17: 5 | AHE17: 6 | AHG17: 2 | AHO17: 7 | AHP17: 4 | AHQ17: 5 | AHT17: 4 | AHV17: 4 | AHY17: 2 | AHZ17: 6 | AID17: 3 | AIH17: 3 | AIL17: 3 | AIP17: 4 | AIT17: 3 | AIV17: 3 | AJG17: 5 | AJH17: 3 | AJI17: 5 | AJJ17: 4 | AJK17: 4 | AJM17: 5 | AJN17: 5 | AJO17: 4 | AJV17: 4 | AJW17: 3 | AJX17: 4 | AJZ17: 6 | AKM17: 5 | AKP17: 5 | AKT17: 5 | AKW17: 5 | AKX17: 3 | ALC17: 3 | ALD17: 6 | ALH17: 4 | ALJ17: 5 | ALL17: 5 | ALN17: 5
B18: Lniště | G18: 3 | H18: 6 | M18: 3 | Q18: 3 | Z18: 4 | AA18: 4 | AD18: 3 | AG18: 3 | AK18: 4 | AN18: 2 | AO18: 4 | AP18: 5 | AQ18: 4 | AV18: 3 | BA18: 4 | BD18: 5 | BH18: 3 | BJ18: 2 | BL18: 2 | BM18: 3 | BY18: 6 | CD18: 4 | CE18: 4 | CV18: 5 | DE18: 3 | DG18: 5 | DJ18: 3 | DR18: 3 | EE18: 5 | EH18: 4 | EQ18: 4 | ET18: 3 | FA18: 4 | FE18: 4 | FJ18: 3 | FM18: 3 | FN18: 3 | FT18: 4 | FW18: 5 | GB18: 3 | GE18: 5 | GG18: 7 | GI18: 3 | GJ18: 6 | GM18: 6 | GO18: 3 | GP18: 4 | GU18: 6 | GY18: 3 | HB18: 5 | HF18: 5 | HO18: 5 | HP18: 3 | HY18: 5 | IB18: 4 | IE18: 5 | IJ18: 5 | IK18: 5 | IP18: 3 | IT18: 5 | IY18: 4 | JA18: 4 | JB18: 6 | JD18: 3 | JT18: 4 | JV18: 4 | JZ18: 5 | KB18: 5 | KF18: 5 | KJ18: 3 | KL18: 4 | KN18: 5 | KO18: 4 | KP18: 4 | KS18: 3 | KU18: 3 | LH18: 5 | LI18: 3 | LN18: 5 | LT18: 4 | LW18: 6 | LY18: 4 | LZ18: 5 | MB18: 4 | MC18: 6 | MI18: 3 | MM18: 4 | MO18: 3 | MQ18: 3 | MT18: 4 | MW18: 3 | NJ18: 4 | NK18: 5 | NL18: 5 | NR18: 2 | NW18: 4 | NX18: 2 | NY18: 4 | NZ18: 8 | OF18: 6 | OL18: 4 | OP18: 5 | OT18: 7 | OU18: 5 | OV18: 6 | OY18: 6 | OZ18: 3 | PK18: 3 | PN18: 3 | PQ18: 5 | PX18: 3 | PY18: 3 | QC18: 3 | QD18: 4 | QE18: 5 | QF18: 4 | QH18: 5 | QJ18: 3 | QK18: 5 | QP18: 3 | QQ18: 4 | QS18: 2 | QV18: 5 | QX18: 5 | RB18: 8 | RJ18: 6 | RO18: 4 | RP18: 3 | RQ18: 7 | SA18: 4 | SD18: 9 | SF18: 5 | SH18: 5 | SN18: 5 | SO18: 2 | SX18: 3 | SY18: 4 | SZ18: 4 | TF18: 4 | TG18: 5 | TH18: 4 | TL18: 5 | TN18: 4 | TO18: 6 | TR18: 2 | TT18: 4 | TV18: 4 | TX18: 3 | TY18: 5 | UE18: 2 | UF18: 4 | UL18: 4 | UO18: 3 | UQ18: 3 | VB18: 5 | VJ18: 6 | VL18: 3 | VS18: 7 | VZ18: 6 | WC18: 5 | WD18: 5 | WG18: 4 | WJ18: 5 | WL18: 4 | WO18: 4 | WP18: 4 | WW18: 4 | XF18: 3 | XG18: 4 | XH18: 2 | XI18: 7 | XQ18: 3 | XT18: 3 | XV18: 3 | XX18: 4 | XZ18: 3 | YC18: 5 | YF18: 4 | YM18: 4 | YP18: 4 | YS18: 4 | YT18: 5 | YY18: 3 | ZD18: 5 | ZE18: 5 | ZN18: 5 | ZR18: 7 | ZV18: 5 | ZX18: 3 | ZZ18: 6 | AAB18: 6 | AAD18: 5 | AAE18: 4 | AAH18: 5 | AAJ18: 5 | AAY18: 4 | ABC18: 2 | ABH18: 5 | ABR18: 5 | ABT18: 2 | ABZ18: 6 | ACC18: 5 | ACJ18: 5 | ACL18: 3 | ACN18: 4 | ACW18: 3 | ADG18: 6 | ADH18: 3 | ADI18: 4 | ADJ18: 5 | ADV18: 4 | ADX18: 5 | AEB18: 4 | AEG18: 8 | AEJ18: 4 | AEK18: 4 | AEN18: 6 | AEO18: 2 | AEP18: 5 | AER18: 3 | AET18: 7 | AFA18: 2 | AFB18: 2 | AFE18: 3 | AFJ18: 5 | AFR18: 3 | AFV18: 3 | AGE18: 3 | AGH18: 3 | AGK18: 5 | AGL18: 2 | AGQ18: 4 | AGU18: 3 | AHA18: 5 | AHD18: 3 | AHF18: 2 | AHJ18: 2 | AHO18: 6 | AHU18: 4 | AIC18: 6 | AIU18: 8 | AIW18: 4 | AIY18: 4 | AJA18: 6 | AJC18: 6 | AJJ18: 3 | AJL18: 4 | AJN18: 4 | AKH18: 4 | AKL18: 5 | AKM18: 4 | AKQ18: 4 | AKT18: 4 | AKU18: 2 | ALA18: 3
B19: Chvalkov | E19: 4 | H19: 9 | L19: 3 | M19: 5 | Y19: 5 | AA19: 6 | AF19: 3 | AJ19: 3 | AQ19: 6 | AW19: 4 | AX19: 7 | AZ19: 4 | BI19: 4 | BJ19: 5 | BK19: 7 | BL19: 6 | BN19: 4 | BT19: 6 | BU19: 6 | BX19: 5 | CE19: 5 | CF19: 6 | CT19: 7 | DG19: 8 | DI19: 8 | DL19: 4 | DN19: 6 | DV19: 6 | EA19: 4 | EC19: 6 | ED19: 5 | EJ19: 4 | EK19: 9 | EN19: 5 | EP19: 4 | ET19: 5 | EV19: 6 | EY19: 6 | EZ19: 5 | FC19: 5 | FG19: 4 | FK19: 7 | FM19: 4 | FS19: 6 | FT19: 6 | FU19: 6 | FV19: 7 | FW19: 6 | FX19: 4 | FY19: 6 | GD19: 5 | GE19: 6 | GI19: 5 | GJ19: 10 | GW19: 6 | HC19: 5 | HD19: 3 | HE19: 8 | HJ19: 9 | HK19: 5 | HO19: 7 | HP19: 6 | HU19: 6 | HV19: 6 | HW19: 4 | HX19: 8 | IB19: 8 | IC19: 5 | ID19: 6 | IF19: 5 | IG19: 7 | IH19: 4 | IK19: 8 | IQ19: 6 | IV19: 4 | IY19: 6 | IZ19: 8 | JA19: 6 | JE19: 3 | JH19: 5 | JM19: 5 | JN19: 6 | JP19: 5 | JT19: 5 | JU19: 6 | JW19: 7 | JX19: 4 | JY19: 6 | KC19: 5 | KO19: 6 | KQ19: 5 | KS19: 5 | KT19: 6 | KU19: 4 | LE19: 9 | LK19: 5 | LM19: 6 | LN19: 7 | LQ19: 5 | LR19: 4 | LY19: 6 | LZ19: 8 | MA19: 7 | MI19: 6 | MK19: 6 | ML19: 7 | MP19: 4 | MS19: 7 | MV19: 3 | MX19: 6 | NA19: 4 | NC19: 7 | NI19: 7 | NN19: 6 | NO19: 5 | NR19: 3 | NT19: 5 | OF19: 10 | OG19: 4 | OI19: 4 | OJ19: 6 | OK19: 6 | OT19: 9 | OU19: 7 | PA19: 6 | PB19: 6 | PC19: 7 | PE19: 4 | PG19: 4 | PH19: 6 | PQ19: 9 | PU19: 6 | PW19: 5 | QG19: 6 | QH19: 6 | QU19: 6 | QW19: 7 | RA19: 3 | RD19: 5 | RG19: 6 | RS19: 6 | SC19: 4 | SK19: 5 | ST19: 6 | TB19: 6 | TC19: 6 | TE19: 9 | TI19: 8 | TQ19: 7 | TS19: 4 | TX19: 4 | UT19: 6 | UV19: 5 | VA19: 7 | VF19: 5 | VG19: 6 | VM19: 6 | VN19: 8 | VP19: 6 | VR19: 7 | VW19: 4 | WA19: 6 | WJ19: 8 | WN19: 6 | WU19: 4 | XD19: 7 | XG19: 6 | XI19: 8 | XK19: 3 | XL19: 7 | XM19: 4 | XS19: 6 | XT19: 4 | XX19: 8 | YD19: 6 | YP19: 6 | YR19: 4 | YZ19: 5 | ZE19: 8 | ZJ19: 6 | ZM19: 5 | ZO19: 5 | ZQ19: 7 | ZS19: 4 | ZY19: 6 | AAA19: 5 | AAB19: 7 | AAC19: 5 | AAE19: 7 | AAG19: 3 | AAK19: 6 | AAQ19: 7 | AAS19: 3 | AAT19: 8 | AAU19: 8 | ABA19: 7 | ABF19: 6 | ABG19: 6 | ABI19: 5 | ABK19: 5 | ABU19: 4 | ABW19: 5 | ABY19: 7 | ACC19: 8 | ACK19: 4 | ACN19: 5 | ACS19: 6 | ADL19: 5 | ADM19: 6 | ADN19: 5 | ADR19: 5 | ADT19: 6 | ADX19: 8 | ADZ19: 4 | AEC19: 10 | AEE19: 7 | AEJ19: 6 | AEL19: 6 | AEM19: 4 | AER19: 6 | AET19: 8 | AEV19: 3 | AEZ19: 5 | AFB19: 6 | AFH19: 6 | AFJ19: 6 | AFX19: 6 | AGA19: 4 | AGD19: 5 | AGE19: 4 | AGG19: 4 | AGH19: 5 | AGL19: 3 | AGU19: 5 | AGV19: 6 | AGX19: 6 | AGZ19: 5 | AHB19: 4 | AHO19: 9 | AHP19: 6 | AIC19: 7 | AIF19: 4 | AII19: 4 | AIJ19: 3 | AIP19: 6 | AIQ19: 4 | AJC19: 8 | AJD19: 5 | AJJ19: 6 | AJK19: 6 | AJM19: 6 | AJS19: 4 | AJT19: 7 | AJV19: 6 | AKA19: 7 | AKC19: 4 | AKD19: 6 | AKF19: 5 | AKL19: 6 | AKT19: 8 | AKU19: 3 | AKY19: 5 | ALG19: 4 | ALK19: 4 | ALN19: 6
B20: Čížkrajice | C20: 4 | D20: 7 | E20: 5 | L20: 4 | M20: 6 | O20: 4 | Q20: 5 | R20: 4 | T20: 4 | Y20: 6 | AG20: 5 | AK20: 5 | AN20: 4 | AQ20: 7 | AS20: 8 | AT20: 4 | AW20: 5 | AX20: 8 | AZ20: 5 | BB20: 6 | BE20: 5 | BH20: 5 | BK20: 8 | BL20: 7 | BP20: 5 | BQ20: 5 | BS20: 6 | BU20: 7 | BX20: 6 | CD20: 5 | CF20: 7 | CJ20: 3 | CM20: 5 | CN20: 4 | CW20: 4 | CY20: 5 | DB20: 5 | DC20: 6 | DD20: 4 | DP20: 6 | DQ20: 6 | DV20: 7 | DZ20: 4 | EF20: 5 | EI20: 4 | EM20: 7 | EO20: 4 | EP20: 5 | EQ20: 7 | EX20: 5 | EZ20: 6 | FA20: 7 | FB20: 5 | FD20: 6 | FG20: 5 | FH20: 6 | FI20: 7 | FJ20: 5 | FN20: 6 | FP20: 6 | FQ20: 6 | FY20: 7 | FZ20: 5 | GE20: 7 | GJ20: 11 | GM20: 9 | GQ20: 9 | GR20: 7 | GW20: 7 | GX20: 5 | GY20: 5 | HA20: 5 | HB20: 7 | HH20: 6 | HJ20: 10 | HL20: 5 | HM20: 5 | HU20: 7 | HW20: 5 | HZ20: 4 | IC20: 6 | IE20: 7 | IR20: 7 | JA20: 7 | JC20: 6 | JE20: 4 | JG20: 8 | JJ20: 6 | JK20: 4 | JN20: 7 | JP20: 6 | JW20: 8 | JX20: 5 | JY20: 7 | KD20: 7 | KJ20: 5 | KL20: 6 | KN20: 6 | KQ20: 6 | KU20: 5 | KX20: 4 | LC20: 4 | LJ20: 5 | LK20: 6 | LN20: 8 | LO20: 5 | LR20: 5 | LV20: 4 | MD20: 6 | ME20: 7 | MF20: 6 | MJ20: 4 | ML20: 8 | MP20: 5 | MV20: 4 | MW20: 6 | NA20: 5 | NC20: 8 | ND20: 5 | NG20: 4 | NH20: 4 | NI20: 8 | NO20: 6 | NQ20: 4 | NR20: 4 | NS20: 7 | NU20: 7 | OA20: 6 | OL20: 6 | OO20: 3 | OQ20: 7 | OR20: 7 | OZ20: 4 | PC20: 8 | PF20: 6 | PI20: 6 | PM20: 6 | PV20: 8 | QC20: 5 | QI20: 5 | QO20: 5 | QT20: 5 | RB20: 11 | RG20: 7 | RM20: 6 | RN20: 5 | RS20: 7 | RU20: 8 | RV20: 5 | SA20: 6 | SF20: 8 | SG20: 6 | SH20: 8 | SJ20: 4 | SL20: 7 | SO20: 5 | SQ20: 7 | SV20: 4 | SW20: 6 | TA20: 6 | TC20: 7 | TD20: 6 | TJ20: 5 | TL20: 7 | TN20: 5 | TP20: 5 | TQ20: 8 | TR20: 4 | TT20: 5 | TW20: 5 | UC20: 6 | UG20: 4 | UH20: 5 | UK20: 5 | UM20: 5 | UN20: 8 | UP20: 7 | UQ20: 7 | US20: 6 | UT20: 7 | UU20: 4 | UY20: 4 | UZ20: 4 | VG20: 7 | VJ20: 8 | VM20: 7 | VT20: 4 | VV20: 5 | VZ20: 7 | WI20: 5 | WN20: 7 | WQ20: 8 | WT20: 7 | WU20: 5 | WV20: 7 | WW20: 7 | WX20: 4 | WZ20: 5 | XD20: 8 | XE20: 5 | XF20: 5 | XG20: 7 | XI20: 9 | XN20: 5 | XO20: 7 | XQ20: 6 | XR20: 6 | XU20: 5 | XV20: 5 | XW20: 5 | XY20: 5 | XZ20: 4 | YD20: 7 | YE20: 5 | YF20: 5 | YG20: 4 | YL20: 4 | YO20: 4 | YR20: 5 | YS20: 6 | YU20: 5 | YW20: 5 | YZ20: 6 | ZE20: 9 | ZF20: 4 | ZI20: 4 | ZK20: 6 | ZO20: 6 | ZP20: 4 | ZR20: 10 | ZT20: 4 | ZW20: 4 | ZX20: 6 | ZY20: 7 | AAG20: 4 | AAR20: 5 | AAS20: 4 | AAW20: 6 | ABB20: 5 | ABD20: 7 | ABE20: 4 | ABG20: 7 | ABJ20: 6 | ABO20: 4 | ABX20: 6 | ACA20: 4 | ACB20: 5 | ACE20: 5 | ACG20: 7 | ACL20: 4 | ACY20: 4 | ACZ20: 4 | ADA20: 6 | ADD20: 6 | ADG20: 7 | ADH20: 5 | ADO20: 4 | ADP20: 5 | ADQ20: 5 | ADS20: 5 | ADT20: 7 | ADU20: 5 | ADW20: 6 | AEC20: 11 | AEH20: 5 | AEM20: 5 | AEO20: 5 | AEQ20: 5 | AER20: 7 | AES20: 3 | AET20: 9 | AEV20: 4 | AEX20: 6 | AFA20: 4 | AFF20: 5 | AFO20: 5 | AFP20: 4 | AFQ20: 5 | AFR20: 5 | AFS20: 9 | AFU20: 3 | AFX20: 7 | AGA20: 5 | AGB20: 5 | AGC20: 3 | AGI20: 8 | AGJ20: 5 | AGL20: 4 | AGM20: 6 | AGN20: 8 | AGX20: 7 | AGY20: 6 | AHF20: 6 | AHG20: 4 | AHH20: 4 | AHI20: 5 | AHJ20: 5 | AHQ20: 8 | AHS20: 4 | AHZ20: 7 | AIA20: 7 | AIB20: 6 | AID20: 6 | AIH20: 6 | AII20: 5 | AIK20: 3 | AIL20: 4 | AIQ20: 5 | AIY20: 7 | AJC20: 9 | AJJ20: 7 | AJK20: 7 | AJO20: 6 | AJQ20: 5 | AJU20: 6 | AJV20: 7 | AJX20: 6 | AKE20: 5 | AKF20: 6 | AKL20: 7 | AKM20: 6 | AKN20: 11 | AKS20: 6 | AKU20: 4 | ALB20: 5 | ALD20: 9 | ALN20: 7
B21: Boršíkov | L21: 5 | M21: 7 | Q21: 6 | S21: 6 | T21: 5 | V21: 5 | W21: 5 | X21: 5 | Y21: 7 | AA21: 7 | AD21: 5 | AF21: 4 | AJ21: 4 | AL21: 6 | AM21: 6 | AT21: 5 | AV21: 4 | AY21: 4 | BC21: 7 | BD21: 9 | BG21: 7 | BT21: 7 | BX21: 7 | CF21: 8 | CJ21: 4 | CK21: 4 | CQ21: 7 | CR21: 6 | CZ21: 8 | DC21: 7 | DE21: 5 | DH21: 4 | DL21: 5 | DM21: 6 | DV21: 8 | DX21: 6 | DZ21: 5 | EO21: 5 | EP21: 6 | EQ21: 8 | ET21: 6 | EY21: 7 | EZ21: 7 | FE21: 5 | FK21: 8 | FL21: 5 | FR21: 5 | FU21: 7 | GB21: 6 | GF21: 5 | GH21: 6 | GM21: 10 | GN21: 6 | GT21: 9 | GV21: 7 | GW21: 8 | GZ21: 4 | HD21: 4 | HG21: 5 | HH21: 7 | HI21: 6 | HL21: 6 | HO21: 8 | HT21: 5 | HW21: 6 | IK21: 9 | IL21: 4 | IS21: 8 | IT21: 6 | IU21: 5 | JE21: 5 | JG21: 9 | JJ21: 7 | JK21: 5 | JL21: 8 | JM21: 6 | JN21: 8 | JQ21: 4 | JU21: 7 | JX21: 6 | KD21: 8 | KH21: 6 | KI21: 4 | KM21: 8 | KP21: 7 | KQ21: 7 | KV21: 4 | KW21: 4 | LB21: 5 | LD21: 5 | LH21: 6 | LO21: 6 | LQ21: 6 | LS21: 7 | MG21: 5 | MO21: 7 | MS21: 8 | MU21: 5 | MY21: 6 | MZ21: 5 | NA21: 6 | NB21: 5 | NG21: 5 | NO21: 7 | NX21: 5 | OE21: 4 | OH21: 9 | OO21: 4 | OR21: 8 | PB21: 7 | PC21: 9 | PJ21: 4 | PK21: 6 | PO21: 10 | PP21: 7 | PV21: 9 | PW21: 6 | PZ21: 7 | QH21: 7 | QX21: 7 | QZ21: 5 | RA21: 4 | RD21: 6 | RG21: 8 | RR21: 5 | RV21: 6 | RW21: 5 | SD21: 11 | SF21: 9 | SL21: 8 | SO21: 6 | SU21: 5 | SV21: 5 | TJ21: 6 | TM21: 7 | TP21: 6 | TS21: 5 | TU21: 5 | TW21: 6 | TZ21: 6 | UD21: 4 | UJ21: 4 | UO21: 4 | UX21: 4 | UY21: 5 | UZ21: 5 | VE21: 7 | VH21: 6 | VK21: 9 | VM21: 8 | VN21: 9 | VU21: 7 | VW21: 5 | VZ21: 8 | WD21: 6 | WF21: 4 | WH21: 5 | WI21: 6 | WJ21: 9 | WL21: 8 | WP21: 6 | WR21: 6 | WV21: 8 | XB21: 7 | XH21: 7 | XI21: 10 | XJ21: 6 | XK21: 4 | XM21: 5 | XP21: 9 | XR21: 7 | XT21: 5 | XU21: 6 | XV21: 6 | YA21: 5 | YB21: 6 | YD21: 8 | YI21: 4 | YK21: 4 | YN21: 7 | ZC21: 5 | ZD21: 7 | ZI21: 5 | ZN21: 6 | ZQ21: 8 | ZU21: 6 | ZW21: 5 | ZZ21: 8 | AAI21: 4 | AAP21: 6 | AAQ21: 8 | AAX21: 5 | AAY21: 6 | AAZ21: 6 | ABA21: 8 | ABC21: 4 | ABD21: 8 | ABG21: 8 | ABH21: 7 | ABL21: 5 | ABN21: 6 | ABO21: 5 | ABT21: 6 | ABX21: 7 | ACA21: 5 | ACE21: 6 | ACG21: 8 | ACI21: 7 | ACR21: 6 | ACT21: 5 | ACX21: 6 | ADI21: 6 | ADN21: 6 | ADP21: 6 | ADS21: 6 | ADT21: 8 | ADV21: 8 | ADY21: 5 | ADZ21: 5 | AEC21: 12 | AEH21: 6 | AEI21: 8 | AEJ21: 7 | AEK21: 7 | AEO21: 6 | AEQ21: 6 | AER21: 8 | AES21: 4 | AEV21: 5 | AFP21: 5 | AFT21: 6 | AFU21: 4 | AFW21: 5 | AFX21: 8 | AGC21: 4 | AGD21: 6 | AGJ21: 6 | AGR21: 4 | AGS21: 5 | AGU21: 6 | AGW21: 7 | AGX21: 8 | AHA21: 7 | AHE21: 7 | AHF21: 7 | AHI21: 6 | AHM21: 6 | AHO21: 10 | AHP21: 7 | AHU21: 6 | AHW21: 6 | AHX21: 5 | AHY21: 4 | AIA21: 8 | AIB21: 7 | AIF21: 5 | AII21: 6 | AIJ21: 4 | AIK21: 4 | AIT21: 4 | AIU21: 10 | AIX21: 6 | AIY21: 8 | AJB21: 5 | AJH21: 5 | AJI21: 7 | AJJ21: 8 | AJK21: 8 | AJP21: 6 | AJQ21: 6 | AJS21: 5 | AJT21: 8 | AJW21: 6 | AJX21: 7 | AKB21: 5 | AKC21: 5 | AKF21: 7 | AKG21: 4 | AKI21: 5 | AKK21: 6 | AKR21: 4 | AKX21: 4 | AKY21: 6 | ALB21: 6 | ALE21: 4 | ALG21: 5 | ALH21: 5 | ALJ21: 7
B23: Vzdálenost [km] | C23: 29 | D23: 30 | E23: 14 | F23: 27 | G23: 25 | H23: 35 | I23: 27 | J23: 28 | K23: 26 | L23: 15 | M23: 19 | N23: 26 | O23: 22 | P23: 28 | Q23: 21 | R23: 21 | S23: 28 | T23: 29 | U23: 30 | V23: 31 | W23: 31 | X23: 30 | Y23: 28 | Z23: 29 | AA23: 29 | AB23: 21 | AC23: 25 | AD23: 16 | AE23: 16 | AF23: 17 | AG23: 16 | AH23: 27 | AI23: 13 | AJ23: 17 | AK23: 29 | AL23: 30 | AM23: 29 | AN23: 19 | AO23: 30 | AP23: 30 | AQ23: 32 | AR23: 30 | AS23: 32 | AT23: 22 | AU23: 28 | AV23: 17 | AW23: 19 | AX23: 26 | AY23: 15 | AZ23: 26 | BA23: 21 | BB23: 19 | BC23: 30 | BD23: 34 | BE23: 30 | BF23: 25 | BG23: 32 | BH23: 29 | BI23: 30 | BJ23: 16 | BK23: 33 | BL23: 18 | BM23: 27 | BN23: 25 | BO23: 24 | BP23: 28 | BQ23: 24 | BR23: 26 | BS23: 26 | BT23: 28 | BU23: 29 | BV23: 25 | BW23: 29 | BX23: 29 | BY23: 30 | BZ23: 29 | CA23: 27 | CB23: 26 | CC23: 28 | CD23: 23 | CE23: 23 | CF23: 29 | CG23: 28 | CH23: 28 | CI23: 28 | CJ23: 13 | CK23: 23 | CL23: 27 | CM23: 29 | CN23: 27 | CO23: 28 | CP23: 28 | CQ23: 30 | CR23: 29 | CS23: 30 | CT23: 30 | CU23: 28 | CV23: 30 | CW23: 13 | CX23: 17 | CY23: 27 | CZ23: 30 | DA23: 26 | DB23: 26 | DC23: 28 | DD23: 29 | DE23: 20 | DF23: 26 | DG23: 26 | DH23: 15 | DI23: 32 | DJ23: 20 | DK23: 28 | DL23: 23 | DM23: 27 | DN23: 30 | DO23: 27 | DP23: 28 | DQ23: 19 | DR23: 22 | DS23: 25 | DT23: 25 | DU23: 28 | DV23: 32 | DW23: 27 | DX23: 31 | DY23: 29 | DZ23: 27 | EA23: 28 | EB23: 28 | EC23: 23 | ED23: 28 | EE23: 20 | EF23: 30 | EG23: 27 | EH23: 13 | EI23: 26 | EJ23: 20 | EK23: 32 | EL23: 25 | EM23: 34 | EN23: 26 | EO23: 21 | EP23: 16 | EQ23: 30 | ER23: 17 | ES23: 26 | ET23: 27 | EU23: 25 | EV23: 30 | EW23: 29 | EX23: 18 | EY23: 28 | EZ23: 29 | FA23: 26 | FB23: 29 | FC23: 17 | FD23: 29 | FE23: 24 | FF23: 32 | FG23: 28 | FH23: 28 | FI23: 35 | FJ23: 17 | FK23: 28 | FL23: 30 | FM23: 21 | FN23: 24 | FO23: 22 | FP23: 26 | FQ23: 31 | FR23: 22 | FS23: 29 | FT23: 27 | FU23: 31 | FV23: 27 | FW23: 33 | FX23: 31 | FY23: 29 | FZ23: 30 | GA23: 29 | GB23: 20 | GC23: 28 | GD23: 27 | GE23: 22 | GF23: 30 | GG23: 29 | GH23: 27 | GI23: 18 | GJ23: 32 | GK23: 25 | GL23: 27 | GM23: 35 | GN23: 30 | GO23: 20 | GP23: 25 | GQ23: 29 | GR23: 33 | GS23: 31 | GT23: 32 | GU23: 27 | GV23: 30 | GW23: 26 | GX23: 26 | GY23: 21 | GZ23: 26 | HA23: 27 | HB23: 30 | HC23: 24 | HD23: 15 | HE23: 31 | HF23: 28 | HG23: 32 | HH23: 28 | HI23: 30 | HJ23: 34 | HK23: 29 | HL23: 30 | HM23: 29 | HN23: 28 | HO23: 33 | HP23: 26 | HQ23: 26 | HR23: 29 | HS23: 29 | HT23: 26 | HU23: 28 | HV23: 30 | HW23: 28 | HX23: 34 | HY23: 27 | HZ23: 26 | IA23: 27 | IB23: 32 | IC23: 29 | ID23: 30 | IE23: 28 | IF23: 18 | IG23: 27 | IH23: 27 | II23: 28 | IJ23: 28 | IK23: 25 | IL23: 23 | IM23: 32 | IN23: 26 | IO23: 27 | IP23: 20 | IQ23: 31 | IR23: 29 | IS23: 34 | IT23: 25 | IU23: 30 | IV23: 27 | IW23: 26 | IX23: 23 | IY23: 31 | IZ23: 31 | JA23: 19 | JB23: 26 | JC23: 26 | JD23: 20 | JE23: 22 | JF23: 24 | JG23: 33 | JH23: 30 | JI23: 29 | JJ23: 30 | JK23: 14 | JL23: 31 | JM23: 28 | JN23: 29 | JO23: 28 | JP23: 32 | JQ23: 29 | JR23: 25 | JS23: 27 | JT23: 30 | JU23: 29 | JV23: 22 | JW23: 32 | JX23: 22 | JY23: 31 | JZ23: 28 | KA23: 27 | KB23: 27 | KC23: 29 | KD23: 32 | KE23: 25 | KF23: 29 | KG23: 29 | KH23: 32 | KI23: 23 | KJ23: 28 | KK23: 31 | KL23: 28 | KM23: 29 | KN23: 24 | KO23: 24 | KP23: 30 | KQ23: 26 | KR23: 25 | KS23: 17 | KT23: 28 | KU23: 16 | KV23: 18 | KW23: 16 | KX23: 29 | KY23: 29 | KZ23: 25 | LA23: 25 | LB23: 26 | LC23: 23 | LD23: 30 | LE23: 32 | LF23: 27 | LG23: 30 | LH23: 25 | LI23: 17 | LJ23: 26 | LK23: 30 | LL23: 27 | LM23: 31 | LN23: 32 | LO23: 19 | LP23: 23 | LQ23: 17 | LR23: 25 | LS23: 32 | LT23: 24 | LU23: 22 | LV23: 31 | LW23: 30 | LX23: 27 | LY23: 23 | LZ23: 31 | MA23: 29 | MB23: 26 | MC23: 29 | MD23: 30 | ME23: 32 | MF23: 33 | MG23: 24 | MH23: 27 | MI23: 30 | MJ23: 27 | MK23: 31 | ML23: 34 | MM23: 28 | MN23: 30 | MO23: 23 | MP23: 24 | MQ23: 14 | MR23: 29 | MS23: 33 | MT23: 26 | MU23: 28 | MV23: 19 | MW23: 21 | MX23: 32 | MY23: 34 | MZ23: 31 | NA23: 23 | NB23: 28 | NC23: 33 | ND23: 30 | NE23: 30 | NF23: 30 | NG23: 25 | NH23: 26 | NI23: 31 | NJ23: 29 | NK23: 23 | NL23: 28 | NM23: 28 | NN23: 24 | NO23: 24 | NP23: 27 | NQ23: 28 | NR23: 14 | NS23: 29 | NT23: 30 | NU23: 30 | NV23: 23 | NW23: 27 | NX23: 19 | NY23: 23 | NZ23: 26 | OA23: 26 | OB23: 28 | OC23: 28 | OD23: 29 | OE23: 13 | OF23: 31 | OG23: 30 | OH23: 30 | OI23: 29 | OJ23: 29 | OK23: 33 | OL23: 31 | OM23: 26 | ON23: 27 | OO23: 17 | OP23: 29 | OQ23: 33 | OR23: 29 | OS23: 27 | OT23: 34 | OU23: 32 | OV23: 31 | OW23: 27 | OX23: 28 | OY23: 28 | OZ23: 19 | PA23: 31 | PB23: 28 | PC23: 27 | PD23: 28 | PE23: 24 | PF23: 28 | PG23: 32 | PH23: 30 | PI23: 32 | PJ23: 28 | PK23: 24 | PL23: 22 | PM23: 33 | PN23: 26 | PO23: 29 | PP23: 30 | PQ23: 35 | PR23: 27 | PS23: 30 | PT23: 28 | PU23: 29 | PV23: 32 | PW23: 27 | PX23: 20 | PY23: 17 | PZ23: 31 | QA23: 29 | QB23: 29 | QC23: 19 | QD23: 25 | QE23: 27 | QF23: 27 | QG23: 26 | QH23: 31 | QI23: 26 | QJ23: 26 | QK23: 27 | QL23: 28 | QM23: 20 | QN23: 26 | QO23: 30 | QP23: 23 | QQ23: 26 | QR23: 22 | QS23: 15 | QT23: 28 | QU23: 29 | QV23: 28 | QW23: 29 | QX23: 36 | QY23: 27 | QZ23: 29 | RA23: 21 | RB23: 35 | RC23: 26 | RD23: 27 | RE23: 27 | RF23: 26 | RG23: 29 | RH23: 28 | RI23: 31 | RJ23: 30 | RK23: 29 | RL23: 25 | RM23: 29 | RN23: 28 | RO23: 29 | RP23: 28 | RQ23: 28 | RR23: 28 | RS23: 27 | RT23: 28 | RU23: 28 | RV23: 29 | RW23: 30 | RX23: 26 | RY23: 29 | RZ23: 26 | SA23: 27 | SB23: 20 | SC23: 17 | SD23: 36 | SE23: 20 | SF23: 31 | SG23: 30 | SH23: 30 | SI23: 29 | SJ23: 29 | SK23: 28 | SL23: 30 | SM23: 27 | SN23: 32 | SO23: 15 | SP23: 27 | SQ23: 28 | SR23: 26 | SS23: 27 | ST23: 31 | SU23: 30 | SV23: 29 | SW23: 24 | SX23: 24 | SY23: 18 | SZ23: 27 | TA23: 22 | TB23: 28 | TC23: 28 | TD23: 30 | TE23: 33 | TF23: 27 | TG23: 27 | TH23: 19 | TI23: 34 | TJ23: 22 | TK23: 28 | TL23: 31 | TM23: 32 | TN23: 31 | TO23: 33 | TP23: 28 | TQ23: 25 | TR23: 17 | TS23: 22 | TT23: 30 | TU23: 19 | TV23: 30 | TW23: 26 | TX23: 23 | TY23: 29 | TZ23: 31 | UA23: 25 | UB23: 28 | UC23: 25 | UD23: 24 | UE23: 17 | UF23: 26 | UG23: 25 | UH23: 30 | UI23: 28 | UJ23: 23 | UK23: 27 | UL23: 28 | UM23: 28 | UN23: 31 | UO23: 31 | UP23: 25 | UQ23: 30 | UR23: 30 | US23: 30 | UT23: 28 | UU23: 26 | UV23: 27 | UW23: 29 | UX23: 28 | UY23: 16 | UZ23: 27 | VA23: 28 | VB23: 25 | VC23: 12 | VD23: 17 | VE23: 30 | VF23: 29 | VG23: 29 | VH23: 28 | VI23: 28 | VJ23: 33 | VK23: 32 | VL23: 19 | VM23: 31 | VN23: 34 | VO23: 28 | VP23: 31 | VQ23: 28 | VR23: 32 | VS23: 29 | VT23: 28 | VU23: 28 | VV23: 21 | VW23: 28 | VX23: 25 | VY23: 28 | VZ23: 31 | WA23: 27 | WB23: 18 | WC23: 22 | WD23: 32 | WE23: 27 | WF23: 18 | WG23: 27 | WH23: 29 | WI23: 25 | WJ23: 33 | WK23: 26 | WL23: 29 | WM23: 24 | WN23: 30 | WO23: 31 | WP23: 22 | WQ23: 29 | WR23: 27 | WS23: 25 | WT23: 30 | WU23: 16 | WV23: 33 | WW23: 27 | WX23: 29 | WY23: 26 | WZ23: 29 | XA23: 27 | XB23: 28 | XC23: 32 | XD23: 30 | XE23: 26 | XF23: 22 | XG23: 29 | XH23: 19 | XI23: 33 | XJ23: 28 | XK23: 16 | XL23: 27 | XM23: 27 | XN23: 29 | XO23: 32 | XP23: 29 | XQ23: 19 | XR23: 30 | XS23: 30 | XT23: 16 | XU23: 31 | XV23: 21 | XW23: 23 | XX23: 33 | XY23: 14 | XZ23: 20 | YA23: 26 | YB23: 31 | YC23: 29 | YD23: 30 | YE23: 31 | YF23: 29 | YG23: 25 | YH23: 28 | YI23: 21 | YJ23: 24 | YK23: 17 | YL23: 26 | YM23: 26 | YN23: 33 | YO23: 16 | YP23: 26 | YQ23: 28 | YR23: 24 | YS23: 31 | YT23: 29 | YU23: 28 | YV23: 22 | YW23: 29 | YX23: 27 | YY23: 26 | YZ23: 27 | ZA23: 30 | ZB23: 31 | ZC23: 33 | ZD23: 31 | ZE23: 30 | ZF23: 22 | ZG23: 29 | ZH23: 26 | ZI23: 21 | ZJ23: 31 | ZK23: 34 | ZL23: 30 | ZM23: 28 | ZN23: 31 | ZO23: 28 | ZP23: 14 | ZQ23: 30 | ZR23: 36 | ZS23: 26 | ZT23: 29 | ZU23: 30 | ZV23: 28 | ZW23: 24 | ZX23: 23 | ZY23: 26 | ZZ23: 32 | AAA23: 28 | AAB23: 34 | AAC23: 30 | AAD23: 29 | AAE23: 30 | AAF23: 27 | AAG23: 23 | AAH23: 29 | AAI23: 23 | AAJ23: 29 | AAK23: 30 | AAL23: 26 | AAM23: 27 | AAN23: 28 | AAO23: 29 | AAP23: 29 | AAQ23: 30 | AAR23: 27 | AAS23: 15 | AAT23: 27 | AAU23: 30 | AAV23: 28 | AAW23: 32 | AAX23: 25 | AAY23: 28 | AAZ23: 18 | ABA23: 29 | ABB23: 30 | ABC23: 19 | ABD23: 30 | ABE23: 31 | ABF23: 31 | ABG23: 29 | ABH23: 31 | ABI23: 23 | ABJ23: 27 | ABK23: 27 | ABL23: 29 | ABM23: 26 | ABN23: 30 | ABO23: 16 | ABP23: 25 | ABQ23: 28 | ABR23: 30 | ABS23: 29 | ABT23: 19 | ABU23: 28 | ABV23: 21 | ABW23: 29 | ABX23: 28 | ABY23: 31 | ABZ23: 27 | ACA23: 24 | ACB23: 24 | ACC23: 32 | ACD23: 32 | ACE23: 18 | ACF23: 26 | ACG23: 32 | ACH23: 29 | ACI23: 35 | ACJ23: 15 | ACK23: 32 | ACL23: 20 | ACM23: 26 | ACN23: 30 | ACO23: 27 | ACP23: 29 | ACQ23: 29 | ACR23: 26 | ACS23: 30 | ACT23: 30 | ACU23: 28 | ACV23: 26 | ACW23: 19 | ACX23: 29 | ACY23: 21 | ACZ23: 27 | ADA23: 25 | ADB23: 28 | ADC23: 26 | ADD23: 29 | ADE23: 21 | ADF23: 29 | ADG23: 33 | ADH23: 31 | ADI23: 31 | ADJ23: 20 | ADK23: 27 | ADL23: 28 | ADM23: 30 | ADN23: 19 | ADO23: 30 | ADP23: 16 | ADQ23: 28 | ADR23: 29 | ADS23: 29 | ADT23: 30 | ADU23: 27 | ADV23: 27 | ADW23: 30 | ADX23: 33 | ADY23: 28 | ADZ23: 27 | AEA23: 28 | AEB23: 26 | AEC23: 33 | AED23: 29 | AEE23: 29 | AEF23: 26 | AEG23: 28 | AEH23: 27 | AEI23: 34 | AEJ23: 33 | AEK23: 27 | AEL23: 30 | AEM23: 22 | AEN23: 31 | AEO23: 18 | AEP23: 21 | AEQ23: 26 | AER23: 18 | AES23: 13 | AET23: 33 | AEU23: 29 | AEV23: 19 | AEW23: 16 | AEX23: 30 | AEY23: 28 | AEZ23: 29 | AFA23: 19 | AFB23: 19 | AFC23: 21 | AFD23: 27 | AFE23: 23 | AFF23: 22 | AFG23: 27 | AFH23: 30 | AFI23: 24 | AFJ23: 21 | AFK23: 29 | AFL23: 21 | AFM23: 29 | AFN23: 27 | AFO23: 20 | AFP23: 17 | AFQ23: 19 | AFR23: 28 | AFS23: 33 | AFT23: 29 | AFU23: 13 | AFV23: 28 | AFW23: 32 | AFX23: 28 | AFY23: 27 | AFZ23: 29 | AGA23: 26 | AGB23: 29 | AGC23: 17 | AGD23: 17 | AGE23: 17 | AGF23: 29 | AGG23: 23 | AGH23: 18 | AGI23: 33 | AGJ23: 26 | AGK23: 29 | AGL23: 14 | AGM23: 32 | AGN23: 30 | AGO23: 25 | AGP23: 23 | AGQ23: 27 | AGR23: 17 | AGS23: 29 | AGT23: 28 | AGU23: 28 | AGV23: 28 | AGW23: 29 | AGX23: 27 | AGY23: 30 | AGZ23: 31 | AHA23: 30 | AHB23: 27 | AHC23: 29 | AHD23: 21 | AHE23: 31 | AHF23: 18 | AHG23: 14 | AHH23: 27 | AHI23: 23 | AHJ23: 18 | AHK23: 28 | AHL23: 29 | AHM23: 28 | AHN23: 30 | AHO23: 31 | AHP23: 30 | AHQ23: 29 | AHR23: 29 | AHS23: 20 | AHT23: 28 | AHU23: 31 | AHV23: 27 | AHW23: 33 | AHX23: 27 | AHY23: 15 | AHZ23: 30 | AIA23: 29 | AIB23: 28 | AIC23: 33 | AID23: 27 | AIE23: 26 | AIF23: 27 | AIG23: 28 | AIH23: 26 | AII23: 22 | AIJ23: 28 | AIK23: 16 | AIL23: 28 | AIM23: 26 | AIN23: 26 | AIO23: 29 | AIP23: 29 | AIQ23: 29 | AIR23: 26 | AIS23: 26 | AIT23: 25 | AIU23: 35 | AIV23: 26 | AIW23: 17 | AIX23: 31 | AIY23: 30 | AIZ23: 26 | AJA23: 31 | AJB23: 31 | AJC23: 25 | AJD23: 31 | AJE23: 22 | AJF23: 27 | AJG23: 30 | AJH23: 19 | AJI23: 28 | AJJ23: 17 | AJK23: 29 | AJL23: 22 | AJM23: 32 | AJN23: 24 | AJO23: 28 | AJP23: 26 | AJQ23: 29 | AJR23: 27 | AJS23: 29 | AJT23: 31 | AJU23: 32 | AJV23: 28 | AJW23: 27 | AJX23: 29 | AJY23: 23 | AJZ23: 31 | AKA23: 31 | AKB23: 19 | AKC23: 23 | AKD23: 30 | AKE23: 29 | AKF23: 28 | AKG23: 24 | AKH23: 30 | AKI23: 28 | AKJ23: 30 | AKK23: 30 | AKL23: 24 | AKM23: 22 | AKN23: 35 | AKO23: 26 | AKP23: 27 | AKQ23: 21 | AKR23: 28 | AKS23: 30 | AKT23: 33 | AKU23: 14 | AKV23: 17 | AKW23: 28 | AKX23: 28 | AKY23: 27 | AKZ23: 18 | ALA23: 27 | ALB23: 27 | ALC23: 25 | ALD23: 28 | ALE23: 17 | ALF23: 27 | ALG23: 31 | ALH23: 30 | ALI23: 29 | ALJ23: 32 | ALK23: 24 | ALL23: 33 | ALM23: 27 | ALN23: 32
B24: Počet zastávek | C24: =SUM(IF(C4>=1,1,0),IF(C5>=1,1,0),IF(C6>=1,1,0),IF(C7>=1,1,0),IF(C8>=1,1,0),IF(C9>=1,1,0),IF(C10>=1,1,0),IF(C11>=1,1,0),IF(C12>=1,1,0),IF(C13>=1,1,0),IF(C14>=1,1,0),IF(C15>=1,1,0),IF(C16>=1,1,0),IF(C17>=1,1,0),IF(C18>=1,1,0),IF(C19>=1,1,0),IF(C20>=1,1,0),IF(C21>=1,1,0)) -> 4 | D24: =SUM(IF(D4>=1,1,0),IF(D5>=1,1,0),IF(D6>=1,1,0),IF(D7>=1,1,0),IF(D8>=1,1,0),IF(D9>=1,1,0),IF(D10>=1,1,0),IF(D11>=1,1,0),IF(D12>=1,1,0),IF(D13>=1,1,0),IF(D14>=1,1,0),IF(D15>=1,1,0),IF(D16>=1,1,0),IF(D17>=1,1,0),IF(D18>=1,1,0),IF(D19>=1,1,0),IF(D20>=1,1,0),IF(D21>=1,1,0)) -> 7 | E24: =SUM(IF(E4>=1,1,0),IF(E5>=1,1,0),IF(E6>=1,1,0),IF(E7>=1,1,0),IF(E8>=1,1,0),IF(E9>=1,1,0),IF(E10>=1,1,0),IF(E11>=1,1,0),IF(E12>=1,1,0),IF(E13>=1,1,0),IF(E14>=1,1,0),IF(E15>=1,1,0),IF(E16>=1,1,0),IF(E17>=1,1,0),IF(E18>=1,1,0),IF(E19>=1,1,0),IF(E20>=1,1,0),IF(E21>=1,1,0)) -> 5 | F24: =SUM(IF(F4>=1,1,0),IF(F5>=1,1,0),IF(F6>=1,1,0),IF(F7>=1,1,0),IF(F8>=1,1,0),IF(F9>=1,1,0),IF(F10>=1,1,0),IF(F11>=1,1,0),IF(F12>=1,1,0),IF(F13>=1,1,0),IF(F14>=1,1,0),IF(F15>=1,1,0),IF(F16>=1,1,0),IF(F17>=1,1,0),IF(F18>=1,1,0),IF(F19>=1,1,0),IF(F20>=1,1,0),IF(F21>=1,1,0)) -> 5 | G24: 5 | H24: 9 | I24: 4 | J24: 7 | K24: 5 | L24: 5 | M24: 7 | N24: 5 | O24: 4 | P24: 4 | Q24: 6 | R24: 4 | S24: 6 | T24: 5 | U24: 6 | V24: 5 | W24: 5 | X24: 5 | Y24: 7 | Z24: 6 | AA24: 7 | AB24: 4 | AC24: 4 | AD24: 5 | AE24: 5 | AF24: 4 | AG24: 5 | AH24: 7 | AI24: 4 | AJ24: 4 | AK24: 5 | AL24: 6 | AM24: 6 | AN24: 4 | AO24: 6 | AP24: 6 | AQ24: 7 | AR24: 5 | AS24: 8 | AT24: 5 | AU24: 7 | AV24: 4 | AW24: 5 | AX24: 8 | AY24: 4 | AZ24: 5 | BA24: 4 | BB24: 6 | BC24: 7 | BD24: 9 | BE24: 5 | BF24: 4 | BG24: 7 | BH24: 5 | BI24: 4 | BJ24: 5 | BK24: 8 | BL24: 7 | BM24: 6 | BN24: 4 | BO24: 5 | BP24: 5 | BQ24: 5 | BR24: =SUM(IF(BR4>=1,1,0),IF(BR5>=1,1,0),IF(BR6>=1,1,0),IF(BR7>=1,1,0),IF(BR8>=1,1,0),IF(BR9>=1,1,0),IF(BR10>=1,1,0),IF(BR11>=1,1,0),IF(BR12>=1,1,0),IF(BR13>=1,1,0),IF(BR14>=1,1,0),IF(BR15>=1,1,0),IF(BR16>=1,1,0),IF(BR17>=1,1,0),IF(BR18>=1,1,0),IF(BR19>=1,1,0),IF(BR20>=1,1,0),IF(BR21>=1,1,0)) -> 9 | BS24: 6 | BT24: 7 | BU24: 7 | BV24: 4 | BW24: 5 | BX24: 7 | BY24: 7 | BZ24: 4 | CA24: 6 | CB24: 4 | CC24: 6 | CD24: 5 | CE24: 5 | CF24: 8 | CG24: 7 | CH24: 5 | CI24: 6 | CJ24: 4 | CK24: 4 | CL24: 4 | CM24: 5 | CN24: 4 | CO24: 6 | CP24: 4 | CQ24: 7 | CR24: 6 | CS24: 8 | CT24: 7 | CU24: 7 | CV24: 7 | CW24: 4 | CX24: 4 | CY24: 5 | CZ24: 8 | DA24: 4 | DB24: 5 | DC24: 7 | DD24: 4 | DE24: 5 | DF24: 4 | DG24: 8 | DH24: 4 | DI24: 8 | DJ24: 4 | DK24: 6 | DL24: 5 | DM24: 6 | DN24: 6 | DO24: 6 | DP24: 6 | DQ24: 6 | DR24: 4 | DS24: 4 | DT24: 4 | DU24: 6 | DV24: 8 | DW24: 6 | DX24: 6 | DY24: 6 | DZ24: 5 | EA24: 4 | EB24: 4 | EC24: 6 | ED24: =SUM(IF(ED4>=1,1,0),IF(ED5>=1,1,0),IF(ED6>=1,1,0),IF(ED7>=1,1,0),IF(ED8>=1,1,0),IF(ED9>=1,1,0),IF(ED10>=1,1,0),IF(ED11>=1,1,0),IF(ED12>=1,1,0),IF(ED13>=1,1,0),IF(ED14>=1,1,0),IF(ED15>=1,1,0),IF(ED16>=1,1,0),IF(ED17>=1,1,0),IF(ED18>=1,1,0),IF(ED19>=1,1,0),IF(ED20>=1,1,0),IF(ED21>=1,1,0)) -> 5 | EE24: 5 | EF24: 5 | EG24: 5 | EH24: 5 | EI24: 4 | EJ24: 4 | EK24: 9 | EL24: 4 | EM24: 7 | EN24: 5 | EO24: 5 | EP24: 6 | EQ24: 8 | ER24: 4 | ES24: 5 | ET24: 6 | EU24: 4 | EV24: 6 | EW24: 7 | EX24: 5 | EY24: 7 | EZ24: 7 | FA24: 7 | FB24: 5 | FC24: 5 | FD24: 6 | FE24: 5 | FF24: 6 | FG24: 5 | FH24: 6 | FI24: 7 | FJ24: 5 | FK24: 8 | FL24: 5 | FM24: 4 | FN24: 6 | FO24: 5 | FP24: 6 | FQ24: 6 | FR24: 5 | FS24: 6 | FT24: 6 | FU24: 7 | FV24: 7 | FW24: 6 | FX24: 4 | FY24: 7 | FZ24: 5 | GA24: 6 | GB24: 6 | GC24: 5 | GD24: 5 | GE24: 7 | GF24: 5 | GG24: 7 | GH24: 6 | GI24: 5 | GJ24: 11 | GK24: 4 | GL24: 4 | GM24: 10 | GN24: 6 | GO24: 7 | GP24: =SUM(IF(GP4>=1,1,0),IF(GP5>=1,1,0),IF(GP6>=1,1,0),IF(GP7>=1,1,0),IF(GP8>=1,1,0),IF(GP9>=1,1,0),IF(GP10>=1,1,0),IF(GP11>=1,1,0),IF(GP12>=1,1,0),IF(GP13>=1,1,0),IF(GP14>=1,1,0),IF(GP15>=1,1,0),IF(GP16>=1,1,0),IF(GP17>=1,1,0),IF(GP18>=1,1,0),IF(GP19>=1,1,0),IF(GP20>=1,1,0),IF(GP21>=1,1,0)) -> 5 | GQ24: 9 | GR24: 7 | GS24: 6 | GT24: 9 | GU24: 6 | GV24: 7 | GW24: 8 | GX24: 5 | GY24: 5 | GZ24: 4 | HA24: 5 | HB24: 7 | HC24: 5 | HD24: 4 | HE24: 8 | HF24: 6 | HG24: 5 | HH24: 7 | HI24: 6 | HJ24: 10 | HK24: 5 | HL24: 6 | HM24: 5 | HN24: 7 | HO24: 8 | HP24: 6 | HQ24: 5 | HR24: 5 | HS24: 5 | HT24: 5 | HU24: 7 | HV24: 6 | HW24: 6 | HX24: 8 | HY24: 8 | HZ24: 4 | IA24: 4 | IB24: 8 | IC24: 6 | ID24: 6 | IE24: 7 | IF24: 5 | IG24: 7 | IH24: 4 | II24: 4 | IJ24: 5 | IK24: 9 | IL24: 4 | IM24: 8 | IN24: 4 | IO24: 5 | IP24: 5 | IQ24: 6 | IR24: 7 | IS24: 8 | IT24: 6 | IU24: 5 | IV24: 4 | IW24: 4 | IX24: 4 | IY24: 6 | IZ24: 8 | JA24: 7 | JB24: =SUM(IF(JB4>=1,1,0),IF(JB5>=1,1,0),IF(JB6>=1,1,0),IF(JB7>=1,1,0),IF(JB8>=1,1,0),IF(JB9>=1,1,0),IF(JB10>=1,1,0),IF(JB11>=1,1,0),IF(JB12>=1,1,0),IF(JB13>=1,1,0),IF(JB14>=1,1,0),IF(JB15>=1,1,0),IF(JB16>=1,1,0),IF(JB17>=1,1,0),IF(JB18>=1,1,0),IF(JB19>=1,1,0),IF(JB20>=1,1,0),IF(JB21>=1,1,0)) -> 6 | JC24: 6 | JD24: 5 | JE24: 5 | JF24: 6 | JG24: 9 | JH24: 5 | JI24: 6 | JJ24: 7 | JK24: 5 | JL24: 8 | JM24: 6 | JN24: 8 | JO24: 4 | JP24: 6 | JQ24: 4 | JR24: 4 | JS24: 4 | JT24: 5 | JU24: 7 | JV24: 7 | JW24: 8 | JX24: 6 | JY24: 7 | JZ24: 6 | KA24: 5 | KB24: 5 | KC24: 5 | KD24: 8 | KE24: 5 | KF24: 7 | KG24: 4 | KH24: 6 | KI24: 4 | KJ24: 5 | KK24: 7 | KL24: 6 | KM24: 8 | KN24: 6 | KO24: 6 | KP24: 7 | KQ24: 7 | KR24: 4 | KS24: 5 | KT24: 6 | KU24: 5 | KV24: 4 | KW24: 4 | KX24: 4 | KY24: 4 | KZ24: 5 | LA24: 4 | LB24: 5 | LC24: 4 | LD24: 5 | LE24: 9 | LF24: 8 | LG24: 4 | LH24: 6 | LI24: 6 | LJ24: 5 | LK24: 6 | LL24: 5 | LM24: 6 | LN24: =SUM(IF(LN4>=1,1,0),IF(LN5>=1,1,0),IF(LN6>=1,1,0),IF(LN7>=1,1,0),IF(LN8>=1,1,0),IF(LN9>=1,1,0),IF(LN10>=1,1,0),IF(LN11>=1,1,0),IF(LN12>=1,1,0),IF(LN13>=1,1,0),IF(LN14>=1,1,0),IF(LN15>=1,1,0),IF(LN16>=1,1,0),IF(LN17>=1,1,0),IF(LN18>=1,1,0),IF(LN19>=1,1,0),IF(LN20>=1,1,0),IF(LN21>=1,1,0)) -> 8 | LO24: 6 | LP24: 5 | LQ24: 6 | LR24: 5 | LS24: 7 | LT24: 5 | LU24: 4 | LV24: 4 | LW24: 7 | LX24: 5 | LY24: 6 | LZ24: 8 | MA24: 7 | MB24: 4 | MC24: 7 | MD24: 6 | ME24: 7 | MF24: 6 | MG24: 5 | MH24: 6 | MI24: 6 | MJ24: 4 | MK24: 6 | ML24: 8 | MM24: 6 | MN24: 5 | MO24: 7 | MP24: 5 | MQ24: 4 | MR24: 6 | MS24: 8 | MT24: 5 | MU24: 5 | MV24: 4 | MW24: 6 | MX24: 6 | MY24: 6 | MZ24: 5 | NA24: 6 | NB24: 5 | NC24: 8 | ND24: 5 | NE24: 6 | NF24: 6 | NG24: 5 | NH24: 4 | NI24: 8 | NJ24: 5 | NK24: 7 | NL24: 8 | NM24: 6 | NN24: 6 | NO24: 7 | NP24: 5 | NQ24: 4 | NR24: 4 | NS24: 7 | NT24: 5 | NU24: 7 | NV24: 4 | NW24: 8 | NX24: 5 | NY24: 5 | NZ24: =SUM(IF(NZ4>=1,1,0),IF(NZ5>=1,1,0),IF(NZ6>=1,1,0),IF(NZ7>=1,1,0),IF(NZ8>=1,1,0),IF(NZ9>=1,1,0),IF(NZ10>=1,1,0),IF(NZ11>=1,1,0),IF(NZ12>=1,1,0),IF(NZ13>=1,1,0),IF(NZ14>=1,1,0),IF(NZ15>=1,1,0),IF(NZ16>=1,1,0),IF(NZ17>=1,1,0),IF(NZ18>=1,1,0),IF(NZ19>=1,1,0),IF(NZ20>=1,1,0),IF(NZ21>=1,1,0)) -> 8 | OA24: 6 | OB24: 6 | OC24: 4 | OD24: 6 | OE24: 4 | OF24: 10 | OG24: 4 | OH24: 9 | OI24: 4 | OJ24: 6 | OK24: 6 | OL24: 6 | OM24: 6 | ON24: 5 | OO24: 4 | OP24: 6 | OQ24: 7 | OR24: 8 | OS24: 4 | OT24: 9 | OU24: 7 | OV24: 9 | OW24: 4 | OX24: 4 | OY24: 6 | OZ24: 4 | PA24: 6 | PB24: 7 | PC24: 9 | PD24: 5 | PE24: 4 | PF24: 6 | PG24: 4 | PH24: 6 | PI24: 6 | PJ24: 4 | PK24: 6 | PL24: 4 | PM24: 6 | PN24: 5 | PO24: 10 | PP24: 7 | PQ24: 9 | PR24: 4 | PS24: 6 | PT24: 5 | PU24: 6 | PV24: 9 | PW24: 6 | PX24: 5 | PY24: 4 | PZ24: 7 | QA24: 6 | QB24: 4 | QC24: 5 | QD24: 5 | QE24: 6 | QF24: 5 | QG24: 6 | QH24: 7 | QI24: 5 | QJ24: 4 | QK24: 6 | QL24: =SUM(IF(QL4>=1,1,0),IF(QL5>=1,1,0),IF(QL6>=1,1,0),IF(QL7>=1,1,0),IF(QL8>=1,1,0),IF(QL9>=1,1,0),IF(QL10>=1,1,0),IF(QL11>=1,1,0),IF(QL12>=1,1,0),IF(QL13>=1,1,0),IF(QL14>=1,1,0),IF(QL15>=1,1,0),IF(QL16>=1,1,0),IF(QL17>=1,1,0),IF(QL18>=1,1,0),IF(QL19>=1,1,0),IF(QL20>=1,1,0),IF(QL21>=1,1,0)) -> 4 | QM24: 4 | QN24: 4 | QO24: 5 | QP24: 5 | QQ24: 6 | QR24: 4 | QS24: 4 | QT24: 5 | QU24: 6 | QV24: 7 | QW24: 7 | QX24: 7 | QY24: 5 | QZ24: 5 | RA24: 4 | RB24: 11 | RC24: 8 | RD24: 6 | RE24: 5 | RF24: 4 | RG24: 8 | RH24: 5 | RI24: 5 | RJ24: 6 | RK24: 6 | RL24: 4 | RM24: 6 | RN24: 5 | RO24: 5 | RP24: 4 | RQ24: 9 | RR24: 5 | RS24: 7 | RT24: 5 | RU24: 8 | RV24: 6 | RW24: 5 | RX24: 7 | RY24: 6 | RZ24: 4 | SA24: 6 | SB24: 4 | SC24: 4 | SD24: 11 | SE24: 5 | SF24: 9 | SG24: 6 | SH24: 8 | SI24: 5 | SJ24: 4 | SK24: 5 | SL24: 8 | SM24: 6 | SN24: 8 | SO24: 6 | SP24: 4 | SQ24: 7 | SR24: 6 | SS24: 6 | ST24: 6 | SU24: 5 | SV24: 5 | SW24: 6 | SX24: =SUM(IF(SX4>=1,1,0),IF(SX5>=1,1,0),IF(SX6>=1,1,0),IF(SX7>=1,1,0),IF(SX8>=1,1,0),IF(SX9>=1,1,0),IF(SX10>=1,1,0),IF(SX11>=1,1,0),IF(SX12>=1,1,0),IF(SX13>=1,1,0),IF(SX14>=1,1,0),IF(SX15>=1,1,0),IF(SX16>=1,1,0),IF(SX17>=1,1,0),IF(SX18>=1,1,0),IF(SX19>=1,1,0),IF(SX20>=1,1,0),IF(SX21>=1,1,0)) -> 6 | SY24: 6 | SZ24: 5 | TA24: 6 | TB24: 6 | TC24: 7 | TD24: 6 | TE24: 9 | TF24: 5 | TG24: 7 | TH24: 4 | TI24: 8 | TJ24: 6 | TK24: 5 | TL24: 7 | TM24: 7 | TN24: 5 | TO24: 10 | TP24: 6 | TQ24: 8 | TR24: 4 | TS24: 5 | TT24: 5 | TU24: 5 | TV24: 5 | TW24: 6 | TX24: 4 | TY24: 6 | TZ24: 6 | UA24: 6 | UB24: 5 | UC24: 6 | UD24: 4 | UE24: 4 | UF24: 4 | UG24: 4 | UH24: 5 | UI24: 6 | UJ24: 4 | UK24: 5 | UL24: 5 | UM24: 5 | UN24: 8 | UO24: 4 | UP24: 7 | UQ24: 7 | UR24: 8 | US24: 6 | UT24: 7 | UU24: 4 | UV24: 5 | UW24: 6 | UX24: 4 | UY24: 5 | UZ24: 5 | VA24: 7 | VB24: 6 | VC24: 4 | VD24: 4 | VE24: 7 | VF24: 5 | VG24: 7 | VH24: 6 | VI24: 6 | VJ24: =SUM(IF(VJ4>=1,1,0),IF(VJ5>=1,1,0),IF(VJ6>=1,1,0),IF(VJ7>=1,1,0),IF(VJ8>=1,1,0),IF(VJ9>=1,1,0),IF(VJ10>=1,1,0),IF(VJ11>=1,1,0),IF(VJ12>=1,1,0),IF(VJ13>=1,1,0),IF(VJ14>=1,1,0),IF(VJ15>=1,1,0),IF(VJ16>=1,1,0),IF(VJ17>=1,1,0),IF(VJ18>=1,1,0),IF(VJ19>=1,1,0),IF(VJ20>=1,1,0),IF(VJ21>=1,1,0)) -> 8 | VK24: 9 | VL24: 4 | VM24: 8 | VN24: 9 | VO24: 5 | VP24: 6 | VQ24: 5 | VR24: 7 | VS24: 8 | VT24: 4 | VU24: 7 | VV24: 5 | VW24: 5 | VX24: 4 | VY24: 4 | VZ24: 8 | WA24: 6 | WB24: 4 | WC24: 6 | WD24: 6 | WE24: 5 | WF24: 4 | WG24: 4 | WH24: 5 | WI24: 6 | WJ24: 9 | WK24: 7 | WL24: 8 | WM24: 4 | WN24: 7 | WO24: 6 | WP24: 6 | WQ24: 8 | WR24: 6 | WS24: 4 | WT24: 7 | WU24: 5 | WV24: 8 | WW24: 7 | WX24: 4 | WY24: 4 | WZ24: 5 | XA24: 5 | XB24: 7 | XC24: 9 | XD24: 8 | XE24: 5 | XF24: 5 | XG24: 7 | XH24: 7 | XI24: 10 | XJ24: 6 | XK24: 4 | XL24: 7 | XM24: 5 | XN24: 5 | XO24: 7 | XP24: 9 | XQ24: 6 | XR24: 7 | XS24: 6 | XT24: 5 | XU24: 6 | XV24: =SUM(IF(XV4>=1,1,0),IF(XV5>=1,1,0),IF(XV6>=1,1,0),IF(XV7>=1,1,0),IF(XV8>=1,1,0),IF(XV9>=1,1,0),IF(XV10>=1,1,0),IF(XV11>=1,1,0),IF(XV12>=1,1,0),IF(XV13>=1,1,0),IF(XV14>=1,1,0),IF(XV15>=1,1,0),IF(XV16>=1,1,0),IF(XV17>=1,1,0),IF(XV18>=1,1,0),IF(XV19>=1,1,0),IF(XV20>=1,1,0),IF(XV21>=1,1,0)) -> 6 | XW24: 5 | XX24: 8 | XY24: 5 | XZ24: 4 | YA24: 5 | YB24: 6 | YC24: 6 | YD24: 8 | YE24: 5 | YF24: 5 | YG24: 4 | YH24: 6 | YI24: 4 | YJ24: 4 | YK24: 4 | YL24: 4 | YM24: 5 | YN24: 7 | YO24: 4 | YP24: 6 | YQ24: 5 | YR24: 5 | YS24: 6 | YT24: 7 | YU24: 5 | YV24: 4 | YW24: 5 | YX24: 6 | YY24: 4 | YZ24: 6 | ZA24: 5 | ZB24: 7 | ZC24: 5 | ZD24: 7 | ZE24: 9 | ZF24: 4 | ZG24: 5 | ZH24: 5 | ZI24: 5 | ZJ24: 6 | ZK24: 6 | ZL24: 7 | ZM24: 5 | ZN24: 6 | ZO24: 6 | ZP24: 4 | ZQ24: 8 | ZR24: 10 | ZS24: 4 | ZT24: 4 | ZU24: 6 | ZV24: 6 | ZW24: 5 | ZX24: 6 | ZY24: 7 | ZZ24: 8 | AAA24: 5 | AAB24: 7 | AAC24: 5 | AAD24: 7 | AAE24: 7 | AAF24: 5 | AAG24: 4 | AAH24: =SUM(IF(AAH4>=1,1,0),IF(AAH5>=1,1,0),IF(AAH6>=1,1,0),IF(AAH7>=1,1,0),IF(AAH8>=1,1,0),IF(AAH9>=1,1,0),IF(AAH10>=1,1,0),IF(AAH11>=1,1,0),IF(AAH12>=1,1,0),IF(AAH13>=1,1,0),IF(AAH14>=1,1,0),IF(AAH15>=1,1,0),IF(AAH16>=1,1,0),IF(AAH17>=1,1,0),IF(AAH18>=1,1,0),IF(AAH19>=1,1,0),IF(AAH20>=1,1,0),IF(AAH21>=1,1,0)) -> 7 | AAI24: 4 | AAJ24: 6 | AAK24: 6 | AAL24: 4 | AAM24: 5 | AAN24: 5 | AAO24: 4 | AAP24: 6 | AAQ24: 8 | AAR24: 5 | AAS24: 4 | AAT24: 8 | AAU24: 8 | AAV24: 5 | AAW24: 6 | AAX24: 5 | AAY24: 6 | AAZ24: 6 | ABA24: 8 | ABB24: 5 | ABC24: 4 | ABD24: 8 | ABE24: 4 | ABF24: 6 | ABG24: 8 | ABH24: 7 | ABI24: 5 | ABJ24: 6 | ABK24: 5 | ABL24: 5 | ABM24: 4 | ABN24: 6 | ABO24: 5 | ABP24: 5 | ABQ24: 7 | ABR24: 7 | ABS24: 5 | ABT24: 6 | ABU24: 4 | ABV24: 4 | ABW24: 5 | ABX24: 7 | ABY24: 7 | ABZ24: 6 | ACA24: 5 | ACB24: 5 | ACC24: 8 | ACD24: 8 | ACE24: 6 | ACF24: 6 | ACG24: 8 | ACH24: 5 | ACI24: 7 | ACJ24: 5 | ACK24: 4 | ACL24: 4 | ACM24: 4 | ACN24: 5 | ACO24: 4 | ACP24: 4 | ACQ24: 6 | ACR24: 6 | ACS24: 6 | ACT24: =SUM(IF(ACT4>=1,1,0),IF(ACT5>=1,1,0),IF(ACT6>=1,1,0),IF(ACT7>=1,1,0),IF(ACT8>=1,1,0),IF(ACT9>=1,1,0),IF(ACT10>=1,1,0),IF(ACT11>=1,1,0),IF(ACT12>=1,1,0),IF(ACT13>=1,1,0),IF(ACT14>=1,1,0),IF(ACT15>=1,1,0),IF(ACT16>=1,1,0),IF(ACT17>=1,1,0),IF(ACT18>=1,1,0),IF(ACT19>=1,1,0),IF(ACT20>=1,1,0),IF(ACT21>=1,1,0)) -> 5 | ACU24: 4 | ACV24: 4 | ACW24: 5 | ACX24: 6 | ACY24: 4 | ACZ24: 4 | ADA24: 6 | ADB24: 6 | ADC24: 4 | ADD24: 6 | ADE24: 5 | ADF24: 5 | ADG24: 7 | ADH24: 5 | ADI24: 6 | ADJ24: 5 | ADK24: 5 | ADL24: 5 | ADM24: 6 | ADN24: 6 | ADO24: 4 | ADP24: 6 | ADQ24: 5 | ADR24: 5 | ADS24: 6 | ADT24: 8 | ADU24: 5 | ADV24: 8 | ADW24: 6 | ADX24: 8 | ADY24: 5 | ADZ24: 5 | AEA24: 6 | AEB24: 5 | AEC24: 12 | AED24: 8 | AEE24: 7 | AEF24: 5 | AEG24: 8 | AEH24: 6 | AEI24: 8 | AEJ24: 7 | AEK24: 7 | AEL24: 6 | AEM24: 5 | AEN24: 8 | AEO24: 6 | AEP24: 5 | AEQ24: 6 | AER24: 8 | AES24: 4 | AET24: 9 | AEU24: 4 | AEV24: 5 | AEW24: 5 | AEX24: 6 | AEY24: 5 | AEZ24: 5 | AFA24: 4 | AFB24: 6 | AFC24: 4 | AFD24: 4 | AFE24: 6 | AFF24: =SUM(IF(AFF4>=1,1,0),IF(AFF5>=1,1,0),IF(AFF6>=1,1,0),IF(AFF7>=1,1,0),IF(AFF8>=1,1,0),IF(AFF9>=1,1,0),IF(AFF10>=1,1,0),IF(AFF11>=1,1,0),IF(AFF12>=1,1,0),IF(AFF13>=1,1,0),IF(AFF14>=1,1,0),IF(AFF15>=1,1,0),IF(AFF16>=1,1,0),IF(AFF17>=1,1,0),IF(AFF18>=1,1,0),IF(AFF19>=1,1,0),IF(AFF20>=1,1,0),IF(AFF21>=1,1,0)) -> 5 | AFG24: 6 | AFH24: 6 | AFI24: 5 | AFJ24: 6 | AFK24: 7 | AFL24: 5 | AFM24: 4 | AFN24: 4 | AFO24: 5 | AFP24: 5 | AFQ24: 5 | AFR24: 5 | AFS24: 9 | AFT24: 6 | AFU24: 4 | AFV24: 6 | AFW24: 5 | AFX24: 8 | AFY24: 5 | AFZ24: 5 | AGA24: 5 | AGB24: 5 | AGC24: 4 | AGD24: 6 | AGE24: 4 | AGF24: 4 | AGG24: 4 | AGH24: 5 | AGI24: 8 | AGJ24: 6 | AGK24: 8 | AGL24: 4 | AGM24: 6 | AGN24: 8 | AGO24: 4 | AGP24: 4 | AGQ24: 5 | AGR24: 4 | AGS24: 5 | AGT24: 4 | AGU24: 6 | AGV24: 6 | AGW24: 7 | AGX24: 8 | AGY24: 6 | AGZ24: 5 | AHA24: 7 | AHB24: 4 | AHC24: 6 | AHD24: 5 | AHE24: 7 | AHF24: 7 | AHG24: 4 | AHH24: 4 | AHI24: 6 | AHJ24: 5 | AHK24: 4 | AHL24: 6 | AHM24: 6 | AHN24: 5 | AHO24: 10 | AHP24: 7 | AHQ24: 8 | AHR24: =SUM(IF(AHR4>=1,1,0),IF(AHR5>=1,1,0),IF(AHR6>=1,1,0),IF(AHR7>=1,1,0),IF(AHR8>=1,1,0),IF(AHR9>=1,1,0),IF(AHR10>=1,1,0),IF(AHR11>=1,1,0),IF(AHR12>=1,1,0),IF(AHR13>=1,1,0),IF(AHR14>=1,1,0),IF(AHR15>=1,1,0),IF(AHR16>=1,1,0),IF(AHR17>=1,1,0),IF(AHR18>=1,1,0),IF(AHR19>=1,1,0),IF(AHR20>=1,1,0),IF(AHR21>=1,1,0)) -> 5 | AHS24: 4 | AHT24: 5 | AHU24: 6 | AHV24: 5 | AHW24: 6 | AHX24: 5 | AHY24: 4 | AHZ24: 7 | AIA24: 8 | AIB24: 7 | AIC24: 7 | AID24: 6 | AIE24: 4 | AIF24: 5 | AIG24: 6 | AIH24: 6 | AII24: 6 | AIJ24: 4 | AIK24: 4 | AIL24: 4 | AIM24: 5 | AIN24: 4 | AIO24: 4 | AIP24: 6 | AIQ24: 5 | AIR24: 6 | AIS24: 4 | AIT24: 4 | AIU24: 10 | AIV24: 4 | AIW24: 5 | AIX24: 6 | AIY24: 8 | AIZ24: 4 | AJA24: 7 | AJB24: 5 | AJC24: 9 | AJD24: 5 | AJE24: 4 | AJF24: 4 | AJG24: 6 | AJH24: 5 | AJI24: 7 | AJJ24: 8 | AJK24: 8 | AJL24: 4 | AJM24: 6 | AJN24: 6 | AJO24: 6 | AJP24: 6 | AJQ24: 6 | AJR24: 5 | AJS24: 5 | AJT24: 8 | AJU24: 6 | AJV24: 7 | AJW24: 6 | AJX24: 7 | AJY24: 4 | AJZ24: 7 | AKA24: 7 | AKB24: 5 | AKC24: 5 | AKD24: =SUM(IF(AKD4>=1,1,0),IF(AKD5>=1,1,0),IF(AKD6>=1,1,0),IF(AKD7>=1,1,0),IF(AKD8>=1,1,0),IF(AKD9>=1,1,0),IF(AKD10>=1,1,0),IF(AKD11>=1,1,0),IF(AKD12>=1,1,0),IF(AKD13>=1,1,0),IF(AKD14>=1,1,0),IF(AKD15>=1,1,0),IF(AKD16>=1,1,0),IF(AKD17>=1,1,0),IF(AKD18>=1,1,0),IF(AKD19>=1,1,0),IF(AKD20>=1,1,0),IF(AKD21>=1,1,0)) -> 6 | AKE24: 5 | AKF24: 7 | AKG24: 4 | AKH24: 6 | AKI24: 5 | AKJ24: 7 | AKK24: 6 | AKL24: 7 | AKM24: 6 | AKN24: 11 | AKO24: 4 | AKP24: 5 | AKQ24: 4 | AKR24: 4 | AKS24: 6 | AKT24: 8 | AKU24: 4 | AKV24: 4 | AKW24: 5 | AKX24: 4 | AKY24: 6 | AKZ24: 4 | ALA24: 5 | ALB24: 6 | ALC24: 4 | ALD24: 9 | ALE24: 4 | ALF24: 5 | ALG24: 5 | ALH24: 5 | ALI24: 7 | ALJ24: 7 | ALK24: 4 | ALL24: 7 | ALM24: 5 | ALN24: 7
B26: Průměr vzdáleností [km] | C26: =AVERAGEA(C23:ALN23) -> 26.697 | E26: Maximum | F26: =MAX(C23:ALN23) -> 36
B27: Průměrný počet zastávek | C27: =AVERAGEA(C24:ALN24) -> 5.751 | E27: Minimum | F27: =MIN(C23:ALN23) -> 12
B28: Medián vzdáleností [km] | C28: =MEDIAN(C23:ALN23) -> 28
B29: Medián počtu zastávek | C29: =MEDIAN(C24:ALN24) -> 6

Sheet Hladina 60 %
A1: Výstup ze simulace
B3: Název | C3: 1 | D3: 2 | E3: 3 | F3: 4 | G3: 5 | H3: 6 | I3: 7 | J3: 8 | K3: 9 | L3: 10 | M3: 11 | N3: 12 | O3: 13 | P3: 14 | Q3: 15 | R3: 16 | S3: 17 | T3: 18 | U3: 19 | V3: 20 | W3: 21 | X3: 22 | Y3: 23 | Z3: 24 | AA3: 25 | AB3: 26 | AC3: 27 | AD3: 28 | AE3: 29 | AF3: 30 | AG3: 31 | AH3: 32 | AI3: 33 | AJ3: 34 | AK3: 35 | AL3: 36 | AM3: 37 | AN3: 38 | AO3: 39 | AP3: 40 | AQ3: 41 | AR3: 42 | AS3: 43 | AT3: 44 | AU3: 45 | AV3: 46 | AW3: 47 | AX3: 48 | AY3: 49 | AZ3: 50 | BA3: 51 | BB3: 52 | BC3: 53 | BD3: 54 | BE3: 55 | BF3: 56 | BG3: 57 | BH3: 58 | BI3: 59 | BJ3: 60 | BK3: 61 | BL3: 62 | BM3: 63 | BN3: 64 | BO3: 65 | BP3: 66 | BQ3: 67 | BR3: 68 | BS3: 69 | BT3: 70 | BU3: 71 | BV3: 72 | BW3: 73 | BX3: 74 | BY3: 75 | BZ3: 76 | CA3: 77 | CB3: 78 | CC3: 79 | CD3: 80 | CE3: 81 | CF3: 82 | CG3: 83 | CH3: 84 | CI3: 85 | CJ3: 86 | CK3: 87 | CL3: 88 | CM3: 89 | CN3: 90 | CO3: 91 | CP3: 92 | CQ3: 93 | CR3: 94 | CS3: 95 | CT3: 96 | CU3: 97 | CV3: 98 | CW3: 99 | CX3: 100 | CY3: 101 | CZ3: 102 | DA3: 103 | DB3: 104 | DC3: 105 | DD3: 106 | DE3: 107 | DF3: 108 | DG3: 109 | DH3: 110 | DI3: 111 | DJ3: 112 | DK3: 113 | DL3: 114 | DM3: 115 | DN3: 116 | DO3: 117 | DP3: 118 | DQ3: 119 | DR3: 120 | DS3: 121 | DT3: 122 | DU3: 123 | DV3: 124 | DW3: 125 | DX3: 126 | DY3: 127 | DZ3: 128 | EA3: 129 | EB3: 130 | EC3: 131 | ED3: 132 | EE3: 133 | EF3: 134 | EG3: 135 | EH3: 136 | EI3: 137 | EJ3: 138 | EK3: 139 | EL3: 140 | EM3: 141 | EN3: 142 | EO3: 143 | EP3: 144 | EQ3: 145 | ER3: 146 | ES3: 147 | ET3: 148 | EU3: 149 | EV3: 150 | EW3: 151 | EX3: 152 | EY3: 153 | EZ3: 154 | FA3: 155 | FB3: 156 | FC3: 157 | FD3: 158 | FE3: 159 | FF3: 160 | FG3: 161 | FH3: 162 | FI3: 163 | FJ3: 164 | FK3: 165 | FL3: 166 | FM3: 167 | FN3: 168 | FO3: 169 | FP3: 170 | FQ3: 171 | FR3: 172 | FS3: 173 | FT3: 174 | FU3: 175 | FV3: 176 | FW3: 177 | FX3: 178 | FY3: 179 | FZ3: 180 | GA3: 181 | GB3: 182 | GC3: 183 | GD3: 184 | GE3: 185 | GF3: 186 | GG3: 187 | GH3: 188 | GI3: 189 | GJ3: 190 | GK3: 191 | GL3: 192 | GM3: 193 | GN3: 194 | GO3: 195 | GP3: 196 | GQ3: 197 | GR3: 198 | GS3: 199 | GT3: 200 | GU3: 201 | GV3: 202 | GW3: 203 | GX3: 204 | GY3: 205 | GZ3: 206 | HA3: 207 | HB3: 208 | HC3: 209 | HD3: 210 | HE3: 211 | HF3: 212 | HG3: 213 | HH3: 214 | HI3: 215 | HJ3: 216 | HK3: 217 | HL3: 218 | HM3: 219 | HN3: 220 | HO3: 221 | HP3: 222 | HQ3: 223 | HR3: 224 | HS3: 225 | HT3: 226 | HU3: 227 | HV3: 228 | HW3: 229 | HX3: 230 | HY3: 231 | HZ3: 232 | IA3: 233 | IB3: 234 | IC3: 235 | ID3: 236 | IE3: 237 | IF3: 238 | IG3: 239 | IH3: 240 | II3: 241 | IJ3: 242 | IK3: 243 | IL3: 244 | IM3: 245 | IN3: 246 | IO3: 247 | IP3: 248 | IQ3: 249 | IR3: 250 | IS3: 251 | IT3: 252 | IU3: 253 | IV3: 254 | IW3: 255 | IX3: 256 | IY3: 257 | IZ3: 258 | JA3: 259 | JB3: 260 | JC3: 261 | JD3: 262 | JE3: 263 | JF3: 264 | JG3: 265 | JH3: 266 | JI3: 267 | JJ3: 268 | JK3: 269 | JL3: 270 | JM3: 271 | JN3: 272 | JO3: 273 | JP3: 274 | JQ3: 275 | JR3: 276 | JS3: 277 | JT3: 278 | JU3: 279 | JV3: 280 | JW3: 281 | JX3: 282 | JY3: 283 | JZ3: 284 | KA3: 285 | KB3: 286 | KC3: 287 | KD3: 288 | KE3: 289 | KF3: 290 | KG3: 291 | KH3: 292 | KI3: 293 | KJ3: 294 | KK3: 295 | KL3: 296 | KM3: 297 | KN3: 298 | KO3: 299 | KP3: 300 | KQ3: 301 | KR3: 302 | KS3: 303 | KT3: 304 | KU3: 305 | KV3: 306 | KW3: 307 | KX3: 308 | KY3: 309 | KZ3: 310 | LA3: 311 | LB3: 312 | LC3: 313 | LD3: 314 | LE3: 315 | LF3: 316 | LG3: 317 | LH3: 318 | LI3: 319 | LJ3: 320 | LK3: 321 | LL3: 322 | LM3: 323 | LN3: 324 | LO3: 325 | LP3: 326 | LQ3: 327 | LR3: 328 | LS3: 329 | LT3: 330 | LU3: 331 | LV3: 332 | LW3: 333 | LX3: 334 | LY3: 335 | LZ3: 336 | MA3: 337 | MB3: 338 | MC3: 339 | MD3: 340 | ME3: 341 | MF3: 342 | MG3: 343 | MH3: 344 | MI3: 345 | MJ3: 346 | MK3: 347 | ML3: 348 | MM3: 349 | MN3: 350 | MO3: 351 | MP3: 352 | MQ3: 353 | MR3: 354 | MS3: 355 | MT3: 356 | MU3: 357 | MV3: 358 | MW3: 359 | MX3: 360 | MY3: 361 | MZ3: 362 | NA3: 363 | NB3: 364 | NC3: 365 | ND3: 366 | NE3: 367 | NF3: 368 | NG3: 369 | NH3: 370 | NI3: 371 | NJ3: 372 | NK3: 373 | NL3: 374 | NM3: 375 | NN3: 376 | NO3: 377 | NP3: 378 | NQ3: 379 | NR3: 380 | NS3: 381 | NT3: 382 | NU3: 383 | NV3: 384 | NW3: 385 | NX3: 386 | NY3: 387 | NZ3: 388 | OA3: 389 | OB3: 390 | OC3: 391 | OD3: 392 | OE3: 393 | OF3: 394 | OG3: 395 | OH3: 396 | OI3: 397 | OJ3: 398 | OK3: 399 | OL3: 400 | OM3: 401 | ON3: 402 | OO3: 403 | OP3: 404 | OQ3: 405 | OR3: 406 | OS3: 407 | OT3: 408 | OU3: 409 | OV3: 410 | OW3: 411 | OX3: 412 | OY3: 413 | OZ3: 414 | PA3: 415 | PB3: 416 | PC3: 417 | PD3: 418 | PE3: 419 | PF3: 420 | PG3: 421 | PH3: 422 | PI3: 423 | PJ3: 424 | PK3: 425 | PL3: 426 | PM3: 427 | PN3: 428 | PO3: 429 | PP3: 430 | PQ3: 431 | PR3: 432 | PS3: 433 | PT3: 434 | PU3: 435 | PV3: 436 | PW3: 437 | PX3: 438 | PY3: 439 | PZ3: 440 | QA3: 441 | QB3: 442 | QC3: 443 | QD3: 444 | QE3: 445 | QF3: 446 | QG3: 447 | QH3: 448 | QI3: 449 | QJ3: 450 | QK3: 451 | QL3: 452 | QM3: 453 | QN3: 454 | QO3: 455 | QP3: 456 | QQ3: 457 | QR3: 458 | QS3: 459 | QT3: 460 | QU3: 461 | QV3: 462 | QW3: 463 | QX3: 464 | QY3: 465 | QZ3: 466 | RA3: 467 | RB3: 468 | RC3: 469 | RD3: 470 | RE3: 471 | RF3: 472 | RG3: 473 | RH3: 474 | RI3: 475 | RJ3: 476 | RK3: 477 | RL3: 478 | RM3: 479 | RN3: 480 | RO3: 481 | RP3: 482 | RQ3: 483 | RR3: 484 | RS3: 485 | RT3: 486 | RU3: 487 | RV3: 488 | RW3: 489 | RX3: 490 | RY3: 491 | RZ3: 492 | SA3: 493 | SB3: 494 | SC3: 495 | SD3: 496 | SE3: 497 | SF3: 498 | SG3: 499 | SH3: 500 | SI3: 501 | SJ3: 502 | SK3: 503 | SL3: 504 | SM3: 505 | SN3: 506 | SO3: 507 | SP3: 508 | SQ3: 509 | SR3: 510 | SS3: 511 | ST3: 512 | SU3: 513 | SV3: 514 | SW3: 515 | SX3: 516 | SY3: 517 | SZ3: 518 | TA3: 519 | TB3: 520 | TC3: 521 | TD3: 522 | TE3: 523 | TF3: 524 | TG3: 525 | TH3: 526 | TI3: 527 | TJ3: 528 | TK3: 529 | TL3: 530 | TM3: 531 | TN3: 532 | TO3: 533 | TP3: 534 | TQ3: 535 | TR3: 536 | TS3: 537 | TT3: 538 | TU3: 539 | TV3: 540 | TW3: 541 | TX3: 542 | TY3: 543 | TZ3: 544 | UA3: 545 | UB3: 546 | UC3: 547 | UD3: 548 | UE3: 549 | UF3: 550 | UG3: 551 | UH3: 552 | UI3: 553 | UJ3: 554 | UK3: 555 | UL3: 556 | UM3: 557 | UN3: 558 | UO3: 559 | UP3: 560 | UQ3: 561 | UR3: 562 | US3: 563 | UT3: 564 | UU3: 565 | UV3: 566 | UW3: 567 | UX3: 568 | UY3: 569 | UZ3: 570 | VA3: 571 | VB3: 572 | VC3: 573 | VD3: 574 | VE3: 575 | VF3: 576 | VG3: 577 | VH3: 578 | VI3: 579 | VJ3: 580 | VK3: 581 | VL3: 582 | VM3: 583 | VN3: 584 | VO3: 585 | VP3: 586 | VQ3: 587 | VR3: 588 | VS3: 589 | VT3: 590 | VU3: 591 | VV3: 592 | VW3: 593 | VX3: 594 | VY3: 595 | VZ3: 596 | WA3: 597 | WB3: 598 | WC3: 599 | WD3: 600 | WE3: 601 | WF3: 602 | WG3: 603 | WH3: 604 | WI3: 605 | WJ3: 606 | WK3: 607 | WL3: 608 | WM3: 609 | WN3: 610 | WO3: 611 | WP3: 612 | WQ3: 613 | WR3: 614 | WS3: 615 | WT3: 616 | WU3: 617 | WV3: 618 | WW3: 619 | WX3: 620 | WY3: 621 | WZ3: 622 | XA3: 623 | XB3: 624 | XC3: 625 | XD3: 626 | XE3: 627 | XF3: 628 | XG3: 629 | XH3: 630 | XI3: 631 | XJ3: 632 | XK3: 633 | XL3: 634 | XM3: 635 | XN3: 636 | XO3: 637 | XP3: 638 | XQ3: 639 | XR3: 640 | XS3: 641 | XT3: 642 | XU3: 643 | XV3: 644 | XW3: 645 | XX3: 646 | XY3: 647 | XZ3: 648 | YA3: 649 | YB3: 650 | YC3: 651 | YD3: 652 | YE3: 653 | YF3: 654 | YG3: 655 | YH3: 656 | YI3: 657 | YJ3: 658 | YK3: 659 | YL3: 660 | YM3: 661 | YN3: 662 | YO3: 663 | YP3: 664 | YQ3: 665 | YR3: 666 | YS3: 667 | YT3: 668 | YU3: 669 | YV3: 670 | YW3: 671 | YX3: 672 | YY3: 673 | YZ3: 674 | ZA3: 675 | ZB3: 676 | ZC3: 677 | ZD3: 678 | ZE3: 679 | ZF3: 680 | ZG3: 681 | ZH3: 682 | ZI3: 683 | ZJ3: 684 | ZK3: 685 | ZL3: 686 | ZM3: 687 | ZN3: 688 | ZO3: 689 | ZP3: 690 | ZQ3: 691 | ZR3: 692 | ZS3: 693 | ZT3: 694 | ZU3: 695 | ZV3: 696 | ZW3: 697 | ZX3: 698 | ZY3: 699 | ZZ3: 700 | AAA3: 701 | AAB3: 702 | AAC3: 703 | AAD3: 704 | AAE3: 705 | AAF3: 706 | AAG3: 707 | AAH3: 708 | AAI3: 709 | AAJ3: 710 | AAK3: 711 | AAL3: 712 | AAM3: 713 | AAN3: 714 | AAO3: 715 | AAP3: 716 | AAQ3: 717 | AAR3: 718 | AAS3: 719 | AAT3: 720 | AAU3: 721 | AAV3: 722 | AAW3: 723 | AAX3: 724 | AAY3: 725 | AAZ3: 726 | ABA3: 727 | ABB3: 728 | ABC3: 729 | ABD3: 730 | ABE3: 731 | ABF3: 732 | ABG3: 733 | ABH3: 734 | ABI3: 735 | ABJ3: 736 | ABK3: 737 | ABL3: 738 | ABM3: 739 | ABN3: 740 | ABO3: 741 | ABP3: 742 | ABQ3: 743 | ABR3: 744 | ABS3: 745 | ABT3: 746 | ABU3: 747 | ABV3: 748 | ABW3: 749 | ABX3: 750 | ABY3: 751 | ABZ3: 752 | ACA3: 753 | ACB3: 754 | ACC3: 755 | ACD3: 756 | ACE3: 757 | ACF3: 758 | ACG3: 759 | ACH3: 760 | ACI3: 761 | ACJ3: 762 | ACK3: 763 | ACL3: 764 | ACM3: 765 | ACN3: 766 | ACO3: 767 | ACP3: 768 | ACQ3: 769 | ACR3: 770 | ACS3: 771 | ACT3: 772 | ACU3: 773 | ACV3: 774 | ACW3: 775 | ACX3: 776 | ACY3: 777 | ACZ3: 778 | ADA3: 779 | ADB3: 780 | ADC3: 781 | ADD3: 782 | ADE3: 783 | ADF3: 784 | ADG3: 785 | ADH3: 786 | ADI3: 787 | ADJ3: 788 | ADK3: 789 | ADL3: 790 | ADM3: 791 | ADN3: 792 | ADO3: 793 | ADP3: 794 | ADQ3: 795 | ADR3: 796 | ADS3: 797 | ADT3: 798 | ADU3: 799 | ADV3: 800 | ADW3: 801 | ADX3: 802 | ADY3: 803 | ADZ3: 804 | AEA3: 805 | AEB3: 806 | AEC3: 807 | AED3: 808 | AEE3: 809 | AEF3: 810 | AEG3: 811 | AEH3: 812 | AEI3: 813 | AEJ3: 814 | AEK3: 815 | AEL3: 816 | AEM3: 817 | AEN3: 818 | AEO3: 819 | AEP3: 820 | AEQ3: 821 | AER3: 822 | AES3: 823 | AET3: 824 | AEU3: 825 | AEV3: 826 | AEW3: 827 | AEX3: 828 | AEY3: 829 | AEZ3: 830 | AFA3: 831 | AFB3: 832 | AFC3: 833 | AFD3: 834 | AFE3: 835 | AFF3: 836 | AFG3: 837 | AFH3: 838 | AFI3: 839 | AFJ3: 840 | AFK3: 841 | AFL3: 842 | AFM3: 843 | AFN3: 844 | AFO3: 845 | AFP3: 846 | AFQ3: 847 | AFR3: 848 | AFS3: 849 | AFT3: 850 | AFU3: 851 | AFV3: 852 | AFW3: 853 | AFX3: 854 | AFY3: 855 | AFZ3: 856 | AGA3: 857 | AGB3: 858 | AGC3: 859 | AGD3: 860 | AGE3: 861 | AGF3: 862 | AGG3: 863 | AGH3: 864 | AGI3: 865 | AGJ3: 866 | AGK3: 867 | AGL3: 868 | AGM3: 869 | AGN3: 870 | AGO3: 871 | AGP3: 872 | AGQ3: 873 | AGR3: 874 | AGS3: 875 | AGT3: 876 | AGU3: 877 | AGV3: 878 | AGW3: 879 | AGX3: 880 | AGY3: 881 | AGZ3: 882 | AHA3: 883 | AHB3: 884 | AHC3: 885 | AHD3: 886 | AHE3: 887 | AHF3: 888 | AHG3: 889 | AHH3: 890 | AHI3: 891 | AHJ3: 892 | AHK3: 893 | AHL3: 894 | AHM3: 895 | AHN3: 896 | AHO3: 897 | AHP3: 898 | AHQ3: 899 | AHR3: 900 | AHS3: 901 | AHT3: 902 | AHU3: 903 | AHV3: 904 | AHW3: 905 | AHX3: 906 | AHY3: 907 | AHZ3: 908 | AIA3: 909 | AIB3: 910 | AIC3: 911 | AID3: 912 | AIE3: 913 | AIF3: 914 | AIG3: 915 | AIH3: 916 | AII3: 917 | AIJ3: 918 | AIK3: 919 | AIL3: 920 | AIM3: 921 | AIN3: 922 | AIO3: 923 | AIP3: 924 | AIQ3: 925 | AIR3: 926 | AIS3: 927 | AIT3: 928 | AIU3: 929 | AIV3: 930 | AIW3: 931 | AIX3: 932 | AIY3: 933 | AIZ3: 934 | AJA3: 935 | AJB3: 936 | AJC3: 937 | AJD3: 938 | AJE3: 939 | AJF3: 940 | AJG3: 941 | AJH3: 942 | AJI3: 943 | AJJ3: 944 | AJK3: 945 | AJL3: 946 | AJM3: 947 | AJN3: 948 | AJO3: 949 | AJP3: 950 | AJQ3: 951 | AJR3: 952 | AJS3: 953 | AJT3: 954 | AJU3: 955 | AJV3: 956 | AJW3: 957 | AJX3: 958 | AJY3: 959 | AJZ3: 960 | AKA3: 961 | AKB3: 962 | AKC3: 963 | AKD3: 964 | AKE3: 965 | AKF3: 966 | AKG3: 967 | AKH3: 968 | AKI3: 969 | AKJ3: 970 | AKK3: 971 | AKL3: 972 | AKM3: 973 | AKN3: 974 | AKO3: 975 | AKP3: 976 | AKQ3: 977 | AKR3: 978 | AKS3: 979 | AKT3: 980 | AKU3: 981 | AKV3: 982 | AKW3: 983 | AKX3: 984 | AKY3: 985 | AKZ3: 986 | ALA3: 987 | ALB3: 988 | ALC3: 989 | ALD3: 990 | ALE3: 991 | ALF3: 992 | ALG3: 993 | ALH3: 994 | ALI3: 995 | ALJ3: 996 | ALK3: 997 | ALL3: 998 | ALM3: 999 | ALN3: 1000
B4: Trhové Sviny | C4: 1 | D4: 1 | E4: 1 | F4: 1 | G4: 1 | H4: 1 | I4: 1 | J4: 1 | K4: 1 | L4: 1 | M4: 1 | N4: 1 | O4: 1 | P4: 1 | Q4: 1 | R4: 1 | S4: 1 | T4: 1 | U4: 1 | V4: 1 | W4: 1 | X4: 1 | Y4: 1 | Z4: 1 | AA4: 1 | AB4: 1 | AC4: 1 | AD4: 1 | AE4: 1 | AF4: 1 | AG4: 1 | AH4: 1 | AI4: 1 | AJ4: 1 | AK4: 1 | AL4: 1 | AM4: 1 | AN4: 1 | AO4: 1 | AP4: 1 | AQ4: 1 | AR4: 1 | AS4: 1 | AT4: 1 | AU4: 1 | AV4: 1 | AW4: 1 | AX4: 1 | AY4: 1 | AZ4: 1 | BA4: 1 | BB4: 1 | BC4: 1 | BD4: 1 | BE4: 1 | BF4: 1 | BG4: 1 | BH4: 1 | BI4: 1 | BJ4: 1 | BK4: 1 | BL4: 1 | BM4: 1 | BN4: 1 | BO4: 1 | BP4: 1 | BQ4: 1 | BR4: 1 | BS4: 1 | BT4: 1 | BU4: 1 | BV4: 1 | BW4: 1 | BX4: 1 | BY4: 1 | BZ4: 1 | CA4: 1 | CB4: 1 | CC4: 1 | CD4: 1 | CE4: 1 | CF4: 1 | CG4: 1 | CH4: 1 | CI4: 1 | CJ4: 1 | CK4: 1 | CL4: 1 | CM4: 1 | CN4: 1 | CO4: 1 | CP4: 1 | CQ4: 1 | CR4: 1 | CS4: 1 | CT4: 1 | CU4: 1 | CV4: 1 | CW4: 1 | CX4: 1 | CY4: 1 | CZ4: 1 | DA4: 1 | DB4: 1 | DC4: 1 | DD4: 1 | DE4: 1 | DF4: 1 | DG4: 1 | DH4: 1 | DI4: 1 | DJ4: 1 | DK4: 1 | DL4: 1 | DM4: 1 | DN4: 1 | DO4: 1 | DP4: 1 | DQ4: 1 | DR4: 1 | DS4: 1 | DT4: 1 | DU4: 1 | DV4: 1 | DW4: 1 | DX4: 1 | DY4: 1 | DZ4: 1 | EA4: 1 | EB4: 1 | EC4: 1 | ED4: 1 | EE4: 1 | EF4: 1 | EG4: 1 | EH4: 1 | EI4: 1 | EJ4: 1 | EK4: 1 | EL4: 1 | EM4: 1 | EN4: 1 | EO4: 1 | EP4: 1 | EQ4: 1 | ER4: 1 | ES4: 1 | ET4: 1 | EU4: 1 | EV4: 1 | EW4: 1 | EX4: 1 | EY4: 1 | EZ4: 1 | FA4: 1 | FB4: 1 | FC4: 1 | FD4: 1 | FE4: 1 | FF4: 1 | FG4: 1 | FH4: 1 | FI4: 1 | FJ4: 1 | FK4: 1 | FL4: 1 | FM4: 1 | FN4: 1 | FO4: 1 | FP4: 1 | FQ4: 1 | FR4: 1 | FS4: 1 | FT4: 1 | FU4: 1 | FV4: 1 | FW4: 1 | FX4: 1 | FY4: 1 | FZ4: 1 | GA4: 1 | GB4: 1 | GC4: 1 | GD4: 1 | GE4: 1 | GF4: 1 | GG4: 1 | GH4: 1 | GI4: 1 | GJ4: 1 | GK4: 1 | GL4: 1 | GM4: 1 | GN4: 1 | GO4: 1 | GP4: 1 | GQ4: 1 | GR4: 1 | GS4: 1 | GT4: 1 | GU4: 1 | GV4: 1 | GW4: 1 | GX4: 1 | GY4: 1 | GZ4: 1 | HA4: 1 | HB4: 1 | HC4: 1 | HD4: 1 | HE4: 1 | HF4: 1 | HG4: 1 | HH4: 1 | HI4: 1 | HJ4: 1 | HK4: 1 | HL4: 1 | HM4: 1 | HN4: 1 | HO4: 1 | HP4: 1 | HQ4: 1 | HR4: 1 | HS4: 1 | HT4: 1 | HU4: 1 | HV4: 1 | HW4: 1 | HX4: 1 | HY4: 1 | HZ4: 1 | IA4: 1 | IB4: 1 | IC4: 1 | ID4: 1 | IE4: 1 | IF4: 1 | IG4: 1 | IH4: 1 | II4: 1 | IJ4: 1 | IK4: 1 | IL4: 1 | IM4: 1 | IN4: 1 | IO4: 1 | IP4: 1 | IQ4: 1 | IR4: 1 | IS4: 1 | IT4: 1 | IU4: 1 | IV4: 1 | IW4: 1 | IX4: 1 | IY4: 1 | IZ4: 1 | JA4: 1 | JB4: 1 | JC4: 1 | JD4: 1 | JE4: 1 | JF4: 1 | JG4: 1 | JH4: 1 | JI4: 1 | JJ4: 1 | JK4: 1 | JL4: 1 | JM4: 1 | JN4: 1 | JO4: 1 | JP4: 1 | JQ4: 1 | JR4: 1 | JS4: 1 | JT4: 1 | JU4: 1 | JV4: 1 | JW4: 1 | JX4: 1 | JY4: 1 | JZ4: 1 | KA4: 1 | KB4: 1 | KC4: 1 | KD4: 1 | KE4: 1 | KF4: 1 | KG4: 1 | KH4: 1 | KI4: 1 | KJ4: 1 | KK4: 1 | KL4: 1 | KM4: 1 | KN4: 1 | KO4: 1 | KP4: 1 | KQ4: 1 | KR4: 1 | KS4: 1 | KT4: 1 | KU4: 1 | KV4: 1 | KW4: 1 | KX4: 1 | KY4: 1 | KZ4: 1 | LA4: 1 | LB4: 1 | LC4: 1 | LD4: 1 | LE4: 1 | LF4: 1 | LG4: 1 | LH4: 1 | LI4: 1 | LJ4: 1 | LK4: 1 | LL4: 1 | LM4: 1 | LN4: 1 | LO4: 1 | LP4: 1 | LQ4: 1 | LR4: 1 | LS4: 1 | LT4: 1 | LU4: 1 | LV4: 1 | LW4: 1 | LX4: 1 | LY4: 1 | LZ4: 1 | MA4: 1 | MB4: 1 | MC4: 1 | MD4: 1 | ME4: 1 | MF4: 1 | MG4: 1 | MH4: 1 | MI4: 1 | MJ4: 1 | MK4: 1 | ML4: 1 | MM4: 1 | MN4: 1 | MO4: 1 | MP4: 1 | MQ4: 1 | MR4: 1 | MS4: 1 | MT4: 1 | MU4: 1 | MV4: 1 | MW4: 1 | MX4: 1 | MY4: 1 | MZ4: 1 | NA4: 1 | NB4: 1 | NC4: 1 | ND4: 1 | NE4: 1 | NF4: 1 | NG4: 1 | NH4: 1 | NI4: 1 | NJ4: 1 | NK4: 1 | NL4: 1 | NM4: 1 | NN4: 1 | NO4: 1 | NP4: 1 | NQ4: 1 | NR4: 1 | NS4: 1 | NT4: 1 | NU4: 1 | NV4: 1 | NW4: 1 | NX4: 1 | NY4: 1 | NZ4: 1 | OA4: 1 | OB4: 1 | OC4: 1 | OD4: 1 | OE4: 1 | OF4: 1 | OG4: 1 | OH4: 1 | OI4: 1 | OJ4: 1 | OK4: 1 | OL4: 1 | OM4: 1 | ON4: 1 | OO4: 1 | OP4: 1 | OQ4: 1 | OR4: 1 | OS4: 1 | OT4: 1 | OU4: 1 | OV4: 1 | OW4: 1 | OX4: 1 | OY4: 1 | OZ4: 1 | PA4: 1 | PB4: 1 | PC4: 1 | PD4: 1 | PE4: 1 | PF4: 1 | PG4: 1 | PH4: 1 | PI4: 1 | PJ4: 1 | PK4: 1 | PL4: 1 | PM4: 1 | PN4: 1 | PO4: 1 | PP4: 1 | PQ4: 1 | PR4: 1 | PS4: 1 | PT4: 1 | PU4: 1 | PV4: 1 | PW4: 1 | PX4: 1 | PY4: 1 | PZ4: 1 | QA4: 1 | QB4: 1 | QC4: 1 | QD4: 1 | QE4: 1 | QF4: 1 | QG4: 1 | QH4: 1 | QI4: 1 | QJ4: 1 | QK4: 1 | QL4: 1 | QM4: 1 | QN4: 1 | QO4: 1 | QP4: 1 | QQ4: 1 | QR4: 1 | QS4: 1 | QT4: 1 | QU4: 1 | QV4: 1 | QW4: 1 | QX4: 1 | QY4: 1 | QZ4: 1 | RA4: 1 | RB4: 1 | RC4: 1 | RD4: 1 | RE4: 1 | RF4: 1 | RG4: 1 | RH4: 1 | RI4: 1 | RJ4: 1 | RK4: 1 | RL4: 1 | RM4: 1 | RN4: 1 | RO4: 1 | RP4: 1 | RQ4: 1 | RR4: 1 | RS4: 1 | RT4: 1 | RU4: 1 | RV4: 1 | RW4: 1 | RX4: 1 | RY4: 1 | RZ4: 1 | SA4: 1 | SB4: 1 | SC4: 1 | SD4: 1 | SE4: 1 | SF4: 1 | SG4: 1 | SH4: 1 | SI4: 1 | SJ4: 1 | SK4: 1 | SL4: 1 | SM4: 1 | SN4: 1 | SO4: 1 | SP4: 1 | SQ4: 1 | SR4: 1 | SS4: 1 | ST4: 1 | SU4: 1 | SV4: 1 | SW4: 1 | SX4: 1 | SY4: 1 | SZ4: 1 | TA4: 1 | TB4: 1 | TC4: 1 | TD4: 1 | TE4: 1 | TF4: 1 | TG4: 1 | TH4: 1 | TI4: 1 | TJ4: 1 | TK4: 1 | TL4: 1 | TM4: 1 | TN4: 1 | TO4: 1 | TP4: 1 | TQ4: 1 | TR4: 1 | TS4: 1 | TT4: 1 | TU4: 1 | TV4: 1 | TW4: 1 | TX4: 1 | TY4: 1 | TZ4: 1 | UA4: 1 | UB4: 1 | UC4: 1 | UD4: 1 | UE4: 1 | UF4: 1 | UG4: 1 | UH4: 1 | UI4: 1 | UJ4: 1 | UK4: 1 | UL4: 1 | UM4: 1 | UN4: 1 | UO4: 1 | UP4: 1 | UQ4: 1 | UR4: 1 | US4: 1 | UT4: 1 | UU4: 1 | UV4: 1 | UW4: 1 | UX4: 1 | UY4: 1 | UZ4: 1 | VA4: 1 | VB4: 1 | VC4: 1 | VD4: 1 | VE4: 1 | VF4: 1 | VG4: 1 | VH4: 1 | VI4: 1 | VJ4: 1 | VK4: 1 | VL4: 1 | VM4: 1 | VN4: 1 | VO4: 1 | VP4: 1 | VQ4: 1 | VR4: 1 | VS4: 1 | VT4: 1 | VU4: 1 | VV4: 1 | VW4: 1 | VX4: 1 | VY4: 1 | VZ4: 1 | WA4: 1 | WB4: 1 | WC4: 1 | WD4: 1 | WE4: 1 | WF4: 1 | WG4: 1 | WH4: 1 | WI4: 1 | WJ4: 1 | WK4: 1 | WL4: 1 | WM4: 1 | WN4: 1 | WO4: 1 | WP4: 1 | WQ4: 1 | WR4: 1 | WS4: 1 | WT4: 1 | WU4: 1 | WV4: 1 | WW4: 1 | WX4: 1 | WY4: 1 | WZ4: 1 | XA4: 1 | XB4: 1 | XC4: 1 | XD4: 1 | XE4: 1 | XF4: 1 | XG4: 1 | XH4: 1 | XI4: 1 | XJ4: 1 | XK4: 1 | XL4: 1 | XM4: 1 | XN4: 1 | XO4: 1 | XP4: 1 | XQ4: 1 | XR4: 1 | XS4: 1 | XT4: 1 | XU4: 1 | XV4: 1 | XW4: 1 | XX4: 1 | XY4: 1 | XZ4: 1 | YA4: 1 | YB4: 1 | YC4: 1 | YD4: 1 | YE4: 1 | YF4: 1 | YG4: 1 | YH4: 1 | YI4: 1 | YJ4: 1 | YK4: 1 | YL4: 1 | YM4: 1 | YN4: 1 | YO4: 1 | YP4: 1 | YQ4: 1 | YR4: 1 | YS4: 1 | YT4: 1 | YU4: 1 | YV4: 1 | YW4: 1 | YX4: 1 | YY4: 1 | YZ4: 1 | ZA4: 1 | ZB4: 1 | ZC4: 1 | ZD4: 1 | ZE4: 1 | ZF4: 1 | ZG4: 1 | ZH4: 1 | ZI4: 1 | ZJ4: 1 | ZK4: 1 | ZL4: 1 | ZM4: 1 | ZN4: 1 | ZO4: 1 | ZP4: 1 | ZQ4: 1 | ZR4: 1 | ZS4: 1 | ZT4: 1 | ZU4: 1 | ZV4: 1 | ZW4: 1 | ZX4: 1 | ZY4: 1 | ZZ4: 1 | AAA4: 1 | AAB4: 1 | AAC4: 1 | AAD4: 1 | AAE4: 1 | AAF4: 1 | AAG4: 1 | AAH4: 1 | AAI4: 1 | AAJ4: 1 | AAK4: 1 | AAL4: 1 | AAM4: 1 | AAN4: 1 | AAO4: 1 | AAP4: 1 | AAQ4: 1 | AAR4: 1 | AAS4: 1 | AAT4: 1 | AAU4: 1 | AAV4: 1 | AAW4: 1 | AAX4: 1 | AAY4: 1 | AAZ4: 1 | ABA4: 1 | ABB4: 1 | ABC4: 1 | ABD4: 1 | ABE4: 1 | ABF4: 1 | ABG4: 1 | ABH4: 1 | ABI4: 1 | ABJ4: 1 | ABK4: 1 | ABL4: 1 | ABM4: 1 | ABN4: 1 | ABO4: 1 | ABP4: 1 | ABQ4: 1 | ABR4: 1 | ABS4: 1 | ABT4: 1 | ABU4: 1 | ABV4: 1 | ABW4: 1 | ABX4: 1 | ABY4: 1 | ABZ4: 1 | ACA4: 1 | ACB4: 1 | ACC4: 1 | ACD4: 1 | ACE4: 1 | ACF4: 1 | ACG4: 1 | ACH4: 1 | ACI4: 1 | ACJ4: 1 | ACK4: 1 | ACL4: 1 | ACM4: 1 | ACN4: 1 | ACO4: 1 | ACP4: 1 | ACQ4: 1 | ACR4: 1 | ACS4: 1 | ACT4: 1 | ACU4: 1 | ACV4: 1 | ACW4: 1 | ACX4: 1 | ACY4: 1 | ACZ4: 1 | ADA4: 1 | ADB4: 1 | ADC4: 1 | ADD4: 1 | ADE4: 1 | ADF4: 1 | ADG4: 1 | ADH4: 1 | ADI4: 1 | ADJ4: 1 | ADK4: 1 | ADL4: 1 | ADM4: 1 | ADN4: 1 | ADO4: 1 | ADP4: 1 | ADQ4: 1 | ADR4: 1 | ADS4: 1 | ADT4: 1 | ADU4: 1 | ADV4: 1 | ADW4: 1 | ADX4: 1 | ADY4: 1 | ADZ4: 1 | AEA4: 1 | AEB4: 1 | AEC4: 1 | AED4: 1 | AEE4: 1 | AEF4: 1 | AEG4: 1 | AEH4: 1 | AEI4: 1 | AEJ4: 1 | AEK4: 1 | AEL4: 1 | AEM4: 1 | AEN4: 1 | AEO4: 1 | AEP4: 1 | AEQ4: 1 | AER4: 1 | AES4: 1 | AET4: 1 | AEU4: 1 | AEV4: 1 | AEW4: 1 | AEX4: 1 | AEY4: 1 | AEZ4: 1 | AFA4: 1 | AFB4: 1 | AFC4: 1 | AFD4: 1 | AFE4: 1 | AFF4: 1 | AFG4: 1 | AFH4: 1 | AFI4: 1 | AFJ4: 1 | AFK4: 1 | AFL4: 1 | AFM4: 1 | AFN4: 1 | AFO4: 1 | AFP4: 1 | AFQ4: 1 | AFR4: 1 | AFS4: 1 | AFT4: 1 | AFU4: 1 | AFV4: 1 | AFW4: 1 | AFX4: 1 | AFY4: 1 | AFZ4: 1 | AGA4: 1 | AGB4: 1 | AGC4: 1 | AGD4: 1 | AGE4: 1 | AGF4: 1 | AGG4: 1 | AGH4: 1 | AGI4: 1 | AGJ4: 1 | AGK4: 1 | AGL4: 1 | AGM4: 1 | AGN4: 1 | AGO4: 1 | AGP4: 1 | AGQ4: 1 | AGR4: 1 | AGS4: 1 | AGT4: 1 | AGU4: 1 | AGV4: 1 | AGW4: 1 | AGX4: 1 | AGY4: 1 | AGZ4: 1 | AHA4: 1 | AHB4: 1 | AHC4: 1 | AHD4: 1 | AHE4: 1 | AHF4: 1 | AHG4: 1 | AHH4: 1 | AHI4: 1 | AHJ4: 1 | AHK4: 1 | AHL4: 1 | AHM4: 1 | AHN4: 1 | AHO4: 1 | AHP4: 1 | AHQ4: 1 | AHR4: 1 | AHS4: 1 | AHT4: 1 | AHU4: 1 | AHV4: 1 | AHW4: 1 | AHX4: 1 | AHY4: 1 | AHZ4: 1 | AIA4: 1 | AIB4: 1 | AIC4: 1 | AID4: 1 | AIE4: 1 | AIF4: 1 | AIG4: 1 | AIH4: 1 | AII4: 1 | AIJ4: 1 | AIK4: 1 | AIL4: 1 | AIM4: 1 | AIN4: 1 | AIO4: 1 | AIP4: 1 | AIQ4: 1 | AIR4: 1 | AIS4: 1 | AIT4: 1 | AIU4: 1 | AIV4: 1 | AIW4: 1 | AIX4: 1 | AIY4: 1 | AIZ4: 1 | AJA4: 1 | AJB4: 1 | AJC4: 1 | AJD4: 1 | AJE4: 1 | AJF4: 1 | AJG4: 1 | AJH4: 1 | AJI4: 1 | AJJ4: 1 | AJK4: 1 | AJL4: 1 | AJM4: 1 | AJN4: 1 | AJO4: 1 | AJP4: 1 | AJQ4: 1 | AJR4: 1 | AJS4: 1 | AJT4: 1 | AJU4: 1 | AJV4: 1 | AJW4: 1 | AJX4: 1 | AJY4: 1 | AJZ4: 1 | AKA4: 1 | AKB4: 1 | AKC4: 1 | AKD4: 1 | AKE4: 1 | AKF4: 1 | AKG4: 1 | AKH4: 1 | AKI4: 1 | AKJ4: 1 | AKK4: 1 | AKL4: 1 | AKM4: 1 | AKN4: 1 | AKO4: 1 | AKP4: 1 | AKQ4: 1 | AKR4: 1 | AKS4: 1 | AKT4: 1 | AKU4: 1 | AKV4: 1 | AKW4: 1 | AKX4: 1 | AKY4: 1 | AKZ4: 1 | ALA4: 1 | ALB4: 1 | ALC4: 1 | ALD4: 1 | ALE4: 1 | ALF4: 1 | ALG4: 1 | ALH4: 1 | ALI4: 1 | ALJ4: 1 | ALK4: 1 | ALL4: 1 | ALM4: 1 | ALN4: 1
B5: Nesměň | C5: 6 | D5: 4 | G5: 4 | H5: 4 | M5: 5 | P5: 4 | S5: 3 | T5: 2 | U5: 3 | W5: 3 | Z5: 6 | AC5: 4 | AF5: 2 | AJ5: 5 | AK5: 4 | AP5: 4 | AU5: 4 | AV5: 5 | AX5: 6 | BB5: 3 | BC5: 6 | BD5: 3 | BI5: 5 | BK5: 3 | BN5: 2 | BP5: 5 | BS5: 3 | BY5: 7 | CB5: 2 | CF5: 3 | CH5: 5 | CI5: 5 | CK5: 5 | CL5: 5 | CR5: 5 | CS5: 5 | CT5: 2 | CV5: 7 | CY5: 4 | CZ5: 3 | DC5: 6 | DD5: 5 | DE5: 2 | DH5: 3 | DI5: 6 | DJ5: 6 | DK5: 3 | DL5: 5 | DM5: 4 | DO5: 4 | DP5: 4 | DQ5: 2 | DR5: 4 | EA5: 3 | EF5: 4 | EH5: 4 | EI5: 3 | EJ5: 7 | EK5: 3 | EM5: 5 | ER5: 2 | ET5: 4 | EU5: 4 | EV5: 6 | EY5: 4 | EZ5: 3 | FA5: 3 | FC5: 6 | FD5: 5 | FE5: 4 | FH5: 4 | FJ5: 4 | FM5: 4 | FO5: 5 | FT5: 5 | FW5: 5 | GB5: 3 | GD5: 3 | GF5: 5 | GH5: 4 | GK5: 4 | GN5: 4 | GO5: 5 | GS5: 4 | GU5: 4 | GW5: 3 | HB5: 4 | HE5: 4 | HF5: 4 | HI5: 6 | HM5: 6 | HN5: 6 | HO5: 5 | HP5: 4 | HQ5: 5 | HS5: 5 | HT5: 4 | HV5: 5 | HY5: 4 | HZ5: 7 | IA5: 6 | IB5: 4 | ID5: 6 | IG5: 5 | IK5: 2 | IM5: 6 | IQ5: 6 | IS5: 4 | IU5: 3 | IV5: 5 | JA5: 4 | JB5: 5 | JE5: 5 | JF5: 5 | JI5: 5 | JJ5: 2 | JP5: 3 | JR5: 4 | JS5: 5 | JT5: 5 | JU5: 5 | JX5: 4 | JY5: 4 | KA5: 4 | KB5: 7 | KC5: 5 | KD5: 3 | KE5: 2 | KG5: 3 | KJ5: 4 | KK5: 4 | KL5: 5 | KM5: 5 | KO5: 4 | KS5: 2 | KV5: 5 | KW5: 5 | KX5: 5 | LB5: 6 | LC5: 5 | LH5: 3 | LI5: 3 | LK5: 4 | LM5: 4 | LN5: 5 | LO5: 5 | LR5: 4 | LT5: 4 | LU5: 3 | LV5: 4 | LX5: 7 | LZ5: 2 | MB5: 5 | MD5: 3 | ME5: 3 | MJ5: 4 | MK5: 6 | MM5: 6 | MR5: 5 | MV5: 5 | MW5: 3 | MX5: 4 | MZ5: 4 | NB5: 2 | ND5: 5 | NE5: 5 | NG5: 6 | NI5: 3 | NK5: 4 | NM5: 4 | NR5: 4 | NS5: 6 | NT5: 4 | NV5: 4 | NY5: 5 | OA5: 5 | OG5: 6 | OI5: 4 | OK5: 4 | OM5: 5 | OP5: 4 | OV5: 5 | OY5: 4 | OZ5: 6 | PB5: 4 | PD5: 5 | PE5: 3 | PJ5: 4 | PK5: 4 | PL5: 5 | PP5: 4 | PQ5: 6 | PR5: 4 | PS5: 2 | PT5: 4 | PX5: 4 | QB5: 2 | QD5: 4 | QE5: 4 | QJ5: 4 | QL5: 2 | QQ5: 6 | QS5: 6 | QT5: 2 | QU5: 4 | QX5: 6 | RA5: 4 | RB5: 3 | RD5: 2 | RE5: 4 | RF5: 3 | RL5: 5 | RO5: 4 | RQ5: 5 | RR5: 4 | RS5: 2 | RT5: 4 | RU5: 4 | RW5: 7 | SC5: 5 | SE5: 3 | SG5: 4 | SH5: 3 | SJ5: 3 | SK5: 4 | SM5: 4 | SO5: 4 | SR5: 4 | SV5: 3 | SW5: 5 | SX5: 5 | TA5: 4 | TD5: 4 | TF5: 4 | TH5: 3 | TI5: 4 | TK5: 4 | TL5: 5 | TM5: 5 | TQ5: 4 | TS5: 5 | TU5: 5 | TV5: 3 | TX5: 4 | UA5: 6 | UB5: 3 | UE5: 3 | UF5: 5 | UG5: 3 | US5: 5 | UW5: 4 | UX5: 3 | UZ5: 5 | VB5: 4 | VD5: 6 | VF5: 4 | VH5: 6 | VI5: 4 | VK5: 3 | VP5: 4 | VQ5: 5 | VR5: 3 | VS5: 5 | VU5: 5 | VX5: 3 | WC5: 3 | WK5: 4 | WM5: 3 | WO5: 3 | WP5: 5 | WT5: 6 | WU5: 3 | WW5: 4 | WX5: 4 | XA5: 4 | XB5: 5 | XD5: 5 | XF5: 5 | XK5: 4 | XM5: 5 | XN5: 4 | XQ5: 3 | XS5: 5 | XT5: 4 | XU5: 4 | XW5: 4 | XX5: 4 | YA5: 5 | YE5: 4 | YG5: 4 | YI5: 4 | YJ5: 5 | YP5: 5 | YR5: 6 | YT5: 4 | YU5: 5 | YV5: 5 | ZA5: 5 | ZC5: 3 | ZD5: 4 | ZG5: 5 | ZI5: 3 | ZJ5: 4 | ZN5: 5 | ZO5: 5 | ZP5: 4 | ZQ5: 2 | ZR5: 6 | ZS5: 3 | ZT5: 6 | ZU5: 2 | ZW5: 5 | ZZ5: 2 | AAB5: 4 | AAC5: 4 | AAD5: 5 | AAE5: 5 | AAG5: 3 | AAI5: 4 | AAJ5: 4 | AAM5: 5 | AAQ5: 5 | AAW5: 6 | AAY5: 5 | AAZ5: 7 | ABC5: 2 | ABF5: 6 | ABG5: 6 | ABI5: 6 | ABK5: 4 | ABP5: 3 | ABR5: 4 | ABV5: 3 | ABW5: 4 | ABX5: 6 | ABZ5: 4 | ACC5: 4 | ACD5: 4 | ACG5: 3 | ACI5: 6 | ACK5: 5 | ACL5: 4 | ACU5: 5 | ACV5: 4 | ACY5: 6 | ADA5: 4 | ADB5: 3 | ADC5: 5 | ADD5: 2 | ADE5: 3 | ADH5: 4 | ADI5: 4 | ADK5: 4 | ADL5: 6 | ADN5: 3 | ADU5: 3 | ADV5: 3 | ADW5: 4 | AEA5: 5 | AED5: 3 | AEF5: 4 | AEG5: 5 | AEK5: 3 | AEO5: 5 | AEP5: 5 | AEQ5: 5 | AER5: 3 | AES5: 6 | AET5: 6 | AEV5: 7 | AEX5: 3 | AEY5: 2 | AFA5: 3 | AFC5: 5 | AFE5: 3 | AFG5: 6 | AFI5: 3 | AFJ5: 4 | AFK5: 5 | AFN5: 2 | AFP5: 5 | AFQ5: 5 | AFR5: 5 | AFT5: 6 | AFU5: 4 | AGA5: 4 | AGC5: 4 | AGE5: 4 | AGF5: 5 | AGH5: 2 | AGI5: 5 | AGJ5: 2 | AGL5: 7 | AGM5: 3 | AGN5: 4 | AGO5: 4 | AGR5: 3 | AGS5: 4 | AGV5: 3 | AGW5: 5 | AGX5: 5 | AGZ5: 3 | AHB5: 3 | AHF5: 5 | AHG5: 4 | AHH5: 4 | AHJ5: 6 | AHK5: 3 | AHL5: 5 | AHN5: 5 | AHQ5: 6 | AHV5: 2 | AHW5: 3 | AHX5: 4 | AHZ5: 4 | AIB5: 4 | AIC5: 4 | AIF5: 3 | AII5: 3 | AIK5: 4 | AIM5: 2 | AIO5: 4 | AIS5: 5 | AIX5: 3 | AJA5: 4 | AJC5: 5 | AJD5: 4 | AJG5: 4 | AJI5: 5 | AJJ5: 6 | AJK5: 4 | AJM5: 5 | AJN5: 4 | AJP5: 5 | AJV5: 2 | AJZ5: 5 | AKB5: 3 | AKC5: 4 | AKH5: 4 | AKJ5: 3 | AKN5: 5 | AKP5: 4 | AKT5: 5 | AKW5: 3 | AKY5: 6 | ALA5: 5 | ALB5: 5 | ALI5: 5 | ALJ5: 3 | ALK5: 3 | ALL5: 3 | ALN5: 4
B6: Ločenice | C6: 5 | D6: 3 | E6: 5 | F6: 4 | G6: 3 | I6: 5 | J6: 3 | M6: 4 | O6: 3 | R6: 3 | X6: 2 | Y6: 4 | Z6: 5 | AG6: 3 | AJ6: 4 | AR6: 4 | AU6: 3 | AV6: 4 | AX6: 5 | BA6: 5 | BC6: 5 | BH6: 4 | BI6: 4 | BJ6: 5 | BM6: 2 | BQ6: 5 | BR6: 5 | BT6: 4 | BU6: 4 | BV6: 4 | BW6: 4 | BX6: 2 | BY6: 6 | CE6: 3 | CH6: 4 | CL6: 4 | CP6: 2 | CS6: 4 | CU6: 4 | CV6: 6 | CX6: 4 | CY6: 3 | DA6: 4 | DC6: 5 | DD6: 4 | DH6: 2 | DL6: 4 | DM6: 3 | DN6: 3 | DU6: 4 | DV6: 3 | DZ6: 3 | EB6: 3 | EC6: 5 | EE6: 5 | EG6: 5 | EJ6: 6 | EM6: 4 | EO6: 4 | EV6: 5 | EX6: 2 | FC6: 5 | FD6: 4 | FE6: 3 | FN6: 4 | FO6: 4 | FP6: 4 | FR6: 3 | FT6: 4 | FV6: 2 | FW6: 4 | GE6: 3 | GF6: 4 | GG6: 4 | GJ6: 4 | GK6: 3 | GL6: 5 | GM6: 3 | GN6: 3 | GP6: 3 | GS6: 3 | GT6: 4 | GU6: 3 | HA6: 3 | HD6: 5 | HE6: 3 | HG6: 4 | HH6: 4 | HJ6: 4 | HL6: 3 | HM6: 5 | HN6: 5 | HR6: 3 | HS6: 4 | HW6: 4 | HX6: 3 | HZ6: 6 | IA6: 5 | ID6: 5 | IE6: 3 | IF6: 3 | II6: 3 | IJ6: 5 | IM6: 5 | IN6: 5 | IP6: 4 | IQ6: 5 | IR6: 2 | IW6: 6 | IZ6: 4 | JB6: 4 | JE6: 4 | JF6: 4 | JG6: 4 | JI6: 4 | JL6: 5 | JM6: 5 | JN6: 3 | JO6: 4 | JP6: 2 | JQ6: 5 | JR6: 3 | JV6: 5 | JW6: 3 | JX6: 3 | KA6: 3 | KB6: 6 | KC6: 4 | KF6: 5 | KH6: 2 | KN6: 4 | KO6: 3 | KR6: 3 | KT6: 4 | KV6: 4 | KW6: 4 | KX6: 4 | KZ6: 4 | LB6: 5 | LC6: 4 | LF6: 3 | LG6: 4 | LJ6: 2 | LO6: 4 | LQ6: 4 | LW6: 6 | LX6: 6 | LY6: 4 | MB6: 4 | MH6: 5 | MI6: 3 | MK6: 5 | MM6: 5 | MO6: 4 | MP6: 6 | MS6: 2 | MV6: 4 | MY6: 4 | ND6: 4 | NG6: 5 | NH6: 3 | NN6: 4 | NO6: 3 | NR6: 3 | NS6: 5 | NU6: 5 | NW6: 4 | NX6: 4 | NY6: 4 | NZ6: 3 | OC6: 4 | OD6: 3 | OG6: 5 | OH6: 6 | OJ6: 4 | OM6: 4 | ON6: 4 | OQ6: 3 | OU6: 4 | OV6: 4 | OZ6: 5 | PB6: 3 | PD6: 4 | PF6: 3 | PG6: 5 | PI6: 3 | PL6: 4 | PM6: 4 | PO6: 3 | PQ6: 5 | PT6: 3 | PU6: 4 | PV6: 5 | PW6: 5 | PZ6: 4 | QD6: 3 | QF6: 4 | QG6: 4 | QJ6: 3 | QK6: 4 | QO6: 3 | QP6: 3 | QQ6: 5 | QU6: 3 | QV6: 4 | QW6: 4 | QX6: 5 | RA6: 3 | RE6: 3 | RG6: 5 | RH6: 5 | RL6: 4 | RM6: 4 | RN6: 4 | RO6: 3 | RP6: 5 | RQ6: 4 | RR6: 3 | RU6: 3 | RW6: 6 | RX6: 3 | RY6: 4 | RZ6: 3 | SA6: 3 | SB6: 4 | SF6: 4 | SI6: 5 | SN6: 3 | SP6: 4 | SQ6: 2 | SS6: 3 | SW6: 4 | SX6: 4 | TA6: 3 | TB6: 5 | TC6: 4 | TD6: 3 | TF6: 3 | TL6: 4 | TM6: 4 | TP6: 5 | TR6: 4 | TS6: 4 | TT6: 3 | TU6: 4 | TW6: 4 | TZ6: 6 | UA6: 5 | UC6: 5 | UD6: 4 | UE6: 2 | UH6: 4 | UI6: 5 | UL6: 3 | UN6: 4 | UO6: 5 | UQ6: 4 | UR6: 6 | UV6: 2 | UW6: 3 | UZ6: 4 | VA6: 3 | VE6: 5 | VG6: 2 | VH6: 5 | VL6: 4 | VM6: 6 | VO6: 4 | VS6: 4 | VV6: 4 | WA6: 5 | WB6: 5 | WD6: 5 | WI6: 4 | WJ6: 4 | WL6: 5 | WN6: 5 | WP6: 4 | WQ6: 4 | WS6: 5 | WT6: 5 | WV6: 5 | WW6: 3 | XB6: 4 | XC6: 4 | XD6: 4 | XE6: 2 | XI6: 3 | XJ6: 3 | XK6: 3 | XL6: 5 | XO6: 5 | XS6: 4 | XW6: 3 | XZ6: 4 | YD6: 4 | YF6: 4 | YH6: 4 | YJ6: 4 | YK6: 2 | YM6: 4 | YU6: 4 | YZ6: 5 | ZC6: 2 | ZD6: 3 | ZE6: 4 | ZH6: 3 | ZI6: 2 | ZK6: 3 | ZN6: 4 | ZR6: 5 | ZT6: 5 | ZV6: 3 | ZY6: 5 | AAB6: 3 | AAD6: 4 | AAE6: 4 | AAI6: 3 | AAQ6: 4 | AAT6: 2 | AAZ6: 6 | ABA6: 5 | ABB6: 3 | ABD6: 4 | ABF6: 5 | ABG6: 5 | ABI6: 5 | ABJ6: 5 | ABL6: 5 | ABQ6: 4 | ABR6: 3 | ABS6: 3 | ABW6: 3 | ABX6: 5 | ACB6: 2 | ACG6: 2 | ACI6: 5 | ACJ6: 5 | ACK6: 4 | ACQ6: 3 | ACR6: 3 | ACW6: 3 | ACY6: 5 | ADC6: 4 | ADL6: 5 | ADM6: 3 | ADS6: 3 | ADX6: 4 | AEB6: 5 | AEC6: 4 | AEG6: 4 | AEH6: 3 | AEI6: 3 | AEJ6: 5 | AEK6: 2 | AEN6: 3 | AEQ6: 4 | AES6: 5 | AET6: 5 | AEV6: 6 | AEW6: 3 | AFA6: 2 | AFF6: 3 | AFG6: 5 | AFI6: 2 | AFO6: 4 | AFQ6: 4 | AFR6: 4 | AFS6: 4 | AFT6: 5 | AFV6: 2 | AFX6: 4 | AFZ6: 3 | AGA6: 3 | AGC6: 3 | AGD6: 4 | AGG6: 3 | AGI6: 4 | AGL6: 6 | AGO6: 3 | AGQ6: 3 | AGT6: 4 | AGU6: 3 | AGW6: 4 | AGY6: 5 | AHD6: 4 | AHE6: 3 | AHG6: 3 | AHJ6: 5 | AHL6: 4 | AHN6: 4 | AHO6: 4 | AHQ6: 5 | AHR6: 6 | AHS6: 5 | AHT6: 4 | AHZ6: 3 | AIA6: 4 | AIH6: 3 | AIK6: 3 | AIL6: 4 | AIO6: 3 | AIP6: 4 | AIS6: 4 | AIT6: 2 | AIV6: 5 | AIW6: 4 | AIZ6: 4 | AJC6: 4 | AJD6: 3 | AJF6: 3 | AJG6: 3 | AJI6: 4 | AJJ6: 5 | AJP6: 4 | AJS6: 2 | AJT6: 5 | AJU6: 5 | AJW6: 5 | AJX6: 3 | AJY6: 3 | AJZ6: 4 | AKC6: 3 | AKF6: 4 | AKG6: 5 | AKH6: 3 | AKJ6: 2 | AKN6: 4 | AKO6: 2 | AKS6: 3 | AKV6: 4 | AKY6: 5 | AKZ6: 5 | ALA6: 4 | ALC6: 4 | ALE6: 4 | ALH6: 3 | ALJ6: 2 | ALK6: 2 | ALL6: 2
B7: Todně | C7: 4 | E7: 4 | F7: 2 | G7: 2 | H7: 3 | I7: 3 | L7: 2 | M7: 3 | N7: 4 | O7: 2 | S7: 2 | V7: 3 | Z7: 4 | AK7: 3 | AO7: 3 | AQ7: 3 | AR7: 3 | AU7: 2 | AV7: 3 | AX7: 4 | BF7: 4 | BI7: 3 | BJ7: 3 | BK7: 2 | BO7: 3 | BP7: 3 | BQ7: 4 | BY7: 4 | BZ7: 2 | CA7: 4 | CF7: 2 | CI7: 3 | CK7: 3 | CM7: 3 | CN7: 2 | CO7: 2 | CR7: 3 | CS7: 3 | CV7: 4 | DA7: 3 | DC7: 3 | DD7: 2 | DF7: 3 | DI7: 4 | DJ7: 4 | DL7: 3 | DR7: 3 | DU7: 3 | DV7: 2 | EC7: 3 | EE7: 3 | EH7: 3 | EJ7: 4 | EL7: 4 | EM7: 3 | EN7: 3 | EO7: 3 | EP7: 3 | ES7: 2 | EU7: 3 | EV7: 3 | EW7: 2 | FB7: 4 | FC7: 4 | FK7: 4 | FL7: 3 | FR7: 2 | FU7: 2 | FW7: 3 | FX7: 3 | GA7: 2 | GH7: 3 | GI7: 3 | GJ7: 3 | GL7: 3 | GO7: 3 | GP7: 2 | GR7: 4 | GT7: 3 | GV7: 4 | GZ7: 3 | HB7: 2 | HI7: 4 | HJ7: 3 | HL7: 2 | HM7: 3 | HN7: 3 | HO7: 3 | HQ7: 3 | HR7: 2 | HS7: 3 | HU7: 3 | HV7: 3 | HW7: 2 | HX7: 2 | HZ7: 4 | IC7: 4 | ID7: 3 | IG7: 3 | IH7: 4 | IJ7: 3 | IL7: 4 | IM7: 3 | IO7: 2 | IP7: 3 | IQ7: 4 | IS7: 3 | IT7: 3 | IU7: 2 | IV7: 3 | IW7: 4 | IY7: 3 | JA7: 3 | JB7: 3 | JC7: 3 | JE7: 3 | JH7: 3 | JK7: 2 | JL7: 4 | JM7: 3 | JQ7: 3 | JS7: 4 | JT7: 4 | JX7: 2 | KB7: 4 | KD7: 2 | KF7: 3 | KJ7: 3 | KK7: 2 | KL7: 3 | KN7: 3 | KU7: 4 | KV7: 3 | KW7: 3 | LA7: 3 | LB7: 3 | LG7: 2 | LN7: 3 | LQ7: 3 | LS7: 4 | LT7: 2 | LW7: 4 | LX7: 4 | LY7: 3 | MD7: 2 | ME7: 2 | MF7: 2 | MH7: 3 | MK7: 3 | MO7: 3 | MP7: 4 | MR7: 3 | MU7: 2 | MV7: 2 | MY7: 2 | MZ7: 3 | NA7: 2 | NG7: 3 | NH7: 2 | NJ7: 2 | NN7: 3 | NP7: 3 | NR7: 2 | NS7: 3 | NT7: 3 | NU7: 3 | NW7: 2 | NY7: 3 | OA7: 4 | OC7: 3 | OD7: 2 | OE7: 3 | OF7: 4 | OG7: 4 | OH7: 4 | OL7: 4 | OO7: 3 | OR7: 3 | OU7: 3 | OV7: 3 | OZ7: 3 | PC7: 3 | PD7: 2 | PF7: 2 | PG7: 3 | PH7: 3 | PJ7: 2 | PK7: 3 | PM7: 2 | PN7: 2 | PT7: 2 | PU7: 3 | PV7: 3 | PX7: 3 | QD7: 2 | QF7: 2 | QH7: 3 | QI7: 2 | QM7: 2 | QN7: 3 | QQ7: 3 | QS7: 4 | QV7: 3 | QX7: 4 | QZ7: 3 | RC7: 3 | RE7: 2 | RF7: 2 | RI7: 2 | RK7: 3 | RL7: 3 | RM7: 3 | RN7: 2 | RP7: 3 | RQ7: 3 | RW7: 4 | SC7: 3 | SD7: 4 | SE7: 2 | SG7: 2 | SI7: 3 | SX7: 3 | TA7: 2 | TB7: 4 | TC7: 3 | TG7: 2 | TK7: 2 | TL7: 3 | TM7: 3 | TN7: 3 | TO7: 3 | TP7: 3 | TQ7: 2 | TR7: 3 | TS7: 3 | TV7: 2 | TW7: 3 | TX7: 3 | TY7: 3 | TZ7: 4 | UA7: 3 | UB7: 2 | UC7: 3 | UF7: 4 | UH7: 2 | UI7: 3 | UK7: 4 | UN7: 2 | UQ7: 3 | UR7: 4 | UT7: 3 | UU7: 3 | VB7: 3 | VD7: 4 | VE7: 3 | VF7: 2 | VJ7: 3 | VL7: 2 | VM7: 4 | VO7: 2 | VP7: 2 | VQ7: 3 | VT7: 2 | VU7: 3 | VW7: 3 | VX7: 2 | WA7: 3 | WB7: 3 | WD7: 3 | WE7: 4 | WF7: 3 | WG7: 2 | WH7: 2 | WJ7: 3 | WK7: 3 | WN7: 4 | WQ7: 3 | WR7: 2 | WS7: 3 | WT7: 3 | WY7: 4 | WZ7: 4 | XF7: 3 | XG7: 3 | XH7: 3 | XJ7: 2 | XK7: 2 | XL7: 3 | XM7: 3 | XO7: 3 | XR7: 3 | XU7: 3 | XV7: 3 | XY7: 2 | YA7: 3 | YD7: 3 | YE7: 2 | YG7: 2 | YH7: 2 | YN7: 3 | YO7: 3 | YP7: 3 | YQ7: 4 | YR7: 4 | YT7: 3 | YV7: 3 | YX7: 3 | ZG7: 3 | ZH7: 2 | ZM7: 3 | ZN7: 3 | ZO7: 3 | ZP7: 3 | ZT7: 4 | AAC7: 3 | AAH7: 3 | AAN7: 3 | AAO7: 2 | AAP7: 4 | AAS7: 2 | AAU7: 3 | AAV7: 3 | AAW7: 4 | AAX7: 2 | AAZ7: 4 | ABE7: 2 | ABF7: 3 | ABG7: 3 | ABH7: 4 | ABI7: 4 | ABJ7: 3 | ABL7: 3 | ABX7: 3 | ABY7: 3 | ACC7: 3 | ACE7: 3 | ACJ7: 3 | ACL7: 2 | ACN7: 3 | ACS7: 2 | ACT7: 3 | ACU7: 3 | ACW7: 2 | ACX7: 3 | ACY7: 3 | ACZ7: 3 | ADG7: 2 | ADK7: 2 | ADL7: 4 | ADN7: 2 | ADQ7: 2 | ADT7: 2 | ADW7: 3 | ADX7: 3 | AEA7: 4 | AEB7: 3 | AEC7: 3 | AEE7: 3 | AEG7: 3 | AEJ7: 3 | AEL7: 2 | AET7: 4 | AEU7: 3 | AEV7: 4 | AEZ7: 3 | AFB7: 4 | AFC7: 3 | AFD7: 3 | AFE7: 2 | AFG7: 3 | AFH7: 3 | AFJ7: 2 | AFK7: 3 | AFR7: 2 | AFU7: 3 | AFX7: 3 | AFZ7: 2 | AGD7: 2 | AGI7: 2 | AGL7: 4 | AGN7: 3 | AGR7: 2 | AGS7: 3 | AGW7: 3 | AGX7: 4 | AGY7: 3 | AHC7: 2 | AHF7: 3 | AHH7: 3 | AHI7: 3 | AHJ7: 4 | AHK7: 2 | AHL7: 3 | AHN7: 3 | AHQ7: 4 | AHR7: 4 | AHS7: 3 | AHT7: 2 | AHU7: 4 | AHW7: 2 | AHX7: 3 | AHY7: 2 | AIH7: 2 | AIL7: 3 | AIN7: 3 | AIP7: 3 | AIR7: 3 | AIS7: 2 | AIV7: 3 | AIY7: 2 | AJB7: 3 | AJC7: 3 | AJD7: 2 | AJH7: 2 | AJJ7: 3 | AJK7: 3 | AJM7: 4 | AJP7: 2 | AJR7: 3 | AJT7: 3 | AJW7: 4 | AJZ7: 3 | AKA7: 3 | AKE7: 3 | AKF7: 3 | AKG7: 3 | AKH7: 2 | AKI7: 4 | AKQ7: 3 | AKT7: 3 | AKU7: 3 | AKV7: 3 | AKW7: 2 | AKX7: 3 | AKZ7: 3 | ALA7: 3 | ALB7: 3 | ALD7: 4 | ALE7: 3 | ALF7: 3 | ALG7: 2 | ALI7: 3 | ALN7: 3
B8: Nežetice | C8: 3 | E8: 3 | J8: 2 | N8: 3 | P8: 3 | Q8: 3 | R8: 2 | U8: 2 | Z8: 3 | AA8: 3 | AB8: 3 | AE8: 2 | AI8: 3 | AJ8: 3 | AP8: 2 | AS8: 2 | AV8: 2 | AX8: 3 | AZ8: 2 | BA8: 3 | BC8: 3 | BF8: 3 | BG8: 3 | BJ8: 2 | BP8: 2 | BQ8: 3 | BR8: 3 | BT8: 3 | BU8: 3 | BV8: 3 | BW8: 2 | BY8: 3 | CA8: 3 | CD8: 2 | CH8: 3 | CI8: 2 | CK8: 2 | CS8: 2 | CV8: 3 | CW8: 2 | CX8: 2 | CZ8: 2 | DA8: 2 | DB8: 2 | DG8: 2 | DI8: 3 | DJ8: 3 | DO8: 2 | DP8: 2 | DS8: 2 | DT8: 3 | DU8: 2 | DW8: 2 | DY8: 3 | EA8: 2 | EB8: 2 | ED8: 2 | EE8: 2 | EG8: 3 | EI8: 2 | EJ8: 3 | EK8: 2 | EL8: 3 | EM8: 2 | ET8: 3 | FA8: 2 | FB8: 3 | FC8: 3 | FE8: 2 | FF8: 2 | FH8: 2 | FJ8: 2 | FK8: 3 | FM8: 3 | FP8: 2 | FS8: 2 | FW8: 2 | FY8: 2 | FZ8: 3 | GC8: 2 | GF8: 3 | GN8: 2 | GR8: 3 | GT8: 2 | GV8: 3 | GX8: 3 | GZ8: 2 | HC8: 2 | HD8: 3 | HE8: 2 | HF8: 2 | HH8: 3 | HI8: 3 | HJ8: 2 | HP8: 2 | HQ8: 2 | HU8: 2 | HY8: 3 | HZ8: 3 | IA8: 3 | IB8: 3 | IC8: 3 | ID8: 2 | IE8: 2 | IH8: 3 | II8: 2 | IJ8: 2 | IL8: 3 | IN8: 3 | IQ8: 3 | IS8: 2 | IT8: 2 | IW8: 3 | IY8: 2 | JA8: 2 | JC8: 2 | JD8: 2 | JH8: 2 | JL8: 3 | JS8: 3 | JT8: 3 | JU8: 3 | JV8: 3 | JZ8: 3 | KB8: 3 | KC8: 3 | KG8: 2 | KI8: 2 | KL8: 2 | KM8: 3 | KP8: 3 | KT8: 3 | KU8: 3 | KV8: 2 | KX8: 3 | KY8: 2 | LA8: 2 | LC8: 3 | LD8: 3 | LH8: 2 | LL8: 2 | LO8: 3 | LP8: 3 | LS8: 3 | LU8: 2 | LV8: 2 | LW8: 3 | LX8: 3 | LY8: 2 | MC8: 3 | MG8: 3 | MJ8: 2 | MK8: 2 | MM8: 3 | MP8: 3 | MQ8: 3 | MT8: 2 | MX8: 3 | MZ8: 2 | ND8: 3 | NE8: 3 | NF8: 3 | NM8: 3 | NQ8: 2 | NS8: 2 | NV8: 2 | NZ8: 2 | OA8: 3 | OC8: 2 | OF8: 3 | OG8: 3 | OH8: 3 | OK8: 3 | OL8: 3 | ON8: 2 | OO8: 2 | OP8: 2 | OQ8: 2 | OU8: 2 | OY8: 2 | OZ8: 2 | PA8: 2 | PH8: 2 | PI8: 2 | PP8: 2 | PQ8: 3 | PR8: 3 | PV8: 2 | PW8: 3 | PZ8: 2 | QE8: 2 | QH8: 2 | QN8: 2 | QO8: 2 | QQ8: 2 | QR8: 2 | QS8: 3 | QW8: 3 | QX8: 3 | QY8: 3 | RB8: 2 | RC8: 2 | RG8: 3 | RH8: 3 | RK8: 2 | RL8: 2 | RP8: 2 | RW8: 3 | RY8: 3 | RZ8: 2 | SB8: 2 | SC8: 2 | SD8: 3 | SH8: 2 | SI8: 2 | SJ8: 2 | SK8: 3 | SN8: 2 | SP8: 2 | SU8: 2 | SZ8: 3 | TB8: 3 | TC8: 2 | TE8: 3 | TI8: 3 | TN8: 2 | TP8: 2 | TR8: 2 | TT8: 2 | TU8: 2 | TX8: 2 | TY8: 2 | TZ8: 3 | UC8: 2 | UF8: 3 | UK8: 3 | UM8: 2 | UO8: 3 | UP8: 2 | UR8: 3 | US8: 3 | UT8: 2 | UU8: 2 | VA8: 2 | VB8: 2 | VC8: 2 | VD8: 3 | VE8: 2 | VH8: 3 | VJ8: 2 | VK8: 2 | VM8: 3 | VS8: 3 | VV8: 3 | VY8: 3 | WB8: 2 | WC8: 2 | WE8: 3 | WI8: 2 | WK8: 2 | WL8: 3 | WN8: 3 | WP8: 2 | WQ8: 2 | WV8: 3 | WW8: 2 | WX8: 2 | WY8: 3 | WZ8: 3 | XA8: 2 | XD8: 3 | XG8: 2 | XH8: 2 | XL8: 2 | XN8: 2 | XP8: 3 | XR8: 2 | XT8: 2 | XU8: 2 | XV8: 2 | XZ8: 3 | YI8: 2 | YJ8: 3 | YO8: 2 | YQ8: 3 | YR8: 3 | YS8: 2 | YU8: 3 | YV8: 2 | YW8: 3 | YX8: 2 | YY8: 2 | YZ8: 3 | ZA8: 3 | ZE8: 2 | ZF8: 3 | ZG8: 2 | ZK8: 2 | ZM8: 2 | ZN8: 2 | ZP8: 2 | ZR8: 3 | ZS8: 2 | ZT8: 3 | ZW8: 3 | ZY8: 3 | AAB8: 2 | AAD8: 3 | AAF8: 2 | AAG8: 2 | AAH8: 2 | AAJ8: 3 | AAK8: 2 | AAL8: 2 | AAM8: 3 | AAP8: 3 | AAR8: 2 | AAU8: 2 | AAV8: 2 | AAW8: 3 | AAY8: 3 | AAZ8: 3 | ABA8: 3 | ABB8: 2 | ABF8: 2 | ABH8: 3 | ABI8: 3 | ABJ8: 2 | ABL8: 2 | ABM8: 2 | ABN8: 2 | ABP8: 2 | ABT8: 2 | ABX8: 2 | ABZ8: 3 | ACC8: 2 | ACE8: 2 | ACH8: 3 | ACI8: 3 | ACJ8: 2 | ACK8: 2 | ACO8: 2 | ACP8: 3 | ACT8: 2 | ACV8: 2 | ACZ8: 2 | ADA8: 2 | ADB8: 2 | ADC8: 2 | ADE8: 2 | ADF8: 3 | ADH8: 3 | ADI8: 3 | ADL8: 3 | ADM8: 2 | ADP8: 3 | ADS8: 2 | ADV8: 2 | ADX8: 2 | ADZ8: 2 | AEA8: 3 | AEB8: 2 | AED8: 2 | AEE8: 2 | AEF8: 3 | AEJ8: 2 | AEM8: 3 | AEO8: 3 | AEP8: 3 | AES8: 3 | AET8: 3 | AEU8: 2 | AEV8: 3 | AFB8: 3 | AFF8: 2 | AFM8: 2 | AFO8: 3 | AFP8: 3 | AFQ8: 3 | AFT8: 3 | AFU8: 2 | AFW8: 3 | AFX8: 2 | AGF8: 3 | AGG8: 2 | AGK8: 2 | AGL8: 3 | AGO8: 2 | AGS8: 2 | AGV8: 2 | AGX8: 3 | AGY8: 2 | AHF8: 2 | AHH8: 2 | AHJ8: 3 | AHL8: 2 | AHM8: 3 | AHN8: 2 | AHO8: 2 | AHP8: 3 | AHQ8: 3 | AHR8: 3 | AHU8: 3 | AHX8: 2 | AIC8: 2 | AIN8: 2 | AIQ8: 3 | AIU8: 3 | AIV8: 2 | AIW8: 3 | AJC8: 2 | AJK8: 2 | AJL8: 3 | AJM8: 3 | AJN8: 3 | AJO8: 2 | AJU8: 3 | AJW8: 3 | AJX8: 2 | AJZ8: 2 | AKA8: 2 | AKD8: 2 | AKE8: 2 | AKG8: 2 | AKI8: 3 | AKL8: 2 | AKN8: 3 | AKQ8: 2 | AKR8: 3 | AKV8: 2 | AKX8: 2 | AKY8: 3 | ALB8: 2 | ALC8: 2 | ALD8: 3 | ALE8: 2 | ALH8: 2 | ALI8: 2 | ALM8: 3 | ALN8: 2
B9: Březí | C9: 2 | E9: 2 | H9: 2 | I9: 2 | M9: 2 | N9: 2 | P9: 2 | Q9: 2 | V9: 2 | Y9: 2 | Z9: 2 | AA9: 2 | AB9: 2 | AC9: 2 | AG9: 2 | AH9: 2 | AI9: 2 | AJ9: 2 | AK9: 2 | AN9: 2 | AO9: 2 | AQ9: 2 | AR9: 2 | AW9: 2 | AX9: 2 | AY9: 2 | BA9: 2 | BC9: 2 | BF9: 2 | BG9: 2 | BH9: 2 | BI9: 2 | BO9: 2 | BQ9: 2 | BR9: 2 | BT9: 2 | BU9: 2 | BV9: 2 | BY9: 2 | CA9: 2 | CC9: 2 | CG9: 2 | CH9: 2 | CL9: 2 | CM9: 2 | CR9: 2 | CU9: 2 | CV9: 2 | DC9: 2 | DF9: 2 | DI9: 2 | DJ9: 2 | DK9: 2 | DL9: 2 | DM9: 2 | DR9: 2 | DT9: 2 | DX9: 2 | DY9: 2 | DZ9: 2 | EC9: 2 | EF9: 2 | EG9: 2 | EH9: 2 | EJ9: 2 | EL9: 2 | EN9: 2 | EO9: 2 | EP9: 2 | ET9: 2 | EU9: 2 | EV9: 2 | EY9: 2 | FB9: 2 | FC9: 2 | FD9: 2 | FG9: 2 | FK9: 2 | FL9: 2 | FM9: 2 | FN9: 2 | FO9: 2 | FT9: 2 | FX9: 2 | FZ9: 2 | GF9: 2 | GG9: 2 | GH9: 2 | GI9: 2 | GJ9: 2 | GL9: 2 | GM9: 2 | GO9: 2 | GR9: 2 | GS9: 2 | GV9: 2 | GX9: 2 | HA9: 2 | HD9: 2 | HG9: 2 | HH9: 2 | HI9: 2 | HK9: 2 | HM9: 2 | HN9: 2 | HO9: 2 | HS9: 2 | HT9: 2 | HV9: 2 | HY9: 2 | HZ9: 2 | IA9: 2 | IB9: 2 | IC9: 2 | IG9: 2 | IH9: 2 | IL9: 2 | IM9: 2 | IN9: 2 | IP9: 2 | IQ9: 2 | IV9: 2 | IW9: 2 | IZ9: 2 | JB9: 2 | JE9: 2 | JF9: 2 | JG9: 2 | JI9: 2 | JL9: 2 | JM9: 2 | JN9: 2 | JO9: 2 | JQ9: 2 | JR9: 2 | JS9: 2 | JT9: 2 | JU9: 2 | JV9: 2 | JY9: 2 | JZ9: 2 | KB9: 2 | KC9: 2 | KF9: 2 | KJ9: 2 | KM9: 2 | KN9: 2 | KP9: 2 | KR9: 2 | KT9: 2 | KU9: 2 | KW9: 2 | KX9: 2 | KZ9: 2 | LB9: 2 | LC9: 2 | LD9: 2 | LF9: 2 | LK9: 2 | LM9: 2 | LN9: 2 | LO9: 2 | LP9: 2 | LQ9: 2 | LR9: 2 | LS9: 2 | LW9: 2 | LX9: 2 | MB9: 2 | MC9: 2 | MG9: 2 | MH9: 2 | MM9: 2 | MN9: 2 | MO9: 2 | MP9: 2 | MQ9: 2 | MR9: 2 | MW9: 2 | MX9: 2 | NC9: 2 | ND9: 2 | NE9: 2 | NF9: 2 | NG9: 2 | NK9: 2 | NM9: 2 | NN9: 2 | NP9: 2 | NT9: 2 | NU9: 2 | NX9: 2 | NY9: 2 | OA9: 2 | OB9: 2 | OE9: 2 | OF9: 2 | OG9: 2 | OH9: 2 | OI9: 2 | OJ9: 2 | OK9: 2 | OL9: 2 | OM9: 2 | OR9: 2 | OS9: 2 | OT9: 2 | OV9: 2 | PB9: 2 | PC9: 2 | PE9: 2 | PG9: 2 | PK9: 2 | PL9: 2 | PQ9: 2 | PR9: 2 | PU9: 2 | PW9: 2 | PX9: 2 | PY9: 2 | QC9: 2 | QG9: 2 | QK9: 2 | QS9: 2 | QU9: 2 | QV9: 2 | QW9: 2 | QX9: 2 | QY9: 2 | QZ9: 2 | RG9: 2 | RH9: 2 | RJ9: 2 | RM9: 2 | RO9: 2 | RQ9: 2 | RT9: 2 | RU9: 2 | RW9: 2 | RX9: 2 | RY9: 2 | SA9: 2 | SD9: 2 | SF9: 2 | SK9: 2 | SL9: 2 | SM9: 2 | SO9: 2 | SR9: 2 | SW9: 2 | SX9: 2 | SZ9: 2 | TB9: 2 | TE9: 2 | TI9: 2 | TL9: 2 | TM9: 2 | TO9: 2 | TS9: 2 | TW9: 2 | TZ9: 2 | UA9: 2 | UD9: 2 | UF9: 2 | UI9: 2 | UJ9: 2 | UK9: 2 | UO9: 2 | UQ9: 2 | UR9: 2 | US9: 2 | UW9: 2 | UX9: 2 | UZ9: 2 | VD9: 2 | VH9: 2 | VI9: 2 | VM9: 2 | VQ9: 2 | VS9: 2 | VU9: 2 | VV9: 2 | VW9: 2 | VY9: 2 | WA9: 2 | WD9: 2 | WE9: 2 | WF9: 2 | WJ9: 2 | WL9: 2 | WN9: 2 | WS9: 2 | WT9: 2 | WV9: 2 | WY9: 2 | WZ9: 2 | XB9: 2 | XC9: 2 | XD9: 2 | XF9: 2 | XM9: 2 | XO9: 2 | XP9: 2 | XQ9: 2 | XS9: 2 | XX9: 2 | XZ9: 2 | YA9: 2 | YC9: 2 | YD9: 2 | YF9: 2 | YJ9: 2 | YL9: 2 | YM9: 2 | YN9: 2 | YP9: 2 | YQ9: 2 | YR9: 2 | YT9: 2 | YU9: 2 | YW9: 2 | YZ9: 2 | ZA9: 2 | ZD9: 2 | ZF9: 2 | ZJ9: 2 | ZO9: 2 | ZR9: 2 | ZT9: 2 | ZV9: 2 | ZW9: 2 | ZX9: 2 | ZY9: 2 | AAC9: 2 | AAD9: 2 | AAE9: 2 | AAI9: 2 | AAJ9: 2 | AAM9: 2 | AAN9: 2 | AAP9: 2 | AAQ9: 2 | AAW9: 2 | AAY9: 2 | AAZ9: 2 | ABA9: 2 | ABD9: 2 | ABG9: 2 | ABH9: 2 | ABI9: 2 | ABK9: 2 | ABO9: 2 | ABQ9: 2 | ABS9: 2 | ABW9: 2 | ABY9: 2 | ABZ9: 2 | ACD9: 2 | ACH9: 2 | ACI9: 2 | ACM9: 2 | ACN9: 2 | ACP9: 2 | ACQ9: 2 | ACR9: 2 | ACU9: 2 | ACX9: 2 | ACY9: 2 | ADF9: 2 | ADH9: 2 | ADI9: 2 | ADL9: 2 | ADP9: 2 | ADU9: 2 | ADW9: 2 | AEA9: 2 | AEC9: 2 | AEF9: 2 | AEG9: 2 | AEM9: 2 | AEN9: 2 | AEO9: 2 | AEP9: 2 | AEQ9: 2 | AES9: 2 | AET9: 2 | AEV9: 2 | AEX9: 2 | AEZ9: 2 | AFB9: 2 | AFC9: 2 | AFD9: 2 | AFG9: 2 | AFH9: 2 | AFK9: 2 | AFL9: 2 | AFO9: 2 | AFP9: 2 | AFQ9: 2 | AFS9: 2 | AFT9: 2 | AFW9: 2 | AFY9: 2 | AGB9: 2 | AGC9: 2 | AGE9: 2 | AGF9: 2 | AGL9: 2 | AGM9: 2 | AGN9: 2 | AGP9: 2 | AGQ9: 2 | AGT9: 2 | AGU9: 2 | AGW9: 2 | AGX9: 2 | AGZ9: 2 | AHD9: 2 | AHG9: 2 | AHI9: 2 | AHJ9: 2 | AHM9: 2 | AHP9: 2 | AHQ9: 2 | AHR9: 2 | AHS9: 2 | AHU9: 2 | AHZ9: 2 | AIA9: 2 | AIB9: 2 | AII9: 2 | AIL9: 2 | AIO9: 2 | AIP9: 2 | AIQ9: 2 | AIR9: 2 | AIU9: 2 | AIW9: 2 | AIZ9: 2 | AJA9: 2 | AJB9: 2 | AJG9: 2 | AJI9: 2 | AJJ9: 2 | AJL9: 2 | AJM9: 2 | AJN9: 2 | AJR9: 2 | AJT9: 2 | AJU9: 2 | AJW9: 2 | AKC9: 2 | AKF9: 2 | AKI9: 2 | AKK9: 2 | AKM9: 2 | AKN9: 2 | AKP9: 2 | AKR9: 2 | AKT9: 2 | AKU9: 2 | AKY9: 2 | AKZ9: 2 | ALA9: 2 | ALD9: 2 | ALF9: 2 | ALM9: 2
B10: Něchov | D10: 2 | F10: 3 | I10: 4 | L10: 3 | W10: 2 | Y10: 3 | AA10: 4 | AB10: 4 | AC10: 3 | AE10: 3 | AH10: 3 | AL10: 2 | AO10: 4 | AP10: 3 | AS10: 3 | AT10: 2 | AY10: 3 | BA10: 4 | BB10: 2 | BC10: 4 | BD10: 2 | BF10: 5 | BH10: 3 | BJ10: 4 | BL10: 2 | BO10: 4 | BP10: 4 | BR10: 4 | BS10: 2 | BW10: 3 | BY10: 5 | CA10: 5 | CD10: 3 | CE10: 2 | CG10: 3 | CI10: 4 | CJ10: 2 | CK10: 4 | CL10: 3 | CO10: 3 | CR10: 4 | CU10: 3 | CV10: 5 | CW10: 3 | CX10: 3 | CY10: 2 | DC10: 4 | DD10: 3 | DG10: 3 | DI10: 5 | DJ10: 5 | DN10: 2 | DO10: 3 | DP10: 3 | DT10: 4 | DW10: 3 | DX10: 3 | DY10: 4 | EC10: 4 | EE10: 4 | EF10: 3 | EG10: 4 | EJ10: 5 | EL10: 5 | EP10: 4 | EQ10: 2 | ES10: 3 | EV10: 4 | EW10: 3 | EY10: 3 | EZ10: 2 | FD10: 3 | FG10: 3 | FH10: 3 | FJ10: 3 | FL10: 4 | FN10: 3 | FO10: 3 | FP10: 3 | FS10: 3 | FT10: 3 | FY10: 3 | GA10: 3 | GB10: 2 | GD10: 2 | GE10: 2 | GG10: 3 | GI10: 4 | GK10: 2 | GL10: 4 | GO10: 4 | GU10: 2 | GW10: 2 | GX10: 4 | HB10: 3 | HC10: 3 | HD10: 4 | HF10: 3 | HG10: 3 | HI10: 5 | HM10: 4 | HN10: 4 | HO10: 4 | HP10: 3 | HQ10: 4 | HT10: 3 | HV10: 4 | HW10: 3 | HZ10: 5 | IA10: 4 | ID10: 4 | IF10: 2 | IG10: 4 | IJ10: 4 | IL10: 5 | IM10: 4 | IN10: 4 | IO10: 3 | IV10: 4 | IW10: 5 | IX10: 2 | IZ10: 3 | JF10: 3 | JG10: 3 | JI10: 3 | JM10: 4 | JO10: 3 | JQ10: 4 | JU10: 4 | JV10: 4 | JW10: 2 | JY10: 3 | JZ10: 4 | KA10: 2 | KB10: 5 | KF10: 4 | KI10: 3 | KK10: 3 | KL10: 4 | KM10: 4 | KO10: 2 | KZ10: 3 | LA10: 4 | LB10: 4 | LD10: 4 | LG10: 3 | LI10: 2 | LK10: 3 | LL10: 3 | LM10: 3 | LN10: 4 | LR10: 3 | LS10: 5 | LT10: 3 | LV10: 3 | LW10: 5 | LX10: 5 | MA10: 2 | MB10: 3 | MF10: 3 | MH10: 4 | MI10: 2 | MJ10: 3 | MK10: 4 | MM10: 4 | MP10: 5 | MR10: 4 | MV10: 3 | MY10: 3 | NE10: 4 | NF10: 4 | NG10: 4 | NI10: 2 | NJ10: 3 | NK10: 3 | NO10: 2 | NS10: 4 | NU10: 4 | NV10: 3 | NW10: 3 | NX10: 3 | OB10: 3 | OE10: 4 | OF10: 5 | OH10: 5 | OI10: 3 | OJ10: 3 | OM10: 3 | ON10: 3 | OO10: 4 | OP10: 3 | OW10: 2 | OY10: 3 | OZ10: 4 | PA10: 3 | PC10: 4 | PD10: 3 | PG10: 4 | PH10: 4 | PJ10: 3 | PL10: 3 | PM10: 3 | PN10: 3 | PO10: 2 | PP10: 3 | PQ10: 4 | PV10: 4 | PW10: 4 | PY10: 3 | PZ10: 3 | QA10: 2 | QE10: 3 | QF10: 3 | QG10: 3 | QJ10: 2 | QK10: 3 | QN10: 4 | QP10: 2 | QQ10: 4 | QS10: 5 | RA10: 2 | RC10: 4 | RG10: 4 | RH10: 4 | RJ10: 3 | RN10: 3 | RP10: 4 | RR10: 2 | RT10: 3 | RW10: 5 | SB10: 3 | SC10: 4 | SD10: 5 | SF10: 3 | SG10: 3 | SI10: 4 | SL10: 3 | SM10: 3 | SO10: 3 | SP10: 3 | SR10: 3 | SS10: 2 | ST10: 2 | SV10: 2 | SW10: 3 | SY10: 2 | SZ10: 4 | TD10: 2 | TE10: 4 | TF10: 2 | TH10: 2 | TK10: 3 | TO10: 4 | TP10: 4 | TQ10: 3 | TU10: 3 | TZ10: 5 | UA10: 4 | UC10: 4 | UD10: 3 | UG10: 2 | UH10: 3 | UI10: 4 | UJ10: 3 | UL10: 2 | UM10: 3 | UN10: 3 | UO10: 4 | UP10: 3 | UR10: 5 | US10: 4 | UT10: 4 | UZ10: 3 | VD10: 5 | VE10: 4 | VF10: 3 | VH10: 4 | VI10: 3 | VJ10: 4 | VL10: 3 | VM10: 5 | VN10: 2 | VO10: 3 | VP10: 3 | VQ10: 4 | VR10: 2 | VT10: 3 | VU10: 4 | VZ10: 2 | WA10: 4 | WB10: 4 | WD10: 4 | WI10: 3 | WL10: 4 | WM10: 2 | WO10: 2 | WP10: 3 | WR10: 3 | WS10: 4 | WT10: 4 | WU10: 2 | WV10: 4 | WX10: 3 | WZ10: 5 | XA10: 3 | XB10: 3 | XC10: 3 | XF10: 4 | XH10: 4 | XI10: 2 | XL10: 4 | XM10: 4 | XN10: 3 | XO10: 4 | XS10: 3 | XT10: 3 | XW10: 2 | XX10: 3 | YA10: 4 | YC10: 3 | YE10: 3 | YF10: 3 | YG10: 3 | YH10: 3 | YI10: 3 | YM10: 3 | YP10: 4 | YR10: 5 | YV10: 4 | YX10: 4 | YY10: 3 | YZ10: 4 | ZA10: 4 | ZB10: 2 | ZE10: 3 | ZF10: 4 | ZG10: 4 | ZJ10: 3 | ZM10: 4 | ZO10: 4 | ZR10: 4 | ZW10: 4 | ZY10: 4 | AAE10: 3 | AAK10: 3 | AAL10: 3 | AAM10: 4 | AAP10: 5 | AAQ10: 3 | AAS10: 3 | AAV10: 4 | AAW10: 5 | AAY10: 4 | AAZ10: 5 | ABA10: 4 | ABD10: 3 | ABF10: 4 | ABG10: 4 | ABH10: 5 | ABJ10: 4 | ABK10: 3 | ABL10: 4 | ABM10: 3 | ABQ10: 3 | ABR10: 2 | ABT10: 3 | ABU10: 2 | ABV10: 2 | ABX10: 4 | ACA10: 2 | ACD10: 3 | ACE10: 4 | ACF10: 2 | ACH10: 4 | ACI10: 4 | ACJ10: 4 | ACK10: 3 | ACL10: 3 | ACP10: 4 | ACS10: 3 | ACU10: 4 | ACV10: 3 | ACY10: 4 | ADA10: 3 | ADC10: 3 | ADG10: 3 | ADJ10: 2 | ADK10: 3 | ADQ10: 3 | ADY10: 2 | ADZ10: 3 | AEB10: 4 | AEH10: 2 | AEI10: 2 | AEJ10: 4 | AEL10: 3 | AEM10: 4 | AEO10: 4 | AEP10: 4 | AEQ10: 3 | AER10: 2 | AES10: 4 | AEU10: 4 | AEV10: 5 | AEW10: 2 | AEZ10: 4 | AFB10: 5 | AFC10: 4 | AFD10: 4 | AFG10: 4 | AFH10: 4 | AFJ10: 3 | AFK10: 4 | AFL10: 3 | AFP10: 4 | AFR10: 3 | AFS10: 3 | AFT10: 4 | AFY10: 3 | AGA10: 2 | AGB10: 3 | AGD10: 3 | AGE10: 3 | AGF10: 4 | AGI10: 3 | AGK10: 3 | AGL10: 5 | AGT10: 3 | AGY10: 4 | AHA10: 2 | AHB10: 2 | AHC10: 3 | AHD10: 3 | AHE10: 2 | AHF10: 4 | AHM10: 4 | AHO10: 3 | AHP10: 4 | AHR10: 5 | AHS10: 4 | AHT10: 3 | AHY10: 3 | AIA10: 3 | AIB10: 3 | AIC10: 3 | AID10: 2 | AIE10: 2 | AIF10: 2 | AIK10: 2 | AIN10: 4 | AIS10: 3 | AIV10: 4 | AIX10: 2 | AIY10: 3 | AIZ10: 3 | AJA10: 3 | AJB10: 4 | AJE10: 2 | AJF10: 2 | AJI10: 3 | AJJ10: 4 | AJP10: 3 | AJR10: 4 | AJT10: 4 | AJU10: 4 | AJY10: 2 | AKB10: 2 | AKD10: 3 | AKG10: 4 | AKK10: 3 | AKP10: 3 | AKQ10: 4 | AKR10: 4 | AKS10: 2 | AKT10: 4 | AKY10: 4 | AKZ10: 4 | ALB10: 4 | ALC10: 3 | ALG10: 3 | ALI10: 4 | ALM10: 4
B11: Besednice | D11: 5 | H11: 5 | N11: 5 | P11: 5 | S11: 4 | W11: 4 | X11: 3 | Z11: 7 | AF11: 3 | AG11: 4 | AH11: 4 | AI11: 4 | AL11: 3 | AO11: 5 | AP11: 5 | AQ11: 4 | AR11: 5 | AV11: 6 | AW11: 3 | AX11: 7 | AY11: 4 | AZ11: 3 | BA11: 6 | BF11: 6 | BH11: 5 | BI11: 6 | BJ11: 6 | BK11: 4 | BL11: 3 | BQ11: 6 | BV11: 5 | CB11: 3 | CD11: 4 | CH11: 6 | CI11: 6 | CJ11: 3 | CM11: 4 | CO11: 4 | CP11: 3 | CQ11: 2 | CU11: 5 | CV11: 8 | CX11: 5 | DA11: 5 | DB11: 3 | DD11: 6 | DE11: 3 | DG11: 4 | DI11: 7 | DK11: 4 | DL11: 6 | DN11: 4 | DP11: 5 | DS11: 3 | DU11: 5 | DZ11: 4 | EI11: 4 | EL11: 6 | EM11: 6 | EP11: 5 | EV11: 7 | EW11: 4 | EZ11: 4 | FB11: 5 | FE11: 5 | FF11: 3 | FH11: 5 | FI11: 2 | FM11: 5 | FP11: 5 | FQ11: 2 | FR11: 4 | FS11: 4 | FV11: 3 | FX11: 4 | GA11: 4 | GB11: 4 | GD11: 4 | GE11: 4 | GJ11: 5 | GK11: 5 | GL11: 6 | GM11: 4 | GO11: 6 | GQ11: 2 | GR11: 5 | GS11: 5 | GU11: 5 | GY11: 2 | GZ11: 4 | HA11: 4 | HB11: 5 | HH11: 5 | HK11: 3 | HL11: 4 | HO11: 6 | HQ11: 6 | HU11: 4 | HZ11: 8 | IA11: 7 | ID11: 7 | IJ11: 6 | IM11: 7 | IP11: 5 | IQ11: 7 | IU11: 4 | IV11: 6 | IW11: 7 | IY11: 4 | JB11: 6 | JH11: 4 | JL11: 6 | JN11: 4 | JS11: 6 | JT11: 6 | JU11: 6 | JZ11: 5 | KC11: 6 | KE11: 3 | KH11: 3 | KJ11: 5 | KK11: 5 | KP11: 4 | KR11: 4 | KU11: 5 | KV11: 6 | KX11: 6 | LE11: 2 | LF11: 4 | LI11: 4 | LJ11: 3 | LM11: 5 | LO11: 6 | LQ11: 5 | LX11: 8 | LY11: 5 | LZ11: 3 | MA11: 3 | MB11: 6 | MC11: 4 | MD11: 4 | ME11: 4 | MF11: 4 | MG11: 4 | MH11: 6 | ML11: 2 | MM11: 7 | MN11: 3 | MR11: 6 | MS11: 3 | MU11: 3 | MZ11: 5 | NA11: 3 | NC11: 3 | ND11: 6 | NF11: 5 | NG11: 7 | NH11: 4 | NK11: 5 | NL11: 2 | NM11: 5 | NN11: 5 | NO11: 4 | NR11: 5 | NV11: 5 | NW11: 5 | OA11: 6 | OB11: 4 | OC11: 5 | OD11: 4 | OF11: 6 | OI11: 5 | OJ11: 5 | OL11: 5 | OM11: 6 | ON11: 5 | OS11: 3 | OW11: 3 | OY11: 5 | OZ11: 7 | PA11: 4 | PD11: 6 | PJ11: 5 | PK11: 5 | PM11: 5 | PN11: 4 | PO11: 4 | PP11: 5 | PQ11: 7 | PS11: 3 | PT11: 5 | PV11: 6 | PX11: 5 | QB11: 3 | QC11: 3 | QD11: 5 | QF11: 5 | QG11: 5 | QI11: 3 | QL11: 3 | QM11: 3 | RA11: 5 | RF11: 4 | RH11: 6 | RO11: 5 | RP11: 6 | RQ11: 6 | RR11: 5 | RU11: 5 | RX11: 4 | RZ11: 4 | SB11: 5 | SC11: 6 | SD11: 6 | SE11: 4 | SH11: 4 | SI11: 6 | SJ11: 4 | SL11: 4 | SM11: 5 | SO11: 5 | SR11: 5 | ST11: 3 | SU11: 3 | SW11: 6 | SX11: 6 | SZ11: 5 | TA11: 5 | TC11: 5 | TJ11: 2 | TO11: 5 | TP11: 6 | TQ11: 5 | TS11: 6 | TT11: 4 | UA11: 7 | UD11: 5 | UK11: 5 | UL11: 4 | UM11: 4 | UQ11: 5 | UU11: 4 | UW11: 5 | UX11: 4 | UZ11: 6 | VA11: 4 | VB11: 5 | VC11: 3 | VD11: 7 | VF11: 5 | VG11: 3 | VH11: 7 | VI11: 5 | VJ11: 5 | VM11: 7 | VO11: 5 | VP11: 5 | VS11: 6 | VT11: 4 | VU11: 6 | VX11: 4 | WA11: 6 | WC11: 4 | WE11: 5 | WF11: 4 | WJ11: 5 | WK11: 5 | WL11: 6 | WO11: 4 | WQ11: 5 | WV11: 6 | WW11: 5 | WX11: 5 | WZ11: 6 | XB11: 6 | XC11: 5 | XE11: 3 | XH11: 5 | XJ11: 4 | XL11: 6 | XN11: 5 | XO11: 6 | XP11: 4 | XS11: 6 | XT11: 5 | XV11: 4 | XW11: 5 | XX11: 5 | XZ11: 5 | YE11: 5 | YF11: 5 | YG11: 5 | YK11: 3 | YL11: 3 | YO11: 4 | YR11: 7 | YT11: 5 | YU11: 6 | YV11: 6 | YX11: 5 | YZ11: 6 | ZA11: 6 | ZC11: 4 | ZD11: 5 | ZF11: 5 | ZG11: 6 | ZH11: 4 | ZI11: 4 | ZJ11: 5 | ZL11: 2 | ZN11: 6 | ZO11: 6 | ZQ11: 3 | ZR11: 7 | ZV11: 4 | AAA11: 2 | AAD11: 6 | AAK11: 4 | AAQ11: 6 | AAR11: 3 | AAT11: 3 | AAV11: 5 | ABA11: 6 | ABB11: 4 | ABC11: 3 | ABE11: 3 | ABG11: 7 | ABM11: 4 | ABN11: 3 | ABP11: 4 | ABT11: 4 | ABV11: 4 | ABW11: 5 | ABX11: 7 | ABY11: 4 | ABZ11: 5 | ACE11: 5 | ACM11: 3 | ACN11: 4 | ACO11: 3 | ACP11: 5 | ACQ11: 4 | ACT11: 4 | ACU11: 6 | ACX11: 4 | ACY11: 7 | ACZ11: 4 | ADB11: 4 | ADC11: 6 | ADD11: 3 | ADH11: 5 | ADM11: 4 | ADN11: 4 | ADV11: 4 | ADW11: 5 | ADY11: 3 | AEA11: 6 | AEE11: 4 | AEG11: 6 | AEH11: 4 | AEK11: 4 | AEN11: 4 | AEO11: 6 | AEP11: 6 | AEQ11: 6 | AER11: 4 | AET11: 7 | AEW11: 4 | AEX11: 4 | AEZ11: 5 | AFA11: 4 | AFF11: 4 | AFJ11: 5 | AFN11: 3 | AFO11: 5 | AFQ11: 6 | AFU11: 5 | AFY11: 4 | AFZ11: 4 | AGB11: 4 | AGH11: 3 | AGL11: 8 | AGQ11: 4 | AGT11: 5 | AHB11: 4 | AHC11: 4 | AHF11: 6 | AHI11: 4 | AHK11: 4 | AHQ11: 7 | AHT11: 5 | AHY11: 4 | AHZ11: 5 | AIA11: 5 | AIB11: 5 | AIC11: 5 | AID11: 3 | AIF11: 4 | AIH11: 4 | AIM11: 3 | AIQ11: 4 | AIR11: 4 | AIT11: 3 | AIU11: 4 | AIV11: 6 | AJA11: 5 | AJC11: 6 | AJD11: 5 | AJF11: 4 | AJG11: 5 | AJH11: 3 | AJI11: 6 | AJK11: 5 | AJP11: 6 | AJQ11: 2 | AJT11: 6 | AJW11: 6 | AJX11: 4 | AJZ11: 6 | AKA11: 4 | AKC11: 5 | AKF11: 5 | AKG11: 6 | AKH11: 5 | AKI11: 5 | AKJ11: 4 | AKL11: 3 | AKO11: 3 | AKQ11: 5 | AKS11: 4 | AKT11: 6 | AKV11: 5 | AKW11: 4 | AKZ11: 6 | ALA11: 6 | ALB11: 6 | ALC11: 5 | ALD11: 5 | ALF11: 4 | ALH11: 4 | ALI11: 6 | ALL11: 4 | ALN11: 5
B12: Keblany | E12: 6 | F12: 5 | J12: 4 | K12: 2 | L12: 4 | N12: 6 | Q12: 4 | T12: 3 | V12: 4 | AB12: 5 | AC12: 5 | AE12: 4 | AF12: 4 | AG12: 5 | AH12: 5 | AJ12: 6 | AK12: 5 | AL12: 4 | AO12: 6 | AP12: 6 | AR12: 6 | AS12: 4 | AT12: 3 | AU12: 5 | AX12: 8 | AZ12: 4 | BD12: 4 | BF12: 7 | BG12: 4 | BH12: 6 | BL12: 4 | BP12: 6 | BR12: 6 | BS12: 4 | BT12: 5 | BU12: 5 | BW12: 5 | BX12: 3 | CA12: 6 | CC12: 3 | CF12: 4 | CJ12: 4 | CM12: 5 | CO12: 5 | CX12: 6 | DA12: 6 | DB12: 4 | DC12: 7 | DD12: 7 | DE12: 4 | DM12: 5 | DT12: 5 | DU12: 6 | DW12: 4 | DY12: 5 | EC12: 6 | ED12: 3 | EF12: 5 | EG12: 6 | EH12: 5 | EK12: 4 | EM12: 7 | EN12: 4 | EQ12: 3 | ER12: 3 | EU12: 5 | EV12: 8 | EW12: 5 | EY12: 5 | EZ12: 5 | FA12: 4 | FB12: 6 | FD12: 6 | FE12: 6 | FF12: 4 | FH12: 6 | FI12: 3 | FK12: 5 | FO12: 6 | FQ12: 3 | FR12: 5 | FS12: 5 | FV12: 4 | FW12: 6 | FY12: 4 | FZ12: 4 | GD12: 5 | GE12: 5 | GH12: 5 | GJ12: 6 | GK12: 6 | GN12: 5 | GO12: 7 | GR12: 6 | GS12: 6 | GT12: 5 | GU12: 6 | GW12: 4 | GY12: 3 | HA12: 5 | HB12: 6 | HC12: 4 | HE12: 5 | HK12: 4 | HL12: 5 | HP12: 5 | HS12: 6 | HU12: 5 | HY12: 5 | HZ12: 9 | IB12: 5 | IC12: 5 | IE12: 4 | IF12: 4 | IG12: 6 | II12: 4 | IK12: 3 | IM12: 8 | IP12: 6 | IS12: 5 | IX12: 3 | IZ12: 5 | JA12: 5 | JB12: 7 | JC12: 4 | JD12: 3 | JE12: 6 | JH12: 5 | JL12: 7 | JM12: 6 | JN12: 5 | JO12: 5 | JQ12: 6 | JT12: 7 | JX12: 5 | JY12: 5 | KB12: 8 | KD12: 4 | KF12: 6 | KG12: 4 | KH12: 4 | KJ12: 6 | KN12: 5 | KP12: 5 | KQ12: 2 | KR12: 5 | KS12: 3 | KT12: 5 | KW12: 6 | KY12: 3 | LC12: 6 | LE12: 3 | LF12: 5 | LK12: 5 | LM12: 6 | LP12: 4 | LS12: 6 | LT12: 5 | LV12: 5 | LW12: 7 | LY12: 6 | MI12: 4 | ML12: 3 | MN12: 4 | MO12: 5 | MR12: 7 | MU12: 4 | MZ12: 6 | NB12: 3 | NC12: 4 | ND12: 7 | NF12: 6 | NG12: 8 | NI12: 4 | NL12: 3 | NP12: 4 | NR12: 6 | NS12: 7 | NT12: 5 | NU12: 6 | NV12: 6 | NY12: 6 | OF12: 7 | OH12: 7 | OO12: 5 | OP12: 5 | OQ12: 4 | OR12: 4 | OS12: 4 | OX12: 2 | OZ12: 8 | PA12: 5 | PB12: 5 | PC12: 5 | PE12: 4 | PI12: 4 | PJ12: 6 | PL12: 6 | PP12: 6 | PR12: 5 | PS12: 4 | PU12: 5 | PV12: 7 | QC12: 4 | QD12: 6 | QG12: 6 | QJ12: 5 | QS12: 7 | QW12: 5 | QY12: 4 | QZ12: 4 | RA12: 6 | RB12: 4 | RJ12: 4 | RN12: 5 | RO12: 6 | RS12: 3 | RW12: 8 | RY12: 5 | RZ12: 5 | SE12: 5 | SH12: 5 | SQ12: 3 | SS12: 4 | ST12: 4 | SV12: 4 | SX12: 7 | SY12: 3 | TB12: 6 | TE12: 5 | TF12: 5 | TG12: 3 | TI12: 5 | TJ12: 3 | TL12: 6 | TO12: 6 | TR12: 5 | TT12: 5 | TV12: 4 | TW12: 5 | TX12: 5 | TY12: 4 | TZ12: 7 | UC12: 6 | UH12: 5 | UI12: 6 | UM12: 5 | UO12: 6 | UP12: 4 | UT12: 5 | VA12: 5 | VB12: 6 | VJ12: 6 | VK12: 4 | VL12: 5 | VN12: 3 | VO12: 6 | VQ12: 6 | VU12: 7 | VV12: 5 | WA12: 7 | WE12: 6 | WF12: 5 | WH12: 3 | WI12: 5 | WJ12: 6 | WS12: 6 | WT12: 7 | WV12: 7 | XA12: 5 | XB12: 7 | XF12: 6 | XH12: 6 | XI12: 4 | XJ12: 5 | XK12: 5 | XR12: 4 | XS12: 7 | XU12: 5 | XW12: 6 | XX12: 6 | XZ12: 6 | YA12: 6 | YD12: 5 | YE12: 6 | YF12: 6 | YG12: 6 | YH12: 5 | YJ12: 6 | YL12: 4 | YM12: 5 | YN12: 4 | YO12: 5 | YQ12: 5 | YS12: 3 | YU12: 7 | YX12: 6 | ZD12: 6 | ZF12: 6 | ZI12: 5 | ZL12: 3 | ZQ12: 4 | ZT12: 7 | AAA12: 3 | AAB12: 5 | AAE12: 6 | AAG12: 4 | AAI12: 5 | AAK12: 5 | AAP12: 6 | AAQ12: 7 | AAR12: 4 | AAS12: 4 | AAT12: 4 | AAU12: 4 | AAV12: 6 | ABB12: 5 | ABC12: 4 | ABD12: 5 | ABF12: 7 | ABG12: 8 | ABH12: 6 | ABJ12: 6 | ABK12: 5 | ABL12: 6 | ABM12: 5 | ABN12: 4 | ABP12: 5 | ABQ12: 5 | ABR12: 5 | ABS12: 4 | ABT12: 5 | ABX12: 8 | ABY12: 5 | ACE12: 6 | ACH12: 5 | ACI12: 7 | ACJ12: 6 | ACL12: 5 | ACM12: 4 | ACN12: 5 | ACR12: 4 | ACS12: 4 | ACT12: 5 | ACU12: 7 | ACX12: 5 | ACY12: 8 | ACZ12: 5 | ADB12: 5 | ADD12: 4 | ADF12: 4 | ADH12: 6 | ADL12: 7 | ADQ12: 4 | ADS12: 4 | ADT12: 3 | AEB12: 6 | AED12: 4 | AEH12: 5 | AEM12: 5 | AEO12: 7 | AEP12: 7 | AER12: 5 | AES12: 7 | AEU12: 5 | AEX12: 5 | AEZ12: 6 | AFA12: 5 | AFB12: 6 | AFE12: 4 | AFL12: 4 | AFN12: 4 | AFR12: 6 | AFS12: 5 | AFU12: 6 | AFV12: 3 | AFW12: 4 | AFY12: 5 | AGB12: 5 | AGD12: 5 | AGE12: 5 | AGF12: 6 | AGH12: 4 | AGK12: 4 | AGL12: 9 | AGN12: 5 | AGP12: 3 | AGQ12: 5 | AGT12: 6 | AGU12: 4 | AGV12: 4 | AGY12: 6 | AHA12: 3 | AHB12: 5 | AHC12: 5 | AHE12: 4 | AHF12: 7 | AHG12: 5 | AHH12: 5 | AHL12: 6 | AHM12: 5 | AHP12: 5 | AHR12: 7 | AHS12: 6 | AHV12: 3 | AHW12: 4 | AHY12: 5 | AIC12: 6 | AIE12: 3 | AIK12: 5 | AIN12: 5 | AIP12: 5 | AIR12: 5 | AIV12: 7 | AIX12: 4 | AIZ12: 5 | AJC12: 7 | AJE12: 3 | AJF12: 5 | AJG12: 6 | AJJ12: 7 | AJL12: 4 | AJN12: 5 | AJO12: 3 | AJP12: 7 | AJQ12: 3 | AJR12: 5 | AJT12: 7 | AJV12: 3 | AJW12: 7 | AJY12: 4 | AJZ12: 7 | AKA12: 5 | AKM12: 3 | AKO12: 4 | AKQ12: 6 | AKZ12: 7 | ALA12: 7 | ALB12: 7 | ALC12: 6 | ALD12: 6 | ALM12: 5 | ALN12: 6
B13: Mohuřice | E13: 7 | H13: 6 | I13: 6 | J13: 6 | N13: 7 | P13: 7 | AA13: 5 | AD13: 2 | AE13: 5 | AF13: 6 | AK13: 7 | AO13: 8 | AR13: 8 | AS13: 5 | AV13: 8 | AX13: 10 | AY13: 5 | BB13: 4 | BF13: 9 | BJ13: 8 | BN13: 3 | BO13: 5 | BP13: 8 | BQ13: 8 | BR13: 7 | BT13: 7 | BV13: 6 | BX13: 5 | CC13: 5 | CD13: 5 | CE13: 4 | CF13: 5 | CG13: 5 | CK13: 6 | CL13: 7 | CM13: 7 | CN13: 4 | CQ13: 4 | CR13: 6 | CS13: 7 | CT13: 3 | CV13: 10 | CW13: 4 | CX13: 8 | DB13: 6 | DD13: 9 | DF13: 5 | DH13: 4 | DI13: 9 | DL13: 7 | DQ13: 3 | DR13: 6 | DT13: 7 | DU13: 8 | DW13: 6 | DZ13: 6 | EC13: 7 | ED13: 4 | EE13: 7 | EN13: 5 | ES13: 4 | ET13: 5 | EU13: 7 | EV13: 9 | EX13: 3 | EY13: 6 | EZ13: 6 | FB13: 7 | FF13: 5 | FJ13: 5 | FL13: 6 | FM13: 6 | FN13: 5 | FP13: 6 | FS13: 6 | FT13: 6 | FU13: 4 | FV13: 6 | FY13: 5 | FZ13: 5 | GC13: 3 | GD13: 7 | GE13: 6 | GG13: 6 | GJ13: 8 | GK13: 7 | GL13: 7 | GQ13: 3 | GV13: 5 | GY13: 5 | HA13: 6 | HH13: 6 | HI13: 8 | HK13: 6 | HM13: 8 | HN13: 7 | HP13: 7 | HR13: 5 | HS13: 8 | HV13: 6 | HX13: 5 | HZ13: 11 | IB13: 7 | IG13: 8 | IK13: 4 | IM13: 10 | IQ13: 9 | IR13: 3 | IS13: 7 | IU13: 5 | IV13: 7 | IY13: 6 | IZ13: 6 | JB13: 8 | JF13: 7 | JH13: 6 | JK13: 3 | JL13: 8 | JM13: 7 | JN13: 6 | JT13: 8 | JX13: 7 | KA13: 6 | KB13: 9 | KE13: 5 | KF13: 8 | KG13: 5 | KL13: 7 | KN13: 6 | KQ13: 3 | KU13: 6 | KV13: 7 | KW13: 8 | KX13: 7 | KY13: 4 | KZ13: 6 | LD13: 5 | LG13: 5 | LH13: 5 | LI13: 5 | LK13: 7 | LS13: 8 | LW13: 9 | LX13: 10 | LY13: 7 | MD13: 6 | ME13: 5 | MF13: 6 | MG13: 6 | MI13: 5 | MM13: 8 | MQ13: 5 | MR13: 8 | MT13: 4 | MZ13: 8 | NA13: 5 | NB13: 5 | NC13: 5 | ND13: 9 | NF13: 8 | NH13: 5 | NJ13: 5 | NK13: 6 | NM13: 6 | NP13: 5 | NQ13: 3 | NR13: 8 | NS13: 9 | NT13: 7 | NU13: 7 | NW13: 7 | NX13: 5 | NZ13: 5 | OA13: 7 | OB13: 6 | OE13: 5 | OG13: 8 | OH13: 9 | OM13: 8 | ON13: 7 | OO13: 7 | OP13: 6 | OR13: 5 | OT13: 4 | OV13: 6 | OW13: 4 | OX13: 3 | OZ13: 9 | PA13: 6 | PB13: 6 | PE13: 5 | PG13: 7 | PI13: 6 | PK13: 6 | PL13: 8 | PO13: 6 | PQ13: 8 | PR13: 6 | PS13: 5 | PW13: 6 | PX13: 7 | PZ13: 5 | QA13: 3 | QH13: 4 | QK13: 5 | QM13: 4 | QP13: 5 | QQ13: 7 | QT13: 3 | QX13: 7 | QZ13: 5 | RA13: 7 | RB13: 5 | RC13: 6 | RE13: 5 | RF13: 5 | RI13: 3 | RJ13: 5 | RL13: 6 | RM13: 5 | RN13: 7 | RO13: 7 | RQ13: 8 | RT13: 6 | RU13: 6 | SA13: 5 | SC13: 8 | SD13: 7 | SF13: 6 | SH13: 7 | SL13: 5 | SN13: 4 | SO13: 6 | ST13: 5 | SU13: 5 | SW13: 8 | SX13: 9 | SZ13: 6 | TA13: 6 | TC13: 6 | TD13: 5 | TF13: 7 | TG13: 4 | TH13: 4 | TJ13: 4 | TK13: 6 | TL13: 8 | TQ13: 7 | TR13: 6 | TT13: 7 | TU13: 7 | TV13: 6 | TY13: 5 | UB13: 4 | UH13: 7 | UJ13: 5 | UN13: 5 | UO13: 7 | UQ13: 6 | US13: 6 | UT13: 6 | UX13: 6 | UY13: 3 | UZ13: 7 | VA13: 6 | VC13: 5 | VD13: 9 | VE13: 7 | VF13: 6 | VH13: 9 | VJ13: 7 | VM13: 8 | VT13: 6 | VU13: 9 | VV13: 6 | VX13: 5 | VY13: 4 | WA13: 8 | WB13: 6 | WC13: 5 | WF13: 7 | WG13: 3 | WH13: 5 | WI13: 6 | WJ13: 7 | WN13: 6 | WO13: 6 | WQ13: 7 | WR13: 4 | WT13: 8 | WV13: 8 | WW13: 6 | WX13: 7 | WY13: 5 | XA13: 6 | XD13: 6 | XF13: 7 | XI13: 6 | XJ13: 6 | XK13: 7 | XL13: 8 | XO13: 7 | XT13: 7 | XU13: 7 | XV13: 6 | XX13: 7 | YA13: 7 | YB13: 2 | YD13: 6 | YE13: 7 | YF13: 8 | YG13: 8 | YH13: 6 | YI13: 5 | YJ13: 7 | YM13: 6 | YO13: 6 | YR13: 8 | YT13: 7 | YY13: 4 | YZ13: 7 | ZA13: 7 | ZB13: 3 | ZC13: 5 | ZF13: 7 | ZG13: 7 | ZH13: 6 | ZI13: 7 | ZK13: 4 | ZL13: 4 | ZM13: 5 | ZS13: 4 | ZU13: 3 | ZW13: 6 | ZX13: 4 | AAF13: 3 | AAI13: 6 | AAJ13: 5 | AAP13: 7 | AAQ13: 9 | AAS13: 5 | AAT13: 5 | AAU13: 5 | AAW13: 7 | AAZ13: 9 | ABA13: 8 | ABC13: 6 | ABE13: 5 | ABF13: 9 | ABI13: 7 | ABO13: 4 | ABR13: 6 | ABS13: 5 | ABT13: 6 | ABU13: 3 | ABW13: 6 | ABX13: 9 | ABY13: 7 | ABZ13: 7 | ACC13: 5 | ACG13: 4 | ACH13: 7 | ACI13: 9 | ACN13: 6 | ACQ13: 6 | ACS13: 6 | ACU13: 8 | ACV13: 6 | ACW13: 5 | ACX13: 6 | ACY13: 9 | ADA13: 5 | ADD13: 6 | ADE13: 4 | ADG13: 4 | ADJ13: 4 | ADK13: 5 | ADP13: 4 | ADS13: 6 | ADT13: 5 | ADY13: 5 | AEA13: 8 | AED13: 5 | AEF13: 6 | AEH13: 7 | AEJ13: 6 | AEK13: 6 | AEM13: 6 | AEN13: 5 | AEQ13: 8 | AER13: 7 | AES13: 9 | AEW13: 6 | AEY13: 3 | AEZ13: 7 | AFA13: 7 | AFB13: 8 | AFC13: 7 | AFG13: 7 | AFJ13: 7 | AFK13: 6 | AFO13: 6 | AFP13: 7 | AFS13: 6 | AFV13: 4 | AFX13: 6 | AFZ13: 5 | AGA13: 6 | AGB13: 6 | AGD13: 7 | AGE13: 7 | AGJ13: 3 | AGM13: 4 | AGN13: 7 | AGP13: 4 | AGR13: 4 | AGU13: 5 | AGV13: 5 | AGW13: 7 | AGX13: 7 | AHA13: 5 | AHB13: 6 | AHC13: 6 | AHJ13: 8 | AHL13: 7 | AHM13: 7 | AHN13: 7 | AHP13: 7 | AHQ13: 8 | AHR13: 9 | AHY13: 6 | AIA13: 7 | AIB13: 6 | AID13: 4 | AIE13: 5 | AIG13: 2 | AII13: 4 | AIK13: 7 | AIL13: 6 | AIM13: 5 | AIN13: 6 | AIO13: 5 | AIQ13: 5 | AIT13: 5 | AJB13: 5 | AJD13: 6 | AJE13: 5 | AJF13: 6 | AJH13: 4 | AJJ13: 8 | AJL13: 5 | AJM13: 7 | AJO13: 4 | AJR13: 6 | AJT13: 9 | AJU13: 6 | AJX13: 6 | AJY13: 5 | AJZ13: 8 | AKA13: 6 | AKB13: 4 | AKC13: 7 | AKE13: 5 | AKG13: 7 | AKI13: 7 | AKM13: 4 | AKN13: 7 | AKQ13: 8 | AKR13: 5 | AKW13: 5 | AKZ13: 8 | ALJ13: 4
B14: Dobrkovská Lhotka | C14: 7 | G14: 7 | K14: 3 | L14: 6 | N14: 8 | P14: 8 | Q14: 5 | R14: 5 | V14: 6 | Y14: 7 | AB14: 6 | AF14: 7 | AG14: 6 | AJ14: 8 | AK14: 8 | AL14: 6 | AO14: 9 | AP14: 8 | AQ14: 6 | AR14: 10 | AT14: 6 | AX14: 11 | AZ14: 5 | BB14: 5 | BC14: 7 | BD14: 6 | BF14: 11 | BH14: 8 | BI14: 8 | BL14: 7 | BO14: 6 | BR14: 8 | BS14: 6 | BU14: 6 | BX14: 6 | CB14: 5 | CD14: 6 | CE14: 5 | CG14: 7 | CI14: 7 | CJ14: 6 | CM14: 8 | CP14: 5 | CS14: 9 | CV14: 12 | CX14: 10 | CZ14: 6 | DC14: 10 | DH14: 5 | DI14: 10 | DJ14: 8 | DK14: 6 | DN14: 5 | DQ14: 4 | DS14: 6 | DU14: 10 | DW14: 8 | DX14: 6 | EJ14: 8 | EN14: 7 | EO14: 5 | EQ14: 5 | ER14: 5 | ES14: 5 | ET14: 6 | EU14: 9 | EV14: 11 | EW14: 7 | EX14: 4 | EY14: 7 | FA14: 5 | FB14: 9 | FC14: 7 | FE14: 7 | FH14: 8 | FI14: 5 | FL14: 7 | FM14: 8 | FN14: 6 | FO14: 8 | FP14: 8 | FV14: 7 | FY14: 7 | GC14: 4 | GD14: 8 | GE14: 8 | GF14: 7 | GI14: 6 | GK14: 9 | GL14: 8 | GQ14: 5 | GU14: 8 | GV14: 6 | GX14: 6 | GZ14: 7 | HC14: 7 | HD14: 7 | HF14: 6 | HH14: 7 | HI14: 9 | HJ14: 7 | HM14: 10 | HO14: 8 | HS14: 10 | HT14: 6 | HU14: 6 | HZ14: 12 | IC14: 6 | ID14: 9 | II14: 5 | IL14: 8 | IM14: 12 | IO14: 5 | IP14: 8 | IR14: 5 | IW14: 9 | JA14: 8 | JB14: 9 | JD14: 5 | JH14: 8 | JL14: 10 | JM14: 9 | JP14: 4 | JT14: 10 | JU14: 9 | JV14: 7 | JW14: 4 | JX14: 9 | KB14: 11 | KD14: 5 | KE14: 7 | KF14: 10 | KG14: 6 | KI14: 4 | KJ14: 7 | KL14: 8 | KN14: 7 | KO14: 6 | KP14: 6 | KT14: 8 | KU14: 7 | KY14: 6 | KZ14: 7 | LD14: 6 | LE14: 5 | LH14: 7 | LJ14: 4 | LM14: 8 | LN14: 6 | LP14: 6 | LR14: 6 | LT14: 6 | LV14: 8 | LX14: 11 | LY14: 8 | MA14: 5 | MC14: 6 | ME14: 6 | MG14: 8 | MI14: 7 | MJ14: 6 | MK14: 8 | ML14: 5 | MM14: 9 | MP14: 8 | MQ14: 7 | MT14: 5 | MU14: 6 | NA14: 6 | NF14: 10 | NG14: 9 | NJ14: 6 | NM14: 7 | NP14: 6 | NQ14: 4 | NR14: 9 | NT14: 9 | NV14: 7 | OB14: 7 | OC14: 7 | OD14: 6 | OF14: 9 | OG14: 10 | OL14: 7 | ON14: 8 | OO14: 8 | OT14: 5 | OU14: 6 | OV14: 7 | OX14: 4 | PA14: 8 | PF14: 5 | PG14: 9 | PI14: 7 | PP14: 7 | PT14: 7 | PU14: 8 | PW14: 8 | PX14: 8 | PY14: 6 | QA14: 5 | QB14: 4 | QG14: 9 | QH14: 6 | QI14: 5 | QM14: 5 | QR14: 3 | QT14: 5 | QV14: 7 | QX14: 9 | QZ14: 7 | RB14: 6 | RE14: 6 | RH14: 8 | RI14: 4 | RJ14: 6 | RM14: 7 | RP14: 9 | RV14: 4 | RZ14: 8 | SA14: 6 | SB14: 8 | SD14: 8 | SE14: 7 | SH14: 8 | SK14: 5 | SL14: 6 | SP14: 7 | SR14: 7 | SS14: 6 | SU14: 6 | SW14: 9 | SX14: 11 | SY14: 5 | TB14: 8 | TC14: 8 | TF14: 8 | TH14: 5 | TJ14: 6 | TL14: 9 | TM14: 8 | TS14: 9 | TX14: 6 | TY14: 6 | UD14: 8 | UE14: 5 | UF14: 7 | UP14: 6 | UW14: 8 | UZ14: 8 | VC14: 6 | VD14: 10 | VH14: 11 | VI14: 7 | VL14: 8 | VM14: 9 | VN14: 5 | VO14: 8 | VQ14: 8 | VS14: 7 | VT14: 7 | VU14: 11 | VW14: 4 | VY14: 6 | VZ14: 3 | WD14: 7 | WE14: 9 | WF14: 9 | WG14: 5 | WH14: 7 | WI14: 8 | WL14: 8 | WN14: 7 | WO14: 7 | WQ14: 8 | WU14: 6 | WW14: 8 | WY14: 6 | XC14: 7 | XG14: 6 | XH14: 8 | XJ14: 8 | XM14: 7 | XN14: 7 | XQ14: 4 | XT14: 8 | XV14: 7 | XW14: 8 | XX14: 9 | YA14: 8 | YB14: 4 | YI14: 7 | YJ14: 9 | YM14: 8 | YP14: 7 | YS14: 4 | YT14: 8 | YU14: 9 | YW14: 5 | ZA14: 8 | ZE14: 7 | ZF14: 8 | ZH14: 8 | ZL14: 6 | ZO14: 7 | ZQ14: 5 | ZR14: 8 | ZS14: 5 | ZT14: 9 | ZU14: 4 | ZV14: 5 | ZW14: 7 | ZY14: 7 | AAG14: 6 | AAL14: 5 | AAM14: 7 | AAQ14: 11 | AAU14: 7 | AAY14: 6 | ABB14: 6 | ABC14: 7 | ABF14: 11 | ABJ14: 8 | ABO14: 6 | ABP14: 8 | ABS14: 7 | ABT14: 8 | ABV14: 5 | ACB14: 5 | ACC14: 6 | ACD14: 7 | ACE14: 8 | ACF14: 4 | ACI14: 11 | ACK14: 6 | ACM14: 5 | ACO14: 5 | ACP14: 6 | ACS14: 7 | ACV14: 7 | ACX14: 7 | ACY14: 11 | ACZ14: 7 | ADC14: 8 | ADE14: 6 | ADH14: 7 | ADJ14: 6 | ADM14: 5 | ADP14: 6 | ADQ14: 5 | ADR14: 3 | ADT14: 6 | ADY14: 6 | ADZ14: 4 | AEA14: 10 | AEB14: 9 | AED14: 6 | AEG14: 8 | AEH14: 8 | AEI14: 6 | AEK14: 7 | AEN14: 7 | AEO14: 8 | AEP14: 9 | AER14: 8 | AES14: 10 | AEV14: 9 | AEW14: 8 | AEY14: 5 | AFA14: 8 | AFB14: 9 | AFD14: 5 | AFE14: 6 | AFF14: 7 | AFH14: 6 | AFI14: 5 | AFK14: 7 | AFQ14: 9 | AFR14: 7 | AFT14: 8 | AFU14: 9 | AFV14: 5 | AFW14: 7 | AFX14: 8 | AFY14: 7 | AGA14: 7 | AGE14: 8 | AGF14: 8 | AGI14: 6 | AGM14: 5 | AGO14: 5 | AGT14: 8 | AGU14: 7 | AGV14: 6 | AGX14: 8 | AGZ14: 4 | AHA14: 6 | AHC14: 7 | AHE14: 6 | AHF14: 8 | AHH14: 6 | AHL14: 9 | AHO14: 6 | AHP14: 8 | AHS14: 7 | AHV14: 4 | AHW14: 5 | AHX14: 6 | AHY14: 7 | AIB14: 7 | AIC14: 8 | AIF14: 6 | AIG14: 4 | AIK14: 9 | AIM14: 7 | AIP14: 7 | AIU14: 5 | AIV14: 9 | AIW14: 7 | AIX14: 6 | AIZ14: 8 | AJC14: 9 | AJE14: 7 | AJF14: 7 | AJG14: 8 | AJJ14: 10 | AJO14: 5 | AJQ14: 4 | AJT14: 11 | AJU14: 8 | AJV14: 6 | AJX14: 7 | AJY14: 6 | AJZ14: 9 | AKB14: 6 | AKD14: 5 | AKK14: 4 | AKL14: 4 | AKO14: 7 | AKP14: 6 | AKQ14: 10 | AKR14: 7 | AKT14: 8 | AKU14: 4 | AKV14: 6 | ALA14: 8 | ALD14: 8 | ALF14: 5 | ALG14: 4 | ALH14: 5 | ALI14: 9 | ALM14: 7
B15: Dolní Lhotka | G15: 8 | H15: 7 | K15: 4 | N15: 9 | Q15: 6 | R15: 6 | V15: 7 | W15: 7 | Y15: 8 | Z15: 8 | AC15: 8 | AF15: 8 | AG15: 7 | AH15: 7 | AK15: 9 | AL15: 7 | AM15: 4 | AR15: 11 | AS15: 7 | AT15: 7 | AU15: 8 | AW15: 5 | AZ15: 6 | BB15: 6 | BF15: 12 | BI15: 9 | BM15: 4 | BS15: 7 | BU15: 7 | BW15: 8 | CD15: 7 | CE15: 6 | CF15: 6 | CG15: 8 | CL15: 9 | CP15: 6 | CQ15: 5 | CR15: 7 | CS15: 10 | CT15: 5 | CW15: 5 | CY15: 5 | CZ15: 7 | DB15: 8 | DF15: 6 | DH15: 6 | DM15: 7 | DN15: 6 | DQ15: 5 | DR15: 7 | DS15: 7 | DY15: 7 | DZ15: 7 | EC15: 9 | EE15: 8 | EF15: 6 | EH15: 8 | EI15: 6 | EJ15: 9 | EL15: 8 | EO15: 6 | EQ15: 6 | ER15: 6 | ET15: 7 | EU15: 10 | EV15: 12 | EZ15: 8 | FA15: 6 | FB15: 10 | FD15: 8 | FG15: 6 | FH15: 9 | FI15: 6 | FU15: 5 | FW15: 8 | FZ15: 7 | GA15: 6 | GD15: 9 | GF15: 8 | GH15: 6 | GI15: 7 | GO15: 10 | GU15: 9 | GW15: 6 | GY15: 6 | HB15: 9 | HF15: 7 | HL15: 6 | HM15: 11 | HO15: 9 | HQ15: 9 | HR15: 6 | HT15: 7 | HU15: 7 | HX15: 6 | IA15: 9 | IB15: 9 | IC15: 7 | ID15: 10 | IE15: 6 | IG15: 9 | IH15: 5 | II15: 6 | IJ15: 8 | IK15: 5 | IL15: 9 | IN15: 7 | IP15: 9 | IQ15: 10 | IT15: 4 | IU15: 6 | IX15: 6 | JA15: 9 | JF15: 8 | JJ15: 4 | JK15: 5 | JN15: 7 | JO15: 8 | JR15: 7 | JW15: 5 | JY15: 7 | KB15: 12 | KC15: 9 | KE15: 8 | KG15: 7 | KH15: 5 | KN15: 8 | KS15: 4 | KT15: 9 | KU15: 8 | KW15: 9 | KY15: 7 | LA15: 5 | LC15: 8 | LE15: 6 | LG15: 6 | LJ15: 5 | LM15: 9 | LP15: 7 | LQ15: 6 | LS15: 9 | LU15: 5 | LW15: 10 | MA15: 6 | MC15: 7 | MD15: 8 | ME15: 7 | MF15: 7 | MG15: 9 | MH15: 9 | MI15: 8 | MJ15: 7 | MK15: 9 | MM15: 10 | MN15: 6 | MO15: 7 | MQ15: 8 | MR15: 10 | MW15: 5 | MX15: 7 | NB15: 7 | NC15: 6 | ND15: 11 | NE15: 6 | NF15: 11 | NJ15: 7 | NL15: 5 | NM15: 8 | NO15: 6 | NY15: 9 | NZ15: 7 | OB15: 8 | OH15: 11 | OJ15: 6 | OK15: 6 | ON15: 9 | OO15: 9 | OP15: 8 | OR15: 6 | OV15: 8 | OW15: 5 | OZ15: 11 | PE15: 7 | PG15: 10 | PK15: 8 | PM15: 8 | PO15: 8 | PP15: 8 | PT15: 8 | PU15: 9 | PV15: 9 | PX15: 9 | QA15: 6 | QB15: 5 | QJ15: 6 | QK15: 6 | QL15: 5 | QM15: 6 | QO15: 4 | QP15: 7 | QQ15: 9 | QS15: 9 | QU15: 5 | QV15: 8 | QZ15: 8 | RA15: 8 | RB15: 7 | RC15: 7 | RG15: 6 | RH15: 9 | RK15: 6 | RO15: 9 | RP15: 10 | RR15: 6 | RT15: 8 | RV15: 5 | RY15: 6 | RZ15: 9 | SC15: 9 | SD15: 9 | SE15: 8 | SH15: 9 | SL15: 7 | SO15: 8 | SQ15: 5 | ST15: 7 | SU15: 7 | SV15: 5 | SZ15: 7 | TA15: 7 | TB15: 9 | TC15: 9 | TI15: 7 | TL15: 10 | TM15: 9 | TN15: 6 | TP15: 9 | TQ15: 9 | TR15: 7 | TS15: 10 | TU15: 8 | TW15: 6 | TX15: 7 | TY15: 7 | TZ15: 9 | UB15: 5 | UC15: 8 | UE15: 6 | UF15: 8 | UG15: 4 | UI15: 8 | UL15: 6 | UO15: 9 | UR15: 8 | US15: 7 | UW15: 9 | UX15: 8 | UY15: 4 | UZ15: 9 | VC15: 7 | VE15: 8 | VG15: 5 | VH15: 12 | VI15: 8 | VK15: 5 | VN15: 6 | VO15: 9 | VP15: 6 | VQ15: 9 | VR15: 5 | VS15: 8 | VV15: 8 | VW15: 5 | VY15: 7 | VZ15: 4 | WA15: 10 | WC15: 7 | WD15: 8 | WE15: 10 | WG15: 6 | WK15: 7 | WL15: 9 | WM15: 5 | WN15: 8 | WO15: 8 | WR15: 6 | WS15: 8 | WT15: 10 | WU15: 7 | WW15: 9 | WZ15: 7 | XA15: 7 | XC15: 8 | XD15: 8 | XI15: 7 | XN15: 8 | XR15: 5 | XV15: 8 | XW15: 9 | XX15: 10 | XZ15: 8 | YC15: 4 | YH15: 8 | YI15: 8 | YL15: 6 | YM15: 9 | YP15: 8 | YQ15: 8 | YR15: 10 | YT15: 9 | YV15: 7 | YW15: 6 | YX15: 8 | YY15: 5 | ZF15: 9 | ZH15: 9 | ZJ15: 6 | ZL15: 7 | ZM15: 6 | ZN15: 9 | ZQ15: 6 | ZT15: 10 | ZV15: 6 | ZX15: 5 | ZZ15: 5 | AAB15: 7 | AAD15: 8 | AAF15: 5 | AAI15: 8 | AAJ15: 6 | AAK15: 7 | AAL15: 6 | AAP15: 8 | AAR15: 5 | AAU15: 8 | ABD15: 8 | ABE15: 6 | ABG15: 9 | ABI15: 9 | ABO15: 7 | ABP15: 9 | ABS15: 8 | ABU15: 4 | ABW15: 7 | ABX15: 10 | ACE15: 9 | ACG15: 6 | ACH15: 9 | ACJ15: 8 | ACK15: 7 | ACL15: 6 | ACN15: 7 | ACO15: 6 | ACP15: 7 | ACQ15: 7 | ACR15: 6 | ACV15: 8 | ADA15: 7 | ADC15: 9 | ADE15: 7 | ADF15: 6 | ADG15: 5 | ADJ15: 7 | ADM15: 6 | ADO15: 3 | ADQ15: 6 | ADR15: 4 | ADS15: 7 | ADU15: 5 | ADV15: 5 | ADW15: 6 | ADX15: 6 | ADY15: 7 | AEA15: 11 | AEI15: 7 | AEJ15: 7 | AEK15: 8 | AEM15: 8 | AEN15: 8 | AEP15: 10 | AEQ15: 9 | AES15: 11 | AEU15: 8 | AEV15: 10 | AEW15: 9 | AEY15: 6 | AFC15: 9 | AFJ15: 9 | AFM15: 4 | AFN15: 5 | AFO15: 7 | AFQ15: 10 | AFR15: 8 | AFT15: 9 | AFW15: 8 | AFX15: 9 | AFY15: 8 | AFZ15: 7 | AGC15: 6 | AGF15: 9 | AGG15: 5 | AGL15: 11 | AGR15: 5 | AGS15: 6 | AGU15: 8 | AGV15: 7 | AGX15: 9 | AHB15: 8 | AHD15: 6 | AHE15: 7 | AHF15: 9 | AHH15: 7 | AHJ15: 9 | AHL15: 10 | AHM15: 9 | AHN15: 8 | AHO15: 7 | AHP15: 9 | AHQ15: 9 | AHR15: 11 | AHU15: 6 | AIB15: 8 | AIE15: 6 | AIG15: 5 | AIH15: 6 | AII15: 6 | AIM15: 8 | AIO15: 6 | AIP15: 8 | AIR15: 8 | AIS15: 6 | AIU15: 6 | AIX15: 7 | AJB15: 7 | AJD15: 8 | AJF15: 8 | AJG15: 9 | AJH15: 5 | AJK15: 6 | AJN15: 8 | AJO15: 6 | AJT15: 12 | AJU15: 9 | AJV15: 7 | AJX15: 8 | AJZ15: 10 | AKB15: 7 | AKI15: 9 | AKJ15: 6 | AKK15: 5 | AKL15: 5 | AKM15: 6 | AKO15: 8 | AKP15: 7 | AKS15: 7 | AKU15: 5 | ALB15: 8 | ALC15: 7 | ALD15: 9 | ALE15: 5 | ALF15: 6 | ALG15: 5 | ALH15: 6 | ALI15: 10 | ALJ15: 5 | ALL15: 7 | ALM15: 8
B16: Záluží | C16: 8 | H16: 8 | J16: 7 | S16: 6 | T16: 4 | U16: 5 | W16: 8 | Y16: 9 | AA16: 7 | AB16: 7 | AC16: 9 | AE16: 7 | AG16: 8 | AJ16: 9 | AM16: 5 | AN16: 4 | AO16: 10 | AP16: 9 | AR16: 12 | AS16: 8 | AU16: 9 | AV16: 9 | AX16: 12 | AY16: 6 | AZ16: 7 | BA16: 9 | BB16: 7 | BC16: 8 | BE16: 3 | BF16: 13 | BI16: 10 | BK16: 7 | BM16: 5 | BP16: 10 | BV16: 8 | CA16: 8 | CC16: 7 | CF16: 7 | CL16: 10 | CN16: 6 | CP16: 7 | CR16: 8 | CS16: 11 | CT16: 6 | CV16: 13 | DA16: 9 | DE16: 6 | DH16: 7 | DR16: 8 | DS16: 8 | DT16: 8 | DU16: 11 | DV16: 5 | DW16: 9 | DY16: 8 | EC16: 10 | EI16: 7 | EL16: 9 | EM16: 9 | EO16: 7 | ER16: 7 | EX16: 5 | EY16: 8 | FA16: 7 | FC16: 8 | FD16: 9 | FF16: 6 | FJ16: 6 | FM16: 9 | FN16: 7 | FO16: 9 | FP16: 9 | FS16: 7 | FV16: 8 | FX16: 6 | FY16: 8 | FZ16: 8 | GB16: 6 | GC16: 5 | GD16: 10 | GG16: 8 | GJ16: 9 | GK16: 10 | GL16: 9 | GM16: 5 | GN16: 6 | GQ16: 6 | GR16: 8 | GS16: 8 | GV16: 7 | GW16: 7 | GX16: 7 | HA16: 7 | HD16: 8 | HG16: 7 | HK16: 7 | HN16: 8 | HO16: 10 | HQ16: 10 | HR16: 7 | HT16: 8 | HU16: 8 | HV16: 7 | HW16: 6 | HX16: 7 | HZ16: 13 | IB16: 10 | IC16: 8 | IE16: 7 | IF16: 7 | IL16: 10 | IO16: 6 | IP16: 10 | IU16: 7 | IV16: 8 | IW16: 10 | IY16: 7 | JB16: 10 | JD16: 6 | JG16: 7 | JH16: 9 | JJ16: 5 | JK16: 6 | JL16: 11 | JM16: 10 | JT16: 11 | JV16: 8 | JX16: 10 | JZ16: 7 | KA16: 8 | KB16: 13 | KD16: 6 | KE16: 9 | KH16: 6 | KI16: 5 | KK16: 7 | KM16: 7 | KN16: 9 | KQ16: 4 | KR16: 7 | KV16: 9 | KZ16: 8 | LD16: 7 | LE16: 7 | LF16: 7 | LG16: 7 | LH16: 8 | LI16: 6 | LJ16: 6 | LL16: 5 | LN16: 7 | LS16: 10 | LU16: 6 | LW16: 11 | LZ16: 5 | MA16: 7 | MH16: 10 | MJ16: 8 | MK16: 10 | ML16: 6 | MO16: 8 | MP16: 9 | MR16: 11 | MT16: 6 | MU16: 7 | MW16: 6 | MY16: 5 | MZ16: 9 | NH16: 7 | NI16: 6 | NK16: 8 | NM16: 9 | NU16: 9 | NY16: 10 | NZ16: 8 | OB16: 9 | OC16: 8 | OD16: 7 | OH16: 12 | OJ16: 7 | OL16: 8 | OM16: 9 | ON16: 10 | OO16: 10 | OQ16: 6 | OR16: 7 | OT16: 6 | OU16: 7 | OZ16: 12 | PH16: 5 | PI16: 8 | PM16: 9 | PO16: 9 | PP16: 9 | PR16: 8 | PS16: 6 | PV16: 10 | PW16: 9 | PZ16: 7 | QA16: 7 | QB16: 6 | QD16: 8 | QF16: 8 | QG16: 10 | QI16: 6 | QL16: 6 | QM16: 7 | QP16: 8 | QQ16: 10 | QR16: 4 | QS16: 10 | QT16: 6 | QU16: 6 | QX16: 10 | QZ16: 9 | RA16: 9 | RB16: 8 | RE16: 7 | RF16: 7 | RH16: 10 | RJ16: 7 | RK16: 7 | RL16: 7 | RM16: 8 | RN16: 9 | RO16: 10 | RQ16: 9 | RT16: 9 | RV16: 6 | RW16: 9 | SA16: 7 | SD16: 10 | SG16: 6 | SH16: 10 | SR16: 8 | SS16: 7 | SW16: 10 | SY16: 6 | TE16: 6 | TF16: 9 | TH16: 6 | TI16: 8 | TK16: 8 | TN16: 7 | TP16: 10 | TT16: 9 | TU16: 9 | TY16: 8 | UE16: 7 | UG16: 5 | UJ16: 6 | UL16: 7 | UN16: 7 | UP16: 7 | UR16: 9 | US16: 8 | UT16: 7 | UV16: 4 | UZ16: 10 | VA16: 7 | VE16: 9 | VH16: 13 | VI16: 9 | VJ16: 9 | VL16: 9 | VM16: 10 | VP16: 7 | VQ16: 10 | VV16: 9 | VY16: 8 | VZ16: 5 | WA16: 11 | WB16: 7 | WC16: 8 | WD16: 9 | WE16: 11 | WF16: 10 | WG16: 7 | WI16: 9 | WJ16: 9 | WL16: 10 | WM16: 6 | WO16: 9 | WR16: 7 | WW16: 10 | WZ16: 8 | XC16: 9 | XD16: 9 | XF16: 8 | XG16: 7 | XJ16: 9 | XL16: 10 | XM16: 8 | XV16: 9 | XW16: 10 | XX16: 11 | YC16: 5 | YE16: 9 | YF16: 9 | YH16: 9 | YI16: 9 | YJ16: 10 | YM16: 10 | YQ16: 9 | YR16: 11 | YS16: 5 | YT16: 10 | YU16: 10 | YX16: 9 | ZD16: 7 | ZG16: 8 | ZI16: 9 | ZO16: 8 | ZQ16: 7 | ZS16: 6 | ZT16: 11 | ZZ16: 6 | AAA16: 4 | AAB16: 8 | AAC16: 5 | AAK16: 8 | AAM16: 8 | AAN16: 5 | AAQ16: 12 | AAR16: 6 | AAS16: 7 | AAT16: 7 | AAZ16: 11 | ABB16: 7 | ABC16: 8 | ABF16: 12 | ABG16: 10 | ABH16: 8 | ABL16: 7 | ABM16: 7 | ABN16: 5 | ABR16: 8 | ABT16: 9 | ABU16: 5 | ABW16: 8 | ABX16: 11 | ABY16: 8 | ACC16: 7 | ACD16: 8 | ACE16: 10 | ACF16: 5 | ACH16: 10 | ACI16: 12 | ACK16: 8 | ACN16: 8 | ACR16: 7 | ACS16: 8 | ACT16: 7 | ACU16: 10 | ACW16: 6 | ACX16: 8 | ACZ16: 8 | ADB16: 6 | ADC16: 10 | ADD16: 7 | ADF16: 7 | ADG16: 6 | ADK16: 7 | ADM16: 7 | ADO16: 4 | ADQ16: 7 | ADS16: 8 | ADU16: 6 | ADV16: 6 | ADW16: 7 | ADY16: 8 | AEA16: 12 | AEB16: 10 | AEC16: 7 | AEE16: 5 | AEF16: 8 | AEH16: 9 | AEI16: 8 | AEK16: 9 | AEO16: 9 | AEP16: 11 | AER16: 9 | AES16: 12 | AEU16: 9 | AEY16: 7 | AEZ16: 8 | AFD16: 6 | AFF16: 8 | AFJ16: 10 | AFP16: 9 | AFQ16: 11 | AFR16: 9 | AFT16: 10 | AFV16: 6 | AFW16: 9 | AFX16: 10 | AGB16: 8 | AGC16: 7 | AGH16: 6 | AGI16: 7 | AGL16: 12 | AGO16: 6 | AGQ16: 6 | AGU16: 9 | AGV16: 8 | AGW16: 8 | AGX16: 10 | AGZ16: 5 | AHD16: 7 | AHE16: 8 | AHG16: 7 | AHH16: 8 | AHK16: 6 | AHM16: 10 | AHP16: 10 | AHR16: 12 | AHT16: 7 | AHU16: 7 | AHZ16: 7 | AIB16: 9 | AID16: 5 | AIF16: 7 | AIH16: 7 | AII16: 7 | AIJ16: 3 | AIM16: 9 | AIP16: 9 | AIQ16: 6 | AIT16: 7 | AIW16: 8 | AIX16: 8 | AIZ16: 9 | AJA16: 7 | AJC16: 10 | AJE16: 8 | AJF16: 9 | AJI16: 7 | AJJ16: 11 | AJK16: 7 | AJL16: 7 | AJM16: 8 | AJO16: 7 | AJT16: 13 | AJU16: 10 | AJV16: 8 | AJW16: 9 | AJX16: 9 | AJZ16: 11 | AKA16: 7 | AKC16: 8 | AKE16: 6 | AKI16: 10 | AKK16: 6 | AKM16: 7 | AKN16: 8 | AKR16: 8 | AKS16: 8 | ALD16: 10 | ALE16: 6 | ALF16: 7 | ALG16: 6 | ALK16: 5 | ALM16: 9
B17: Slavče | D17: 6 | E17: 8 | G17: 6 | L17: 5 | O17: 5 | R17: 4 | V17: 5 | W17: 6 | X17: 5 | Y17: 6 | AA17: 6 | AC17: 7 | AD17: 3 | AE17: 6 | AI17: 5 | AJ17: 7 | AM17: 3 | AN17: 3 | AP17: 7 | AR17: 9 | AS17: 6 | AT17: 5 | AU17: 7 | AW17: 4 | BA17: 8 | BE17: 2 | BF17: 10 | BG17: 5 | BH17: 7 | BI17: 7 | BK17: 6 | BL17: 6 | BN17: 4 | BP17: 9 | BQ17: 9 | BS17: 5 | BV17: 7 | BW17: 7 | BZ17: 3 | CA17: 7 | CB17: 4 | CC17: 6 | CG17: 6 | CH17: 7 | CJ17: 5 | CL17: 8 | CN17: 5 | CO17: 6 | CP17: 4 | CS17: 8 | CT17: 4 | CU17: 6 | CV17: 11 | CX17: 9 | CZ17: 5 | DA17: 8 | DB17: 7 | DC17: 9 | DE17: 5 | DK17: 5 | DL17: 8 | DS17: 5 | DU17: 9 | DW17: 7 | DX17: 5 | DY17: 6 | EA17: 5 | EB17: 4 | EC17: 8 | EH17: 7 | EI17: 5 | EK17: 6 | EL17: 7 | EM17: 8 | EN17: 6 | EU17: 8 | EV17: 10 | EZ17: 7 | FB17: 8 | FD17: 7 | FG17: 5 | FM17: 7 | FP17: 7 | FR17: 6 | FW17: 7 | FY17: 6 | FZ17: 6 | GA17: 5 | GB17: 5 | GE17: 7 | GF17: 6 | GG17: 7 | GI17: 5 | GK17: 8 | GO17: 9 | GP17: 4 | GQ17: 4 | GS17: 7 | GU17: 7 | GZ17: 6 | HB17: 8 | HC17: 6 | HD17: 6 | HE17: 6 | HF17: 5 | HG17: 6 | HJ17: 6 | HM17: 9 | HO17: 7 | HP17: 8 | HQ17: 8 | HS17: 9 | HT17: 5 | HW17: 5 | HY17: 6 | IB17: 8 | ID17: 8 | IE17: 5 | IF17: 6 | IJ17: 7 | IL17: 7 | IM17: 11 | IN17: 6 | IO17: 4 | IR17: 4 | IW17: 8 | IX17: 5 | JA17: 7 | JD17: 4 | JG17: 6 | JH17: 7 | JI17: 6 | JJ17: 3 | JK17: 4 | JL17: 9 | JM17: 8 | JO17: 7 | JR17: 6 | JT17: 9 | JU17: 8 | JX17: 8 | KA17: 7 | KB17: 10 | KC17: 8 | KE17: 6 | KF17: 9 | KR17: 6 | KT17: 7 | KV17: 8 | KX17: 8 | KY17: 5 | LB17: 8 | LC17: 7 | LE17: 4 | LF17: 6 | LH17: 6 | LL17: 4 | LO17: 8 | LU17: 4 | LV17: 7 | LZ17: 4 | MA17: 4 | MC17: 5 | MD17: 7 | MG17: 7 | MH17: 8 | MI17: 6 | MK17: 7 | ML17: 4 | MQ17: 6 | MR17: 9 | MS17: 5 | MU17: 5 | MV17: 7 | MW17: 4 | MX17: 6 | NB17: 6 | ND17: 10 | NF17: 9 | NH17: 6 | NK17: 7 | NL17: 4 | NO17: 5 | NT17: 8 | NU17: 8 | NW17: 8 | NY17: 8 | NZ17: 6 | OA17: 8 | OC17: 6 | OE17: 6 | OF17: 8 | OG17: 9 | OH17: 10 | OP17: 7 | OQ17: 5 | OS17: 6 | OU17: 5 | OZ17: 10 | PA17: 7 | PC17: 6 | PD17: 8 | PE17: 6 | PF17: 4 | PG17: 8 | PK17: 7 | PM17: 7 | PO17: 7 | PR17: 7 | PT17: 6 | PU17: 7 | PV17: 8 | PW17: 7 | PY17: 5 | PZ17: 6 | QA17: 4 | QC17: 5 | QD17: 7 | QE17: 5 | QF17: 7 | QG17: 8 | QH17: 5 | QI17: 4 | QP17: 6 | QQ17: 8 | QS17: 8 | QT17: 4 | QV17: 6 | QW17: 6 | QX17: 8 | QZ17: 6 | RF17: 6 | RH17: 7 | RK17: 5 | RM17: 6 | RN17: 8 | RO17: 8 | RP17: 8 | RT17: 7 | RU17: 7 | RV17: 3 | RZ17: 7 | SB17: 7 | SN17: 5 | SO17: 7 | SP17: 6 | SQ17: 4 | SR17: 6 | SS17: 5 | ST17: 6 | SX17: 10 | SY17: 4 | TB17: 7 | TC17: 7 | TD17: 6 | TG17: 5 | TJ17: 5 | TK17: 7 | TM17: 7 | TN17: 5 | TP17: 8 | TQ17: 8 | TS17: 8 | TT17: 8 | TV17: 7 | TZ17: 8 | UC17: 7 | UD17: 7 | UE17: 4 | UF17: 6 | UK17: 7 | UN17: 6 | UO17: 8 | UP17: 5 | UR17: 7 | UW17: 7 | UX17: 7 | VB17: 8 | VF17: 7 | VH17: 10 | VI17: 6 | VJ17: 8 | VL17: 7 | VN17: 4 | VO17: 7 | VQ17: 7 | VR17: 4 | VU17: 10 | VV17: 7 | VX17: 6 | VY17: 5 | WA17: 9 | WC17: 6 | WE17: 8 | WF17: 8 | WG17: 4 | WH17: 6 | WI17: 7 | WJ17: 8 | WK17: 6 | WM17: 4 | WR17: 5 | WT17: 9 | WU17: 5 | WW17: 7 | WX17: 8 | XD17: 7 | XG17: 5 | XJ17: 7 | XL17: 9 | XN17: 6 | XW17: 7 | XX17: 8 | XY17: 3 | YB17: 3 | YE17: 8 | YH17: 7 | YI17: 6 | YJ17: 8 | YK17: 4 | YM17: 7 | YQ17: 7 | YR17: 9 | YU17: 8 | YW17: 4 | YZ17: 8 | ZC17: 6 | ZE17: 6 | ZH17: 7 | ZI17: 8 | ZK17: 5 | ZL17: 5 | ZN17: 8 | ZP17: 5 | ZZ17: 4 | AAB17: 6 | AAE17: 8 | AAF17: 4 | AAI17: 7 | AAK17: 6 | AAL17: 4 | AAQ17: 10 | AAS17: 6 | AAT17: 6 | AAU17: 6 | AAV17: 8 | AAZ17: 10 | ABD17: 7 | ABF17: 10 | ABI17: 8 | ABJ17: 7 | ABO17: 5 | ABP17: 7 | ABQ17: 7 | ABR17: 7 | ABS17: 6 | ABT17: 7 | ABZ17: 8 | ACA17: 4 | ACB17: 4 | ACD17: 6 | ACE17: 7 | ACF17: 3 | ACG17: 5 | ACH17: 8 | ACI17: 10 | ACO17: 4 | ACR17: 5 | ACT17: 6 | ACU17: 9 | ACY17: 10 | ACZ17: 6 | ADA17: 6 | ADE17: 5 | ADF17: 5 | ADJ17: 5 | ADK17: 6 | ADL17: 9 | ADN17: 5 | ADP17: 5 | AEA17: 9 | AEB17: 8 | AEC17: 6 | AEF17: 7 | AEI17: 5 | AEM17: 7 | AEN17: 6 | AEP17: 8 | AET17: 9 | AEU17: 7 | AEW17: 7 | AEY17: 4 | AFC17: 8 | AFF17: 6 | AFJ17: 8 | AFM17: 3 | AFP17: 8 | AFQ17: 8 | AFT17: 7 | AFU17: 8 | AFW17: 6 | AFX17: 7 | AFY17: 6 | AFZ17: 6 | AGB17: 7 | AGD17: 8 | AGF17: 7 | AGG17: 4 | AGN17: 8 | AGP17: 5 | AGT17: 7 | AGU17: 6 | AHB17: 7 | AHD17: 5 | AHK17: 5 | AHL17: 8 | AHM17: 8 | AHO17: 5 | AHR17: 10 | AHT17: 6 | AHU17: 5 | AHZ17: 6 | AIG17: 3 | AII17: 5 | AIJ17: 2 | AIK17: 8 | AIM17: 6 | AIN17: 7 | AIP17: 6 | AIR17: 7 | AIT17: 6 | AIV17: 8 | AIW17: 6 | AIX17: 5 | AIY17: 4 | AIZ17: 7 | AJB17: 6 | AJC17: 8 | AJD17: 7 | AJE17: 6 | AJJ17: 9 | AJL17: 6 | AJN17: 7 | AJT17: 10 | AJU17: 7 | AJV17: 5 | AKB17: 5 | AKH17: 6 | AKI17: 8 | AKM17: 5 | AKO17: 6 | AKP17: 5 | AKQ17: 9 | AKR17: 6 | AKS17: 6 | AKT17: 7 | AKY17: 8 | ALD17: 7 | ALI17: 8 | ALL17: 6 | ALM17: 6 | ALN17: 7
B18: Lniště | G18: 5 | J18: 5 | M18: 6 | O18: 4 | P18: 6 | S18: 5 | U18: 4 | W18: 5 | X18: 4 | Y18: 5 | AC18: 6 | AF18: 5 | AH18: 6 | AK18: 6 | AL18: 5 | AM18: 2 | AO18: 7 | AQ18: 5 | AR18: 7 | AT18: 4 | AU18: 6 | AV18: 7 | AX18: 9 | BA18: 7 | BD18: 5 | BF18: 8 | BJ18: 7 | BK18: 5 | BL18: 5 | BM18: 3 | BP18: 7 | BQ18: 7 | BT18: 6 | BW18: 6 | BX18: 4 | BY18: 8 | CC18: 4 | CG18: 4 | CL18: 6 | CM18: 6 | CN18: 3 | CQ18: 3 | CS18: 6 | CV18: 9 | CX18: 7 | CZ18: 4 | DA18: 7 | DB18: 5 | DC18: 8 | DD18: 8 | DF18: 4 | DG18: 5 | DI18: 8 | DJ18: 7 | DM18: 6 | DO18: 5 | DP18: 6 | DR18: 5 | DS18: 4 | DT18: 6 | DU18: 7 | DV18: 4 | DW18: 5 | DX18: 4 | DZ18: 5 | EA18: 4 | EE18: 6 | EH18: 6 | EK18: 5 | EP18: 6 | EQ18: 4 | ER18: 4 | EU18: 6 | EW18: 6 | FG18: 4 | FH18: 7 | FI18: 4 | FL18: 5 | FO18: 7 | FQ18: 4 | FU18: 3 | FV18: 5 | FX18: 5 | GD18: 6 | GG18: 5 | GJ18: 7 | GO18: 8 | GR18: 7 | GW18: 5 | GX18: 5 | GY18: 4 | GZ18: 5 | HB18: 7 | HC18: 5 | HG18: 5 | HI18: 7 | HJ18: 5 | HK18: 5 | HM18: 7 | HP18: 6 | HQ18: 7 | HR18: 4 | HS18: 7 | HX18: 4 | HZ18: 10 | IA18: 8 | IB18: 6 | IF18: 5 | IG18: 7 | IL18: 6 | IM18: 9 | IP18: 7 | IQ18: 8 | IS18: 6 | IX18: 4 | IY18: 5 | JA18: 6 | JC18: 5 | JE18: 7 | JF18: 6 | JG18: 5 | JO18: 6 | JR18: 5 | JU18: 7 | JV18: 6 | JX18: 6 | JY18: 6 | JZ18: 6 | KA18: 5 | KC18: 7 | KE18: 4 | KF18: 7 | KK18: 6 | KL18: 6 | KM18: 6 | KO18: 5 | KT18: 6 | KW18: 7 | KZ18: 5 | LB18: 7 | LH18: 4 | LK18: 6 | LM18: 7 | LO18: 7 | LP18: 5 | LR18: 5 | LS18: 7 | LV18: 6 | LW18: 8 | LX18: 9 | MD18: 5 | MF18: 5 | MG18: 5 | MH18: 7 | MJ18: 5 | MN18: 5 | MO18: 6 | MP18: 7 | MQ18: 4 | MS18: 4 | MT18: 3 | MV18: 6 | MX18: 5 | MZ18: 7 | NA18: 4 | NB18: 4 | ND18: 8 | NF18: 7 | NI18: 5 | NJ18: 4 | NR18: 7 | NS18: 8 | NT18: 6 | NW18: 6 | NY18: 7 | NZ18: 4 | OB18: 5 | OD18: 5 | OG18: 7 | OH18: 8 | OI18: 6 | OK18: 5 | OL18: 6 | OM18: 7 | ON18: 6 | OO18: 6 | OS18: 5 | OT18: 3 | OY18: 6 | PD18: 7 | PG18: 6 | PI18: 5 | PJ18: 7 | PL18: 7 | PM18: 6 | PN18: 5 | PO18: 5 | PU18: 6 | PX18: 6 | PY18: 4 | QF18: 6 | QG18: 7 | QL18: 4 | QP18: 4 | QV18: 5 | RC18: 5 | RD18: 3 | RK18: 4 | RN18: 6 | RP18: 7 | RQ18: 7 | RS18: 4 | RT18: 5 | RV18: 2 | RZ18: 6 | SA18: 4 | SB18: 6 | SC18: 7 | SE18: 6 | SF18: 5 | SG18: 5 | SH18: 6 | SP18: 5 | SU18: 4 | SW18: 7 | SX18: 8 | TF18: 6 | TI18: 6 | TK18: 5 | TL18: 7 | TM18: 6 | TN18: 4 | TP18: 7 | TQ18: 6 | TS18: 7 | TT18: 6 | TU18: 6 | TV18: 5 | UA18: 8 | UD18: 6 | UH18: 6 | UI18: 7 | UJ18: 4 | UK18: 6 | UL18: 5 | UV18: 3 | UW18: 6 | UX18: 5 | UY18: 2 | VB18: 7 | VC18: 4 | VD18: 8 | VE18: 6 | VG18: 4 | VH18: 8 | VL18: 6 | VT18: 5 | VU18: 8 | WD18: 6 | WE18: 7 | WF18: 6 | WH18: 4 | WL18: 7 | WO18: 5 | WQ18: 6 | WS18: 7 | WU18: 4 | WX18: 6 | XC18: 6 | XE18: 4 | XG18: 4 | XH18: 7 | XI18: 5 | XK18: 6 | XL18: 7 | XM18: 6 | XP18: 5 | XS18: 8 | XT18: 6 | XU18: 6 | XV18: 5 | XZ18: 7 | YF18: 7 | YG18: 7 | YL18: 5 | YP18: 6 | YQ18: 6 | YT18: 6 | YX18: 7 | ZE18: 5 | ZH18: 5 | ZI18: 6 | ZN18: 7 | ZT18: 8 | ZX18: 3 | ZY18: 6 | ZZ18: 3 | AAD18: 7 | AAE18: 7 | AAG18: 5 | AAM18: 6 | AAN18: 4 | AAO18: 3 | AAQ18: 8 | AAV18: 7 | AAZ18: 8 | ABA18: 7 | ABC18: 5 | ABD18: 6 | ABE18: 4 | ABF18: 8 | ABH18: 7 | ABM18: 6 | ABO18: 3 | ABP18: 6 | ABQ18: 6 | ABY18: 6 | ABZ18: 6 | ACA18: 3 | ACB18: 3 | ACD18: 5 | ACH18: 6 | ACI18: 8 | ACJ18: 7 | ACQ18: 5 | ACS18: 5 | ACV18: 5 | ACW18: 4 | ADC18: 7 | ADD18: 5 | ADI18: 5 | ADJ18: 3 | ADL18: 8 | ADO18: 2 | ADR18: 2 | ADS18: 5 | ADT18: 4 | ADU18: 4 | ADX18: 5 | ADY18: 4 | AEA18: 7 | AEB18: 7 | AEC18: 5 | AEF18: 5 | AEG18: 7 | AEH18: 6 | AEI18: 4 | AEK18: 5 | AEL18: 4 | AEQ18: 7 | AER18: 6 | AES18: 8 | AET18: 8 | AEU18: 6 | AEV18: 8 | AEW18: 5 | AFA18: 6 | AFB18: 7 | AFC18: 6 | AFE18: 5 | AFF18: 5 | AFH18: 5 | AFI18: 4 | AFJ18: 6 | AFP18: 6 | AFQ18: 7 | AFU18: 7 | AFW18: 5 | AFX18: 5 | AGA18: 5 | AGC18: 5 | AGD18: 6 | AGE18: 6 | AGH18: 5 | AGK18: 5 | AGL18: 10 | AGN18: 6 | AGS18: 5 | AGW18: 6 | AGX18: 6 | AGY18: 7 | AHA18: 4 | AHE18: 5 | AHG18: 6 | AHI18: 5 | AHJ18: 7 | AHM18: 6 | AHN18: 6 | AHP18: 6 | AHR18: 8 | AHX18: 5 | AIA18: 6 | AIC18: 7 | AIE18: 4 | AIF18: 5 | AIH18: 5 | AIK18: 6 | AIL18: 5 | AIM18: 4 | AIR18: 6 | AIT18: 4 | AIW18: 5 | AIZ18: 6 | AJA18: 6 | AJE18: 4 | AJG18: 7 | AJM18: 6 | AJN18: 6 | AJP18: 8 | AJT18: 8 | AJV18: 4 | AJW18: 8 | AJX18: 5 | AKC18: 6 | AKD18: 4 | AKE18: 4 | AKI18: 6 | AKJ18: 5 | AKN18: 6 | AKO18: 5 | AKQ18: 7 | AKS18: 5 | AKX18: 4 | AKY18: 7 | ALI18: 7 | ALK18: 4 | ALL18: 5
B19: Chvalkov | C19: 9 | E19: 9 | H19: 9 | I19: 7 | M19: 7 | S19: 7 | T19: 5 | U19: 6 | AA19: 8 | AE19: 8 | AI19: 6 | AK19: 10 | AN19: 5 | AO19: 11 | AQ19: 7 | AT19: 8 | AX19: 13 | AY19: 7 | BA19: 10 | BB19: 8 | BD19: 7 | BF19: 14 | BG19: 6 | BI19: 11 | BJ19: 9 | BK19: 8 | BL19: 8 | BO19: 7 | BP19: 11 | BS19: 8 | BT19: 8 | BU19: 8 | BY19: 9 | CA19: 9 | CF19: 8 | CH19: 8 | CI19: 8 | CJ19: 7 | CL19: 11 | CM19: 9 | CO19: 7 | CP19: 8 | CR19: 9 | CU19: 7 | CV19: 14 | CX19: 11 | CZ19: 8 | DC19: 11 | DD19: 10 | DF19: 7 | DH19: 8 | DL19: 9 | DO19: 6 | DQ19: 6 | DS19: 9 | DX19: 7 | DZ19: 8 | EA19: 6 | EC19: 11 | ED19: 5 | EH19: 9 | EM19: 10 | EN19: 8 | EO19: 8 | ER19: 8 | EV19: 13 | EW19: 8 | FC19: 9 | FJ19: 7 | FK19: 6 | FM19: 10 | FQ19: 5 | FV19: 9 | FY19: 9 | FZ19: 9 | GC19: 6 | GD19: 11 | GF19: 9 | GI19: 8 | GJ19: 10 | GL19: 10 | GM19: 6 | GQ19: 7 | GR19: 9 | GV19: 8 | GW19: 8 | GX19: 8 | GZ19: 8 | HA19: 8 | HE19: 7 | HG19: 8 | HL19: 7 | HN19: 9 | HP19: 9 | HR19: 8 | HW19: 7 | HX19: 8 | HZ19: 14 | IA19: 10 | IB19: 11 | IC19: 9 | IF19: 8 | IK19: 6 | IL19: 11 | IO19: 7 | IQ19: 11 | IR19: 6 | IS19: 8 | IV19: 9 | IW19: 11 | IZ19: 7 | JB19: 11 | JC19: 6 | JD19: 7 | JE19: 8 | JF19: 9 | JH19: 10 | JJ19: 6 | JK19: 7 | JL19: 12 | JP19: 5 | JT19: 12 | JX19: 11 | KC19: 10 | KF19: 11 | KG19: 8 | KI19: 6 | KK19: 8 | KM19: 8 | KQ19: 5 | KV19: 10 | KW19: 10 | LC19: 9 | LE19: 8 | LG19: 8 | LH19: 9 | LN19: 8 | LO19: 9 | LP19: 8 | LQ19: 7 | LR19: 7 | LS19: 11 | LV19: 9 | LY19: 9 | LZ19: 6 | MA19: 8 | MB19: 7 | MK19: 11 | MN19: 7 | MO19: 9 | MS19: 6 | MT19: 7 | MU19: 8 | MZ19: 10 | ND19: 12 | NE19: 7 | NG19: 10 | NH19: 8 | NI19: 7 | NJ19: 8 | NK19: 9 | NL19: 6 | NM19: 10 | NN19: 6 | NP19: 7 | OC19: 9 | OF19: 10 | OI19: 7 | OK19: 7 | OL19: 9 | OO19: 11 | OQ19: 7 | OR19: 8 | OW19: 6 | OX19: 5 | PA19: 9 | PC19: 7 | PD19: 9 | PJ19: 8 | PK19: 9 | PN19: 6 | PQ19: 9 | PR19: 9 | PT19: 9 | PU19: 10 | PV19: 11 | PX19: 10 | PY19: 7 | PZ19: 8 | QA19: 8 | QB19: 7 | QC19: 6 | QD19: 9 | QG19: 11 | QJ19: 7 | QK19: 7 | QM19: 8 | QO19: 5 | QQ19: 11 | QS19: 11 | QT19: 7 | QX19: 11 | QZ19: 10 | RC19: 8 | RG19: 7 | RH19: 11 | RN19: 10 | RO19: 11 | RQ19: 10 | RU19: 8 | RW19: 10 | RX19: 5 | SA19: 8 | SC19: 10 | SD19: 11 | SF19: 7 | SG19: 7 | SH19: 11 | SI19: 7 | SN19: 6 | SP19: 8 | SR19: 9 | SU19: 8 | SV19: 6 | SW19: 11 | SY19: 7 | SZ19: 8 | TA19: 8 | TB19: 10 | TC19: 10 | TE19: 7 | TF19: 10 | TJ19: 7 | TL19: 11 | TM19: 10 | TO19: 7 | TP19: 11 | TS19: 11 | TV19: 8 | TX19: 8 | UA19: 9 | UC19: 9 | UG19: 6 | UK19: 8 | UN19: 8 | UO19: 10 | UQ19: 7 | UR19: 10 | UX19: 9 | UZ19: 11 | VC19: 8 | VF19: 8 | VH19: 14 | VI19: 10 | VJ19: 10 | VK19: 6 | VL19: 10 | VM19: 11 | VQ19: 11 | VS19: 9 | VU19: 12 | VV19: 10 | VY19: 9 | WA19: 12 | WC19: 9 | WD19: 10 | WH19: 8 | WI19: 10 | WJ19: 10 | WK19: 8 | WP19: 6 | WT19: 11 | WV19: 9 | WW19: 11 | XE19: 5 | XF19: 9 | XH19: 9 | XL19: 11 | XM19: 9 | XO19: 8 | XQ19: 5 | XU19: 8 | XY19: 4 | YB19: 5 | YF19: 10 | YN19: 5 | YO19: 7 | YP19: 9 | YQ19: 10 | YR19: 12 | YS19: 6 | YU19: 11 | YV19: 8 | YX19: 10 | ZB19: 4 | ZC19: 7 | ZD19: 8 | ZE19: 8 | ZG19: 9 | ZH19: 10 | ZI19: 10 | ZJ19: 7 | ZK19: 6 | ZL19: 8 | ZM19: 7 | ZN19: 10 | ZW19: 8 | AAE19: 9 | AAG19: 7 | AAH19: 4 | AAK19: 9 | AAM19: 9 | AAN19: 6 | AAO19: 4 | AAX19: 3 | ABB19: 8 | ABC19: 9 | ABH19: 9 | ABJ19: 9 | ABK19: 6 | ABL19: 8 | ABN19: 6 | ABQ19: 8 | ABR19: 9 | ABU19: 6 | ABV19: 6 | ABW19: 9 | ABX19: 12 | ABY19: 9 | ACB19: 6 | ACC19: 8 | ACD19: 9 | ACE19: 11 | ACG19: 7 | ACI19: 13 | ACQ19: 8 | ACR19: 8 | ACT19: 8 | ACU19: 11 | ACV19: 9 | ACY19: 12 | ACZ19: 9 | ADA19: 8 | ADD19: 8 | ADH19: 8 | ADJ19: 8 | ADM19: 8 | ADN19: 6 | ADO19: 5 | ADQ19: 8 | ADR19: 5 | ADS19: 9 | ADV19: 7 | ADY19: 9 | AEA19: 13 | AEB19: 11 | AEF19: 9 | AEJ19: 8 | AEQ19: 10 | AES19: 13 | AEV19: 11 | AEX19: 6 | AEY19: 8 | AFA19: 9 | AFC19: 10 | AFE19: 7 | AFG19: 8 | AFJ19: 11 | AFN19: 6 | AFP19: 10 | AFQ19: 12 | AFR19: 10 | AFT19: 11 | AFU19: 10 | AFX19: 11 | AFZ19: 8 | AGE19: 9 | AGF19: 10 | AGJ19: 4 | AGK19: 6 | AGL19: 13 | AGM19: 6 | AGO19: 7 | AGS19: 7 | AGU19: 10 | AGZ19: 6 | AHA19: 7 | AHB19: 9 | AHF19: 10 | AHG19: 8 | AHH19: 9 | AHQ19: 10 | AHT19: 8 | AHU19: 8 | AHV19: 5 | AHW19: 6 | AHX19: 7 | AHZ19: 8 | AIC19: 9 | AID19: 6 | AIG19: 6 | AII19: 8 | AIK19: 10 | AIL19: 7 | AIN19: 8 | AIQ19: 7 | AIS19: 7 | AIU19: 7 | AIY19: 5 | AIZ19: 10 | AJA19: 8 | AJB19: 8 | AJC19: 11 | AJE19: 9 | AJF19: 10 | AJJ19: 12 | AJK19: 8 | AJL19: 8 | AJM19: 9 | AJN19: 9 | AJO19: 8 | AJR19: 7 | AJS19: 3 | AJV19: 9 | AKA19: 8 | AKB19: 8 | AKF19: 6 | AKG19: 8 | AKH19: 7 | AKJ19: 7 | AKN19: 9 | AKO19: 9 | AKR19: 9 | AKT19: 9 | AKV19: 7 | AKW19: 6 | AKY19: 9 | ALA19: 9 | ALB19: 9 | ALD19: 11 | ALF19: 8 | ALI19: 11 | ALK19: 6 | ALN19: 8
B20: Čížkrajice | D20: 7 | E20: 10 | I20: 8 | J20: 8 | P20: 9 | R20: 7 | U20: 7 | X20: 6 | Z20: 9 | AB20: 8 | AH20: 8 | AJ20: 10 | AN20: 6 | AP20: 10 | AQ20: 8 | AT20: 9 | AY20: 8 | BA20: 11 | BB20: 9 | BE20: 4 | BF20: 15 | BI20: 12 | BN20: 5 | BP20: 12 | BS20: 9 | BX20: 7 | CA20: 10 | CB20: 6 | CC20: 8 | CD20: 8 | CJ20: 8 | CQ20: 6 | CV20: 15 | DA20: 10 | DB20: 9 | DC20: 12 | DD20: 11 | DE20: 7 | DK20: 7 | DL20: 10 | DN20: 7 | DP20: 7 | DY20: 9 | DZ20: 9 | EC20: 12 | EE20: 9 | EF20: 7 | EH20: 10 | EI20: 8 | EL20: 10 | EO20: 9 | EQ20: 7 | ER20: 9 | EU20: 11 | FA20: 8 | FC20: 10 | FD20: 10 | FE20: 8 | FH20: 10 | FL20: 8 | FP20: 10 | FQ20: 6 | FS20: 8 | FT20: 7 | FX20: 7 | GM20: 7 | GS20: 9 | GU20: 10 | GV20: 9 | GX20: 9 | GY20: 7 | GZ20: 9 | HA20: 9 | HC20: 8 | HD20: 9 | HE20: 8 | HG20: 9 | HI20: 10 | HK20: 8 | HL20: 8 | HN20: 10 | HO20: 11 | HP20: 10 | HR20: 9 | HS20: 11 | HU20: 9 | HV20: 8 | HY20: 7 | HZ20: 15 | IB20: 12 | IC20: 10 | IK20: 7 | IR20: 7 | IV20: 10 | IZ20: 8 | JA20: 10 | JB20: 12 | JC20: 7 | JD20: 8 | JE20: 9 | JH20: 11 | JI20: 7 | JJ20: 7 | JK20: 8 | JM20: 11 | JP20: 6 | JQ20: 7 | JS20: 7 | JT20: 13 | JY20: 8 | KA20: 9 | KC20: 11 | KD20: 7 | KE20: 10 | KJ20: 8 | KL20: 9 | KM20: 9 | KP20: 7 | KQ20: 6 | KR20: 8 | KS20: 5 | KW20: 11 | KZ20: 9 | LA20: 6 | LB20: 9 | LD20: 8 | LE20: 9 | LH20: 10 | LL20: 6 | LM20: 10 | LN20: 9 | LP20: 9 | LQ20: 8 | LR20: 8 | LS20: 12 | LT20: 7 | LU20: 7 | LV20: 10 | LW20: 12 | LZ20: 7 | ML20: 7 | MR20: 12 | MS20: 7 | MT20: 8 | MV20: 8 | MX20: 8 | NB20: 8 | NC20: 7 | NF20: 12 | NR20: 10 | NT20: 10 | NU20: 10 | NX20: 6 | NY20: 11 | NZ20: 9 | OC20: 10 | OG20: 11 | OH20: 13 | OI20: 8 | OK20: 8 | OL20: 10 | OM20: 10 | ON20: 11 | OP20: 9 | OQ20: 8 | OR20: 9 | OS20: 7 | OT20: 7 | OU20: 8 | OV20: 9 | OX20: 6 | OY20: 7 | PA20: 10 | PB20: 7 | PC20: 8 | PI20: 9 | PN20: 7 | PP20: 10 | PQ20: 10 | PS20: 7 | PT20: 10 | PV20: 12 | PW20: 10 | PY20: 8 | QA20: 9 | QB20: 8 | QC20: 7 | QD20: 10 | QF20: 9 | QJ20: 8 | QK20: 8 | QL20: 7 | QO20: 6 | QP20: 9 | QX20: 12 | QY20: 5 | QZ20: 11 | RA20: 10 | RD20: 4 | RE20: 8 | RI20: 5 | RL20: 8 | RM20: 9 | RN20: 11 | RO20: 12 | RP20: 11 | RR20: 7 | RS20: 5 | RT20: 10 | RU20: 9 | RV20: 7 | RW20: 11 | RY20: 7 | RZ20: 10 | SA20: 9 | SG20: 8 | SK20: 6 | SL20: 8 | SQ20: 6 | SR20: 10 | SS20: 8 | SU20: 9 | SW20: 12 | SX20: 12 | TA20: 9 | TB20: 11 | TC20: 11 | TD20: 7 | TG20: 6 | TI20: 9 | TL20: 12 | TM20: 11 | TN20: 8 | TQ20: 10 | TR20: 8 | TU20: 10 | TX20: 9 | TY20: 9 | TZ20: 10 | UB20: 6 | UC20: 10 | UF20: 9 | UG20: 7 | UI20: 9 | UJ20: 7 | UL20: 8 | UO20: 11 | UQ20: 8 | UR20: 11 | US20: 9 | UW20: 10 | UX20: 10 | VE20: 10 | VF20: 9 | VG20: 6 | VH20: 15 | VI20: 11 | VO20: 10 | VP20: 8 | VQ20: 12 | VR20: 6 | VV20: 11 | VZ20: 6 | WA20: 13 | WC20: 10 | WE20: 12 | WF20: 11 | WG20: 8 | WI20: 11 | WJ20: 11 | WK20: 9 | WL20: 11 | WN20: 9 | WO20: 10 | WY20: 7 | WZ20: 9 | XB20: 8 | XC20: 10 | XD20: 10 | XK20: 8 | XL20: 12 | XQ20: 6 | XV20: 10 | XY20: 5 | YA20: 9 | YB20: 6 | YD20: 7 | YG20: 9 | YI20: 10 | YJ20: 11 | YK20: 5 | YL20: 7 | YO20: 8 | YR20: 13 | YT20: 11 | YU20: 12 | YV20: 9 | YX20: 11 | YY20: 6 | ZA20: 9 | ZC20: 8 | ZK20: 7 | ZL20: 9 | ZM20: 8 | ZO20: 9 | ZP20: 6 | ZQ20: 8 | ZU20: 5 | ZY20: 8 | AAH20: 5 | AAL20: 7 | AAN20: 7 | AAO20: 5 | AAT20: 8 | AAU20: 9 | AAV20: 9 | AAW20: 8 | AAZ20: 12 | ABF20: 13 | ABI20: 10 | ABJ20: 10 | ABL20: 9 | ABN20: 7 | ABQ20: 9 | ABR20: 10 | ABS20: 9 | ABT20: 10 | ABY20: 10 | ACA20: 5 | ACB20: 7 | ACC20: 9 | ACF20: 6 | ACH20: 11 | ACI20: 14 | ACL20: 7 | ACN20: 9 | ACQ20: 9 | ACS20: 9 | ACW20: 7 | ACX20: 9 | ACZ20: 10 | ADA20: 9 | ADD20: 9 | ADO20: 6 | ADP20: 7 | ADT20: 7 | ADW20: 8 | ADX20: 7 | ADY20: 10 | ADZ20: 5 | AEA20: 14 | AEF20: 10 | AEG20: 9 | AEH20: 10 | AEJ20: 9 | AEK20: 10 | AEN20: 9 | AEO20: 10 | AEP20: 12 | AEW20: 10 | AEX20: 7 | AEZ20: 9 | AFB20: 10 | AFE20: 8 | AFF20: 9 | AFJ20: 12 | AFM20: 5 | AFN20: 7 | AFO20: 8 | AFS20: 7 | AFT20: 12 | AFV20: 7 | AFW20: 10 | AFX20: 12 | AFY20: 9 | AGB20: 9 | AGC20: 8 | AGI20: 8 | AGJ20: 5 | AGR20: 6 | AGS20: 8 | AGY20: 8 | AHB20: 10 | AHC20: 8 | AHD20: 8 | AHG20: 9 | AHH20: 10 | AHK20: 7 | AHM20: 11 | AHQ20: 11 | AHS20: 8 | AHU20: 9 | AHV20: 6 | AHZ20: 9 | AIA20: 8 | AIF20: 8 | AIG20: 7 | AIJ20: 4 | AIL20: 8 | AIP20: 10 | AIT20: 8 | AIU20: 8 | AIV20: 10 | AIW20: 9 | AIZ20: 11 | AJA20: 9 | AJC20: 12 | AJD20: 9 | AJJ20: 13 | AJO20: 9 | AJP20: 9 | AJS20: 4 | AJU20: 11 | AJW20: 10 | AKA20: 9 | AKC20: 9 | AKD20: 6 | AKE20: 7 | AKG20: 9 | AKJ20: 8 | AKL20: 6 | AKP20: 8 | AKW20: 7 | AKY20: 10 | ALB20: 10 | ALC20: 8 | ALD20: 12 | ALF20: 9 | ALM20: 10 | ALN20: 9
B21: Boršíkov | D21: 8 | F21: 6 | G21: 9 | J21: 9 | K21: 5 | M21: 8 | R21: 8 | T21: 6 | U21: 8 | AC21: 10 | AD21: 4 | AE21: 9 | AI21: 7 | AO21: 12 | AP21: 11 | AQ21: 9 | AT21: 10 | AW21: 6 | AY21: 9 | AZ21: 8 | BE21: 5 | BG21: 7 | BK21: 9 | BM21: 6 | BR21: 9 | BS21: 10 | BT21: 9 | BZ21: 4 | CB21: 7 | CD21: 9 | CE21: 7 | CG21: 9 | CH21: 9 | CL21: 12 | CO21: 8 | CQ21: 7 | CS21: 12 | CT21: 7 | CU21: 8 | CV21: 16 | CX21: 12 | DB21: 10 | DC21: 13 | DK21: 8 | DL21: 11 | DN21: 8 | DO21: 7 | DR21: 9 | DS21: 10 | DU21: 12 | DW21: 10 | DX21: 8 | DZ21: 10 | EA21: 7 | ED21: 6 | EE21: 10 | EK21: 7 | ES21: 6 | ET21: 8 | EV21: 14 | EW21: 9 | EX21: 6 | EZ21: 9 | FG21: 7 | FL21: 9 | FQ21: 7 | FV21: 10 | FY21: 10 | GB21: 7 | GD21: 12 | GE21: 9 | GG21: 9 | GJ21: 11 | GK21: 11 | GL21: 11 | GM21: 8 | GN21: 7 | GR21: 10 | GT21: 6 | GV21: 10 | GZ21: 10 | HB21: 10 | HD21: 10 | HG21: 10 | HH21: 8 | HI21: 11 | HK21: 9 | HL21: 9 | HM21: 12 | HN21: 11 | HP21: 11 | HQ21: 11 | HS21: 12 | HU21: 10 | HW21: 8 | HY21: 8 | HZ21: 16 | IA21: 11 | IB21: 13 | IC21: 11 | ID21: 11 | IE21: 8 | IF21: 9 | IG21: 10 | IH21: 6 | IJ21: 9 | IN21: 8 | IO21: 8 | IR21: 8 | IT21: 5 | IY21: 8 | JB21: 13 | JD21: 9 | JG21: 8 | JH21: 12 | JI21: 8 | JJ21: 8 | JK21: 9 | JN21: 8 | JS21: 8 | JT21: 14 | KA21: 10 | KC21: 12 | KD21: 8 | KE21: 11 | KF21: 12 | KG21: 9 | KL21: 10 | KP21: 8 | KR21: 9 | KS21: 6 | KT21: 10 | KV21: 11 | KW21: 12 | KY21: 8 | LC21: 10 | LE21: 10 | LF21: 8 | LI21: 7 | LK21: 8 | LL21: 7 | LM21: 11 | LO21: 10 | LQ21: 9 | LR21: 9 | LT21: 8 | LX21: 12 | LY21: 10 | LZ21: 8 | MB21: 8 | MG21: 10 | MH21: 11 | MI21: 9 | MJ21: 9 | MK21: 12 | ML21: 8 | MN21: 8 | MO21: 10 | MQ21: 9 | MS21: 8 | MT21: 9 | MX21: 9 | NA21: 7 | NB21: 9 | NC21: 8 | NE21: 8 | NK21: 10 | NN21: 7 | NQ21: 5 | NS21: 10 | NT21: 11 | NU21: 11 | NV21: 8 | NY21: 12 | OA21: 9 | OB21: 10 | OC21: 11 | OD21: 8 | OE21: 7 | OF21: 11 | OG21: 12 | OH21: 14 | OI21: 9 | OJ21: 8 | OK21: 9 | OL21: 11 | OP21: 10 | OQ21: 9 | OS21: 8 | OT21: 8 | OV21: 10 | OW21: 7 | OX21: 7 | PA21: 11 | PD21: 10 | PF21: 6 | PG21: 11 | PH21: 6 | PI21: 10 | PJ21: 9 | PN21: 8 | PP21: 11 | PV21: 13 | PW21: 11 | PY21: 9 | QB21: 9 | QE21: 6 | QH21: 7 | QI21: 7 | QJ21: 9 | QM21: 9 | QT21: 8 | QX21: 13 | RC21: 9 | RD21: 5 | RG21: 8 | RL21: 9 | RO21: 13 | RP21: 12 | RT21: 11 | RV21: 8 | RW21: 12 | RX21: 6 | RY21: 8 | SA21: 10 | SB21: 9 | SD21: 12 | SE21: 9 | SF21: 8 | SG21: 9 | SI21: 8 | SJ21: 5 | SN21: 7 | SQ21: 7 | SR21: 11 | ST21: 8 | SU21: 10 | SW21: 13 | SX21: 13 | SY21: 8 | TA21: 10 | TC21: 12 | TD21: 8 | TF21: 11 | TH21: 7 | TI21: 10 | TM21: 12 | TO21: 8 | UA21: 10 | UB21: 7 | UC21: 11 | UE21: 8 | UG21: 8 | UJ21: 8 | UO21: 12 | UQ21: 9 | UT21: 8 | UU21: 5 | UV21: 5 | UZ21: 12 | VA21: 8 | VC21: 9 | VD21: 11 | VE21: 11 | VF21: 10 | VG21: 7 | VH21: 16 | VJ21: 11 | VL21: 11 | VM21: 12 | VQ21: 13 | VR21: 7 | VS21: 10 | VT21: 8 | VY21: 10 | VZ21: 7 | WA21: 14 | WD21: 11 | WH21: 9 | WK21: 10 | WM21: 7 | WN21: 10 | WP21: 7 | WR21: 8 | WS21: 9 | WY21: 8 | XL21: 13 | XO21: 9 | XP21: 6 | XS21: 9 | XT21: 9 | XU21: 9 | XW21: 11 | XY21: 6 | XZ21: 9 | YC21: 6 | YK21: 6 | YO21: 9 | YP21: 10 | YQ21: 11 | YV21: 10 | YY21: 7 | YZ21: 9 | ZC21: 9 | ZD21: 9 | ZE21: 9 | ZI21: 11 | ZJ21: 8 | ZL21: 10 | ZQ21: 9 | ZT21: 12 | ZU21: 6 | ZX21: 6 | ZY21: 9 | ZZ21: 7 | AAA21: 5 | AAD21: 9 | AAL21: 8 | AAM21: 10 | AAO21: 6 | AAP21: 9 | AAQ21: 13 | AAS21: 8 | AAV21: 10 | AAW21: 9 | AAX21: 4 | AAY21: 7 | ABI21: 11 | ABJ21: 11 | ABQ21: 10 | ABV21: 7 | ABX21: 13 | ABZ21: 9 | ACA21: 6 | ACB21: 8 | ACC21: 10 | ACD21: 10 | ACG21: 8 | ACI21: 15 | ACL21: 8 | ACM21: 6 | ACO21: 7 | ACP21: 8 | ACR21: 9 | ACU21: 12 | ACV21: 10 | ACW21: 8 | ACX21: 10 | ACY21: 13 | ADA21: 10 | ADB21: 7 | ADD21: 10 | ADG21: 7 | ADH21: 9 | ADJ21: 9 | ADL21: 10 | ADR21: 6 | ADT21: 8 | ADV21: 8 | ADY21: 11 | ADZ21: 6 | AEA21: 15 | AEE21: 6 | AEG21: 10 | AEI21: 9 | AEM21: 9 | AEO21: 11 | AEQ21: 11 | AEV21: 12 | AEX21: 8 | AEZ21: 10 | AFD21: 7 | AFE21: 9 | AFI21: 6 | AFJ21: 13 | AFM21: 6 | AFO21: 9 | AFR21: 11 | AFU21: 11 | AFV21: 8 | AFW21: 11 | AFX21: 13 | AFY21: 10 | AGB21: 10 | AGC21: 9 | AGD21: 9 | AGE21: 10 | AGF21: 11 | AGG21: 6 | AGI21: 9 | AGM21: 7 | AGQ21: 7 | AGV21: 9 | AGY21: 9 | AHF21: 11 | AHH21: 11 | AHK21: 8 | AHN21: 9 | AHP21: 11 | AHS21: 9 | AHV21: 7 | AHX21: 8 | AHY21: 8 | AIB21: 10 | AIC21: 10 | AIE21: 7 | AIG21: 8 | AIH21: 8 | AII21: 9 | AIJ21: 5 | AIN21: 9 | AIO21: 7 | AIP21: 11 | AIQ21: 8 | AIS21: 8 | AIT21: 9 | AIU21: 9 | AIV21: 11 | AJC21: 13 | AJD21: 10 | AJE21: 10 | AJF21: 11 | AJJ21: 14 | AJK21: 9 | AJL21: 9 | AJO21: 10 | AJP21: 10 | AJQ21: 5 | AJR21: 8 | AJT21: 14 | AJW21: 11 | AJY21: 7 | AKA21: 10 | AKC21: 10 | AKD21: 7 | AKE21: 8 | AKF21: 7 | AKG21: 10 | AKJ21: 9 | AKK21: 7 | AKO21: 10 | AKQ21: 11 | AKS21: 9 | AKW21: 8 | AKY21: 11 | ALA21: 10 | ALB21: 11 | ALC21: 9 | ALF21: 10 | ALI21: 12 | ALK21: 7
B23: Vzdálenost [km] | C23: 30 | D23: 28 | E23: 31 | F23: 30 | G23: 31 | H23: 31 | I23: 31 | J23: 32 | K23: 20 | L23: 30 | M23: 33 | N23: 29 | O23: 28 | P23: 33 | Q23: 27 | R23: 29 | S23: 31 | T23: 29 | U23: 32 | V23: 32 | W23: 27 | X23: 30 | Y23: 29 | Z23: 28 | AA23: 28 | AB23: 32 | AC23: 36 | AD23: 13 | AE23: 30 | AF23: 30 | AG23: 30 | AH23: 32 | AI23: 30 | AJ23: 35 | AK23: 35 | AL23: 29 | AM23: 17 | AN23: 20 | AO23: 34 | AP23: 37 | AQ23: 30 | AR23: 33 | AS23: 31 | AT23: 27 | AU23: 31 | AV23: 29 | AW23: 28 | AX23: 35 | AY23: 32 | AZ23: 33 | BA23: 31 | BB23: 33 | BC23: 30 | BD23: 33 | BE23: 14 | BF23: 36 | BG23: 24 | BH23: 30 | BI23: 31 | BJ23: 33 | BK23: 31 | BL23: 33 | BM23: 29 | BN23: 30 | BO23: 30 | BP23: 37 | BQ23: 29 | BR23: 35 | BS23: 33 | BT23: 31 | BU23: 33 | BV23: 27 | BW23: 32 | BX23: 33 | BY23: 33 | BZ23: 25 | CA23: 29 | CB23: 28 | CC23: 20 | CD23: 34 | CE23: 31 | CF23: 32 | CG23: 27 | CH23: 30 | CI23: 30 | CJ23: 32 | CK23: 27 | CL23: 33 | CM23: 34 | CN23: 23 | CO23: 30 | CP23: 29 | CQ23: 23 | CR23: 32 | CS23: 35 | CT23: 28 | CU23: 29 | CV23: 35 | CW23: 29 | CX23: 39 | CY23: 25 | CZ23: 33 | DA23: 34 | DB23: 29 | DC23: 37 | DD23: 36 | DE23: 30 | DF23: 28 | DG23: 28 | DH23: 31 | DI23: 30 | DJ23: 30 | DK23: 30 | DL23: 32 | DM23: 31 | DN23: 25 | DO23: 35 | DP23: 35 | DQ23: 29 | DR23: 34 | DS23: 29 | DT23: 26 | DU23: 38 | DV23: 28 | DW23: 30 | DX23: 25 | DY23: 32 | DZ23: 32 | EA23: 34 | EB23: 28 | EC23: 35 | ED23: 24 | EE23: 32 | EF23: 34 | EG23: 27 | EH23: 37 | EI23: 29 | EJ23: 28 | EK23: 35 | EL23: 28 | EM23: 33 | EN23: 33 | EO23: 29 | EP23: 28 | EQ23: 27 | ER23: 31 | ES23: 29 | ET23: 34 | EU23: 38 | EV23: 36 | EW23: 32 | EX23: 32 | EY23: 32 | EZ23: 34 | FA23: 35 | FB23: 30 | FC23: 29 | FD23: 33 | FE23: 33 | FF23: 30 | FG23: 26 | FH23: 38 | FI23: 24 | FJ23: 33 | FK23: 28 | FL23: 26 | FM23: 33 | FN23: 28 | FO23: 32 | FP23: 34 | FQ23: 25 | FR23: 29 | FS23: 34 | FT23: 31 | FU23: 25 | FV23: 35 | FW23: 30 | FX23: 30 | FY23: 33 | FZ23: 28 | GA23: 26 | GB23: 28 | GC23: 26 | GD23: 37 | GE23: 32 | GF23: 30 | GG23: 30 | GH23: 31 | GI23: 31 | GJ23: 35 | GK23: 34 | GL23: 34 | GM23: 27 | GN23: 32 | GO23: 33 | GP23: 28 | GQ23: 25 | GR23: 32 | GS23: 32 | GT23: 30 | GU23: 32 | GV23: 29 | GW23: 32 | GX23: 27 | GY23: 24 | GZ23: 31 | HA23: 32 | HB23: 36 | HC23: 29 | HD23: 30 | HE23: 31 | HF23: 30 | HG23: 29 | HH23: 32 | HI23: 37 | HJ23: 28 | HK23: 26 | HL23: 32 | HM23: 35 | HN23: 33 | HO23: 32 | HP23: 37 | HQ23: 32 | HR23: 32 | HS23: 38 | HT23: 30 | HU23: 33 | HV23: 34 | HW23: 28 | HX23: 31 | HY23: 32 | HZ23: 39 | IA23: 31 | IB23: 34 | IC23: 31 | ID23: 29 | IE23: 33 | IF23: 31 | IG23: 38 | IH23: 29 | II23: 30 | IJ23: 27 | IK23: 29 | IL23: 27 | IM23: 33 | IN23: 29 | IO23: 29 | IP23: 32 | IQ23: 32 | IR23: 31 | IS23: 34 | IT23: 29 | IU23: 27 | IV23: 34 | IW23: 30 | IX23: 26 | IY23: 32 | IZ23: 31 | JA23: 37 | JB23: 37 | JC23: 24 | JD23: 28 | JE23: 33 | JF23: 32 | JG23: 30 | JH23: 35 | JI23: 30 | JJ23: 27 | JK23: 28 | JL23: 34 | JM23: 36 | JN23: 34 | JO23: 31 | JP23: 27 | JQ23: 30 | JR23: 28 | JS23: 30 | JT23: 36 | JU23: 31 | JV23: 30 | JW23: 26 | JX23: 36 | JY23: 36 | JZ23: 30 | KA23: 32 | KB23: 32 | KC23: 30 | KD23: 34 | KE23: 30 | KF23: 35 | KG23: 36 | KH23: 27 | KI23: 31 | KJ23: 34 | KK23: 31 | KL23: 35 | KM23: 32 | KN23: 31 | KO23: 27 | KP23: 31 | KQ23: 16 | KR23: 31 | KS23: 29 | KT23: 36 | KU23: 27 | KV23: 32 | KW23: 39 | KX23: 29 | KY23: 29 | KZ23: 32 | LA23: 29 | LB23: 33 | LC23: 33 | LD23: 30 | LE23: 25 | LF23: 31 | LG23: 30 | LH23: 36 | LI23: 32 | LJ23: 27 | LK23: 34 | LL23: 27 | LM23: 36 | LN23: 31 | LO23: 32 | LP23: 25 | LQ23: 28 | LR23: 31 | LS23: 28 | LT23: 33 | LU23: 29 | LV23: 39 | LW23: 34 | LX23: 34 | LY23: 34 | LZ23: 28 | MA23: 29 | MB23: 30 | MC23: 28 | MD23: 28 | ME23: 28 | MF23: 27 | MG23: 28 | MH23: 30 | MI23: 33 | MJ23: 35 | MK23: 30 | ML23: 25 | MM23: 29 | MN23: 26 | MO23: 35 | MP23: 29 | MQ23: 23 | MR23: 36 | MS23: 30 | MT23: 23 | MU23: 34 | MV23: 32 | MW23: 28 | MX23: 31 | MY23: 27 | MZ23: 34 | NA23: 32 | NB23: 30 | NC23: 29 | ND23: 34 | NE23: 30 | NF23: 34 | NG23: 34 | NH23: 30 | NI23: 33 | NJ23: 27 | NK23: 33 | NL23: 24 | NM23: 33 | NN23: 30 | NO23: 24 | NP23: 32 | NQ23: 26 | NR23: 36 | NS23: 33 | NT23: 38 | NU23: 33 | NV23: 36 | NW23: 29 | NX23: 30 | NY23: 36 | NZ23: 32 | OA23: 31 | OB23: 33 | OC23: 29 | OD23: 31 | OE23: 26 | OF23: 34 | OG23: 34 | OH23: 34 | OI23: 33 | OJ23: 27 | OK23: 31 | OL23: 30 | OM23: 34 | ON23: 37 | OO23: 29 | OP23: 36 | OQ23: 31 | OR23: 32 | OS23: 28 | OT23: 20 | OU23: 29 | OV23: 34 | OW23: 30 | OX23: 18 | OY23: 35 | OZ23: 30 | PA23: 36 | PB23: 32 | PC23: 29 | PD23: 32 | PE23: 31 | PF23: 28 | PG23: 34 | PH23: 27 | PI23: 35 | PJ23: 32 | PK23: 32 | PL23: 28 | PM23: 27 | PN23: 31 | PO23: 25 | PP23: 36 | PQ23: 32 | PR23: 35 | PS23: 29 | PT23: 29 | PU23: 36 | PV23: 32 | PW23: 35 | PX23: 33 | PY23: 25 | PZ23: 31 | QA23: 27 | QB23: 28 | QC23: 31 | QD23: 32 | QE23: 32 | QF23: 30 | QG23: 35 | QH23: 29 | QI23: 29 | QJ23: 31 | QK23: 32 | QL23: 28 | QM23: 33 | QN23: 12 | QO23: 28 | QP23: 30 | QQ23: 30 | QR23: 25 | QS23: 34 | QT23: 30 | QU23: 27 | QV23: 30 | QW23: 29 | QX23: 34 | QY23: 23 | QZ23: 33 | RA23: 32 | RB23: 32 | RC23: 26 | RD23: 31 | RE23: 34 | RF23: 28 | RG23: 29 | RH23: 31 | RI23: 28 | RJ23: 31 | RK23: 25 | RL23: 32 | RM23: 34 | RN23: 32 | RO23: 34 | RP23: 31 | RQ23: 33 | RR23: 26 | RS23: 31 | RT23: 35 | RU23: 31 | RV23: 18 | RW23: 31 | RX23: 29 | RY23: 33 | RZ23: 36 | SA23: 33 | SB23: 32 | SC23: 33 | SD23: 35 | SE23: 36 | SF23: 28 | SG23: 30 | SH23: 36 | SI23: 29 | SJ23: 32 | SK23: 29 | SL23: 33 | SM23: 27 | SN23: 30 | SO23: 28 | SP23: 32 | SQ23: 32 | SR23: 31 | SS23: 32 | ST23: 33 | SU23: 28 | SV23: 32 | SW23: 34 | SX23: 38 | SY23: 30 | SZ23: 32 | TA23: 32 | TB23: 34 | TC23: 32 | TD23: 29 | TE23: 30 | TF23: 37 | TG23: 28 | TH23: 33 | TI23: 33 | TJ23: 25 | TK23: 29 | TL23: 37 | TM23: 32 | TN23: 25 | TO23: 31 | TP23: 30 | TQ23: 33 | TR23: 34 | TS23: 33 | TT23: 31 | TU23: 34 | TV23: 34 | TW23: 31 | TX23: 33 | TY23: 31 | TZ23: 33 | UA23: 33 | UB23: 32 | UC23: 33 | UD23: 28 | UE23: 29 | UF23: 29 | UG23: 26 | UH23: 27 | UI23: 36 | UJ23: 23 | UK23: 32 | UL23: 26 | UM23: 28 | UN23: 30 | UO23: 35 | UP23: 32 | UQ23: 31 | UR23: 28 | US23: 34 | UT23: 29 | UU23: 30 | UV23: 29 | UW23: 31 | UX23: 31 | UY23: 17 | UZ23: 34 | VA23: 33 | VB23: 31 | VC23: 28 | VD23: 35 | VE23: 31 | VF23: 31 | VG23: 28 | VH23: 36 | VI23: 31 | VJ23: 33 | VK23: 34 | VL23: 35 | VM23: 34 | VN23: 29 | VO23: 33 | VP23: 27 | VQ23: 37 | VR23: 27 | VS23: 28 | VT23: 32 | VU23: 38 | VV23: 34 | VW23: 30 | VX23: 29 | VY23: 25 | VZ23: 27 | WA23: 34 | WB23: 27 | WC23: 33 | WD23: 32 | WE23: 34 | WF23: 37 | WG23: 29 | WH23: 28 | WI23: 36 | WJ23: 33 | WK23: 28 | WL23: 31 | WM23: 27 | WN23: 33 | WO23: 33 | WP23: 31 | WQ23: 28 | WR23: 29 | WS23: 36 | WT23: 34 | WU23: 28 | WV23: 33 | WW23: 32 | WX23: 32 | WY23: 28 | WZ23: 27 | XA23: 32 | XB23: 30 | XC23: 30 | XD23: 32 | XE23: 31 | XF23: 35 | XG23: 26 | XH23: 33 | XI23: 29 | XJ23: 31 | XK23: 34 | XL23: 35 | XM23: 34 | XN23: 30 | XO23: 31 | XP23: 30 | XQ23: 29 | XR23: 31 | XS23: 33 | XT23: 36 | XU23: 35 | XV23: 32 | XW23: 33 | XX23: 33 | XY23: 25 | XZ23: 35 | YA23: 37 | YB23: 16 | YC23: 29 | YD23: 32 | YE23: 31 | YF23: 33 | YG23: 34 | YH23: 30 | YI23: 36 | YJ23: 36 | YK23: 28 | YL23: 26 | YM23: 31 | YN23: 29 | YO23: 31 | YP23: 32 | YQ23: 28 | YR23: 33 | YS23: 28 | YT23: 35 | YU23: 35 | YV23: 29 | YW23: 25 | YX23: 31 | YY23: 30 | YZ23: 31 | ZA23: 35 | ZB23: 24 | ZC23: 30 | ZD23: 31 | ZE23: 31 | ZF23: 31 | ZG23: 32 | ZH23: 31 | ZI23: 36 | ZJ23: 29 | ZK23: 30 | ZL23: 24 | ZM23: 29 | ZN23: 32 | ZO23: 31 | ZP23: 30 | ZQ23: 30 | ZR23: 29 | ZS23: 30 | ZT23: 37 | ZU23: 28 | ZV23: 27 | ZW23: 33 | ZX23: 20 | ZY23: 30 | ZZ23: 29 | AAA23: 24 | AAB23: 30 | AAC23: 29 | AAD23: 30 | AAE23: 34 | AAF23: 25 | AAG23: 35 | AAH23: 23 | AAI23: 30 | AAJ23: 28 | AAK23: 34 | AAL23: 30 | AAM23: 33 | AAN23: 24 | AAO23: 22 | AAP23: 32 | AAQ23: 38 | AAR23: 29 | AAS23: 29 | AAT23: 31 | AAU23: 32 | AAV23: 34 | AAW23: 32 | AAX23: 23 | AAY23: 31 | AAZ23: 34 | ABA23: 27 | ABB23: 33 | ABC23: 32 | ABD23: 31 | ABE23: 27 | ABF23: 38 | ABG23: 30 | ABH23: 26 | ABI23: 32 | ABJ23: 33 | ABK23: 32 | ABL23: 30 | ABM23: 32 | ABN23: 31 | ABO23: 20 | ABP23: 33 | ABQ23: 31 | ABR23: 31 | ABS23: 35 | ABT23: 37 | ABU23: 27 | ABV23: 27 | ABW23: 30 | ABX23: 34 | ABY23: 33 | ABZ23: 35 | ACA23: 20 | ACB23: 29 | ACC23: 34 | ACD23: 33 | ACE23: 35 | ACF23: 27 | ACG23: 31 | ACH23: 29 | ACI23: 40 | ACJ23: 31 | ACK23: 30 | ACL23: 33 | ACM23: 30 | ACN23: 34 | ACO23: 29 | ACP23: 30 | ACQ23: 32 | ACR23: 33 | ACS23: 28 | ACT23: 32 | ACU23: 35 | ACV23: 38 | ACW23: 30 | ACX23: 36 | ACY23: 36 | ACZ23: 34 | ADA23: 34 | ADB23: 33 | ADC23: 31 | ADD23: 30 | ADE23: 29 | ADF23: 26 | ADG23: 29 | ADH23: 34 | ADI23: 28 | ADJ23: 24 | ADK23: 28 | ADL23: 33 | ADM23: 29 | ADN23: 31 | ADO23: 18 | ADP23: 24 | ADQ23: 32 | ADR23: 19 | ADS23: 33 | ADT23: 27 | ADU23: 29 | ADV23: 28 | ADW23: 28 | ADX23: 31 | ADY23: 30 | ADZ23: 29 | AEA23: 38 | AEB23: 35 | AEC23: 29 | AED23: 31 | AEE23: 28 | AEF23: 34 | AEG23: 31 | AEH23: 34 | AEI23: 29 | AEJ23: 32 | AEK23: 34 | AEL23: 14 | AEM23: 33 | AEN23: 32 | AEO23: 36 | AEP23: 37 | AEQ23: 33 | AER23: 31 | AES23: 37 | AET23: 30 | AEU23: 27 | AEV23: 30 | AEW23: 34 | AEX23: 31 | AEY23: 30 | AEZ23: 34 | AFA23: 33 | AFB23: 27 | AFC23: 34 | AFD23: 31 | AFE23: 35 | AFF23: 32 | AFG23: 33 | AFH23: 26 | AFI23: 30 | AFJ23: 34 | AFK23: 30 | AFL23: 24 | AFM23: 26 | AFN23: 29 | AFO23: 31 | AFP23: 34 | AFQ23: 33 | AFR23: 34 | AFS23: 31 | AFT23: 31 | AFU23: 37 | AFV23: 34 | AFW23: 25 | AFX23: 33 | AFY23: 34 | AFZ23: 30 | AGA23: 27 | AGB23: 33 | AGC23: 29 | AGD23: 31 | AGE23: 38 | AGF23: 36 | AGG23: 28 | AGH23: 30 | AGI23: 29 | AGJ23: 30 | AGK23: 26 | AGL23: 33 | AGM23: 34 | AGN23: 32 | AGO23: 30 | AGP23: 21 | AGQ23: 31 | AGR23: 32 | AGS23: 31 | AGT23: 30 | AGU23: 34 | AGV23: 37 | AGW23: 30 | AGX23: 30 | AGY23: 30 | AGZ23: 31 | AHA23: 26 | AHB23: 33 | AHC23: 34 | AHD23: 28 | AHE23: 29 | AHF23: 34 | AHG23: 33 | AHH23: 34 | AHI23: 27 | AHJ23: 28 | AHK23: 29 | AHL23: 31 | AHM23: 29 | AHN23: 33 | AHO23: 29 | AHP23: 30 | AHQ23: 32 | AHR23: 33 | AHS23: 33 | AHT23: 29 | AHU23: 28 | AHV23: 29 | AHW23: 33 | AHX23: 31 | AHY23: 34 | AHZ23: 29 | AIA23: 32 | AIB23: 35 | AIC23: 38 | AID23: 29 | AIE23: 27 | AIF23: 30 | AIG23: 17 | AIH23: 29 | AII23: 33 | AIJ23: 14 | AIK23: 33 | AIL23: 30 | AIM23: 29 | AIN23: 28 | AIO23: 32 | AIP23: 35 | AIQ23: 30 | AIR23: 31 | AIS23: 28 | AIT23: 32 | AIU23: 28 | AIV23: 33 | AIW23: 31 | AIX23: 31 | AIY23: 26 | AIZ23: 35 | AJA23: 31 | AJB23: 31 | AJC23: 35 | AJD23: 32 | AJE23: 27 | AJF23: 33 | AJG23: 31 | AJH23: 26 | AJI23: 28 | AJJ23: 37 | AJK23: 27 | AJL23: 25 | AJM23: 32 | AJN23: 35 | AJO23: 28 | AJP23: 32 | AJQ23: 24 | AJR23: 28 | AJS23: 28 | AJT23: 39 | AJU23: 34 | AJV23: 33 | AJW23: 32 | AJX23: 29 | AJY23: 32 | AJZ23: 31 | AKA23: 32 | AKB23: 30 | AKC23: 33 | AKD23: 26 | AKE23: 23 | AKF23: 30 | AKG23: 30 | AKH23: 31 | AKI23: 27 | AKJ23: 29 | AKK23: 30 | AKL23: 28 | AKM23: 24 | AKN23: 32 | AKO23: 34 | AKP23: 30 | AKQ23: 33 | AKR23: 31 | AKS23: 27 | AKT23: 32 | AKU23: 30 | AKV23: 28 | AKW23: 31 | AKX23: 14 | AKY23: 35 | AKZ23: 27 | ALA23: 34 | ALB23: 34 | ALC23: 33 | ALD23: 34 | ALE23: 27 | ALF23: 29 | ALG23: 29 | ALH23: 27 | ALI23: 33 | ALJ23: 26 | ALK23: 29 | ALL23: 27 | ALM23: 33 | ALN23: 31
B24: Počet zastávek | C24: =SUM(IF(C4>=1,1,0),IF(C5>=1,1,0),IF(C6>=1,1,0),IF(C7>=1,1,0),IF(C8>=1,1,0),IF(C9>=1,1,0),IF(C10>=1,1,0),IF(C11>=1,1,0),IF(C12>=1,1,0),IF(C13>=1,1,0),IF(C14>=1,1,0),IF(C15>=1,1,0),IF(C16>=1,1,0),IF(C17>=1,1,0),IF(C18>=1,1,0),IF(C19>=1,1,0),IF(C20>=1,1,0),IF(C21>=1,1,0)) -> 9 | D24: =SUM(IF(D4>=1,1,0),IF(D5>=1,1,0),IF(D6>=1,1,0),IF(D7>=1,1,0),IF(D8>=1,1,0),IF(D9>=1,1,0),IF(D10>=1,1,0),IF(D11>=1,1,0),IF(D12>=1,1,0),IF(D13>=1,1,0),IF(D14>=1,1,0),IF(D15>=1,1,0),IF(D16>=1,1,0),IF(D17>=1,1,0),IF(D18>=1,1,0),IF(D19>=1,1,0),IF(D20>=1,1,0),IF(D21>=1,1,0)) -> 8 | E24: 10 | F24: 6 | G24: 9 | H24: 9 | I24: 8 | J24: 9 | K24: 5 | L24: 6 | M24: 8 | N24: 9 | O24: 5 | P24: 9 | Q24: 6 | R24: 8 | S24: 7 | T24: 6 | U24: 8 | V24: 7 | W24: 8 | X24: 6 | Y24: 9 | Z24: 9 | AA24: 8 | AB24: 8 | AC24: 10 | AD24: 4 | AE24: 9 | AF24: 8 | AG24: 8 | AH24: 8 | AI24: 7 | AJ24: 10 | AK24: 10 | AL24: 7 | AM24: 5 | AN24: 6 | AO24: 12 | AP24: 11 | AQ24: 9 | AR24: 12 | AS24: 8 | AT24: 10 | AU24: 9 | AV24: 9 | AW24: 6 | AX24: 13 | AY24: 9 | AZ24: 8 | BA24: 11 | BB24: 9 | BC24: 8 | BD24: 7 | BE24: 5 | BF24: 15 | BG24: 7 | BH24: 8 | BI24: 12 | BJ24: 9 | BK24: 9 | BL24: 8 | BM24: 6 | BN24: 5 | BO24: 7 | BP24: =SUM(IF(BP4>=1,1,0),IF(BP5>=1,1,0),IF(BP6>=1,1,0),IF(BP7>=1,1,0),IF(BP8>=1,1,0),IF(BP9>=1,1,0),IF(BP10>=1,1,0),IF(BP11>=1,1,0),IF(BP12>=1,1,0),IF(BP13>=1,1,0),IF(BP14>=1,1,0),IF(BP15>=1,1,0),IF(BP16>=1,1,0),IF(BP17>=1,1,0),IF(BP18>=1,1,0),IF(BP19>=1,1,0),IF(BP20>=1,1,0),IF(BP21>=1,1,0)) -> 12 | BQ24: 9 | BR24: 9 | BS24: 10 | BT24: 9 | BU24: 8 | BV24: 8 | BW24: 8 | BX24: 7 | BY24: 9 | BZ24: 4 | CA24: 10 | CB24: 7 | CC24: 8 | CD24: 9 | CE24: 7 | CF24: 8 | CG24: 9 | CH24: 9 | CI24: 8 | CJ24: 8 | CK24: 6 | CL24: 12 | CM24: 9 | CN24: 6 | CO24: 8 | CP24: 8 | CQ24: 7 | CR24: 9 | CS24: 12 | CT24: 7 | CU24: 8 | CV24: 16 | CW24: 5 | CX24: 12 | CY24: 5 | CZ24: 8 | DA24: 10 | DB24: 10 | DC24: 13 | DD24: 11 | DE24: 7 | DF24: 7 | DG24: 5 | DH24: 8 | DI24: 10 | DJ24: 8 | DK24: 8 | DL24: 11 | DM24: 7 | DN24: 8 | DO24: 7 | DP24: 7 | DQ24: 6 | DR24: 9 | DS24: 10 | DT24: 8 | DU24: 12 | DV24: 5 | DW24: 10 | DX24: 8 | DY24: 9 | DZ24: 10 | EA24: 7 | EB24: =SUM(IF(EB4>=1,1,0),IF(EB5>=1,1,0),IF(EB6>=1,1,0),IF(EB7>=1,1,0),IF(EB8>=1,1,0),IF(EB9>=1,1,0),IF(EB10>=1,1,0),IF(EB11>=1,1,0),IF(EB12>=1,1,0),IF(EB13>=1,1,0),IF(EB14>=1,1,0),IF(EB15>=1,1,0),IF(EB16>=1,1,0),IF(EB17>=1,1,0),IF(EB18>=1,1,0),IF(EB19>=1,1,0),IF(EB20>=1,1,0),IF(EB21>=1,1,0)) -> 4 | EC24: 12 | ED24: 6 | EE24: 10 | EF24: 7 | EG24: 6 | EH24: 10 | EI24: 8 | EJ24: 9 | EK24: 7 | EL24: 10 | EM24: 10 | EN24: 8 | EO24: 9 | EP24: 6 | EQ24: 7 | ER24: 9 | ES24: 6 | ET24: 8 | EU24: 11 | EV24: 14 | EW24: 9 | EX24: 6 | EY24: 8 | EZ24: 9 | FA24: 8 | FB24: 10 | FC24: 10 | FD24: 10 | FE24: 8 | FF24: 6 | FG24: 7 | FH24: 10 | FI24: 6 | FJ24: 7 | FK24: 6 | FL24: 9 | FM24: 10 | FN24: 7 | FO24: 9 | FP24: 10 | FQ24: 7 | FR24: 6 | FS24: 8 | FT24: 7 | FU24: 5 | FV24: 10 | FW24: 8 | FX24: 7 | FY24: 10 | FZ24: 9 | GA24: 6 | GB24: 7 | GC24: 6 | GD24: 12 | GE24: 9 | GF24: 9 | GG24: 9 | GH24: 6 | GI24: 8 | GJ24: 11 | GK24: 11 | GL24: 11 | GM24: 8 | GN24: =SUM(IF(GN4>=1,1,0),IF(GN5>=1,1,0),IF(GN6>=1,1,0),IF(GN7>=1,1,0),IF(GN8>=1,1,0),IF(GN9>=1,1,0),IF(GN10>=1,1,0),IF(GN11>=1,1,0),IF(GN12>=1,1,0),IF(GN13>=1,1,0),IF(GN14>=1,1,0),IF(GN15>=1,1,0),IF(GN16>=1,1,0),IF(GN17>=1,1,0),IF(GN18>=1,1,0),IF(GN19>=1,1,0),IF(GN20>=1,1,0),IF(GN21>=1,1,0)) -> 7 | GO24: 10 | GP24: 4 | GQ24: 7 | GR24: 10 | GS24: 9 | GT24: 6 | GU24: 10 | GV24: 10 | GW24: 8 | GX24: 9 | GY24: 7 | GZ24: 10 | HA24: 9 | HB24: 10 | HC24: 8 | HD24: 10 | HE24: 8 | HF24: 7 | HG24: 10 | HH24: 8 | HI24: 11 | HJ24: 7 | HK24: 9 | HL24: 9 | HM24: 12 | HN24: 11 | HO24: 11 | HP24: 11 | HQ24: 11 | HR24: 9 | HS24: 12 | HT24: 8 | HU24: 10 | HV24: 8 | HW24: 8 | HX24: 8 | HY24: 8 | HZ24: 16 | IA24: 11 | IB24: 13 | IC24: 11 | ID24: 11 | IE24: 8 | IF24: 9 | IG24: 10 | IH24: 6 | II24: 6 | IJ24: 9 | IK24: 7 | IL24: 11 | IM24: 12 | IN24: 8 | IO24: 8 | IP24: 10 | IQ24: 11 | IR24: 8 | IS24: 8 | IT24: 5 | IU24: 7 | IV24: 10 | IW24: 11 | IX24: 6 | IY24: 8 | IZ24: =SUM(IF(IZ4>=1,1,0),IF(IZ5>=1,1,0),IF(IZ6>=1,1,0),IF(IZ7>=1,1,0),IF(IZ8>=1,1,0),IF(IZ9>=1,1,0),IF(IZ10>=1,1,0),IF(IZ11>=1,1,0),IF(IZ12>=1,1,0),IF(IZ13>=1,1,0),IF(IZ14>=1,1,0),IF(IZ15>=1,1,0),IF(IZ16>=1,1,0),IF(IZ17>=1,1,0),IF(IZ18>=1,1,0),IF(IZ19>=1,1,0),IF(IZ20>=1,1,0),IF(IZ21>=1,1,0)) -> 8 | JA24: 10 | JB24: 13 | JC24: 7 | JD24: 9 | JE24: 9 | JF24: 9 | JG24: 8 | JH24: 12 | JI24: 8 | JJ24: 8 | JK24: 9 | JL24: 12 | JM24: 11 | JN24: 8 | JO24: 8 | JP24: 6 | JQ24: 7 | JR24: 7 | JS24: 8 | JT24: 14 | JU24: 9 | JV24: 8 | JW24: 5 | JX24: 11 | JY24: 8 | JZ24: 7 | KA24: 10 | KB24: 13 | KC24: 12 | KD24: 8 | KE24: 11 | KF24: 12 | KG24: 9 | KH24: 6 | KI24: 6 | KJ24: 8 | KK24: 8 | KL24: 10 | KM24: 9 | KN24: 9 | KO24: 6 | KP24: 8 | KQ24: 6 | KR24: 9 | KS24: 6 | KT24: 10 | KU24: 8 | KV24: 11 | KW24: 12 | KX24: 8 | KY24: 8 | KZ24: 9 | LA24: 6 | LB24: 9 | LC24: 10 | LD24: 8 | LE24: 10 | LF24: 8 | LG24: 8 | LH24: 10 | LI24: 7 | LJ24: 6 | LK24: 8 | LL24: =SUM(IF(LL4>=1,1,0),IF(LL5>=1,1,0),IF(LL6>=1,1,0),IF(LL7>=1,1,0),IF(LL8>=1,1,0),IF(LL9>=1,1,0),IF(LL10>=1,1,0),IF(LL11>=1,1,0),IF(LL12>=1,1,0),IF(LL13>=1,1,0),IF(LL14>=1,1,0),IF(LL15>=1,1,0),IF(LL16>=1,1,0),IF(LL17>=1,1,0),IF(LL18>=1,1,0),IF(LL19>=1,1,0),IF(LL20>=1,1,0),IF(LL21>=1,1,0)) -> 7 | LM24: 11 | LN24: 9 | LO24: 10 | LP24: 9 | LQ24: 9 | LR24: 9 | LS24: 12 | LT24: 8 | LU24: 7 | LV24: 10 | LW24: 12 | LX24: 12 | LY24: 10 | LZ24: 8 | MA24: 8 | MB24: 8 | MC24: 7 | MD24: 8 | ME24: 7 | MF24: 7 | MG24: 10 | MH24: 11 | MI24: 9 | MJ24: 9 | MK24: 12 | ML24: 8 | MM24: 10 | MN24: 8 | MO24: 10 | MP24: 9 | MQ24: 9 | MR24: 12 | MS24: 8 | MT24: 9 | MU24: 8 | MV24: 8 | MW24: 6 | MX24: 9 | MY24: 5 | MZ24: 10 | NA24: 7 | NB24: 9 | NC24: 8 | ND24: 12 | NE24: 8 | NF24: 12 | NG24: 10 | NH24: 8 | NI24: 7 | NJ24: 8 | NK24: 10 | NL24: 6 | NM24: 10 | NN24: 7 | NO24: 6 | NP24: 7 | NQ24: 5 | NR24: 10 | NS24: 10 | NT24: 11 | NU24: 11 | NV24: 8 | NW24: 8 | NX24: =SUM(IF(NX4>=1,1,0),IF(NX5>=1,1,0),IF(NX6>=1,1,0),IF(NX7>=1,1,0),IF(NX8>=1,1,0),IF(NX9>=1,1,0),IF(NX10>=1,1,0),IF(NX11>=1,1,0),IF(NX12>=1,1,0),IF(NX13>=1,1,0),IF(NX14>=1,1,0),IF(NX15>=1,1,0),IF(NX16>=1,1,0),IF(NX17>=1,1,0),IF(NX18>=1,1,0),IF(NX19>=1,1,0),IF(NX20>=1,1,0),IF(NX21>=1,1,0)) -> 6 | NY24: 12 | NZ24: 9 | OA24: 9 | OB24: 10 | OC24: 11 | OD24: 8 | OE24: 7 | OF24: 11 | OG24: 12 | OH24: 14 | OI24: 9 | OJ24: 8 | OK24: 9 | OL24: 11 | OM24: 10 | ON24: 11 | OO24: 11 | OP24: 10 | OQ24: 9 | OR24: 9 | OS24: 8 | OT24: 8 | OU24: 8 | OV24: 10 | OW24: 7 | OX24: 7 | OY24: 7 | OZ24: 12 | PA24: 11 | PB24: 7 | PC24: 8 | PD24: 10 | PE24: 7 | PF24: 6 | PG24: 11 | PH24: 6 | PI24: 10 | PJ24: 9 | PK24: 9 | PL24: 8 | PM24: 9 | PN24: 8 | PO24: 9 | PP24: 11 | PQ24: 10 | PR24: 9 | PS24: 7 | PT24: 10 | PU24: 10 | PV24: 13 | PW24: 11 | PX24: 10 | PY24: 9 | PZ24: 8 | QA24: 9 | QB24: 9 | QC24: 7 | QD24: 10 | QE24: 6 | QF24: 9 | QG24: 11 | QH24: 7 | QI24: 7 | QJ24: =SUM(IF(QJ4>=1,1,0),IF(QJ5>=1,1,0),IF(QJ6>=1,1,0),IF(QJ7>=1,1,0),IF(QJ8>=1,1,0),IF(QJ9>=1,1,0),IF(QJ10>=1,1,0),IF(QJ11>=1,1,0),IF(QJ12>=1,1,0),IF(QJ13>=1,1,0),IF(QJ14>=1,1,0),IF(QJ15>=1,1,0),IF(QJ16>=1,1,0),IF(QJ17>=1,1,0),IF(QJ18>=1,1,0),IF(QJ19>=1,1,0),IF(QJ20>=1,1,0),IF(QJ21>=1,1,0)) -> 9 | QK24: 8 | QL24: 7 | QM24: 9 | QN24: 4 | QO24: 6 | QP24: 9 | QQ24: 11 | QR24: 4 | QS24: 11 | QT24: 8 | QU24: 6 | QV24: 8 | QW24: 6 | QX24: 13 | QY24: 5 | QZ24: 11 | RA24: 10 | RB24: 8 | RC24: 9 | RD24: 5 | RE24: 8 | RF24: 7 | RG24: 8 | RH24: 11 | RI24: 5 | RJ24: 7 | RK24: 7 | RL24: 9 | RM24: 9 | RN24: 11 | RO24: 13 | RP24: 12 | RQ24: 10 | RR24: 7 | RS24: 5 | RT24: 11 | RU24: 9 | RV24: 8 | RW24: 12 | RX24: 6 | RY24: 8 | RZ24: 10 | SA24: 10 | SB24: 9 | SC24: 10 | SD24: 12 | SE24: 9 | SF24: 8 | SG24: 9 | SH24: 11 | SI24: 8 | SJ24: 5 | SK24: 6 | SL24: 8 | SM24: 5 | SN24: 7 | SO24: 8 | SP24: 8 | SQ24: 7 | SR24: 11 | SS24: 8 | ST24: 8 | SU24: 10 | SV24: =SUM(IF(SV4>=1,1,0),IF(SV5>=1,1,0),IF(SV6>=1,1,0),IF(SV7>=1,1,0),IF(SV8>=1,1,0),IF(SV9>=1,1,0),IF(SV10>=1,1,0),IF(SV11>=1,1,0),IF(SV12>=1,1,0),IF(SV13>=1,1,0),IF(SV14>=1,1,0),IF(SV15>=1,1,0),IF(SV16>=1,1,0),IF(SV17>=1,1,0),IF(SV18>=1,1,0),IF(SV19>=1,1,0),IF(SV20>=1,1,0),IF(SV21>=1,1,0)) -> 6 | SW24: 13 | SX24: 13 | SY24: 8 | SZ24: 8 | TA24: 10 | TB24: 11 | TC24: 12 | TD24: 8 | TE24: 7 | TF24: 11 | TG24: 6 | TH24: 7 | TI24: 10 | TJ24: 7 | TK24: 8 | TL24: 12 | TM24: 12 | TN24: 8 | TO24: 8 | TP24: 11 | TQ24: 10 | TR24: 8 | TS24: 11 | TT24: 9 | TU24: 10 | TV24: 8 | TW24: 6 | TX24: 9 | TY24: 9 | TZ24: 10 | UA24: 10 | UB24: 7 | UC24: 11 | UD24: 8 | UE24: 8 | UF24: 9 | UG24: 8 | UH24: 7 | UI24: 9 | UJ24: 8 | UK24: 8 | UL24: 8 | UM24: 5 | UN24: 8 | UO24: 12 | UP24: 7 | UQ24: 9 | UR24: 11 | US24: 9 | UT24: 8 | UU24: 5 | UV24: 5 | UW24: 10 | UX24: 10 | UY24: 4 | UZ24: 12 | VA24: 8 | VB24: 8 | VC24: 9 | VD24: 11 | VE24: 11 | VF24: 10 | VG24: 7 | VH24: =SUM(IF(VH4>=1,1,0),IF(VH5>=1,1,0),IF(VH6>=1,1,0),IF(VH7>=1,1,0),IF(VH8>=1,1,0),IF(VH9>=1,1,0),IF(VH10>=1,1,0),IF(VH11>=1,1,0),IF(VH12>=1,1,0),IF(VH13>=1,1,0),IF(VH14>=1,1,0),IF(VH15>=1,1,0),IF(VH16>=1,1,0),IF(VH17>=1,1,0),IF(VH18>=1,1,0),IF(VH19>=1,1,0),IF(VH20>=1,1,0),IF(VH21>=1,1,0)) -> 16 | VI24: 11 | VJ24: 11 | VK24: 6 | VL24: 11 | VM24: 12 | VN24: 6 | VO24: 10 | VP24: 8 | VQ24: 13 | VR24: 7 | VS24: 10 | VT24: 8 | VU24: 12 | VV24: 11 | VW24: 5 | VX24: 6 | VY24: 10 | VZ24: 7 | WA24: 14 | WB24: 7 | WC24: 10 | WD24: 11 | WE24: 12 | WF24: 11 | WG24: 8 | WH24: 9 | WI24: 11 | WJ24: 11 | WK24: 10 | WL24: 11 | WM24: 7 | WN24: 10 | WO24: 10 | WP24: 7 | WQ24: 8 | WR24: 8 | WS24: 9 | WT24: 11 | WU24: 7 | WV24: 9 | WW24: 11 | WX24: 8 | WY24: 8 | WZ24: 9 | XA24: 7 | XB24: 8 | XC24: 10 | XD24: 10 | XE24: 5 | XF24: 9 | XG24: 7 | XH24: 9 | XI24: 7 | XJ24: 9 | XK24: 8 | XL24: 13 | XM24: 9 | XN24: 8 | XO24: 9 | XP24: 6 | XQ24: 6 | XR24: 5 | XS24: 9 | XT24: =SUM(IF(XT4>=1,1,0),IF(XT5>=1,1,0),IF(XT6>=1,1,0),IF(XT7>=1,1,0),IF(XT8>=1,1,0),IF(XT9>=1,1,0),IF(XT10>=1,1,0),IF(XT11>=1,1,0),IF(XT12>=1,1,0),IF(XT13>=1,1,0),IF(XT14>=1,1,0),IF(XT15>=1,1,0),IF(XT16>=1,1,0),IF(XT17>=1,1,0),IF(XT18>=1,1,0),IF(XT19>=1,1,0),IF(XT20>=1,1,0),IF(XT21>=1,1,0)) -> 9 | XU24: 9 | XV24: 10 | XW24: 11 | XX24: 11 | XY24: 6 | XZ24: 9 | YA24: 9 | YB24: 6 | YC24: 6 | YD24: 7 | YE24: 9 | YF24: 10 | YG24: 9 | YH24: 9 | YI24: 10 | YJ24: 11 | YK24: 6 | YL24: 7 | YM24: 10 | YN24: 5 | YO24: 9 | YP24: 10 | YQ24: 11 | YR24: 13 | YS24: 6 | YT24: 11 | YU24: 12 | YV24: 10 | YW24: 6 | YX24: 11 | YY24: 7 | YZ24: 9 | ZA24: 9 | ZB24: 4 | ZC24: 9 | ZD24: 9 | ZE24: 9 | ZF24: 9 | ZG24: 9 | ZH24: 10 | ZI24: 11 | ZJ24: 8 | ZK24: 7 | ZL24: 10 | ZM24: 8 | ZN24: 10 | ZO24: 9 | ZP24: 6 | ZQ24: 9 | ZR24: 8 | ZS24: 6 | ZT24: 12 | ZU24: 6 | ZV24: 6 | ZW24: 8 | ZX24: 6 | ZY24: 9 | ZZ24: 7 | AAA24: 5 | AAB24: 8 | AAC24: 5 | AAD24: 9 | AAE24: 9 | AAF24: =SUM(IF(AAF4>=1,1,0),IF(AAF5>=1,1,0),IF(AAF6>=1,1,0),IF(AAF7>=1,1,0),IF(AAF8>=1,1,0),IF(AAF9>=1,1,0),IF(AAF10>=1,1,0),IF(AAF11>=1,1,0),IF(AAF12>=1,1,0),IF(AAF13>=1,1,0),IF(AAF14>=1,1,0),IF(AAF15>=1,1,0),IF(AAF16>=1,1,0),IF(AAF17>=1,1,0),IF(AAF18>=1,1,0),IF(AAF19>=1,1,0),IF(AAF20>=1,1,0),IF(AAF21>=1,1,0)) -> 5 | AAG24: 7 | AAH24: 5 | AAI24: 8 | AAJ24: 6 | AAK24: 9 | AAL24: 8 | AAM24: 10 | AAN24: 7 | AAO24: 6 | AAP24: 9 | AAQ24: 13 | AAR24: 6 | AAS24: 8 | AAT24: 8 | AAU24: 9 | AAV24: 10 | AAW24: 9 | AAX24: 4 | AAY24: 7 | AAZ24: 12 | ABA24: 8 | ABB24: 8 | ABC24: 9 | ABD24: 8 | ABE24: 6 | ABF24: 13 | ABG24: 10 | ABH24: 9 | ABI24: 11 | ABJ24: 11 | ABK24: 6 | ABL24: 9 | ABM24: 7 | ABN24: 7 | ABO24: 7 | ABP24: 9 | ABQ24: 10 | ABR24: 10 | ABS24: 9 | ABT24: 10 | ABU24: 6 | ABV24: 7 | ABW24: 9 | ABX24: 13 | ABY24: 10 | ABZ24: 9 | ACA24: 6 | ACB24: 8 | ACC24: 10 | ACD24: 10 | ACE24: 11 | ACF24: 6 | ACG24: 8 | ACH24: 11 | ACI24: 15 | ACJ24: 8 | ACK24: 8 | ACL24: 8 | ACM24: 6 | ACN24: 9 | ACO24: 7 | ACP24: 8 | ACQ24: 9 | ACR24: =SUM(IF(ACR4>=1,1,0),IF(ACR5>=1,1,0),IF(ACR6>=1,1,0),IF(ACR7>=1,1,0),IF(ACR8>=1,1,0),IF(ACR9>=1,1,0),IF(ACR10>=1,1,0),IF(ACR11>=1,1,0),IF(ACR12>=1,1,0),IF(ACR13>=1,1,0),IF(ACR14>=1,1,0),IF(ACR15>=1,1,0),IF(ACR16>=1,1,0),IF(ACR17>=1,1,0),IF(ACR18>=1,1,0),IF(ACR19>=1,1,0),IF(ACR20>=1,1,0),IF(ACR21>=1,1,0)) -> 9 | ACS24: 9 | ACT24: 8 | ACU24: 12 | ACV24: 10 | ACW24: 8 | ACX24: 10 | ACY24: 13 | ACZ24: 10 | ADA24: 10 | ADB24: 7 | ADC24: 10 | ADD24: 10 | ADE24: 7 | ADF24: 7 | ADG24: 7 | ADH24: 9 | ADI24: 5 | ADJ24: 9 | ADK24: 7 | ADL24: 10 | ADM24: 8 | ADN24: 6 | ADO24: 6 | ADP24: 7 | ADQ24: 8 | ADR24: 6 | ADS24: 9 | ADT24: 8 | ADU24: 6 | ADV24: 8 | ADW24: 8 | ADX24: 7 | ADY24: 11 | ADZ24: 6 | AEA24: 15 | AEB24: 11 | AEC24: 7 | AED24: 6 | AEE24: 6 | AEF24: 10 | AEG24: 10 | AEH24: 10 | AEI24: 9 | AEJ24: 9 | AEK24: 10 | AEL24: 4 | AEM24: 9 | AEN24: 9 | AEO24: 11 | AEP24: 12 | AEQ24: 11 | AER24: 9 | AES24: 13 | AET24: 9 | AEU24: 9 | AEV24: 12 | AEW24: 10 | AEX24: 8 | AEY24: 8 | AEZ24: 10 | AFA24: 9 | AFB24: 10 | AFC24: 10 | AFD24: =SUM(IF(AFD4>=1,1,0),IF(AFD5>=1,1,0),IF(AFD6>=1,1,0),IF(AFD7>=1,1,0),IF(AFD8>=1,1,0),IF(AFD9>=1,1,0),IF(AFD10>=1,1,0),IF(AFD11>=1,1,0),IF(AFD12>=1,1,0),IF(AFD13>=1,1,0),IF(AFD14>=1,1,0),IF(AFD15>=1,1,0),IF(AFD16>=1,1,0),IF(AFD17>=1,1,0),IF(AFD18>=1,1,0),IF(AFD19>=1,1,0),IF(AFD20>=1,1,0),IF(AFD21>=1,1,0)) -> 7 | AFE24: 9 | AFF24: 9 | AFG24: 8 | AFH24: 6 | AFI24: 6 | AFJ24: 13 | AFK24: 7 | AFL24: 4 | AFM24: 6 | AFN24: 7 | AFO24: 9 | AFP24: 10 | AFQ24: 12 | AFR24: 11 | AFS24: 7 | AFT24: 12 | AFU24: 11 | AFV24: 8 | AFW24: 11 | AFX24: 13 | AFY24: 10 | AFZ24: 8 | AGA24: 7 | AGB24: 10 | AGC24: 9 | AGD24: 9 | AGE24: 10 | AGF24: 11 | AGG24: 6 | AGH24: 6 | AGI24: 9 | AGJ24: 5 | AGK24: 6 | AGL24: 13 | AGM24: 7 | AGN24: 8 | AGO24: 7 | AGP24: 5 | AGQ24: 7 | AGR24: 6 | AGS24: 8 | AGT24: 8 | AGU24: 10 | AGV24: 9 | AGW24: 8 | AGX24: 10 | AGY24: 9 | AGZ24: 6 | AHA24: 7 | AHB24: 10 | AHC24: 8 | AHD24: 8 | AHE24: 8 | AHF24: 11 | AHG24: 9 | AHH24: 11 | AHI24: 5 | AHJ24: 9 | AHK24: 8 | AHL24: 10 | AHM24: 11 | AHN24: 9 | AHO24: 7 | AHP24: =SUM(IF(AHP4>=1,1,0),IF(AHP5>=1,1,0),IF(AHP6>=1,1,0),IF(AHP7>=1,1,0),IF(AHP8>=1,1,0),IF(AHP9>=1,1,0),IF(AHP10>=1,1,0),IF(AHP11>=1,1,0),IF(AHP12>=1,1,0),IF(AHP13>=1,1,0),IF(AHP14>=1,1,0),IF(AHP15>=1,1,0),IF(AHP16>=1,1,0),IF(AHP17>=1,1,0),IF(AHP18>=1,1,0),IF(AHP19>=1,1,0),IF(AHP20>=1,1,0),IF(AHP21>=1,1,0)) -> 11 | AHQ24: 11 | AHR24: 12 | AHS24: 9 | AHT24: 8 | AHU24: 9 | AHV24: 7 | AHW24: 6 | AHX24: 8 | AHY24: 8 | AHZ24: 9 | AIA24: 8 | AIB24: 10 | AIC24: 10 | AID24: 6 | AIE24: 7 | AIF24: 8 | AIG24: 8 | AIH24: 8 | AII24: 9 | AIJ24: 5 | AIK24: 10 | AIL24: 8 | AIM24: 9 | AIN24: 9 | AIO24: 7 | AIP24: 11 | AIQ24: 8 | AIR24: 8 | AIS24: 8 | AIT24: 9 | AIU24: 9 | AIV24: 11 | AIW24: 9 | AIX24: 8 | AIY24: 5 | AIZ24: 11 | AJA24: 9 | AJB24: 8 | AJC24: 13 | AJD24: 10 | AJE24: 10 | AJF24: 11 | AJG24: 9 | AJH24: 5 | AJI24: 7 | AJJ24: 14 | AJK24: 9 | AJL24: 9 | AJM24: 9 | AJN24: 9 | AJO24: 10 | AJP24: 10 | AJQ24: 5 | AJR24: 8 | AJS24: 4 | AJT24: 14 | AJU24: 11 | AJV24: 9 | AJW24: 11 | AJX24: 9 | AJY24: 7 | AJZ24: 11 | AKA24: 10 | AKB24: =SUM(IF(AKB4>=1,1,0),IF(AKB5>=1,1,0),IF(AKB6>=1,1,0),IF(AKB7>=1,1,0),IF(AKB8>=1,1,0),IF(AKB9>=1,1,0),IF(AKB10>=1,1,0),IF(AKB11>=1,1,0),IF(AKB12>=1,1,0),IF(AKB13>=1,1,0),IF(AKB14>=1,1,0),IF(AKB15>=1,1,0),IF(AKB16>=1,1,0),IF(AKB17>=1,1,0),IF(AKB18>=1,1,0),IF(AKB19>=1,1,0),IF(AKB20>=1,1,0),IF(AKB21>=1,1,0)) -> 8 | AKC24: 10 | AKD24: 7 | AKE24: 8 | AKF24: 7 | AKG24: 10 | AKH24: 7 | AKI24: 10 | AKJ24: 9 | AKK24: 7 | AKL24: 6 | AKM24: 7 | AKN24: 9 | AKO24: 10 | AKP24: 8 | AKQ24: 11 | AKR24: 9 | AKS24: 9 | AKT24: 9 | AKU24: 5 | AKV24: 7 | AKW24: 8 | AKX24: 4 | AKY24: 11 | AKZ24: 8 | ALA24: 10 | ALB24: 11 | ALC24: 9 | ALD24: 12 | ALE24: 6 | ALF24: 10 | ALG24: 6 | ALH24: 6 | ALI24: 12 | ALJ24: 5 | ALK24: 7 | ALL24: 7 | ALM24: 10 | ALN24: 9
B26: Průměr vzdálenosti [km] | C26: =AVERAGEA(C23:ALN23) -> 30.687 | E26: Maximum | F26: =MAX(C23:ALN23) -> 40
B27: Průměrný počet zastávek | C27: =AVERAGEA(C24:ALN24) -> 8.678 | E27: Minimum | F27: =MIN(C23:ALN23) -> 12
B28: Medián vzdáleností [km] | C28: =MEDIAN(C23:ALN23) -> 31
B29: Medián počtu zastávek | C29: =MEDIAN(C24:ALN24) -> 9

Sheet Hladina 40 %
A1: Výstup ze simulace
B3: Název | C3: 1 | D3: 2 | E3: 3 | F3: 4 | G3: 5 | H3: 6 | I3: 7 | J3: 8 | K3: 9 | L3: 10 | M3: 11 | N3: 12 | O3: 13 | P3: 14 | Q3: 15 | R3: 16 | S3: 17 | T3: 18 | U3: 19 | V3: 20 | W3: 21 | X3: 22 | Y3: 23 | Z3: 24 | AA3: 25 | AB3: 26 | AC3: 27 | AD3: 28 | AE3: 29 | AF3: 30 | AG3: 31 | AH3: 32 | AI3: 33 | AJ3: 34 | AK3: 35 | AL3: 36 | AM3: 37 | AN3: 38 | AO3: 39 | AP3: 40 | AQ3: 41 | AR3: 42 | AS3: 43 | AT3: 44 | AU3: 45 | AV3: 46 | AW3: 47 | AX3: 48 | AY3: 49 | AZ3: 50 | BA3: 51 | BB3: 52 | BC3: 53 | BD3: 54 | BE3: 55 | BF3: 56 | BG3: 57 | BH3: 58 | BI3: 59 | BJ3: 60 | BK3: 61 | BL3: 62 | BM3: 63 | BN3: 64 | BO3: 65 | BP3: 66 | BQ3: 67 | BR3: 68 | BS3: 69 | BT3: 70 | BU3: 71 | BV3: 72 | BW3: 73 | BX3: 74 | BY3: 75 | BZ3: 76 | CA3: 77 | CB3: 78 | CC3: 79 | CD3: 80 | CE3: 81 | CF3: 82 | CG3: 83 | CH3: 84 | CI3: 85 | CJ3: 86 | CK3: 87 | CL3: 88 | CM3: 89 | CN3: 90 | CO3: 91 | CP3: 92 | CQ3: 93 | CR3: 94 | CS3: 95 | CT3: 96 | CU3: 97 | CV3: 98 | CW3: 99 | CX3: 100 | CY3: 101 | CZ3: 102 | DA3: 103 | DB3: 104 | DC3: 105 | DD3: 106 | DE3: 107 | DF3: 108 | DG3: 109 | DH3: 110 | DI3: 111 | DJ3: 112 | DK3: 113 | DL3: 114 | DM3: 115 | DN3: 116 | DO3: 117 | DP3: 118 | DQ3: 119 | DR3: 120 | DS3: 121 | DT3: 122 | DU3: 123 | DV3: 124 | DW3: 125 | DX3: 126 | DY3: 127 | DZ3: 128 | EA3: 129 | EB3: 130 | EC3: 131 | ED3: 132 | EE3: 133 | EF3: 134 | EG3: 135 | EH3: 136 | EI3: 137 | EJ3: 138 | EK3: 139 | EL3: 140 | EM3: 141 | EN3: 142 | EO3: 143 | EP3: 144 | EQ3: 145 | ER3: 146 | ES3: 147 | ET3: 148 | EU3: 149 | EV3: 150 | EW3: 151 | EX3: 152 | EY3: 153 | EZ3: 154 | FA3: 155 | FB3: 156 | FC3: 157 | FD3: 158 | FE3: 159 | FF3: 160 | FG3: 161 | FH3: 162 | FI3: 163 | FJ3: 164 | FK3: 165 | FL3: 166 | FM3: 167 | FN3: 168 | FO3: 169 | FP3: 170 | FQ3: 171 | FR3: 172 | FS3: 173 | FT3: 174 | FU3: 175 | FV3: 176 | FW3: 177 | FX3: 178 | FY3: 179 | FZ3: 180 | GA3: 181 | GB3: 182 | GC3: 183 | GD3: 184 | GE3: 185 | GF3: 186 | GG3: 187 | GH3: 188 | GI3: 189 | GJ3: 190 | GK3: 191 | GL3: 192 | GM3: 193 | GN3: 194 | GO3: 195 | GP3: 196 | GQ3: 197 | GR3: 198 | GS3: 199 | GT3: 200 | GU3: 201 | GV3: 202 | GW3: 203 | GX3: 204 | GY3: 205 | GZ3: 206 | HA3: 207 | HB3: 208 | HC3: 209 | HD3: 210 | HE3: 211 | HF3: 212 | HG3: 213 | HH3: 214 | HI3: 215 | HJ3: 216 | HK3: 217 | HL3: 218 | HM3: 219 | HN3: 220 | HO3: 221 | HP3: 222 | HQ3: 223 | HR3: 224 | HS3: 225 | HT3: 226 | HU3: 227 | HV3: 228 | HW3: 229 | HX3: 230 | HY3: 231 | HZ3: 232 | IA3: 233 | IB3: 234 | IC3: 235 | ID3: 236 | IE3: 237 | IF3: 238 | IG3: 239 | IH3: 240 | II3: 241 | IJ3: 242 | IK3: 243 | IL3: 244 | IM3: 245 | IN3: 246 | IO3: 247 | IP3: 248 | IQ3: 249 | IR3: 250 | IS3: 251 | IT3: 252 | IU3: 253 | IV3: 254 | IW3: 255 | IX3: 256 | IY3: 257 | IZ3: 258 | JA3: 259 | JB3: 260 | JC3: 261 | JD3: 262 | JE3: 263 | JF3: 264 | JG3: 265 | JH3: 266 | JI3: 267 | JJ3: 268 | JK3: 269 | JL3: 270 | JM3: 271 | JN3: 272 | JO3: 273 | JP3: 274 | JQ3: 275 | JR3: 276 | JS3: 277 | JT3: 278 | JU3: 279 | JV3: 280 | JW3: 281 | JX3: 282 | JY3: 283 | JZ3: 284 | KA3: 285 | KB3: 286 | KC3: 287 | KD3: 288 | KE3: 289 | KF3: 290 | KG3: 291 | KH3: 292 | KI3: 293 | KJ3: 294 | KK3: 295 | KL3: 296 | KM3: 297 | KN3: 298 | KO3: 299 | KP3: 300 | KQ3: 301 | KR3: 302 | KS3: 303 | KT3: 304 | KU3: 305 | KV3: 306 | KW3: 307 | KX3: 308 | KY3: 309 | KZ3: 310 | LA3: 311 | LB3: 312 | LC3: 313 | LD3: 314 | LE3: 315 | LF3: 316 | LG3: 317 | LH3: 318 | LI3: 319 | LJ3: 320 | LK3: 321 | LL3: 322 | LM3: 323 | LN3: 324 | LO3: 325 | LP3: 326 | LQ3: 327 | LR3: 328 | LS3: 329 | LT3: 330 | LU3: 331 | LV3: 332 | LW3: 333 | LX3: 334 | LY3: 335 | LZ3: 336 | MA3: 337 | MB3: 338 | MC3: 339 | MD3: 340 | ME3: 341 | MF3: 342 | MG3: 343 | MH3: 344 | MI3: 345 | MJ3: 346 | MK3: 347 | ML3: 348 | MM3: 349 | MN3: 350 | MO3: 351 | MP3: 352 | MQ3: 353 | MR3: 354 | MS3: 355 | MT3: 356 | MU3: 357 | MV3: 358 | MW3: 359 | MX3: 360 | MY3: 361 | MZ3: 362 | NA3: 363 | NB3: 364 | NC3: 365 | ND3: 366 | NE3: 367 | NF3: 368 | NG3: 369 | NH3: 370 | NI3: 371 | NJ3: 372 | NK3: 373 | NL3: 374 | NM3: 375 | NN3: 376 | NO3: 377 | NP3: 378 | NQ3: 379 | NR3: 380 | NS3: 381 | NT3: 382 | NU3: 383 | NV3: 384 | NW3: 385 | NX3: 386 | NY3: 387 | NZ3: 388 | OA3: 389 | OB3: 390 | OC3: 391 | OD3: 392 | OE3: 393 | OF3: 394 | OG3: 395 | OH3: 396 | OI3: 397 | OJ3: 398 | OK3: 399 | OL3: 400 | OM3: 401 | ON3: 402 | OO3: 403 | OP3: 404 | OQ3: 405 | OR3: 406 | OS3: 407 | OT3: 408 | OU3: 409 | OV3: 410 | OW3: 411 | OX3: 412 | OY3: 413 | OZ3: 414 | PA3: 415 | PB3: 416 | PC3: 417 | PD3: 418 | PE3: 419 | PF3: 420 | PG3: 421 | PH3: 422 | PI3: 423 | PJ3: 424 | PK3: 425 | PL3: 426 | PM3: 427 | PN3: 428 | PO3: 429 | PP3: 430 | PQ3: 431 | PR3: 432 | PS3: 433 | PT3: 434 | PU3: 435 | PV3: 436 | PW3: 437 | PX3: 438 | PY3: 439 | PZ3: 440 | QA3: 441 | QB3: 442 | QC3: 443 | QD3: 444 | QE3: 445 | QF3: 446 | QG3: 447 | QH3: 448 | QI3: 449 | QJ3: 450 | QK3: 451 | QL3: 452 | QM3: 453 | QN3: 454 | QO3: 455 | QP3: 456 | QQ3: 457 | QR3: 458 | QS3: 459 | QT3: 460 | QU3: 461 | QV3: 462 | QW3: 463 | QX3: 464 | QY3: 465 | QZ3: 466 | RA3: 467 | RB3: 468 | RC3: 469 | RD3: 470 | RE3: 471 | RF3: 472 | RG3: 473 | RH3: 474 | RI3: 475 | RJ3: 476 | RK3: 477 | RL3: 478 | RM3: 479 | RN3: 480 | RO3: 481 | RP3: 482 | RQ3: 483 | RR3: 484 | RS3: 485 | RT3: 486 | RU3: 487 | RV3: 488 | RW3: 489 | RX3: 490 | RY3: 491 | RZ3: 492 | SA3: 493 | SB3: 494 | SC3: 495 | SD3: 496 | SE3: 497 | SF3: 498 | SG3: 499 | SH3: 500 | SI3: 501 | SJ3: 502 | SK3: 503 | SL3: 504 | SM3: 505 | SN3: 506 | SO3: 507 | SP3: 508 | SQ3: 509 | SR3: 510 | SS3: 511 | ST3: 512 | SU3: 513 | SV3: 514 | SW3: 515 | SX3: 516 | SY3: 517 | SZ3: 518 | TA3: 519 | TB3: 520 | TC3: 521 | TD3: 522 | TE3: 523 | TF3: 524 | TG3: 525 | TH3: 526 | TI3: 527 | TJ3: 528 | TK3: 529 | TL3: 530 | TM3: 531 | TN3: 532 | TO3: 533 | TP3: 534 | TQ3: 535 | TR3: 536 | TS3: 537 | TT3: 538 | TU3: 539 | TV3: 540 | TW3: 541 | TX3: 542 | TY3: 543 | TZ3: 544 | UA3: 545 | UB3: 546 | UC3: 547 | UD3: 548 | UE3: 549 | UF3: 550 | UG3: 551 | UH3: 552 | UI3: 553 | UJ3: 554 | UK3: 555 | UL3: 556 | UM3: 557 | UN3: 558 | UO3: 559 | UP3: 560 | UQ3: 561 | UR3: 562 | US3: 563 | UT3: 564 | UU3: 565 | UV3: 566 | UW3: 567 | UX3: 568 | UY3: 569 | UZ3: 570 | VA3: 571 | VB3: 572 | VC3: 573 | VD3: 574 | VE3: 575 | VF3: 576 | VG3: 577 | VH3: 578 | VI3: 579 | VJ3: 580 | VK3: 581 | VL3: 582 | VM3: 583 | VN3: 584 | VO3: 585 | VP3: 586 | VQ3: 587 | VR3: 588 | VS3: 589 | VT3: 590 | VU3: 591 | VV3: 592 | VW3: 593 | VX3: 594 | VY3: 595 | VZ3: 596 | WA3: 597 | WB3: 598 | WC3: 599 | WD3: 600 | WE3: 601 | WF3: 602 | WG3: 603 | WH3: 604 | WI3: 605 | WJ3: 606 | WK3: 607 | WL3: 608 | WM3: 609 | WN3: 610 | WO3: 611 | WP3: 612 | WQ3: 613 | WR3: 614 | WS3: 615 | WT3: 616 | WU3: 617 | WV3: 618 | WW3: 619 | WX3: 620 | WY3: 621 | WZ3: 622 | XA3: 623 | XB3: 624 | XC3: 625 | XD3: 626 | XE3: 627 | XF3: 628 | XG3: 629 | XH3: 630 | XI3: 631 | XJ3: 632 | XK3: 633 | XL3: 634 | XM3: 635 | XN3: 636 | XO3: 637 | XP3: 638 | XQ3: 639 | XR3: 640 | XS3: 641 | XT3: 642 | XU3: 643 | XV3: 644 | XW3: 645 | XX3: 646 | XY3: 647 | XZ3: 648 | YA3: 649 | YB3: 650 | YC3: 651 | YD3: 652 | YE3: 653 | YF3: 654 | YG3: 655 | YH3: 656 | YI3: 657 | YJ3: 658 | YK3: 659 | YL3: 660 | YM3: 661 | YN3: 662 | YO3: 663 | YP3: 664 | YQ3: 665 | YR3: 666 | YS3: 667 | YT3: 668 | YU3: 669 | YV3: 670 | YW3: 671 | YX3: 672 | YY3: 673 | YZ3: 674 | ZA3: 675 | ZB3: 676 | ZC3: 677 | ZD3: 678 | ZE3: 679 | ZF3: 680 | ZG3: 681 | ZH3: 682 | ZI3: 683 | ZJ3: 684 | ZK3: 685 | ZL3: 686 | ZM3: 687 | ZN3: 688 | ZO3: 689 | ZP3: 690 | ZQ3: 691 | ZR3: 692 | ZS3: 693 | ZT3: 694 | ZU3: 695 | ZV3: 696 | ZW3: 697 | ZX3: 698 | ZY3: 699 | ZZ3: 700 | AAA3: 701 | AAB3: 702 | AAC3: 703 | AAD3: 704 | AAE3: 705 | AAF3: 706 | AAG3: 707 | AAH3: 708 | AAI3: 709 | AAJ3: 710 | AAK3: 711 | AAL3: 712 | AAM3: 713 | AAN3: 714 | AAO3: 715 | AAP3: 716 | AAQ3: 717 | AAR3: 718 | AAS3: 719 | AAT3: 720 | AAU3: 721 | AAV3: 722 | AAW3: 723 | AAX3: 724 | AAY3: 725 | AAZ3: 726 | ABA3: 727 | ABB3: 728 | ABC3: 729 | ABD3: 730 | ABE3: 731 | ABF3: 732 | ABG3: 733 | ABH3: 734 | ABI3: 735 | ABJ3: 736 | ABK3: 737 | ABL3: 738 | ABM3: 739 | ABN3: 740 | ABO3: 741 | ABP3: 742 | ABQ3: 743 | ABR3: 744 | ABS3: 745 | ABT3: 746 | ABU3: 747 | ABV3: 748 | ABW3: 749 | ABX3: 750 | ABY3: 751 | ABZ3: 752 | ACA3: 753 | ACB3: 754 | ACC3: 755 | ACD3: 756 | ACE3: 757 | ACF3: 758 | ACG3: 759 | ACH3: 760 | ACI3: 761 | ACJ3: 762 | ACK3: 763 | ACL3: 764 | ACM3: 765 | ACN3: 766 | ACO3: 767 | ACP3: 768 | ACQ3: 769 | ACR3: 770 | ACS3: 771 | ACT3: 772 | ACU3: 773 | ACV3: 774 | ACW3: 775 | ACX3: 776 | ACY3: 777 | ACZ3: 778 | ADA3: 779 | ADB3: 780 | ADC3: 781 | ADD3: 782 | ADE3: 783 | ADF3: 784 | ADG3: 785 | ADH3: 786 | ADI3: 787 | ADJ3: 788 | ADK3: 789 | ADL3: 790 | ADM3: 791 | ADN3: 792 | ADO3: 793 | ADP3: 794 | ADQ3: 795 | ADR3: 796 | ADS3: 797 | ADT3: 798 | ADU3: 799 | ADV3: 800 | ADW3: 801 | ADX3: 802 | ADY3: 803 | ADZ3: 804 | AEA3: 805 | AEB3: 806 | AEC3: 807 | AED3: 808 | AEE3: 809 | AEF3: 810 | AEG3: 811 | AEH3: 812 | AEI3: 813 | AEJ3: 814 | AEK3: 815 | AEL3: 816 | AEM3: 817 | AEN3: 818 | AEO3: 819 | AEP3: 820 | AEQ3: 821 | AER3: 822 | AES3: 823 | AET3: 824 | AEU3: 825 | AEV3: 826 | AEW3: 827 | AEX3: 828 | AEY3: 829 | AEZ3: 830 | AFA3: 831 | AFB3: 832 | AFC3: 833 | AFD3: 834 | AFE3: 835 | AFF3: 836 | AFG3: 837 | AFH3: 838 | AFI3: 839 | AFJ3: 840 | AFK3: 841 | AFL3: 842 | AFM3: 843 | AFN3: 844 | AFO3: 845 | AFP3: 846 | AFQ3: 847 | AFR3: 848 | AFS3: 849 | AFT3: 850 | AFU3: 851 | AFV3: 852 | AFW3: 853 | AFX3: 854 | AFY3: 855 | AFZ3: 856 | AGA3: 857 | AGB3: 858 | AGC3: 859 | AGD3: 860 | AGE3: 861 | AGF3: 862 | AGG3: 863 | AGH3: 864 | AGI3: 865 | AGJ3: 866 | AGK3: 867 | AGL3: 868 | AGM3: 869 | AGN3: 870 | AGO3: 871 | AGP3: 872 | AGQ3: 873 | AGR3: 874 | AGS3: 875 | AGT3: 876 | AGU3: 877 | AGV3: 878 | AGW3: 879 | AGX3: 880 | AGY3: 881 | AGZ3: 882 | AHA3: 883 | AHB3: 884 | AHC3: 885 | AHD3: 886 | AHE3: 887 | AHF3: 888 | AHG3: 889 | AHH3: 890 | AHI3: 891 | AHJ3: 892 | AHK3: 893 | AHL3: 894 | AHM3: 895 | AHN3: 896 | AHO3: 897 | AHP3: 898 | AHQ3: 899 | AHR3: 900 | AHS3: 901 | AHT3: 902 | AHU3: 903 | AHV3: 904 | AHW3: 905 | AHX3: 906 | AHY3: 907 | AHZ3: 908 | AIA3: 909 | AIB3: 910 | AIC3: 911 | AID3: 912 | AIE3: 913 | AIF3: 914 | AIG3: 915 | AIH3: 916 | AII3: 917 | AIJ3: 918 | AIK3: 919 | AIL3: 920 | AIM3: 921 | AIN3: 922 | AIO3: 923 | AIP3: 924 | AIQ3: 925 | AIR3: 926 | AIS3: 927 | AIT3: 928 | AIU3: 929 | AIV3: 930 | AIW3: 931 | AIX3: 932 | AIY3: 933 | AIZ3: 934 | AJA3: 935 | AJB3: 936 | AJC3: 937 | AJD3: 938 | AJE3: 939 | AJF3: 940 | AJG3: 941 | AJH3: 942 | AJI3: 943 | AJJ3: 944 | AJK3: 945 | AJL3: 946 | AJM3: 947 | AJN3: 948 | AJO3: 949 | AJP3: 950 | AJQ3: 951 | AJR3: 952 | AJS3: 953 | AJT3: 954 | AJU3: 955 | AJV3: 956 | AJW3: 957 | AJX3: 958 | AJY3: 959 | AJZ3: 960 | AKA3: 961 | AKB3: 962 | AKC3: 963 | AKD3: 964 | AKE3: 965 | AKF3: 966 | AKG3: 967 | AKH3: 968 | AKI3: 969 | AKJ3: 970 | AKK3: 971 | AKL3: 972 | AKM3: 973 | AKN3: 974 | AKO3: 975 | AKP3: 976 | AKQ3: 977 | AKR3: 978 | AKS3: 979 | AKT3: 980 | AKU3: 981 | AKV3: 982 | AKW3: 983 | AKX3: 984 | AKY3: 985 | AKZ3: 986 | ALA3: 987 | ALB3: 988 | ALC3: 989 | ALD3: 990 | ALE3: 991 | ALF3: 992 | ALG3: 993 | ALH3: 994 | ALI3: 995 | ALJ3: 996 | ALK3: 997 | ALL3: 998 | ALM3: 999 | ALN3: 1000
B4: Trhové Sviny | C4: 1 | D4: 1 | E4: 1 | F4: 1 | G4: 1 | H4: 1 | I4: 1 | J4: 1 | K4: 1 | L4: 1 | M4: 1 | N4: 1 | O4: 1 | P4: 1 | Q4: 1 | R4: 1 | S4: 1 | T4: 1 | U4: 1 | V4: 1 | W4: 1 | X4: 1 | Y4: 1 | Z4: 1 | AA4: 1 | AB4: 1 | AC4: 1 | AD4: 1 | AE4: 1 | AF4: 1 | AG4: 1 | AH4: 1 | AI4: 1 | AJ4: 1 | AK4: 1 | AL4: 1 | AM4: 1 | AN4: 1 | AO4: 1 | AP4: 1 | AQ4: 1 | AR4: 1 | AS4: 1 | AT4: 1 | AU4: 1 | AV4: 1 | AW4: 1 | AX4: 1 | AY4: 1 | AZ4: 1 | BA4: 1 | BB4: 1 | BC4: 1 | BD4: 1 | BE4: 1 | BF4: 1 | BG4: 1 | BH4: 1 | BI4: 1 | BJ4: 1 | BK4: 1 | BL4: 1 | BM4: 1 | BN4: 1 | BO4: 1 | BP4: 1 | BQ4: 1 | BR4: 1 | BS4: 1 | BT4: 1 | BU4: 1 | BV4: 1 | BW4: 1 | BX4: 1 | BY4: 1 | BZ4: 1 | CA4: 1 | CB4: 1 | CC4: 1 | CD4: 1 | CE4: 1 | CF4: 1 | CG4: 1 | CH4: 1 | CI4: 1 | CJ4: 1 | CK4: 1 | CL4: 1 | CM4: 1 | CN4: 1 | CO4: 1 | CP4: 1 | CQ4: 1 | CR4: 1 | CS4: 1 | CT4: 1 | CU4: 1 | CV4: 1 | CW4: 1 | CX4: 1 | CY4: 1 | CZ4: 1 | DA4: 1 | DB4: 1 | DC4: 1 | DD4: 1 | DE4: 1 | DF4: 1 | DG4: 1 | DH4: 1 | DI4: 1 | DJ4: 1 | DK4: 1 | DL4: 1 | DM4: 1 | DN4: 1 | DO4: 1 | DP4: 1 | DQ4: 1 | DR4: 1 | DS4: 1 | DT4: 1 | DU4: 1 | DV4: 1 | DW4: 1 | DX4: 1 | DY4: 1 | DZ4: 1 | EA4: 1 | EB4: 1 | EC4: 1 | ED4: 1 | EE4: 1 | EF4: 1 | EG4: 1 | EH4: 1 | EI4: 1 | EJ4: 1 | EK4: 1 | EL4: 1 | EM4: 1 | EN4: 1 | EO4: 1 | EP4: 1 | EQ4: 1 | ER4: 1 | ES4: 1 | ET4: 1 | EU4: 1 | EV4: 1 | EW4: 1 | EX4: 1 | EY4: 1 | EZ4: 1 | FA4: 1 | FB4: 1 | FC4: 1 | FD4: 1 | FE4: 1 | FF4: 1 | FG4: 1 | FH4: 1 | FI4: 1 | FJ4: 1 | FK4: 1 | FL4: 1 | FM4: 1 | FN4: 1 | FO4: 1 | FP4: 1 | FQ4: 1 | FR4: 1 | FS4: 1 | FT4: 1 | FU4: 1 | FV4: 1 | FW4: 1 | FX4: 1 | FY4: 1 | FZ4: 1 | GA4: 1 | GB4: 1 | GC4: 1 | GD4: 1 | GE4: 1 | GF4: 1 | GG4: 1 | GH4: 1 | GI4: 1 | GJ4: 1 | GK4: 1 | GL4: 1 | GM4: 1 | GN4: 1 | GO4: 1 | GP4: 1 | GQ4: 1 | GR4: 1 | GS4: 1 | GT4: 1 | GU4: 1 | GV4: 1 | GW4: 1 | GX4: 1 | GY4: 1 | GZ4: 1 | HA4: 1 | HB4: 1 | HC4: 1 | HD4: 1 | HE4: 1 | HF4: 1 | HG4: 1 | HH4: 1 | HI4: 1 | HJ4: 1 | HK4: 1 | HL4: 1 | HM4: 1 | HN4: 1 | HO4: 1 | HP4: 1 | HQ4: 1 | HR4: 1 | HS4: 1 | HT4: 1 | HU4: 1 | HV4: 1 | HW4: 1 | HX4: 1 | HY4: 1 | HZ4: 1 | IA4: 1 | IB4: 1 | IC4: 1 | ID4: 1 | IE4: 1 | IF4: 1 | IG4: 1 | IH4: 1 | II4: 1 | IJ4: 1 | IK4: 1 | IL4: 1 | IM4: 1 | IN4: 1 | IO4: 1 | IP4: 1 | IQ4: 1 | IR4: 1 | IS4: 1 | IT4: 1 | IU4: 1 | IV4: 1 | IW4: 1 | IX4: 1 | IY4: 1 | IZ4: 1 | JA4: 1 | JB4: 1 | JC4: 1 | JD4: 1 | JE4: 1 | JF4: 1 | JG4: 1 | JH4: 1 | JI4: 1 | JJ4: 1 | JK4: 1 | JL4: 1 | JM4: 1 | JN4: 1 | JO4: 1 | JP4: 1 | JQ4: 1 | JR4: 1 | JS4: 1 | JT4: 1 | JU4: 1 | JV4: 1 | JW4: 1 | JX4: 1 | JY4: 1 | JZ4: 1 | KA4: 1 | KB4: 1 | KC4: 1 | KD4: 1 | KE4: 1 | KF4: 1 | KG4: 1 | KH4: 1 | KI4: 1 | KJ4: 1 | KK4: 1 | KL4: 1 | KM4: 1 | KN4: 1 | KO4: 1 | KP4: 1 | KQ4: 1 | KR4: 1 | KS4: 1 | KT4: 1 | KU4: 1 | KV4: 1 | KW4: 1 | KX4: 1 | KY4: 1 | KZ4: 1 | LA4: 1 | LB4: 1 | LC4: 1 | LD4: 1 | LE4: 1 | LF4: 1 | LG4: 1 | LH4: 1 | LI4: 1 | LJ4: 1 | LK4: 1 | LL4: 1 | LM4: 1 | LN4: 1 | LO4: 1 | LP4: 1 | LQ4: 1 | LR4: 1 | LS4: 1 | LT4: 1 | LU4: 1 | LV4: 1 | LW4: 1 | LX4: 1 | LY4: 1 | LZ4: 1 | MA4: 1 | MB4: 1 | MC4: 1 | MD4: 1 | ME4: 1 | MF4: 1 | MG4: 1 | MH4: 1 | MI4: 1 | MJ4: 1 | MK4: 1 | ML4: 1 | MM4: 1 | MN4: 1 | MO4: 1 | MP4: 1 | MQ4: 1 | MR4: 1 | MS4: 1 | MT4: 1 | MU4: 1 | MV4: 1 | MW4: 1 | MX4: 1 | MY4: 1 | MZ4: 1 | NA4: 1 | NB4: 1 | NC4: 1 | ND4: 1 | NE4: 1 | NF4: 1 | NG4: 1 | NH4: 1 | NI4: 1 | NJ4: 1 | NK4: 1 | NL4: 1 | NM4: 1 | NN4: 1 | NO4: 1 | NP4: 1 | NQ4: 1 | NR4: 1 | NS4: 1 | NT4: 1 | NU4: 1 | NV4: 1 | NW4: 1 | NX4: 1 | NY4: 1 | NZ4: 1 | OA4: 1 | OB4: 1 | OC4: 1 | OD4: 1 | OE4: 1 | OF4: 1 | OG4: 1 | OH4: 1 | OI4: 1 | OJ4: 1 | OK4: 1 | OL4: 1 | OM4: 1 | ON4: 1 | OO4: 1 | OP4: 1 | OQ4: 1 | OR4: 1 | OS4: 1 | OT4: 1 | OU4: 1 | OV4: 1 | OW4: 1 | OX4: 1 | OY4: 1 | OZ4: 1 | PA4: 1 | PB4: 1 | PC4: 1 | PD4: 1 | PE4: 1 | PF4: 1 | PG4: 1 | PH4: 1 | PI4: 1 | PJ4: 1 | PK4: 1 | PL4: 1 | PM4: 1 | PN4: 1 | PO4: 1 | PP4: 1 | PQ4: 1 | PR4: 1 | PS4: 1 | PT4: 1 | PU4: 1 | PV4: 1 | PW4: 1 | PX4: 1 | PY4: 1 | PZ4: 1 | QA4: 1 | QB4: 1 | QC4: 1 | QD4: 1 | QE4: 1 | QF4: 1 | QG4: 1 | QH4: 1 | QI4: 1 | QJ4: 1 | QK4: 1 | QL4: 1 | QM4: 1 | QN4: 1 | QO4: 1 | QP4: 1 | QQ4: 1 | QR4: 1 | QS4: 1 | QT4: 1 | QU4: 1 | QV4: 1 | QW4: 1 | QX4: 1 | QY4: 1 | QZ4: 1 | RA4: 1 | RB4: 1 | RC4: 1 | RD4: 1 | RE4: 1 | RF4: 1 | RG4: 1 | RH4: 1 | RI4: 1 | RJ4: 1 | RK4: 1 | RL4: 1 | RM4: 1 | RN4: 1 | RO4: 1 | RP4: 1 | RQ4: 1 | RR4: 1 | RS4: 1 | RT4: 1 | RU4: 1 | RV4: 1 | RW4: 1 | RX4: 1 | RY4: 1 | RZ4: 1 | SA4: 1 | SB4: 1 | SC4: 1 | SD4: 1 | SE4: 1 | SF4: 1 | SG4: 1 | SH4: 1 | SI4: 1 | SJ4: 1 | SK4: 1 | SL4: 1 | SM4: 1 | SN4: 1 | SO4: 1 | SP4: 1 | SQ4: 1 | SR4: 1 | SS4: 1 | ST4: 1 | SU4: 1 | SV4: 1 | SW4: 1 | SX4: 1 | SY4: 1 | SZ4: 1 | TA4: 1 | TB4: 1 | TC4: 1 | TD4: 1 | TE4: 1 | TF4: 1 | TG4: 1 | TH4: 1 | TI4: 1 | TJ4: 1 | TK4: 1 | TL4: 1 | TM4: 1 | TN4: 1 | TO4: 1 | TP4: 1 | TQ4: 1 | TR4: 1 | TS4: 1 | TT4: 1 | TU4: 1 | TV4: 1 | TW4: 1 | TX4: 1 | TY4: 1 | TZ4: 1 | UA4: 1 | UB4: 1 | UC4: 1 | UD4: 1 | UE4: 1 | UF4: 1 | UG4: 1 | UH4: 1 | UI4: 1 | UJ4: 1 | UK4: 1 | UL4: 1 | UM4: 1 | UN4: 1 | UO4: 1 | UP4: 1 | UQ4: 1 | UR4: 1 | US4: 1 | UT4: 1 | UU4: 1 | UV4: 1 | UW4: 1 | UX4: 1 | UY4: 1 | UZ4: 1 | VA4: 1 | VB4: 1 | VC4: 1 | VD4: 1 | VE4: 1 | VF4: 1 | VG4: 1 | VH4: 1 | VI4: 1 | VJ4: 1 | VK4: 1 | VL4: 1 | VM4: 1 | VN4: 1 | VO4: 1 | VP4: 1 | VQ4: 1 | VR4: 1 | VS4: 1 | VT4: 1 | VU4: 1 | VV4: 1 | VW4: 1 | VX4: 1 | VY4: 1 | VZ4: 1 | WA4: 1 | WB4: 1 | WC4: 1 | WD4: 1 | WE4: 1 | WF4: 1 | WG4: 1 | WH4: 1 | WI4: 1 | WJ4: 1 | WK4: 1 | WL4: 1 | WM4: 1 | WN4: 1 | WO4: 1 | WP4: 1 | WQ4: 1 | WR4: 1 | WS4: 1 | WT4: 1 | WU4: 1 | WV4: 1 | WW4: 1 | WX4: 1 | WY4: 1 | WZ4: 1 | XA4: 1 | XB4: 1 | XC4: 1 | XD4: 1 | XE4: 1 | XF4: 1 | XG4: 1 | XH4: 1 | XI4: 1 | XJ4: 1 | XK4: 1 | XL4: 1 | XM4: 1 | XN4: 1 | XO4: 1 | XP4: 1 | XQ4: 1 | XR4: 1 | XS4: 1 | XT4: 1 | XU4: 1 | XV4: 1 | XW4: 1 | XX4: 1 | XY4: 1 | XZ4: 1 | YA4: 1 | YB4: 1 | YC4: 1 | YD4: 1 | YE4: 1 | YF4: 1 | YG4: 1 | YH4: 1 | YI4: 1 | YJ4: 1 | YK4: 1 | YL4: 1 | YM4: 1 | YN4: 1 | YO4: 1 | YP4: 1 | YQ4: 1 | YR4: 1 | YS4: 1 | YT4: 1 | YU4: 1 | YV4: 1 | YW4: 1 | YX4: 1 | YY4: 1 | YZ4: 1 | ZA4: 1 | ZB4: 1 | ZC4: 1 | ZD4: 1 | ZE4: 1 | ZF4: 1 | ZG4: 1 | ZH4: 1 | ZI4: 1 | ZJ4: 1 | ZK4: 1 | ZL4: 1 | ZM4: 1 | ZN4: 1 | ZO4: 1 | ZP4: 1 | ZQ4: 1 | ZR4: 1 | ZS4: 1 | ZT4: 1 | ZU4: 1 | ZV4: 1 | ZW4: 1 | ZX4: 1 | ZY4: 1 | ZZ4: 1 | AAA4: 1 | AAB4: 1 | AAC4: 1 | AAD4: 1 | AAE4: 1 | AAF4: 1 | AAG4: 1 | AAH4: 1 | AAI4: 1 | AAJ4: 1 | AAK4: 1 | AAL4: 1 | AAM4: 1 | AAN4: 1 | AAO4: 1 | AAP4: 1 | AAQ4: 1 | AAR4: 1 | AAS4: 1 | AAT4: 1 | AAU4: 1 | AAV4: 1 | AAW4: 1 | AAX4: 1 | AAY4: 1 | AAZ4: 1 | ABA4: 1 | ABB4: 1 | ABC4: 1 | ABD4: 1 | ABE4: 1 | ABF4: 1 | ABG4: 1 | ABH4: 1 | ABI4: 1 | ABJ4: 1 | ABK4: 1 | ABL4: 1 | ABM4: 1 | ABN4: 1 | ABO4: 1 | ABP4: 1 | ABQ4: 1 | ABR4: 1 | ABS4: 1 | ABT4: 1 | ABU4: 1 | ABV4: 1 | ABW4: 1 | ABX4: 1 | ABY4: 1 | ABZ4: 1 | ACA4: 1 | ACB4: 1 | ACC4: 1 | ACD4: 1 | ACE4: 1 | ACF4: 1 | ACG4: 1 | ACH4: 1 | ACI4: 1 | ACJ4: 1 | ACK4: 1 | ACL4: 1 | ACM4: 1 | ACN4: 1 | ACO4: 1 | ACP4: 1 | ACQ4: 1 | ACR4: 1 | ACS4: 1 | ACT4: 1 | ACU4: 1 | ACV4: 1 | ACW4: 1 | ACX4: 1 | ACY4: 1 | ACZ4: 1 | ADA4: 1 | ADB4: 1 | ADC4: 1 | ADD4: 1 | ADE4: 1 | ADF4: 1 | ADG4: 1 | ADH4: 1 | ADI4: 1 | ADJ4: 1 | ADK4: 1 | ADL4: 1 | ADM4: 1 | ADN4: 1 | ADO4: 1 | ADP4: 1 | ADQ4: 1 | ADR4: 1 | ADS4: 1 | ADT4: 1 | ADU4: 1 | ADV4: 1 | ADW4: 1 | ADX4: 1 | ADY4: 1 | ADZ4: 1 | AEA4: 1 | AEB4: 1 | AEC4: 1 | AED4: 1 | AEE4: 1 | AEF4: 1 | AEG4: 1 | AEH4: 1 | AEI4: 1 | AEJ4: 1 | AEK4: 1 | AEL4: 1 | AEM4: 1 | AEN4: 1 | AEO4: 1 | AEP4: 1 | AEQ4: 1 | AER4: 1 | AES4: 1 | AET4: 1 | AEU4: 1 | AEV4: 1 | AEW4: 1 | AEX4: 1 | AEY4: 1 | AEZ4: 1 | AFA4: 1 | AFB4: 1 | AFC4: 1 | AFD4: 1 | AFE4: 1 | AFF4: 1 | AFG4: 1 | AFH4: 1 | AFI4: 1 | AFJ4: 1 | AFK4: 1 | AFL4: 1 | AFM4: 1 | AFN4: 1 | AFO4: 1 | AFP4: 1 | AFQ4: 1 | AFR4: 1 | AFS4: 1 | AFT4: 1 | AFU4: 1 | AFV4: 1 | AFW4: 1 | AFX4: 1 | AFY4: 1 | AFZ4: 1 | AGA4: 1 | AGB4: 1 | AGC4: 1 | AGD4: 1 | AGE4: 1 | AGF4: 1 | AGG4: 1 | AGH4: 1 | AGI4: 1 | AGJ4: 1 | AGK4: 1 | AGL4: 1 | AGM4: 1 | AGN4: 1 | AGO4: 1 | AGP4: 1 | AGQ4: 1 | AGR4: 1 | AGS4: 1 | AGT4: 1 | AGU4: 1 | AGV4: 1 | AGW4: 1 | AGX4: 1 | AGY4: 1 | AGZ4: 1 | AHA4: 1 | AHB4: 1 | AHC4: 1 | AHD4: 1 | AHE4: 1 | AHF4: 1 | AHG4: 1 | AHH4: 1 | AHI4: 1 | AHJ4: 1 | AHK4: 1 | AHL4: 1 | AHM4: 1 | AHN4: 1 | AHO4: 1 | AHP4: 1 | AHQ4: 1 | AHR4: 1 | AHS4: 1 | AHT4: 1 | AHU4: 1 | AHV4: 1 | AHW4: 1 | AHX4: 1 | AHY4: 1 | AHZ4: 1 | AIA4: 1 | AIB4: 1 | AIC4: 1 | AID4: 1 | AIE4: 1 | AIF4: 1 | AIG4: 1 | AIH4: 1 | AII4: 1 | AIJ4: 1 | AIK4: 1 | AIL4: 1 | AIM4: 1 | AIN4: 1 | AIO4: 1 | AIP4: 1 | AIQ4: 1 | AIR4: 1 | AIS4: 1 | AIT4: 1 | AIU4: 1 | AIV4: 1 | AIW4: 1 | AIX4: 1 | AIY4: 1 | AIZ4: 1 | AJA4: 1 | AJB4: 1 | AJC4: 1 | AJD4: 1 | AJE4: 1 | AJF4: 1 | AJG4: 1 | AJH4: 1 | AJI4: 1 | AJJ4: 1 | AJK4: 1 | AJL4: 1 | AJM4: 1 | AJN4: 1 | AJO4: 1 | AJP4: 1 | AJQ4: 1 | AJR4: 1 | AJS4: 1 | AJT4: 1 | AJU4: 1 | AJV4: 1 | AJW4: 1 | AJX4: 1 | AJY4: 1 | AJZ4: 1 | AKA4: 1 | AKB4: 1 | AKC4: 1 | AKD4: 1 | AKE4: 1 | AKF4: 1 | AKG4: 1 | AKH4: 1 | AKI4: 1 | AKJ4: 1 | AKK4: 1 | AKL4: 1 | AKM4: 1 | AKN4: 1 | AKO4: 1 | AKP4: 1 | AKQ4: 1 | AKR4: 1 | AKS4: 1 | AKT4: 1 | AKU4: 1 | AKV4: 1 | AKW4: 1 | AKX4: 1 | AKY4: 1 | AKZ4: 1 | ALA4: 1 | ALB4: 1 | ALC4: 1 | ALD4: 1 | ALE4: 1 | ALF4: 1 | ALG4: 1 | ALH4: 1 | ALI4: 1 | ALJ4: 1 | ALK4: 1 | ALL4: 1 | ALM4: 1 | ALN4: 1
B5: Nesměň | E5: 6 | G5: 4 | I5: 5 | J5: 5 | K5: 5 | L5: 6 | M5: 6 | O5: 5 | Q5: 5 | S5: 3 | U5: 3 | V5: 5 | W5: 6 | Y5: 5 | Z5: 7 | AA5: 5 | AC5: 6 | AD5: 4 | AE5: 6 | AF5: 6 | AH5: 5 | AI5: 5 | AJ5: 4 | AK5: 3 | AL5: 4 | AM5: 6 | AN5: 5 | AO5: 4 | AP5: 5 | AQ5: 5 | AS5: 6 | AT5: 6 | AU5: 6 | AX5: 5 | AZ5: 5 | BA5: 5 | BB5: 6 | BD5: 5 | BE5: 4 | BG5: 4 | BI5: 6 | BK5: 6 | BL5: 7 | BM5: 5 | BN5: 4 | BO5: 5 | BQ5: 3 | BS5: 7 | BT5: 5 | BV5: 5 | BW5: 6 | BX5: 7 | BY5: 5 | BZ5: 5 | CA5: 4 | CB5: 4 | CC5: 5 | CD5: 5 | CE5: 5 | CF5: 5 | CG5: 5 | CH5: 5 | CI5: 7 | CJ5: 5 | CK5: 4 | CM5: 6 | CN5: 7 | CO5: 7 | CP5: 7 | CS5: 6 | CT5: 6 | CU5: 5 | CV5: 6 | CW5: 7 | CZ5: 7 | DB5: 5 | DD5: 5 | DE5: 4 | DG5: 4 | DJ5: 5 | DL5: 6 | DM5: 6 | DN5: 5 | DO5: 6 | DQ5: 7 | DS5: 7 | DT5: 6 | DV5: 5 | DW5: 4 | DX5: 4 | DZ5: 5 | EC5: 3 | EE5: 5 | EF5: 7 | EH5: 5 | EJ5: 6 | EK5: 5 | EL5: 4 | EM5: 5 | EN5: 5 | EO5: 4 | EP5: 3 | EQ5: 7 | ET5: 6 | EU5: 4 | EX5: 6 | EY5: 5 | FA5: 5 | FB5: 6 | FC5: 5 | FD5: 7 | FE5: 7 | FF5: 6 | FG5: 5 | FI5: 5 | FJ5: 5 | FK5: 5 | FM5: 6 | FN5: 6 | FO5: 5 | FP5: 4 | FR5: 4 | FS5: 5 | FT5: 7 | FU5: 7 | FV5: 4 | FZ5: 4 | GB5: 5 | GC5: 7 | GE5: 4 | GF5: 7 | GG5: 5 | GH5: 5 | GK5: 5 | GL5: 7 | GN5: 4 | GO5: 6 | GQ5: 6 | GR5: 6 | GT5: 4 | GU5: 6 | GV5: 5 | GZ5: 5 | HC5: 4 | HD5: 3 | HE5: 5 | HG5: 5 | HH5: 5 | HI5: 5 | HL5: 5 | HN5: 7 | HO5: 7 | HS5: 6 | HT5: 5 | HU5: 6 | HX5: 6 | HZ5: 5 | IA5: 6 | IB5: 3 | IE5: 5 | IK5: 5 | IN5: 7 | IO5: 6 | IP5: 4 | IS5: 5 | IU5: 6 | IV5: 5 | IW5: 5 | IX5: 4 | IY5: 3 | JA5: 5 | JB5: 6 | JC5: 7 | JD5: 5 | JG5: 5 | JI5: 6 | JJ5: 5 | JL5: 6 | JM5: 3 | JO5: 6 | JQ5: 7 | JR5: 3 | JS5: 4 | JU5: 4 | JW5: 7 | JX5: 7 | JY5: 4 | KA5: 5 | KB5: 5 | KC5: 6 | KD5: 6 | KE5: 4 | KG5: 4 | KJ5: 7 | KM5: 5 | KN5: 3 | KO5: 7 | KP5: 5 | KQ5: 5 | KR5: 5 | KS5: 4 | KT5: 5 | KU5: 6 | KX5: 7 | KY5: 6 | KZ5: 4 | LA5: 6 | LB5: 5 | LD5: 5 | LE5: 5 | LG5: 5 | LH5: 7 | LI5: 6 | LJ5: 6 | LL5: 5 | LM5: 5 | LO5: 4 | LQ5: 5 | LR5: 6 | LT5: 4 | LU5: 4 | LV5: 5 | LW5: 5 | LX5: 4 | LZ5: 3 | MB5: 3 | MC5: 5 | ME5: 5 | MH5: 4 | MJ5: 7 | MK5: 4 | ML5: 5 | MM5: 6 | MP5: 4 | MR5: 5 | MS5: 6 | MT5: 5 | MU5: 5 | MV5: 4 | MW5: 4 | MX5: 6 | MY5: 4 | NA5: 6 | NC5: 7 | ND5: 5 | NE5: 5 | NF5: 4 | NG5: 6 | NH5: 4 | NI5: 7 | NJ5: 6 | NK5: 6 | NN5: 5 | NO5: 6 | NP5: 5 | NQ5: 4 | NR5: 6 | NS5: 5 | NT5: 6 | NU5: 5 | NV5: 6 | NW5: 5 | NX5: 5 | NZ5: 6 | OA5: 4 | OC5: 6 | OD5: 6 | OF5: 6 | OG5: 4 | OI5: 5 | OJ5: 5 | OK5: 5 | OL5: 6 | OM5: 6 | OP5: 6 | OS5: 6 | OW5: 5 | OZ5: 4 | PB5: 5 | PC5: 5 | PD5: 6 | PE5: 7 | PI5: 6 | PK5: 5 | PL5: 5 | PM5: 5 | PO5: 5 | PP5: 6 | PR5: 4 | PS5: 6 | PT5: 6 | PU5: 4 | PW5: 6 | PY5: 5 | QA5: 7 | QB5: 7 | QC5: 3 | QD5: 6 | QE5: 3 | QF5: 7 | QH5: 6 | QI5: 4 | QJ5: 7 | QK5: 6 | QL5: 6 | QM5: 3 | QN5: 5 | QO5: 4 | QP5: 7 | QQ5: 3 | QR5: 4 | QS5: 4 | QV5: 6 | QW5: 4 | QX5: 5 | QY5: 6 | QZ5: 4 | RA5: 5 | RB5: 5 | RC5: 5 | RD5: 7 | RE5: 5 | RF5: 4 | RH5: 5 | RI5: 6 | RJ5: 3 | RK5: 4 | RL5: 7 | RM5: 5 | RN5: 6 | RO5: 5 | RP5: 5 | RQ5: 6 | RR5: 6 | RU5: 5 | RX5: 6 | SA5: 3 | SF5: 6 | SJ5: 3 | SK5: 6 | SL5: 4 | SM5: 5 | SN5: 6 | SO5: 5 | SS5: 5 | ST5: 4 | SV5: 7 | SX5: 5 | SZ5: 4 | TA5: 5 | TB5: 6 | TC5: 6 | TF5: 5 | TG5: 5 | TH5: 6 | TI5: 6 | TK5: 5 | TL5: 6 | TM5: 6 | TN5: 4 | TP5: 6 | TQ5: 6 | TS5: 5 | TT5: 3 | TU5: 4 | TV5: 4 | TX5: 6 | TY5: 5 | UA5: 7 | UB5: 5 | UC5: 6 | UD5: 5 | UE5: 3 | UG5: 5 | UH5: 6 | UI5: 5 | UJ5: 4 | UK5: 5 | UL5: 5 | UN5: 6 | UR5: 6 | US5: 5 | UT5: 4 | UV5: 4 | UW5: 5 | UY5: 6 | VB5: 6 | VF5: 5 | VH5: 5 | VI5: 3 | VJ5: 3 | VK5: 5 | VL5: 6 | VM5: 5 | VN5: 4 | VO5: 5 | VP5: 6 | VQ5: 7 | VR5: 4 | VS5: 6 | VT5: 5 | VW5: 5 | VZ5: 4 | WA5: 7 | WB5: 6 | WC5: 7 | WD5: 4 | WE5: 3 | WF5: 6 | WG5: 5 | WI5: 6 | WJ5: 5 | WK5: 5 | WL5: 6 | WM5: 5 | WN5: 7 | WO5: 5 | WP5: 5 | WR5: 5 | WT5: 6 | WU5: 3 | WV5: 6 | WW5: 6 | WY5: 6 | XA5: 6 | XB5: 5 | XC5: 6 | XD5: 5 | XG5: 5 | XI5: 5 | XK5: 5 | XL5: 7 | XM5: 5 | XN5: 7 | XP5: 6 | XQ5: 4 | XR5: 4 | XS5: 4 | XV5: 4 | XW5: 6 | XZ5: 6 | YC5: 6 | YE5: 4 | YF5: 6 | YG5: 6 | YJ5: 4 | YL5: 6 | YM5: 7 | YN5: 4 | YP5: 5 | YQ5: 6 | YR5: 4 | YS5: 6 | YW5: 4 | YX5: 5 | YZ5: 5 | ZA5: 6 | ZB5: 5 | ZC5: 3 | ZD5: 6 | ZE5: 5 | ZF5: 6 | ZK5: 4 | ZM5: 3 | ZN5: 5 | ZO5: 6 | ZP5: 7 | ZQ5: 5 | ZR5: 6 | ZT5: 7 | ZU5: 4 | ZV5: 6 | ZW5: 6 | ZX5: 7 | ZY5: 4 | AAA5: 5 | AAB5: 5 | AAD5: 4 | AAE5: 4 | AAG5: 4 | AAJ5: 5 | AAL5: 4 | AAM5: 4 | AAN5: 5 | AAP5: 6 | AAQ5: 6 | AAR5: 6 | AAS5: 3 | AAV5: 4 | AAX5: 4 | AAY5: 7 | AAZ5: 6 | ABA5: 5 | ABB5: 6 | ABC5: 6 | ABD5: 6 | ABE5: 4 | ABH5: 7 | ABI5: 5 | ABL5: 6 | ABM5: 5 | ABN5: 5 | ABO5: 7 | ABP5: 7 | ABQ5: 5 | ABR5: 4 | ABT5: 7 | ABU5: 5 | ABW5: 5 | ABX5: 5 | ABY5: 4 | ABZ5: 4 | ACA5: 5 | ACC5: 5 | ACD5: 6 | ACF5: 5 | ACG5: 4 | ACH5: 5 | ACI5: 6 | ACL5: 5 | ACO5: 6 | ACS5: 5 | ACT5: 3 | ACU5: 7 | ACV5: 6 | ACW5: 5 | ACY5: 6 | ADC5: 4 | ADE5: 4 | ADJ5: 5 | ADK5: 7 | ADM5: 5 | ADN5: 5 | ADO5: 5 | ADP5: 7 | ADQ5: 5 | ADR5: 7 | ADT5: 6 | ADU5: 6 | ADW5: 3 | ADX5: 7 | ADZ5: 4 | AEA5: 5 | AEB5: 5 | AEC5: 6 | AED5: 4 | AEF5: 5 | AEH5: 7 | AEI5: 4 | AEJ5: 5 | AEK5: 4 | AEL5: 4 | AEM5: 6 | AEN5: 4 | AEP5: 6 | AER5: 6 | AES5: 6 | AET5: 5 | AEW5: 6 | AEX5: 5 | AEZ5: 7 | AFA5: 6 | AFB5: 6 | AFC5: 7 | AFE5: 5 | AFG5: 6 | AFH5: 6 | AFJ5: 6 | AFK5: 5 | AFM5: 5 | AFN5: 5 | AFP5: 6 | AFQ5: 5 | AFR5: 5 | AFS5: 6 | AFU5: 7 | AFV5: 5 | AFW5: 4 | AFX5: 7 | AFY5: 7 | AFZ5: 6 | AGA5: 4 | AGB5: 5 | AGC5: 6 | AGD5: 3 | AGE5: 6 | AGH5: 5 | AGI5: 3 | AGJ5: 6 | AGK5: 4 | AGL5: 5 | AGM5: 4 | AGN5: 5 | AGO5: 6 | AGR5: 3 | AGT5: 6 | AGV5: 4 | AGW5: 5 | AGX5: 7 | AGY5: 3 | AGZ5: 5 | AHA5: 6 | AHB5: 5 | AHC5: 5 | AHE5: 5 | AHF5: 4 | AHG5: 4 | AHH5: 5 | AHI5: 5 | AHJ5: 3 | AHK5: 7 | AHL5: 6 | AHP5: 6 | AHQ5: 5 | AHS5: 6 | AHU5: 3 | AHV5: 6 | AHZ5: 5 | AIC5: 6 | AIE5: 6 | AIG5: 5 | AII5: 4 | AIJ5: 5 | AIK5: 4 | AIM5: 7 | AIN5: 4 | AIO5: 7 | AIP5: 5 | AIR5: 6 | AIS5: 5 | AIV5: 5 | AIW5: 4 | AIX5: 4 | AIY5: 7 | AIZ5: 4 | AJA5: 5 | AJC5: 6 | AJE5: 4 | AJF5: 3 | AJG5: 6 | AJI5: 6 | AJK5: 4 | AJL5: 6 | AJN5: 5 | AJQ5: 6 | AJR5: 7 | AJS5: 7 | AJT5: 3 | AJU5: 6 | AJV5: 5 | AJX5: 5 | AJZ5: 7 | AKA5: 7 | AKD5: 5 | AKF5: 6 | AKG5: 6 | AKH5: 7 | AKI5: 6 | AKJ5: 6 | AKK5: 6 | AKL5: 5 | AKM5: 6 | AKO5: 3 | AKP5: 6 | AKS5: 4 | AKU5: 4 | AKV5: 4 | AKW5: 6 | AKX5: 7 | AKY5: 6 | AKZ5: 6 | ALA5: 4 | ALC5: 7 | ALD5: 7 | ALE5: 5 | ALF5: 7 | ALG5: 6 | ALH5: 5 | ALI5: 4 | ALJ5: 3 | ALM5: 5
B6: Ločenice | C6: 5 | D6: 4 | E6: 5 | H6: 5 | J6: 4 | K6: 4 | L6: 5 | M6: 5 | N6: 6 | O6: 4 | R6: 5 | V6: 4 | W6: 5 | X6: 4 | Z6: 6 | AA6: 4 | AB6: 4 | AC6: 5 | AD6: 3 | AE6: 5 | AG6: 5 | AI6: 4 | AM6: 5 | AT6: 5 | AU6: 5 | AV6: 5 | AW6: 3 | AX6: 4 | BA6: 4 | BC6: 4 | BF6: 4 | BH6: 3 | BI6: 5 | BJ6: 5 | BK6: 5 | BL6: 6 | BM6: 4 | BN6: 3 | BO6: 4 | BP6: 5 | BS6: 6 | BU6: 4 | BX6: 6 | BY6: 4 | CC6: 4 | CD6: 4 | CE6: 4 | CF6: 4 | CG6: 4 | CH6: 4 | CI6: 6 | CJ6: 4 | CL6: 3 | CM6: 5 | CN6: 6 | CO6: 6 | CP6: 6 | CQ6: 6 | CR6: 5 | CS6: 5 | CT6: 5 | CU6: 4 | CV6: 5 | CW6: 6 | CY6: 6 | CZ6: 6 | DA6: 5 | DB6: 4 | DE6: 3 | DF6: 4 | DG6: 3 | DI6: 4 | DJ6: 4 | DK6: 4 | DL6: 5 | DM6: 5 | DQ6: 6 | DS6: 6 | DT6: 5 | DV6: 4 | DZ6: 4 | EA6: 5 | EF6: 6 | EG6: 6 | EI6: 6 | EJ6: 5 | EM6: 4 | EQ6: 6 | ES6: 4 | ET6: 5 | EV6: 3 | EW6: 6 | EX6: 5 | EY6: 4 | EZ6: 3 | FB6: 5 | FC6: 4 | FD6: 6 | FE6: 6 | FF6: 5 | FG6: 4 | FH6: 5 | FJ6: 4 | FL6: 4 | FN6: 5 | FP6: 3 | FQ6: 4 | FS6: 4 | FT6: 6 | FU6: 6 | FX6: 6 | FY6: 3 | FZ6: 3 | GA6: 4 | GC6: 6 | GE6: 3 | GF6: 6 | GG6: 4 | GH6: 4 | GL6: 6 | GM6: 5 | GO6: 5 | GP6: 5 | GR6: 5 | GS6: 5 | GT6: 3 | GU6: 5 | GV6: 4 | GW6: 6 | GX6: 6 | HB6: 5 | HE6: 4 | HF6: 6 | HG6: 4 | HK6: 5 | HL6: 4 | HM6: 6 | HN6: 6 | HO6: 6 | HP6: 5 | HR6: 4 | HT6: 4 | HU6: 5 | HV6: 4 | HW6: 4 | HZ6: 4 | IA6: 5 | IB6: 2 | IC6: 4 | IE6: 4 | IG6: 5 | IH6: 3 | II6: 5 | IJ6: 4 | IK6: 4 | IN6: 6 | IO6: 5 | IP6: 3 | IQ6: 5 | IT6: 5 | IU6: 5 | IV6: 4 | IX6: 3 | IY6: 2 | IZ6: 5 | JA6: 4 | JC6: 6 | JG6: 4 | JH6: 5 | JK6: 5 | JL6: 5 | JN6: 5 | JO6: 5 | JP6: 4 | JQ6: 6 | JS6: 3 | JT6: 5 | JU6: 3 | JV6: 6 | JW6: 6 | JX6: 6 | JY6: 3 | KB6: 4 | KC6: 5 | KD6: 5 | KE6: 3 | KF6: 4 | KG6: 3 | KH6: 4 | KI6: 6 | KJ6: 6 | KK6: 5 | KL6: 5 | KO6: 6 | KP6: 4 | KR6: 4 | KT6: 4 | KU6: 5 | KV6: 5 | KW6: 5 | KX6: 6 | KY6: 5 | KZ6: 3 | LC6: 5 | LD6: 4 | LE6: 4 | LF6: 5 | LH6: 6 | LI6: 5 | LJ6: 5 | LP6: 5 | LR6: 5 | LV6: 4 | LW6: 4 | LY6: 4 | MA6: 6 | MC6: 4 | MD6: 6 | ME6: 4 | MG6: 6 | MH6: 3 | MI6: 5 | MJ6: 6 | ML6: 4 | MM6: 5 | MN6: 5 | MP6: 3 | MQ6: 5 | MS6: 5 | MT6: 4 | MU6: 4 | MW6: 3 | MZ6: 5 | NA6: 5 | NB6: 4 | NC6: 6 | ND6: 4 | NE6: 4 | NG6: 5 | NI6: 6 | NJ6: 5 | NK6: 5 | NL6: 5 | NM6: 3 | NN6: 4 | NR6: 5 | NS6: 4 | NT6: 5 | NV6: 5 | NW6: 4 | NY6: 4 | NZ6: 5 | OA6: 3 | OB6: 4 | OC6: 5 | OD6: 5 | OE6: 5 | OI6: 4 | OL6: 5 | OM6: 5 | ON6: 6 | OO6: 6 | OP6: 5 | OQ6: 5 | OR6: 4 | OS6: 5 | OT6: 4 | OU6: 5 | OV6: 4 | OW6: 4 | OY6: 3 | OZ6: 3 | PA6: 6 | PD6: 5 | PE6: 6 | PF6: 6 | PH6: 4 | PK6: 4 | PL6: 4 | PM6: 4 | PN6: 4 | PO6: 4 | PP6: 5 | PQ6: 5 | PS6: 5 | PW6: 5 | PX6: 5 | PZ6: 5 | QA6: 6 | QB6: 6 | QD6: 5 | QE6: 2 | QF6: 6 | QG6: 6 | QH6: 5 | QJ6: 6 | QK6: 5 | QL6: 5 | QP6: 6 | QT6: 4 | QU6: 4 | QV6: 5 | QX6: 4 | RA6: 4 | RB6: 4 | RC6: 4 | RD6: 6 | RE6: 4 | RG6: 4 | RH6: 4 | RI6: 5 | RL6: 6 | RM6: 4 | RN6: 5 | RO6: 4 | RP6: 4 | RQ6: 5 | RS6: 6 | RU6: 4 | RV6: 6 | RX6: 5 | RZ6: 3 | SB6: 4 | SC6: 5 | SD6: 5 | SE6: 5 | SF6: 5 | SG6: 4 | SH6: 3 | SI6: 5 | SK6: 5 | SL6: 3 | SM6: 4 | SN6: 5 | SQ6: 6 | SR6: 6 | ST6: 3 | SU6: 5 | SV6: 6 | SX6: 4 | SZ6: 3 | TA6: 4 | TB6: 5 | TD6: 3 | TE6: 5 | TH6: 5 | TI6: 5 | TK6: 4 | TL6: 5 | TM6: 5 | TN6: 3 | TO6: 4 | TP6: 5 | TU6: 3 | TV6: 3 | TW6: 5 | TX6: 5 | TY6: 4 | UA6: 6 | UB6: 4 | UC6: 5 | UD6: 4 | UE6: 2 | UH6: 5 | UI6: 4 | UK6: 4 | UM6: 5 | UN6: 5 | UO6: 4 | UP6: 5 | UQ6: 6 | UR6: 5 | US6: 4 | UU6: 5 | UV6: 3 | UW6: 4 | UX6: 4 | UY6: 5 | UZ6: 5 | VA6: 3 | VB6: 5 | VC6: 4 | VE6: 5 | VF6: 4 | VK6: 4 | VL6: 5 | VO6: 4 | VP6: 5 | VQ6: 6 | VR6: 3 | VS6: 5 | VT6: 4 | VU6: 4 | VV6: 4 | VW6: 4 | VX6: 5 | VZ6: 3 | WA6: 6 | WC6: 6 | WH6: 4 | WJ6: 4 | WM6: 4 | WN6: 6 | WP6: 4 | WQ6: 6 | WS6: 5 | WT6: 5 | WV6: 5 | WW6: 5 | XA6: 5 | XB6: 4 | XC6: 5 | XE6: 6 | XG6: 4 | XH6: 2 | XI6: 4 | XJ6: 5 | XK6: 4 | XL6: 6 | XM6: 4 | XN6: 6 | XO6: 5 | XP6: 5 | XQ6: 3 | XR6: 3 | XT6: 4 | XV6: 3 | XW6: 5 | XX6: 4 | XZ6: 5 | YB6: 4 | YC6: 5 | YD6: 6 | YG6: 5 | YH6: 6 | YK6: 6 | YL6: 5 | YM6: 6 | YN6: 3 | YO6: 4 | YP6: 4 | YQ6: 5 | YT6: 6 | YW6: 3 | YX6: 4 | ZA6: 5 | ZC6: 2 | ZD6: 5 | ZE6: 4 | ZI6: 4 | ZK6: 3 | ZL6: 5 | ZN6: 4 | ZO6: 5 | ZP6: 6 | ZR6: 5 | ZT6: 6 | ZU6: 3 | ZW6: 5 | ZX6: 6 | ZZ6: 5 | AAB6: 4 | AAC6: 4 | AAG6: 3 | AAH6: 2 | AAK6: 4 | AAN6: 4 | AAO6: 5 | AAP6: 5 | AAQ6: 5 | AAR6: 5 | AAT6: 3 | AAW6: 3 | AAX6: 3 | AAY6: 6 | AAZ6: 5 | ABC6: 5 | ABD6: 5 | ABF6: 4 | ABG6: 6 | ABH6: 6 | ABJ6: 5 | ABK6: 4 | ABM6: 4 | ABO6: 6 | ABP6: 6 | ABQ6: 4 | ABS6: 5 | ABT6: 6 | ABU6: 4 | ABW6: 4 | ABX6: 4 | ACA6: 4 | ACB6: 3 | ACD6: 5 | ACF6: 4 | ACG6: 3 | ACI6: 5 | ACJ6: 5 | ACK6: 5 | ACL6: 4 | ACM6: 5 | ACR6: 5 | ACS6: 4 | ACU6: 6 | ACV6: 5 | ACX6: 4 | ACY6: 5 | ACZ6: 3 | ADB6: 4 | ADH6: 5 | ADI6: 4 | ADJ6: 4 | ADK6: 6 | ADM6: 4 | ADN6: 4 | ADO6: 4 | ADP6: 6 | ADQ6: 4 | ADR6: 6 | ADS6: 4 | ADT6: 5 | ADV6: 6 | ADX6: 6 | ADZ6: 3 | AEA6: 4 | AEB6: 4 | AEE6: 5 | AEF6: 4 | AEG6: 5 | AEH6: 6 | AEI6: 3 | AEN6: 3 | AEO6: 3 | AEP6: 5 | AEQ6: 4 | AER6: 5 | AES6: 5 | AET6: 4 | AEU6: 6 | AEV6: 5 | AEX6: 4 | AEY6: 5 | AEZ6: 6 | AFA6: 5 | AFC6: 6 | AFE6: 4 | AFJ6: 5 | AFL6: 3 | AFM6: 4 | AFN6: 4 | AFO6: 6 | AFP6: 5 | AFR6: 4 | AFS6: 5 | AFT6: 4 | AFU6: 6 | AFV6: 4 | AFX6: 6 | AFY6: 6 | AFZ6: 5 | AGB6: 4 | AGC6: 5 | AGE6: 5 | AGF6: 5 | AGH6: 4 | AGJ6: 5 | AGL6: 4 | AGN6: 4 | AGO6: 5 | AGP6: 4 | AGQ6: 5 | AGS6: 5 | AGT6: 5 | AGU6: 4 | AGW6: 4 | AGX6: 6 | AGZ6: 4 | AHA6: 5 | AHB6: 4 | AHD6: 4 | AHE6: 4 | AHF6: 3 | AHG6: 3 | AHH6: 4 | AHI6: 4 | AHK6: 6 | AHL6: 5 | AHO6: 4 | AHP6: 5 | AHR6: 5 | AHS6: 5 | AHV6: 5 | AHW6: 5 | AHX6: 5 | AHY6: 5 | AHZ6: 4 | AIA6: 5 | AIB6: 4 | AIC6: 5 | AID6: 4 | AIE6: 5 | AIF6: 2 | AIG6: 4 | AIH6: 5 | AIK6: 3 | AIM6: 6 | AIO6: 6 | AIQ6: 4 | AIR6: 5 | AIT6: 3 | AIY6: 6 | AJA6: 4 | AJC6: 5 | AJD6: 5 | AJE6: 3 | AJG6: 5 | AJH6: 6 | AJI6: 5 | AJK6: 3 | AJL6: 5 | AJM6: 4 | AJN6: 4 | AJO6: 2 | AJP6: 5 | AJR6: 6 | AJS6: 6 | AJU6: 5 | AJX6: 4 | AJY6: 3 | AJZ6: 6 | AKA6: 6 | AKB6: 4 | AKD6: 4 | AKE6: 5 | AKF6: 5 | AKG6: 5 | AKH6: 6 | AKI6: 5 | AKK6: 5 | AKP6: 5 | AKQ6: 5 | AKU6: 3 | AKV6: 3 | AKW6: 5 | AKX6: 6 | AKY6: 5 | AKZ6: 5 | ALB6: 3 | ALC6: 6 | ALD6: 6 | ALF6: 6 | ALG6: 5 | ALH6: 4 | ALI6: 3 | ALJ6: 2 | ALK6: 4 | ALL6: 3 | ALM6: 4
B7: Todně | C7: 3 | D7: 3 | E7: 3 | F7: 4 | H7: 3 | K7: 3 | L7: 3 | M7: 4 | N7: 4 | O7: 2 | Q7: 4 | R7: 3 | S7: 2 | T7: 4 | U7: 2 | X7: 3 | Y7: 3 | Z7: 4 | AB7: 3 | AC7: 4 | AF7: 4 | AG7: 3 | AH7: 4 | AK7: 2 | AM7: 4 | AN7: 4 | AQ7: 3 | AR7: 4 | AS7: 4 | AT7: 4 | AV7: 3 | AY7: 4 | AZ7: 4 | BB7: 4 | BC7: 3 | BD7: 3 | BF7: 3 | BH7: 2 | BJ7: 3 | BK7: 4 | BL7: 4 | BM7: 2 | BP7: 3 | BR7: 4 | BS7: 4 | BT7: 4 | BU7: 3 | BV7: 3 | BW7: 4 | BX7: 4 | BZ7: 3 | CC7: 2 | CE7: 2 | CI7: 4 | CK7: 3 | CM7: 3 | CN7: 4 | CO7: 4 | CP7: 4 | CQ7: 4 | CR7: 3 | CT7: 3 | CU7: 2 | CW7: 4 | CY7: 4 | CZ7: 4 | DA7: 3 | DB7: 3 | DC7: 3 | DD7: 3 | DH7: 3 | DI7: 3 | DL7: 3 | DM7: 4 | DN7: 4 | DO7: 4 | DP7: 3 | DQ7: 4 | DS7: 4 | DU7: 3 | DW7: 3 | DY7: 4 | DZ7: 3 | EA7: 3 | EB7: 4 | EC7: 2 | ED7: 4 | EE7: 4 | EF7: 4 | EG7: 4 | EH7: 4 | EI7: 4 | EJ7: 3 | EL7: 3 | EM7: 2 | EN7: 3 | EO7: 3 | EQ7: 4 | ES7: 2 | ET7: 4 | EU7: 3 | EW7: 4 | EX7: 3 | FA7: 3 | FB7: 4 | FD7: 4 | FE7: 4 | FF7: 4 | FH7: 4 | FK7: 4 | FL7: 3 | FM7: 4 | FN7: 3 | FO7: 3 | FR7: 3 | FS7: 3 | FT7: 4 | FU7: 4 | FW7: 3 | FX7: 4 | GA7: 3 | GB7: 3 | GC7: 4 | GF7: 4 | GG7: 2 | GK7: 4 | GL7: 4 | GM7: 4 | GO7: 3 | GQ7: 4 | GS7: 3 | GT7: 2 | GU7: 3 | GV7: 2 | GW7: 4 | GX7: 4 | GY7: 2 | GZ7: 3 | HA7: 4 | HB7: 3 | HC7: 3 | HE7: 2 | HF7: 4 | HH7: 3 | HJ7: 4 | HK7: 3 | HM7: 4 | HN7: 4 | HO7: 4 | HP7: 3 | HQ7: 3 | HR7: 2 | HS7: 4 | HT7: 2 | HU7: 3 | HV7: 3 | HW7: 3 | HX7: 4 | HY7: 3 | HZ7: 3 | IC7: 3 | ID7: 3 | IG7: 3 | II7: 3 | IK7: 2 | IL7: 3 | IM7: 2 | IN7: 4 | IO7: 4 | IR7: 4 | IS7: 3 | IU7: 4 | IW7: 4 | IX7: 2 | IZ7: 3 | JA7: 3 | JB7: 4 | JC7: 4 | JE7: 4 | JF7: 3 | JH7: 3 | JI7: 4 | JJ7: 3 | JL7: 3 | JO7: 4 | JQ7: 4 | JS7: 2 | JV7: 4 | JW7: 4 | JX7: 4 | KA7: 3 | KB7: 3 | KC7: 3 | KD7: 3 | KF7: 3 | KH7: 3 | KI7: 4 | KJ7: 4 | KK7: 3 | KL7: 4 | KM7: 4 | KO7: 4 | KP7: 3 | KQ7: 3 | KU7: 3 | KV7: 4 | KW7: 3 | KX7: 4 | KY7: 3 | LA7: 4 | LC7: 3 | LD7: 3 | LF7: 3 | LG7: 4 | LH7: 4 | LI7: 3 | LJ7: 4 | LK7: 4 | LL7: 3 | LM7: 3 | LN7: 4 | LQ7: 3 | LR7: 4 | LS7: 3 | LV7: 3 | MA7: 4 | MC7: 3 | MD7: 4 | MG7: 4 | MH7: 2 | MJ7: 4 | ML7: 3 | MO7: 4 | MQ7: 3 | MR7: 3 | MS7: 3 | MT7: 2 | MU7: 3 | MV7: 3 | MW7: 2 | MX7: 4 | MY7: 3 | MZ7: 3 | NB7: 2 | NC7: 4 | ND7: 3 | NH7: 2 | NI7: 4 | NJ7: 3 | NK7: 3 | NL7: 3 | NO7: 4 | NP7: 3 | NR7: 4 | NS7: 3 | NT7: 4 | NU7: 3 | NV7: 3 | NY7: 3 | NZ7: 3 | OC7: 4 | OD7: 3 | OE7: 3 | OF7: 4 | OH7: 4 | OI7: 3 | OJ7: 4 | OK7: 4 | OL7: 3 | OM7: 3 | ON7: 4 | OO7: 4 | OP7: 4 | OQ7: 4 | OS7: 3 | OT7: 3 | OU7: 4 | OW7: 3 | PA7: 4 | PC7: 3 | PD7: 4 | PE7: 4 | PF7: 4 | PG7: 4 | PI7: 4 | PJ7: 3 | PM7: 3 | PN7: 3 | PO7: 3 | PP7: 3 | PQ7: 4 | PR7: 3 | PS7: 4 | PT7: 4 | PU7: 2 | PV7: 3 | PX7: 3 | PY7: 3 | PZ7: 3 | QA7: 4 | QB7: 4 | QC7: 2 | QD7: 4 | QF7: 4 | QG7: 4 | QI7: 3 | QJ7: 4 | QK7: 4 | QL7: 4 | QM7: 2 | QN7: 4 | QO7: 2 | QP7: 4 | QS7: 2 | QV7: 4 | QX7: 2 | QY7: 4 | RA7: 2 | RC7: 3 | RD7: 4 | RE7: 2 | RF7: 3 | RG7: 2 | RH7: 2 | RI7: 4 | RL7: 4 | RN7: 3 | RO7: 2 | RQ7: 3 | RR7: 4 | RS7: 4 | RV7: 4 | RW7: 4 | RX7: 3 | RY7: 4 | RZ7: 2 | SB7: 3 | SD7: 3 | SF7: 4 | SL7: 2 | SM7: 3 | SN7: 4 | SP7: 4 | SQ7: 4 | SR7: 4 | SS7: 3 | SU7: 3 | SV7: 4 | SY7: 4 | TC7: 4 | TE7: 3 | TF7: 3 | TG7: 3 | TH7: 3 | TI7: 3 | TK7: 3 | TM7: 3 | TO7: 3 | TP7: 4 | TQ7: 4 | TR7: 3 | TS7: 3 | TW7: 4 | TX7: 4 | TY7: 3 | TZ7: 4 | UA7: 4 | UB7: 3 | UD7: 3 | UF7: 4 | UG7: 4 | UH7: 3 | UI7: 3 | UJ7: 2 | UK7: 3 | UM7: 3 | UN7: 3 | UO7: 3 | UP7: 3 | UQ7: 4 | US7: 3 | UT7: 3 | UU7: 3 | UX7: 3 | UZ7: 4 | VB7: 4 | VC7: 3 | VD7: 3 | VH7: 4 | VI7: 2 | VK7: 3 | VM7: 3 | VN7: 2 | VQ7: 4 | VU7: 2 | VY7: 2 | WA7: 4 | WB7: 4 | WC7: 4 | WD7: 3 | WF7: 4 | WG7: 4 | WI7: 4 | WJ7: 3 | WK7: 4 | WL7: 4 | WM7: 3 | WN7: 4 | WO7: 3 | WP7: 2 | WQ7: 4 | WR7: 4 | WS7: 4 | WV7: 3 | WW7: 4 | WX7: 3 | WY7: 4 | WZ7: 4 | XC7: 4 | XD7: 3 | XE7: 4 | XG7: 2 | XI7: 2 | XL7: 4 | XM7: 3 | XN7: 4 | XP7: 4 | XQ7: 2 | XT7: 3 | XU7: 4 | XV7: 2 | XW7: 4 | XY7: 3 | XZ7: 4 | YD7: 4 | YE7: 3 | YF7: 4 | YH7: 4 | YI7: 3 | YK7: 4 | YM7: 4 | YO7: 3 | YQ7: 3 | YR7: 3 | YS7: 4 | YT7: 4 | YZ7: 3 | ZA7: 3 | ZD7: 3 | ZF7: 4 | ZJ7: 4 | ZL7: 3 | ZM7: 2 | ZO7: 3 | ZP7: 4 | ZQ7: 3 | ZR7: 3 | ZS7: 3 | ZT7: 4 | ZV7: 4 | ZX7: 4 | ZY7: 3 | ZZ7: 4 | AAA7: 3 | AAE7: 3 | AAG7: 2 | AAJ7: 3 | AAM7: 3 | AAO7: 4 | AAP7: 4 | AAQ7: 3 | AAR7: 4 | AAV7: 3 | AAW7: 2 | AAY7: 4 | AAZ7: 3 | ABA7: 3 | ABB7: 4 | ABC7: 4 | ABD7: 3 | ABE7: 2 | ABG7: 4 | ABH7: 4 | ABI7: 3 | ABJ7: 3 | ABK7: 3 | ABL7: 4 | ABM7: 3 | ABN7: 3 | ABO7: 4 | ABP7: 4 | ABR7: 3 | ABS7: 3 | ABT7: 4 | ABY7: 2 | ACD7: 3 | ACE7: 4 | ACF7: 3 | ACH7: 4 | ACI7: 3 | ACJ7: 3 | ACM7: 4 | ACN7: 3 | ACO7: 4 | ACP7: 3 | ACQ7: 3 | ACR7: 3 | ACS7: 2 | ACU7: 4 | ACV7: 3 | ACW7: 4 | ACX7: 2 | ACY7: 3 | ADA7: 4 | ADB7: 3 | ADD7: 4 | ADG7: 3 | ADH7: 3 | ADI7: 3 | ADJ7: 3 | ADK7: 4 | ADO7: 3 | ADP7: 4 | ADR7: 4 | ADS7: 3 | ADU7: 4 | ADV7: 4 | ADW7: 2 | ADX7: 4 | ADY7: 3 | AEB7: 3 | AEC7: 4 | AED7: 3 | AEF7: 3 | AEG7: 3 | AEH7: 4 | AEK7: 3 | AEL7: 3 | AEM7: 4 | AEP7: 3 | AEQ7: 3 | AES7: 3 | AEU7: 4 | AEV7: 3 | AEW7: 4 | AEY7: 4 | AEZ7: 4 | AFA7: 3 | AFB7: 4 | AFC7: 4 | AFD7: 3 | AFG7: 4 | AFH7: 4 | AFI7: 4 | AFJ7: 4 | AFK7: 3 | AFN7: 3 | AFO7: 4 | AFS7: 3 | AFT7: 3 | AFU7: 4 | AFX7: 4 | AFY7: 4 | AFZ7: 3 | AGB7: 2 | AGC7: 4 | AGE7: 3 | AGF7: 4 | AGK7: 3 | AGL7: 3 | AGM7: 2 | AGN7: 3 | AGO7: 3 | AGQ7: 4 | AGT7: 4 | AGV7: 3 | AGX7: 4 | AGZ7: 2 | AHA7: 3 | AHB7: 2 | AHC7: 3 | AHD7: 2 | AHE7: 2 | AHF7: 2 | AHH7: 2 | AHI7: 3 | AHK7: 4 | AHL7: 4 | AHM7: 4 | AHO7: 3 | AHQ7: 3 | AHS7: 3 | AHV7: 3 | AHX7: 3 | AHY7: 4 | AHZ7: 3 | AIA7: 3 | AIB7: 3 | AIC7: 3 | AID7: 3 | AIH7: 3 | AIJ7: 3 | AIM7: 4 | AIN7: 3 | AIO7: 4 | AIP7: 3 | AIQ7: 3 | AIS7: 3 | AIU7: 3 | AIX7: 2 | AIY7: 4 | AIZ7: 3 | AJB7: 4 | AJD7: 4 | AJF7: 2 | AJG7: 3 | AJH7: 4 | AJI7: 4 | AJJ7: 4 | AJL7: 3 | AJP7: 3 | AJQ7: 4 | AJR7: 4 | AJS7: 4 | AJU7: 3 | AJV7: 3 | AJW7: 2 | AJX7: 2 | AJZ7: 4 | AKA7: 4 | AKC7: 4 | AKD7: 3 | AKE7: 3 | AKF7: 3 | AKH7: 4 | AKI7: 4 | AKJ7: 4 | AKK7: 4 | AKM7: 4 | AKR7: 4 | AKS7: 2 | AKV7: 2 | AKX7: 4 | AKY7: 3 | AKZ7: 3 | ALA7: 3 | ALC7: 4 | ALD7: 4 | ALE7: 3 | ALF7: 4 | ALG7: 3 | ALI7: 2 | ALK7: 3 | ALM7: 3 | ALN7: 3
B8: Nežetice | C8: 2 | F8: 3 | G8: 2 | H8: 2 | I8: 3 | J8: 2 | K8: 2 | L8: 2 | M8: 3 | N8: 3 | P8: 3 | Q8: 3 | R8: 2 | T8: 3 | W8: 3 | X8: 2 | Z8: 3 | AA8: 3 | AB8: 2 | AC8: 3 | AD8: 2 | AE8: 3 | AF8: 3 | AG8: 2 | AH8: 3 | AI8: 2 | AJ8: 3 | AL8: 2 | AM8: 3 | AN8: 3 | AO8: 3 | AP8: 3 | AR8: 3 | AS8: 3 | AT8: 3 | AU8: 3 | AV8: 2 | AW8: 2 | AX8: 2 | AY8: 3 | AZ8: 3 | BA8: 3 | BB8: 3 | BC8: 2 | BE8: 2 | BI8: 3 | BJ8: 2 | BK8: 3 | BL8: 3 | BO8: 2 | BP8: 2 | BQ8: 2 | BR8: 3 | BS8: 3 | BT8: 3 | BV8: 2 | BW8: 3 | BX8: 3 | BZ8: 2 | CA8: 3 | CB8: 2 | CD8: 2 | CF8: 2 | CG8: 2 | CH8: 3 | CI8: 3 | CN8: 3 | CO8: 3 | CP8: 3 | CQ8: 3 | CS8: 3 | CT8: 2 | CV8: 3 | CW8: 3 | CX8: 3 | CY8: 3 | CZ8: 3 | DA8: 2 | DD8: 2 | DF8: 2 | DG8: 2 | DJ8: 2 | DM8: 3 | DN8: 3 | DO8: 3 | DP8: 2 | DQ8: 3 | DR8: 3 | DS8: 3 | DT8: 3 | DU8: 2 | DV8: 2 | DX8: 2 | DY8: 3 | EB8: 3 | ED8: 3 | EE8: 3 | EF8: 3 | EG8: 3 | EH8: 3 | EI8: 3 | EJ8: 2 | EK8: 3 | EO8: 2 | EP8: 2 | EQ8: 3 | ER8: 2 | ET8: 3 | EW8: 3 | EX8: 2 | EY8: 2 | EZ8: 2 | FA8: 2 | FB8: 3 | FD8: 3 | FE8: 3 | FF8: 3 | FG8: 2 | FH8: 3 | FI8: 3 | FK8: 3 | FL8: 2 | FM8: 3 | FN8: 2 | FO8: 2 | FQ8: 2 | FT8: 3 | FU8: 3 | FX8: 3 | GA8: 2 | GB8: 2 | GC8: 3 | GD8: 3 | GE8: 2 | GF8: 3 | GH8: 3 | GI8: 3 | GJ8: 3 | GK8: 3 | GL8: 3 | GM8: 3 | GN8: 2 | GP8: 3 | GQ8: 3 | GR8: 3 | GS8: 2 | GU8: 2 | GW8: 3 | GX8: 3 | GZ8: 2 | HA8: 3 | HB8: 2 | HF8: 3 | HG8: 2 | HH8: 2 | HI8: 3 | HJ8: 3 | HL8: 3 | HM8: 3 | HN8: 3 | HO8: 3 | HQ8: 2 | HS8: 3 | HU8: 2 | HV8: 2 | HW8: 2 | HX8: 3 | HY8: 2 | HZ8: 2 | IA8: 3 | IE8: 2 | IF8: 3 | IJ8: 3 | IL8: 2 | IN8: 3 | IO8: 3 | IQ8: 3 | IR8: 3 | IT8: 3 | IU8: 3 | IV8: 2 | IW8: 3 | IZ8: 2 | JA8: 2 | JB8: 3 | JC8: 3 | JD8: 3 | JE8: 3 | JF8: 2 | JG8: 3 | JI8: 3 | JJ8: 2 | JK8: 3 | JN8: 3 | JO8: 3 | JP8: 3 | JQ8: 3 | JR8: 2 | JT8: 3 | JV8: 3 | JW8: 3 | JX8: 3 | JY8: 2 | JZ8: 3 | KC8: 2 | KD8: 2 | KE8: 2 | KF8: 2 | KI8: 3 | KJ8: 3 | KL8: 3 | KM8: 3 | KO8: 3 | KQ8: 2 | KR8: 2 | KU8: 2 | KV8: 3 | KW8: 2 | KX8: 3 | KY8: 2 | LA8: 3 | LB8: 3 | LC8: 2 | LD8: 2 | LE8: 3 | LF8: 2 | LG8: 3 | LH8: 3 | LJ8: 3 | LK8: 3 | LL8: 2 | LN8: 3 | LO8: 2 | LP8: 3 | LR8: 3 | LS8: 2 | LW8: 3 | LX8: 2 | LY8: 2 | MA8: 3 | MD8: 3 | MG8: 3 | MI8: 3 | MJ8: 3 | MK8: 2 | ML8: 2 | MM8: 3 | MN8: 3 | MO8: 3 | MQ8: 2 | MS8: 2 | MU8: 2 | MX8: 3 | NA8: 3 | NC8: 3 | ND8: 2 | NG8: 3 | NI8: 3 | NK8: 2 | NM8: 2 | NN8: 2 | NO8: 3 | NP8: 2 | NR8: 3 | NT8: 3 | NW8: 2 | NX8: 3 | NY8: 2 | NZ8: 2 | OB8: 2 | OC8: 3 | OE8: 2 | OF8: 3 | OH8: 3 | OJ8: 3 | OK8: 3 | OM8: 2 | ON8: 3 | OO8: 3 | OP8: 3 | OQ8: 3 | OR8: 2 | OT8: 2 | OU8: 3 | OV8: 2 | OY8: 2 | PA8: 3 | PB8: 3 | PC8: 2 | PD8: 3 | PE8: 3 | PF8: 3 | PG8: 3 | PI8: 3 | PJ8: 2 | PK8: 2 | PL8: 2 | PM8: 2 | PO8: 2 | PQ8: 3 | PR8: 2 | PS8: 3 | PT8: 3 | PW8: 3 | PX8: 2 | QA8: 3 | QB8: 3 | QD8: 3 | QF8: 3 | QG8: 3 | QH8: 3 | QJ8: 3 | QK8: 3 | QL8: 3 | QN8: 3 | QP8: 3 | QR8: 3 | QT8: 3 | QV8: 3 | QY8: 3 | QZ8: 2 | RC8: 2 | RD8: 3 | RF8: 2 | RI8: 3 | RK8: 2 | RL8: 3 | RM8: 2 | RR8: 3 | RS8: 3 | RT8: 2 | RV8: 3 | RW8: 3 | RY8: 3 | SC8: 3 | SE8: 3 | SF8: 3 | SG8: 3 | SI8: 3 | SK8: 3 | SN8: 3 | SO8: 3 | SP8: 3 | SQ8: 3 | SR8: 3 | SS8: 2 | SV8: 3 | SW8: 3 | SX8: 3 | SY8: 3 | TA8: 3 | TB8: 3 | TC8: 3 | TF8: 2 | TJ8: 2 | TL8: 3 | TM8: 2 | TN8: 2 | TP8: 3 | TQ8: 3 | TS8: 2 | TT8: 2 | TV8: 2 | TW8: 3 | TX8: 3 | TZ8: 3 | UA8: 3 | UB8: 2 | UC8: 3 | UD8: 2 | UF8: 3 | UG8: 3 | UL8: 3 | UM8: 2 | UQ8: 3 | UR8: 3 | US8: 2 | UU8: 2 | UW8: 2 | UX8: 2 | UY8: 3 | UZ8: 3 | VA8: 2 | VB8: 3 | VC8: 2 | VE8: 3 | VF8: 3 | VG8: 2 | VH8: 3 | VL8: 3 | VO8: 2 | VP8: 3 | VQ8: 3 | VS8: 3 | VT8: 3 | VV8: 2 | VX8: 3 | WA8: 3 | WB8: 3 | WC8: 3 | WE8: 2 | WF8: 3 | WG8: 3 | WH8: 3 | WI8: 3 | WK8: 3 | WL8: 3 | WM8: 2 | WN8: 3 | WO8: 2 | WQ8: 3 | WR8: 3 | WS8: 3 | WT8: 3 | WW8: 3 | WY8: 3 | WZ8: 3 | XA8: 3 | XB8: 2 | XC8: 3 | XD8: 2 | XE8: 3 | XJ8: 3 | XK8: 2 | XL8: 3 | XN8: 3 | XO8: 3 | XP8: 3 | XR8: 2 | XU8: 3 | XW8: 3 | XX8: 3 | XY8: 2 | XZ8: 3 | YA8: 3 | YC8: 3 | YD8: 3 | YE8: 2 | YF8: 3 | YG8: 3 | YH8: 3 | YK8: 3 | YL8: 3 | YM8: 3 | YP8: 3 | YS8: 3 | YT8: 3 | YU8: 3 | YY8: 2 | ZA8: 2 | ZB8: 3 | ZF8: 3 | ZG8: 3 | ZH8: 3 | ZJ8: 3 | ZN8: 3 | ZO8: 2 | ZP8: 3 | ZQ8: 2 | ZS8: 2 | ZT8: 3 | ZV8: 3 | ZW8: 3 | ZX8: 3 | ZZ8: 3 | AAA8: 2 | AAB8: 3 | AAC8: 2 | AAD8: 2 | AAE8: 2 | AAI8: 3 | AAK8: 2 | AAN8: 2 | AAO8: 3 | AAP8: 3 | AAR8: 3 | AAV8: 2 | AAY8: 3 | AAZ8: 2 | ABB8: 3 | ABC8: 3 | ABD8: 2 | ABG8: 3 | ABH8: 3 | ABJ8: 2 | ABL8: 3 | ABN8: 2 | ABO8: 3 | ABP8: 3 | ABQ8: 3 | ABR8: 2 | ABS8: 2 | ABT8: 3 | ABV8: 2 | ABW8: 2 | ABX8: 2 | ABZ8: 3 | ACA8: 2 | ACB8: 2 | ACC8: 3 | ACD8: 2 | ACE8: 3 | ACF8: 2 | ACH8: 3 | ACI8: 2 | ACK8: 3 | ACL8: 2 | ACM8: 3 | ACN8: 2 | ACO8: 3 | ACP8: 2 | ACQ8: 2 | ACU8: 3 | ACW8: 3 | ADA8: 3 | ADC8: 3 | ADD8: 3 | ADF8: 3 | ADH8: 2 | ADI8: 2 | ADJ8: 2 | ADK8: 3 | ADL8: 3 | ADN8: 2 | ADP8: 3 | ADR8: 3 | ADT8: 3 | ADU8: 3 | ADV8: 3 | ADX8: 3 | AEA8: 2 | AEC8: 3 | AEE8: 3 | AEF8: 2 | AEH8: 3 | AEJ8: 3 | AEK8: 2 | AEM8: 3 | AEO8: 2 | AEQ8: 2 | AER8: 3 | AES8: 2 | AET8: 3 | AEU8: 3 | AEW8: 3 | AEX8: 2 | AEY8: 3 | AEZ8: 3 | AFA8: 2 | AFB8: 3 | AFC8: 3 | AFD8: 2 | AFE8: 3 | AFF8: 3 | AFG8: 3 | AFH8: 3 | AFI8: 3 | AFJ8: 3 | AFK8: 2 | AFM8: 2 | AFN8: 2 | AFO8: 3 | AFP8: 3 | AFQ8: 3 | AFR8: 2 | AFT8: 2 | AFU8: 3 | AFV8: 2 | AFW8: 3 | AFX8: 3 | AFY8: 3 | AFZ8: 2 | AGC8: 3 | AGD8: 2 | AGE8: 2 | AGF8: 3 | AGG8: 2 | AGJ8: 3 | AGL8: 2 | AGO8: 2 | AGQ8: 3 | AGS8: 3 | AGT8: 3 | AGX8: 3 | AHA8: 2 | AHI8: 2 | AHJ8: 2 | AHK8: 3 | AHL8: 3 | AHM8: 3 | AHN8: 3 | AHO8: 2 | AHP8: 3 | AHQ8: 2 | AHR8: 3 | AHS8: 2 | AHW8: 3 | AHY8: 3 | AHZ8: 2 | AIB8: 2 | AIE8: 3 | AII8: 2 | AIJ8: 2 | AIK8: 2 | AIM8: 3 | AIN8: 2 | AIO8: 3 | AIP8: 2 | AIR8: 3 | AIS8: 2 | AIT8: 2 | AIV8: 3 | AIY8: 3 | AJA8: 3 | AJB8: 3 | AJC8: 3 | AJD8: 3 | AJE8: 2 | AJH8: 3 | AJI8: 3 | AJJ8: 3 | AJL8: 2 | AJM8: 3 | AJN8: 2 | AJP8: 2 | AJQ8: 3 | AJR8: 3 | AJS8: 3 | AJZ8: 3 | AKA8: 3 | AKB8: 2 | AKC8: 3 | AKG8: 3 | AKH8: 3 | AKI8: 3 | AKJ8: 3 | AKK8: 3 | AKL8: 3 | AKM8: 3 | AKP8: 3 | AKQ8: 3 | AKR8: 3 | AKT8: 3 | AKW8: 3 | AKX8: 3 | AKY8: 2 | AKZ8: 2 | ALA8: 2 | ALC8: 3 | ALD8: 3 | ALF8: 3 | ALH8: 2 | ALN8: 2
B9: Březí | D9: 2 | E9: 2 | F9: 2 | I9: 2 | M9: 2 | N9: 2 | P9: 2 | Q9: 2 | T9: 2 | V9: 2 | W9: 2 | Y9: 2 | Z9: 2 | AA9: 2 | AC9: 2 | AE9: 2 | AF9: 2 | AH9: 2 | AJ9: 2 | AM9: 2 | AN9: 2 | AO9: 2 | AP9: 2 | AQ9: 2 | AR9: 2 | AS9: 2 | AT9: 2 | AU9: 2 | AY9: 2 | AZ9: 2 | BA9: 2 | BB9: 2 | BD9: 2 | BF9: 2 | BG9: 2 | BI9: 2 | BK9: 2 | BL9: 2 | BN9: 2 | BR9: 2 | BS9: 2 | BT9: 2 | BU9: 2 | BW9: 2 | BX9: 2 | BY9: 2 | CA9: 2 | CH9: 2 | CI9: 2 | CJ9: 2 | CK9: 2 | CM9: 2 | CN9: 2 | CO9: 2 | CP9: 2 | CQ9: 2 | CR9: 2 | CS9: 2 | CV9: 2 | CW9: 2 | CX9: 2 | CY9: 2 | CZ9: 2 | DB9: 2 | DC9: 2 | DH9: 2 | DI9: 2 | DK9: 2 | DL9: 2 | DM9: 2 | DN9: 2 | DO9: 2 | DQ9: 2 | DR9: 2 | DS9: 2 | DT9: 2 | DW9: 2 | DY9: 2 | DZ9: 2 | EA9: 2 | EB9: 2 | ED9: 2 | EE9: 2 | EF9: 2 | EG9: 2 | EH9: 2 | EI9: 2 | EK9: 2 | EL9: 2 | EN9: 2 | EQ9: 2 | ET9: 2 | EU9: 2 | EV9: 2 | EW9: 2 | FB9: 2 | FC9: 2 | FD9: 2 | FE9: 2 | FF9: 2 | FH9: 2 | FI9: 2 | FJ9: 2 | FK9: 2 | FM9: 2 | FR9: 2 | FS9: 2 | FT9: 2 | FU9: 2 | FV9: 2 | FW9: 2 | FX9: 2 | FZ9: 2 | GC9: 2 | GD9: 2 | GF9: 2 | GH9: 2 | GI9: 2 | GJ9: 2 | GK9: 2 | GL9: 2 | GM9: 2 | GO9: 2 | GP9: 2 | GQ9: 2 | GR9: 2 | GW9: 2 | GX9: 2 | HA9: 2 | HC9: 2 | HF9: 2 | HI9: 2 | HJ9: 2 | HK9: 2 | HL9: 2 | HM9: 2 | HN9: 2 | HO9: 2 | HP9: 2 | HS9: 2 | HX9: 2 | IA9: 2 | IC9: 2 | ID9: 2 | IF9: 2 | IG9: 2 | II9: 2 | IJ9: 2 | IN9: 2 | IO9: 2 | IQ9: 2 | IR9: 2 | IS9: 2 | IT9: 2 | IU9: 2 | IW9: 2 | JB9: 2 | JC9: 2 | JD9: 2 | JE9: 2 | JG9: 2 | JH9: 2 | JI9: 2 | JK9: 2 | JL9: 2 | JN9: 2 | JO9: 2 | JP9: 2 | JQ9: 2 | JT9: 2 | JV9: 2 | JW9: 2 | JX9: 2 | JZ9: 2 | KA9: 2 | KB9: 2 | KG9: 2 | KH9: 2 | KI9: 2 | KJ9: 2 | KK9: 2 | KL9: 2 | KM9: 2 | KN9: 2 | KO9: 2 | KP9: 2 | KS9: 2 | KT9: 2 | KV9: 2 | KX9: 2 | LA9: 2 | LB9: 2 | LE9: 2 | LG9: 2 | LH9: 2 | LI9: 2 | LJ9: 2 | LK9: 2 | LM9: 2 | LN9: 2 | LP9: 2 | LQ9: 2 | LR9: 2 | LT9: 2 | LU9: 2 | LV9: 2 | LW9: 2 | LZ9: 2 | MA9: 2 | MB9: 2 | MC9: 2 | MD9: 2 | ME9: 2 | MF9: 2 | MG9: 2 | MI9: 2 | MJ9: 2 | MM9: 2 | MN9: 2 | MO9: 2 | MP9: 2 | MR9: 2 | MV9: 2 | MX9: 2 | MY9: 2 | MZ9: 2 | NA9: 2 | NC9: 2 | NE9: 2 | NF9: 2 | NG9: 2 | NI9: 2 | NJ9: 2 | NL9: 2 | NO9: 2 | NQ9: 2 | NR9: 2 | NS9: 2 | NT9: 2 | NU9: 2 | NV9: 2 | NX9: 2 | OA9: 2 | OC9: 2 | OD9: 2 | OF9: 2 | OG9: 2 | OH9: 2 | OI9: 2 | OJ9: 2 | OK9: 2 | OL9: 2 | ON9: 2 | OO9: 2 | OP9: 2 | OQ9: 2 | OS9: 2 | OU9: 2 | OW9: 2 | OX9: 2 | OZ9: 2 | PA9: 2 | PB9: 2 | PD9: 2 | PE9: 2 | PF9: 2 | PG9: 2 | PH9: 2 | PI9: 2 | PN9: 2 | PP9: 2 | PQ9: 2 | PS9: 2 | PT9: 2 | PV9: 2 | PW9: 2 | PY9: 2 | PZ9: 2 | QA9: 2 | QB9: 2 | QD9: 2 | QF9: 2 | QG9: 2 | QH9: 2 | QI9: 2 | QJ9: 2 | QK9: 2 | QL9: 2 | QN9: 2 | QP9: 2 | QR9: 2 | QT9: 2 | QU9: 2 | QV9: 2 | QW9: 2 | QY9: 2 | RB9: 2 | RD9: 2 | RI9: 2 | RL9: 2 | RN9: 2 | RP9: 2 | RQ9: 2 | RR9: 2 | RS9: 2 | RU9: 2 | RV9: 2 | RW9: 2 | RX9: 2 | RY9: 2 | SA9: 2 | SB9: 2 | SC9: 2 | SD9: 2 | SE9: 2 | SF9: 2 | SG9: 2 | SH9: 2 | SI9: 2 | SK9: 2 | SM9: 2 | SN9: 2 | SO9: 2 | SP9: 2 | SQ9: 2 | SR9: 2 | SU9: 2 | SV9: 2 | SW9: 2 | SX9: 2 | SY9: 2 | TA9: 2 | TB9: 2 | TC9: 2 | TE9: 2 | TG9: 2 | TH9: 2 | TI9: 2 | TK9: 2 | TL9: 2 | TO9: 2 | TP9: 2 | TQ9: 2 | TR9: 2 | TU9: 2 | TW9: 2 | TX9: 2 | TY9: 2 | TZ9: 2 | UA9: 2 | UC9: 2 | UF9: 2 | UG9: 2 | UH9: 2 | UI9: 2 | UK9: 2 | UL9: 2 | UN9: 2 | UO9: 2 | UP9: 2 | UQ9: 2 | UR9: 2 | UT9: 2 | UY9: 2 | UZ9: 2 | VB9: 2 | VD9: 2 | VE9: 2 | VF9: 2 | VH9: 2 | VJ9: 2 | VK9: 2 | VL9: 2 | VM9: 2 | VP9: 2 | VQ9: 2 | VR9: 2 | VS9: 2 | VT9: 2 | VW9: 2 | VX9: 2 | WA9: 2 | WB9: 2 | WC9: 2 | WD9: 2 | WF9: 2 | WG9: 2 | WH9: 2 | WI9: 2 | WJ9: 2 | WK9: 2 | WL9: 2 | WN9: 2 | WQ9: 2 | WR9: 2 | WS9: 2 | WT9: 2 | WV9: 2 | WW9: 2 | WX9: 2 | WY9: 2 | WZ9: 2 | XA9: 2 | XC9: 2 | XE9: 2 | XF9: 2 | XJ9: 2 | XL9: 2 | XM9: 2 | XN9: 2 | XO9: 2 | XP9: 2 | XS9: 2 | XT9: 2 | XU9: 2 | XW9: 2 | XX9: 2 | XZ9: 2 | YA9: 2 | YB9: 2 | YC9: 2 | YD9: 2 | YF9: 2 | YG9: 2 | YH9: 2 | YI9: 2 | YJ9: 2 | YK9: 2 | YL9: 2 | YM9: 2 | YO9: 2 | YP9: 2 | YQ9: 2 | YR9: 2 | YS9: 2 | YT9: 2 | YU9: 2 | YV9: 2 | YW9: 2 | YX9: 2 | YZ9: 2 | ZB9: 2 | ZD9: 2 | ZE9: 2 | ZF9: 2 | ZG9: 2 | ZH9: 2 | ZI9: 2 | ZJ9: 2 | ZL9: 2 | ZN9: 2 | ZP9: 2 | ZR9: 2 | ZT9: 2 | ZU9: 2 | ZV9: 2 | ZW9: 2 | ZX9: 2 | ZY9: 2 | ZZ9: 2 | AAB9: 2 | AAI9: 2 | AAJ9: 2 | AAL9: 2 | AAM9: 2 | AAO9: 2 | AAP9: 2 | AAQ9: 2 | AAR9: 2 | AAX9: 2 | AAY9: 2 | ABA9: 2 | ABB9: 2 | ABC9: 2 | ABF9: 2 | ABG9: 2 | ABH9: 2 | ABI9: 2 | ABK9: 2 | ABL9: 2 | ABM9: 2 | ABO9: 2 | ABP9: 2 | ABQ9: 2 | ABT9: 2 | ABU9: 2 | ABZ9: 2 | ACC9: 2 | ACE9: 2 | ACG9: 2 | ACH9: 2 | ACJ9: 2 | ACK9: 2 | ACM9: 2 | ACO9: 2 | ACR9: 2 | ACU9: 2 | ACV9: 2 | ACW9: 2 | ACY9: 2 | ACZ9: 2 | ADA9: 2 | ADB9: 2 | ADC9: 2 | ADD9: 2 | ADE9: 2 | ADF9: 2 | ADG9: 2 | ADK9: 2 | ADL9: 2 | ADM9: 2 | ADO9: 2 | ADP9: 2 | ADQ9: 2 | ADR9: 2 | ADS9: 2 | ADT9: 2 | ADU9: 2 | ADV9: 2 | ADX9: 2 | ADY9: 2 | AEB9: 2 | AEC9: 2 | AED9: 2 | AEE9: 2 | AEG9: 2 | AEH9: 2 | AEJ9: 2 | AEL9: 2 | AEM9: 2 | AEN9: 2 | AEP9: 2 | AER9: 2 | AET9: 2 | AEU9: 2 | AEV9: 2 | AEW9: 2 | AEY9: 2 | AEZ9: 2 | AFB9: 2 | AFC9: 2 | AFE9: 2 | AFF9: 2 | AFG9: 2 | AFH9: 2 | AFI9: 2 | AFJ9: 2 | AFL9: 2 | AFO9: 2 | AFP9: 2 | AFQ9: 2 | AFS9: 2 | AFU9: 2 | AFW9: 2 | AFX9: 2 | AFY9: 2 | AGA9: 2 | AGC9: 2 | AGF9: 2 | AGH9: 2 | AGJ9: 2 | AGK9: 2 | AGN9: 2 | AGP9: 2 | AGQ9: 2 | AGS9: 2 | AGT9: 2 | AGU9: 2 | AGV9: 2 | AGW9: 2 | AGX9: 2 | AGY9: 2 | AHC9: 2 | AHK9: 2 | AHL9: 2 | AHM9: 2 | AHN9: 2 | AHP9: 2 | AHR9: 2 | AHT9: 2 | AHV9: 2 | AHW9: 2 | AHX9: 2 | AHY9: 2 | AIA9: 2 | AIC9: 2 | AID9: 2 | AIE9: 2 | AIG9: 2 | AIH9: 2 | AIL9: 2 | AIM9: 2 | AIO9: 2 | AIQ9: 2 | AIR9: 2 | AIU9: 2 | AIV9: 2 | AIW9: 2 | AIY9: 2 | AIZ9: 2 | AJA9: 2 | AJB9: 2 | AJC9: 2 | AJD9: 2 | AJG9: 2 | AJH9: 2 | AJI9: 2 | AJJ9: 2 | AJM9: 2 | AJQ9: 2 | AJR9: 2 | AJS9: 2 | AJT9: 2 | AJU9: 2 | AJV9: 2 | AJZ9: 2 | AKA9: 2 | AKC9: 2 | AKD9: 2 | AKE9: 2 | AKF9: 2 | AKG9: 2 | AKH9: 2 | AKI9: 2 | AKJ9: 2 | AKK9: 2 | AKL9: 2 | AKM9: 2 | AKN9: 2 | AKO9: 2 | AKP9: 2 | AKQ9: 2 | AKR9: 2 | AKT9: 2 | AKU9: 2 | AKW9: 2 | AKX9: 2 | ALB9: 2 | ALC9: 2 | ALD9: 2 | ALE9: 2 | ALF9: 2 | ALG9: 2 | ALK9: 2 | ALM9: 2
B10: Něchov | C10: 4 | E10: 4 | F10: 5 | G10: 3 | H10: 4 | I10: 4 | J10: 3 | L10: 4 | N10: 5 | O10: 3 | P10: 4 | R10: 4 | V10: 3 | W10: 4 | Y10: 4 | Z10: 5 | AE10: 4 | AF10: 5 | AG10: 4 | AI10: 3 | AL10: 3 | AP10: 4 | AQ10: 4 | AR10: 5 | AS10: 5 | AU10: 4 | AV10: 4 | AX10: 3 | AY10: 5 | BB10: 5 | BD10: 4 | BE10: 3 | BG10: 3 | BI10: 4 | BJ10: 4 | BL10: 5 | BM10: 3 | BO10: 3 | BP10: 4 | BR10: 5 | BS10: 5 | BV10: 4 | BW10: 5 | BX10: 5 | BY10: 3 | BZ10: 4 | CB10: 3 | CC10: 3 | CD10: 3 | CE10: 3 | CF10: 3 | CG10: 3 | CI10: 5 | CJ10: 3 | CL10: 2 | CM10: 4 | CN10: 5 | CO10: 5 | CP10: 5 | CQ10: 5 | CR10: 4 | CS10: 4 | CT10: 4 | CU10: 3 | CV10: 4 | CW10: 5 | CX10: 4 | CY10: 5 | CZ10: 5 | DA10: 4 | DC10: 4 | DD10: 4 | DE10: 2 | DF10: 3 | DH10: 4 | DJ10: 3 | DK10: 3 | DL10: 4 | DO10: 5 | DP10: 4 | DQ10: 5 | DS10: 5 | DT10: 4 | DU10: 4 | DV10: 3 | DX10: 3 | EA10: 4 | ED10: 5 | EF10: 5 | EG10: 5 | EI10: 5 | EJ10: 4 | EK10: 4 | EM10: 3 | EN10: 4 | EQ10: 5 | ER10: 3 | ES10: 3 | EW10: 5 | EX10: 4 | EY10: 3 | FA10: 4 | FC10: 3 | FD10: 5 | FE10: 5 | FG10: 3 | FI10: 4 | FJ10: 3 | FM10: 5 | FN10: 4 | FO10: 4 | FP10: 2 | FQ10: 3 | FT10: 5 | FU10: 5 | FV10: 3 | FW10: 4 | FX10: 5 | FY10: 2 | GB10: 4 | GC10: 5 | GF10: 5 | GG10: 3 | GJ10: 4 | GL10: 5 | GN10: 3 | GO10: 4 | GP10: 4 | GQ10: 5 | GR10: 4 | GS10: 4 | GU10: 4 | GV10: 3 | GW10: 5 | GX10: 5 | GZ10: 4 | HA10: 5 | HB10: 4 | HD10: 2 | HE10: 3 | HF10: 5 | HG10: 3 | HH10: 4 | HI10: 4 | HJ10: 5 | HK10: 4 | HM10: 5 | HN10: 5 | HO10: 5 | HP10: 4 | HQ10: 4 | HR10: 3 | HS10: 5 | HT10: 3 | HU10: 4 | HX10: 5 | HY10: 4 | IA10: 4 | IE10: 3 | IF10: 4 | IG10: 4 | IH10: 2 | II10: 4 | IK10: 3 | IL10: 4 | IM10: 3 | IN10: 5 | IP10: 2 | IQ10: 4 | IR10: 5 | IS10: 4 | IT10: 4 | IV10: 3 | IZ10: 4 | JB10: 5 | JC10: 5 | JD10: 4 | JH10: 4 | JI10: 5 | JJ10: 4 | JK10: 4 | JL10: 4 | JM10: 2 | JN10: 4 | JQ10: 5 | JT10: 4 | JU10: 2 | JV10: 5 | JW10: 5 | JX10: 5 | JZ10: 4 | KA10: 4 | KC10: 4 | KD10: 4 | KI10: 5 | KJ10: 5 | KK10: 4 | KO10: 5 | KQ10: 4 | KR10: 3 | KS10: 3 | KT10: 3 | KU10: 4 | KW10: 4 | KX10: 5 | KY10: 4 | KZ10: 2 | LA10: 5 | LB10: 4 | LC10: 4 | LF10: 4 | LH10: 5 | LI10: 4 | LK10: 5 | LL10: 4 | LM10: 4 | LO10: 3 | LP10: 4 | LQ10: 4 | LS10: 4 | LT10: 3 | LU10: 3 | LX10: 3 | LY10: 3 | MA10: 5 | MD10: 5 | ME10: 3 | MF10: 3 | MG10: 5 | MI10: 4 | MJ10: 5 | MK10: 3 | MM10: 4 | MN10: 4 | MO10: 5 | MQ10: 4 | MR10: 4 | MS10: 4 | MT10: 3 | MX10: 5 | MZ10: 4 | NA10: 4 | NB10: 3 | NC10: 5 | NE10: 3 | NF10: 3 | NG10: 4 | NH10: 3 | NI10: 5 | NJ10: 4 | NK10: 4 | NL10: 4 | NN10: 3 | NO10: 5 | NP10: 4 | NQ10: 3 | NU10: 4 | NV10: 4 | NW10: 3 | NX10: 4 | NZ10: 4 | OB10: 3 | OD10: 4 | OE10: 4 | OF10: 5 | OG10: 3 | OH10: 5 | OL10: 4 | OM10: 4 | ON10: 5 | OO10: 5 | OR10: 3 | OS10: 4 | OV10: 3 | PA10: 5 | PB10: 4 | PC10: 4 | PE10: 5 | PF10: 5 | PG10: 5 | PH10: 3 | PI10: 5 | PK10: 3 | PL10: 3 | PP10: 4 | PT10: 5 | PU10: 3 | PV10: 4 | PW10: 4 | PX10: 4 | PY10: 4 | PZ10: 4 | QA10: 5 | QB10: 5 | QF10: 5 | QG10: 5 | QH10: 4 | QJ10: 5 | QO10: 3 | QP10: 5 | QQ10: 2 | QS10: 3 | QU10: 3 | QW10: 3 | QX10: 3 | QY10: 5 | QZ10: 3 | RA10: 3 | RB10: 3 | RD10: 5 | RE10: 3 | RG10: 3 | RH10: 3 | RJ10: 2 | RK10: 3 | RL10: 5 | RM10: 3 | RN10: 4 | RO10: 3 | RP10: 3 | RQ10: 4 | RR10: 5 | RS10: 5 | RT10: 3 | RU10: 3 | RV10: 5 | RW10: 5 | RX10: 4 | RY10: 5 | SC10: 4 | SD10: 4 | SE10: 4 | SI10: 4 | SJ10: 2 | SK10: 4 | SO10: 4 | SP10: 5 | SQ10: 5 | SR10: 5 | SS10: 4 | ST10: 2 | SU10: 4 | SV10: 5 | SW10: 4 | SZ10: 2 | TB10: 4 | TC10: 5 | TD10: 2 | TE10: 4 | TF10: 4 | TG10: 4 | TH10: 4 | TI10: 4 | TL10: 4 | TM10: 4 | TQ10: 5 | TR10: 4 | TS10: 4 | TZ10: 5 | UA10: 5 | UC10: 4 | UF10: 5 | UH10: 4 | UJ10: 3 | UL10: 4 | UM10: 4 | UN10: 4 | UP10: 4 | UQ10: 5 | UR10: 4 | UU10: 4 | UV10: 2 | UW10: 3 | UY10: 4 | VE10: 4 | VG10: 3 | VL10: 4 | VM10: 4 | VN10: 3 | VO10: 3 | VP10: 4 | VQ10: 5 | VS10: 4 | VU10: 3 | VV10: 3 | VW10: 3 | VX10: 4 | VY10: 3 | VZ10: 2 | WA10: 5 | WB10: 5 | WC10: 5 | WF10: 5 | WI10: 5 | WL10: 5 | WN10: 5 | WO10: 4 | WP10: 3 | WQ10: 5 | WT10: 4 | WU10: 2 | WV10: 4 | WY10: 5 | XA10: 4 | XB10: 3 | XD10: 4 | XE10: 5 | XF10: 3 | XG10: 3 | XI10: 3 | XJ10: 4 | XK10: 3 | XL10: 5 | XN10: 5 | XO10: 4 | XS10: 3 | YA10: 4 | YB10: 3 | YC10: 4 | YD10: 5 | YF10: 5 | YG10: 4 | YH10: 5 | YJ10: 3 | YK10: 5 | YL10: 4 | YM10: 5 | YN10: 2 | YQ10: 4 | YS10: 5 | YT10: 5 | YU10: 4 | YV10: 3 | YX10: 3 | YY10: 3 | YZ10: 4 | ZA10: 4 | ZB10: 4 | ZD10: 4 | ZE10: 3 | ZF10: 5 | ZH10: 4 | ZI10: 3 | ZJ10: 5 | ZK10: 2 | ZL10: 4 | ZO10: 4 | ZP10: 5 | ZQ10: 4 | ZR10: 4 | ZS10: 4 | ZT10: 5 | ZV10: 5 | ZW10: 4 | ZX10: 5 | AAA10: 4 | AAC10: 3 | AAD10: 3 | AAF10: 2 | AAJ10: 4 | AAK10: 3 | AAL10: 3 | AAN10: 3 | AAQ10: 4 | AAS10: 2 | AAT10: 2 | AAU10: 2 | AAY10: 5 | AAZ10: 4 | ABA10: 4 | ABB10: 5 | ABD10: 4 | ABE10: 3 | ABF10: 3 | ABG10: 5 | ABH10: 5 | ABI10: 4 | ABJ10: 4 | ABL10: 5 | ABN10: 4 | ABO10: 5 | ABP10: 5 | ABS10: 4 | ABT10: 5 | ABU10: 3 | ABV10: 3 | ABW10: 3 | ABX10: 3 | ABY10: 3 | ACA10: 3 | ACC10: 4 | ACD10: 4 | ACI10: 4 | ACJ10: 4 | ACK10: 4 | ACL10: 3 | ACN10: 4 | ACO10: 5 | ACP10: 4 | ACQ10: 4 | ACR10: 4 | ACS10: 3 | ACT10: 2 | ACU10: 5 | ACV10: 4 | ACX10: 3 | ACY10: 4 | ADD10: 5 | ADE10: 3 | ADF10: 4 | ADH10: 4 | ADK10: 5 | ADM10: 3 | ADN10: 3 | ADP10: 5 | ADQ10: 3 | ADR10: 5 | ADT10: 4 | ADU10: 5 | ADV10: 5 | ADX10: 5 | ADY10: 4 | ADZ10: 2 | AEA10: 3 | AEC10: 5 | AEE10: 4 | AEG10: 4 | AEH10: 5 | AEI10: 2 | AEJ10: 4 | AEM10: 5 | AEP10: 4 | AER10: 4 | AES10: 4 | AEU10: 5 | AEV10: 4 | AEW10: 5 | AEX10: 3 | AEZ10: 5 | AFA10: 4 | AFB10: 5 | AFC10: 5 | AFD10: 4 | AFG10: 5 | AFH10: 5 | AFK10: 4 | AFM10: 3 | AFO10: 5 | AFP10: 4 | AFQ10: 4 | AFR10: 3 | AFS10: 4 | AFU10: 5 | AFV10: 3 | AFX10: 5 | AFY10: 5 | AFZ10: 4 | AGA10: 3 | AGB10: 3 | AGE10: 4 | AGG10: 3 | AGH10: 3 | AGI10: 2 | AGJ10: 4 | AGM10: 3 | AGO10: 4 | AGP10: 3 | AGR10: 2 | AGS10: 4 | AGU10: 3 | AGW10: 3 | AGX10: 5 | AGZ10: 3 | AHA10: 4 | AHB10: 3 | AHC10: 4 | AHD10: 3 | AHE10: 3 | AHG10: 2 | AHH10: 3 | AHK10: 5 | AHM10: 5 | AHN10: 4 | AHP10: 4 | AHQ10: 4 | AHR10: 4 | AHS10: 4 | AHT10: 3 | AHU10: 2 | AHV10: 4 | AHW10: 4 | AHX10: 4 | AIA10: 4 | AIC10: 4 | AIE10: 4 | AIG10: 3 | AIH10: 4 | AII10: 3 | AIJ10: 4 | AIL10: 3 | AIM10: 5 | AIO10: 5 | AIP10: 4 | AIR10: 4 | AIS10: 4 | AIV10: 4 | AIW10: 3 | AIX10: 3 | AIY10: 5 | AJC10: 4 | AJG10: 4 | AJH10: 5 | AJJ10: 5 | AJK10: 2 | AJL10: 4 | AJN10: 3 | AJP10: 4 | AJQ10: 5 | AJR10: 5 | AJS10: 5 | AJU10: 4 | AJV10: 4 | AJW10: 3 | AJX10: 3 | AJY10: 2 | AJZ10: 5 | AKA10: 5 | AKB10: 3 | AKE10: 4 | AKF10: 4 | AKG10: 4 | AKH10: 5 | AKJ10: 5 | AKL10: 4 | AKM10: 5 | AKN10: 3 | AKP10: 4 | AKQ10: 4 | AKR10: 5 | AKS10: 3 | AKT10: 4 | AKW10: 4 | AKX10: 5 | AKY10: 4 | AKZ10: 4 | ALC10: 5 | ALD10: 5 | ALE10: 4 | ALF10: 5 | ALG10: 4 | ALH10: 3 | ALL10: 2 | ALN10: 4
